Workbook

Sheet Handleiding
B1: KNHS Eventingwedstrijden.
B3: Handleiding bij het programma "Uitslagverwerking SGW" versie 1.5 d.d. do. 21.12.2017
A5: 1 | B5: Bewaar dit basisbestand ongewijzigd op je PC.
A6: 2 | B6: Maak een kopie van het basisbestand en geef deze een herkenbare naam (plaatsnaam wedstrijd, jaar,…).
A7: 3 | B7: Sla deze kopie op in een nieuwe map, geef deze map een herkenbare naam en werk hierin verder.
A8: 4 | B8: Open dat bestand en "Macro's inschakelen".
A9: 5 | B9: Verwijder de overbodige tabbladen (klassen of categoriën die op je wedstrijd niet voorkomen).
A10: 6 | B10: Tabblad Basis : vul de plaatselijke gegevens in (enkel de gele velden kunnen ingevuld worden).
A11: 7 | B11: De formules passen nu de crosstijden etc. in alle volgende werkbladen aan.
A12: 8 | B12: Wis (delete) per klasse de kolommen van de niet-bestaande crosshindernissen (nummer en alle streepjes)
A13: 9 | B13: Kopieer dan elk tabblad per klasse zo vaak als er ringen in die klasse zijn.
A14: 10 | B14: Pas de naam van elk tabblad en de titel (cel G1) aan (bv : Paarden L ring 2 / Paarden L ring 3 / … ).
A15: 11 | B15: Vul de naam van de dressuurjury in : cel L1
A16: 12 | B16: Voeg de gegevens van de deelnemers in met "Kopiëren / Bewerken / Plakken speciaal / Waarden".
A17: 13 | B17: Dit gebeurt best uit je wedstrijdprogramma (opgemaakte startlijsten …).
A18: 14 | B18: Indien van toepassing zet je in kolom A : "HC" (Hors Concours = buiten mededinging).
A19: 15 | B19: Elk werkblad is beveiligd, behalve de gele cellen en de cellen voor de deelnemer-gegevens.
A20: 16 | B20: Deze beveiliging kan echter uitgezet worden (zonder wachtwoord) via "Extra / Beveiliging / Blad ...".
A21: 17 | B21: Dit dient bv te gebeuren om rijen in te voegen of om te sorteren, maar beveilig nadien opnieuw ! (OK)
A22: 18 | B22: Bij meer dan 25 deelnemers in 1 ring, rijen invoegen, mits ALLE formules te kopiëren (volledige rijen !!!).
A23: 19 | B23: Verwijder NOOIT rijen of kolommen, indien nodig of gewenst : enkel verbergen.
A24: 20 | B24: Sorteer indien nodig de deelnemers op rugnummer (kolom C). Dus even beveiling AF / OP.
A25: 21 | B25: Vul de behaalde wedstrijdgegevens per deelnemer in : positieve punten dressuur (kolom I, klasse Z : H en I).
A26: 22 | B26: Indien in klasse B geen dressuur wordt gereden : elke deelnemer 150 ptn toekennen (= 50 strafpunten).
A27: 23 | B27: Wie niet start in dressuur : "NG" (niet gestart) in kolom I, bij uitsluiting "Uit" (uitsluiting) in I en "dress"in AY .
A28: 24 | B28: Zo ook na het springen : de hindernis- en tijdsfouten; indien foutloos : 0 invullen !
A29: 25 | B29: Wie niet start in het springen : "NG" in kolom K (hindernisfouten), bij uitsluiting "Uit" in K en "spr" in AY.
A30: 26 | B30: Bij ingeven van de cross MOET kolom Y (hindernis 1) ingevuld worden : 0 of 20 of 60 of … of NG
A31: 27 | B31: Hindernisfouten in kolommen Z tot AW : 20 / 60 / 3W / VP / VR / FP / VrV; bij foutloos : streepje laten staan !
A32: 28 | B32: Na verlaten parcours (door VrV of Uit) : delete alle verdere streepjes / bij doorrijden : streepjes laten staan !
A33: 29 | B33: In voorkomend geval : de somformule in kolom AX overschrijven door Uit of VrV.
A34: 30 | B34: Deze groene kolom AX bevat formules, maar is NIET beveiligd.
A35: 31 | B35: Indien Uit : reden, en eventueel hindernis vermelden in kolom AY.
A36: 32 | B36: Indien andere reden van uitsluiting dan automatisch vermeld (bv. dierenarts) : in kolom AY.
A37: 33 | B37: Tijd van de cross : de minuten in kolom N, de seconden in kolom O invullen, het : komt automatisch.
A38: 34 | B38: Optioneel kunnen start- en aankomsturen ingevoerd worden in kolommen BC en BD (uu:mm:ss).
A39: 35 | B39: Klasse B : beide totalen van de stijlcijfers invullen in kolommen BP en BQ. (cfr. tabblad Reglement, punt 2)
A40: 36 | B40: Indien één van beide stijlpunten ontbreekt en cross uitgereden : in beide kolommen zelfde punten ingeven.
A41: 37 | B41: Tussen- of einduitslag : blok met volledige rijen sorteren op kolom U / OPLOPEND ! (beveiliging AF / OP).
A42: 38 | B42: Nummer kolom A volgens het klassement (HC-combinaties onderaan) en dikke streep onder geclasseerden.
A43: 39 | B43: Ex-aequo's sorteren volgens reglement; uitsluitingen vlgs logica (mits rankingcijfers te wissen na sorteren).
A44: 40 | B44: Om enkel resultatenblad of verzamelstaat van de hindernissen te printen : gebruik de buttons onderaan.
A45: 41 | B45: Vergeet niet regelmatig het bestand op te slaan + kopie op externe data-drager (USB-stick …) ! ! !
A46: 42 | B46: Publiceer de uitslagen via mail of internet niet in Excel, maar als PDF ! (behalve aan KNHS … !)
A47: 43 | B47: Wijzig NIETS aan de formules a.u.b. ! Eventuele vragen, opmerkingen, suggesties : G.Naber@knhs.nl
B49: 2017-12-21T17:00:00

Sheet Reglement
B2: KNHS Eventingwedstrijden.
B4: Memo reglement t.b.v. rekenkamer
C5: telkens te verifiëren met laatste versie en jaar van het reglement !
A7: 1 | B7: strafpunten cross : | C7: 1ste weigering (of volte, uitbreken) : | D7: 20
C8: 2de weigering op dezelfde hindernis : | D8: 40
C9: 3de weigering op dezelfde hindernis (klasse t/m L) : | D9: uitsluiting
C10: 4 weigeringen totaal (klasse t/m L) : | D10: uitsluiting
C11: 3 weigeringen totaal (klasse M en Z) : | D11: uitsluiting
C12: val ruiter en/of paard : | D12: uitsluiting
C13: van laatste hindernis tot finish niet in galop in rechte lijn (wijziging 2016) | D13: 4
A14: 2 | B14: stijlpunten (klasse B) : | C14: per stijljury wordt het gemiddelde gemaakt :
C15: som van de 3 getallen (hele of halve punten) gedeeld door 3
C16: en afgerond op 1 decimaal (dus b.v. 6,0 of 6,2 of 6,7 of ...).
C17: Zie hiervoor kolommen BP tot BS
A18: 3 | B18: uitsluiting dressuur : | C18: 45% of minder (cfr. tabblad Basis : kolom M)
A19: 4 | B19: uitsluiting springen : | C19: meer dan 20 strafpunten, exclusief de tijdsoverschrijving (cfr. Basis : kolom N)
A20: 5 | B20: uitsluiting cross : | C20: overschrijden van gemiddelde snelheid 225 m/min (paarden), 200 m/min (pony's)
C21: cfr. Basis : kolommen O en P.
A22: 6 | B22: uitsluiting dierenarts | C22: na springen | D22: "vet spr"
C23: na cross | D23: "vet cr"
A24: 7 | B24: aantal geclasseerden : | C24: aantal starters in dressuur - aantal HC, delen door 4 / naar boven afronden
A26: 8 | B26: reglement ex-equo : | C26: Bij een gelijk aantal strafpunten is de winnaar :
B27: (wijziging 2017) | C27: a. De combinatie met het minst aantal strafpunten in de crosscountry
C28: b. Daarna de combinatie die de toegestane tijd in de crosscountry het dichtst benadert
C29: c. Daarna de combinatie met het beste springresultaat
C30: d. Daarna de combinatie met de snelste tijd in het springen
C31: e. Daarna worden de betreffende combinaties gelijk geplaatst.
A33: 9 | B33: berekening dressuur : | C33: De coëfficiënt x 1,5 vervalt. Dit is aangepast in de formules.
B34: (wijziging 2018 cfr.FEI) | C34: Bij klasse B zonder dressuur : nu elke deelnemer 150 ptn toekennen (= 50 strafpunten).

Sheet Basis
B1: KNHS Samengestelde wedstrijd | F1: =D5 -> Eventing Leende 30 juni 2018
B3: Parameters te wijzigingen per wedstrijd : gele cellen | U3: Hulpkolommen uitsluitingstijd cross | Y3: Coëfficiënt dressuur
F4: opt. tijd | G4: minim. tijd | H4: opt. tijd | J4: minim. tijd | L4: max. | M4: uitsluiting | N4: uitsluiting | O4: uitsluiting crosstijd | U4: uitsl. tijd | W4: uitsl. tijd | Y4: 2018
B5: Plaats en jaar wedstrijd : | D5: Eventing Leende 30 juni 2018 | F5: sec. | G5: sec. | H5: min. | I5: sec. | J5: min. | K5: sec. | L5: dress. | M5: dressuur | N5: springen | O5: min. | P5: sec | U5: sec. | W5: min. | X5: sec.
A6: Klasse | C6: Lengte (m) | D6: Snelheid (m/min) | M6: = of < | N6: hind.ftn > | U6: 225 | Y6: 1
A8: B | B8: Cross : | C8: 1680 | D8: 460 | F8: =CEILING(C8/(D8/60),1) -> 220 | G8: =F8-20 -> 200 | H8: =INT(F8/60) -> 3 | I8: =F8-(H8*60) -> 40 | J8: =INT(G8/60) -> 3 | K8: =G8-(J8*60) -> 20 | L8: 300 | M8: =L8*45/100 -> 135 | N8: 20 | O8: =W8 -> 7 | P8: 28 | U8: =CEILING(C8/(U$6/60),1) -> 448 | W8: =INT(U8/60) -> 7 | X8: =U8-(W8*60) -> 28
A9: L | B9: Cross : | C9: 2040 | D9: 480 | F9: =CEILING(C9/(D9/60),1) -> 255 | G9: =F9-20 -> 235 | H9: =INT(F9/60) -> 4 | I9: =F9-(H9*60) -> 15 | J9: =INT(G9/60) -> 3 | K9: =G9-(J9*60) -> 55 | L9: 300 | M9: =L9*45/100 -> 135 | N9: =N$8 -> 20 | O9: 9 | P9: 4 | U9: =CEILING(C9/(U$6/60),1) -> 544 | W9: =INT(U9/60) -> 9 | X9: =U9-(W9*60) -> 4
A10: M | B10: Cross : | C10: 2300 | D10: 500 | F10: =CEILING(C10/(D10/60),1) -> 276 | G10: =F10-20 -> 256 | H10: =INT(F10/60) -> 4 | I10: =F10-(H10*60) -> 36 | J10: =INT(G10/60) -> 4 | K10: =G10-(J10*60) -> 16 | L10: 300 | M10: =L10*45/100 -> 135 | N10: =N$8 -> 20 | O10: 10 | P10: 14 | U10: =CEILING(C10/(U$6/60),1) -> 614 | W10: =INT(U10/60) -> 10 | X10: =U10-(W10*60) -> 14
A11: Z | B11: Cross : | C11: 2600 | D11: 520 | F11: =CEILING(C11/(D11/60),1) -> 300 | G11: =F11-20 -> 280 | H11: =INT(F11/60) -> 5 | I11: =F11-(H11*60) -> 0 | J11: =INT(G11/60) -> 4 | K11: =G11-(J11*60) -> 40 | L11: 230 | M11: =L11*45/100 -> 103.5 | N11: =N$8 -> 20 | O11: 11 | P11: 34 | U11: =CEILING(C11/(U$6/60),1) -> 694 | W11: =INT(U11/60) -> 11 | X11: =U11-(W11*60) -> 34
B14: KNHS Samengestelde wedstrijd | F14: =D18 -> Eventing Leende 30 juni 2018
B16: Parameters te wijzigingen per wedstrijd : gele cellen | U16: Hulpkolommen uitsluitingstijd cross | Y16: Coëfficiënt dressuur
F17: opt. tijd | G17: minim. tijd | H17: opt. tijd | J17: minim. tijd | L17: max. | M17: uitsluiting | N17: uitsluiting | O17: uitsluiting crosstijd | U17: uitsl. tijd | W17: uitsl. tijd | Y17: 2018
B18: Plaats en jaar wedstrijd : | D18: Eventing Leende 30 juni 2018 | F18: sec. | G18: sec. | H18: min. | I18: sec. | J18: min. | K18: sec. | L18: dress. | M18: dressuur | N18: springen | O18: min. | P18: sec | U18: sec. | W18: min. | X18: sec.
A19: Klasse / Categorie | C19: Lengte (m) | D19: Snelheid (m/min) | M19: = of < | N19: hind.ftn > | U19: 200 | Y19: 1
A20: B / B | B20: Cross : | C20: 1660 | D20: 420 | F20: =CEILING(C20/(D20/60),1) -> 238 | G20: =F20-20 -> 218 | H20: =INT(F20/60) -> 3 | I20: =F20-(H20*60) -> 58 | J20: =INT(G20/60) -> 3 | K20: =G20-(J20*60) -> 38 | L20: 300 | M20: =L20*45/100 -> 135 | N20: =N$8 -> 20 | O20: =W20 -> 8 | P20: 18 | U20: =CEILING(C20/(U$19/60),1) -> 498 | W20: =INT(U20/60) -> 8 | X20: =U20-(W20*60) -> 18
A21: B / C | B21: Cross : | C21: 1660 | D21: 440 | F21: =CEILING(C21/(D21/60),1) -> 227 | G21: =F21-20 -> 207 | H21: =INT(F21/60) -> 3 | I21: =F21-(H21*60) -> 47 | J21: =INT(G21/60) -> 3 | K21: =G21-(J21*60) -> 27 | L21: 300 | M21: =L21*45/100 -> 135 | N21: 20 | O21: =W21 -> 8 | P21: =X21 -> 18 | U21: =CEILING(C21/(U$19/60),1) -> 498 | W21: =INT(U21/60) -> 8 | X21: =U21-(W21*60) -> 18
A22: B / DE | B22: Cross : | C22: 1660 | D22: 450 | F22: 222 | G22: 202 | H22: 3 | I22: 42 | J22: 3 | K22: 22 | L22: 300 | M22: 135 | N22: 20 | O22: 8 | P22: 18 | U22: 498 | W22: 8 | X22: 18
A23: L / B | B23: Cross : | C23: 1680 | D23: 430 | F23: 235 | G23: 215 | H23: 3 | I23: 55 | J23: 3 | K23: 35 | L23: 300 | M23: 135 | N23: 20 | O23: 8 | P23: 24 | U23: 504 | W23: 8 | X23: 24
A24: L / C | B24: Cross : | C24: 1680 | D24: 450 | F24: =CEILING(C24/(D24/60),1) -> 224 | G24: =F24-20 -> 204 | H24: =INT(F24/60) -> 3 | I24: =F24-(H24*60) -> 44 | J24: =INT(G24/60) -> 3 | K24: =G24-(J24*60) -> 24 | L24: 300 | M24: =L24*45/100 -> 135 | N24: 20 | O24: =W24 -> 8 | P24: =X24 -> 24 | U24: =CEILING(C24/(U$19/60),1) -> 504 | W24: =INT(U24/60) -> 8 | X24: =U24-(W24*60) -> 24
A25: L / DE | B25: Cross : | C25: 1680 | D25: 460 | F25: 220 | G25: 200 | H25: 3 | I25: 40 | J25: 3 | K25: 20 | L25: 300 | M25: 135 | N25: 20 | O25: 8 | P25: 24 | U25: 504 | W25: 8 | X25: 24
A26: M / CDE | B26: Cross : | C26: 2040 | D26: 480 | F26: 255 | G26: 235 | H26: 4 | I26: 15 | J26: 3 | K26: 55 | L26: 300 | M26: 135 | N26: 20 | O26: 10 | P26: 12 | U26: 612 | W26: 10 | X26: 12
A27: Z / CDE | B27: Cross : | C27: 2200 | D27: 500 | F27: 264 | G27: 244 | H27: 4 | I27: 24 | J27: 4 | K27: 4 | L27: 220 | M27: 99 | N27: 20 | O27: 11 | P27: 0 | U27: 660 | W27: 11 | X27: 0
J28: =NOW() -> 2018-06-30T22:02:24.880

Sheet voorbeeld Paarden B
A1: =" Samengestelde wedstrijd "&Basis!D5 -> Samengestelde wedstrijd Eventing Leende 30 juni 2018 | G1: Klasse B - Ring 1 | K1: Dressuurjury : | L1: Jan Ruyterkamp | X1: Verzamelstaat hindernisfouten in de cross | AK1: =A1 -> Samengestelde wedstrijd Eventing Leende 30 juni 2018 | BA1: =G1&" " -> Klasse B - Ring 1 | BC1: Indien aankomstUUR cross wordt meegedeeld : | BI1: Hulpkolommen | BP1: Stijlcijfers :
A2: rank | C2: rugnr | D2: combinatie nr | E2: naam ruiter | F2: naam paard | G2: vereniging / plaats | I2: dressuur | J2: dressuur | K2: hind.ft. | L2: tijd.ft. | M2: hind.ft. | N2: min | O2: sec | P2: tijd.ft. | R2: totaal | S2: (1) stijl | T2: (2) stijl | U2: eind- | V2: reden | Y2: hindernisnummer | BI2: Uitslag | BJ2: NA | BK2: tijd (sec) | BL2: tijd.ft. | BM2: reg.ft. | BN2: totaal | BP2: Totaal | BQ2: Totaal | BR2: Gemiddelde | BS2: Gemiddelde
A3: HC | I3: totaal | J3: strafpntn. | K3: springen | L3: springen | M3: cross | N3: cross | P3: =Basis!$H$8&":"&TEXT(Basis!$I$8,"00") -> 3:40 | S3: cijfer | T3: cijfer | U3: totaal | V3: uitsluiting | X3: nr | Y3: 1 | Z3: 2 | AA3: 3 | AB3: 4 | AC3: 5 | AD3: 6 | AE3: 7 | AF3: 8 | AG3: 9 | AH3: 10 | AI3: 11 | AJ3: 12 | AK3: 13 | AL3: 14 | AM3: 15 | AN3: 16 | AO3: 17 | AP3: 18 | AQ3: 19 | AR3: 20 | AX3: totaal | AY3: reden uitsluiting | AZ3: hind. | BA3: nr | BC3: Vertrekuur | BD3: Aankomst | BE3: Tijd | BF3: Minuten | BG3: Seconden | BI3: Springen | BJ3: Springen | BK3: cross | BL3: opt.tijd = | BM3: =Basis!$H$8&":"&TEXT(Basis!$I$8,"00") -> 3:40 | BN3: cross | BP3: Jury 1 | BQ3: Jury 2 | BR3: Jury 1 | BS3: Jury 2
R4: =IF(ISBLANK(I4),"",IF(AND(ISBLANK(K4),ISBLANK(Y4)),J4,IF(ISTEXT(K4),K4,IF(OR(ISBLANK(M4),M4=""),J4+K4+L4,IF(ISTEXT(M4),M4,IF(ISBLANK(Y4),J4+K4+L4,J4+K4+L4+M4+P4+Q4)))))) -> 
C5: 1 | D5: voorbeeld | E5: voorbeeld | F5: voorbeeld | G5: voorbeeld | I5: 190 | J5: =IF(I5="","",IF(ISTEXT(I5),I5,IF(I5<=Basis!$M$8,"Uit",(100-(I5/Basis!$L$8*100))*Basis!$Y$6))) -> 36.66666667 | K5: 4 | L5: 1 | M5: =IF(AX5="","",AX5) -> 20 | N5: =IF(ISBLANK(BD5),"",BF5) -> 5 | O5: =IF(ISBLANK(BD5),"",BG5) -> 15 | P5: =IF(N5="","",IF(N5*60+O5>Basis!$U$8,"Uit",BL5+BM5)) -> 38 | R5: =IF(ISTEXT(BJ5),BJ5,IF(OR(ISBLANK(M5),M5="",ISBLANK(Y5)),BJ5,IF(ISTEXT(BN5),BN5,BJ5+BN5))) -> 99.66666667 | S5: =IF(BP5="","",BR5) -> 7.5 | T5: =IF(BQ5="","",BS5) -> 6.5 | U5: =IF(R5="","",IF(ISTEXT(R5),R5,IF(BP5="","",R5-S5-T5))) -> 85.66666667 | V5: =IF(AY5="","",AY5) ->  | X5: =IF($C5="","",$C5) -> 1 | Y5: 0 | Z5: - | AA5: - | AB5: - | AC5: - | AD5: - | AE5: - | AF5: - | AG5: - | AH5: 20 | AI5: - | AJ5: - | AK5: - | AL5: - | AM5: - | AN5: - | AO5: - | AP5: - | AQ5: - | AR5: - | AX5: =IF(Y5="","",IF(ISTEXT(Y5),Y5,SUM(Y5:AW5))) -> 20 | BA5: =IF($C5="","",$C5) -> 1 | BC5: 10:00:00 | BD5: 10:05:15 | BE5: =IF(ISBLANK(BD5),"",BD5-BC5) -> 00:05:15 | BF5: =IF(ISBLANK(BD5),"",MINUTE(BE5)) -> 5 | BG5: =IF(ISBLANK(BD5),"",SECOND(BE5)) -> 15 | BI5: =IF(K5="","",IF(ISTEXT(K5),K5,IF(K5>Basis!$N$8,"Uit",IF(ISBLANK(L5),K5,K5+L5)))) -> 5 | BJ5: =IF(OR(ISTEXT(J5),BI5=""),J5,IF(ISTEXT(BI5),BI5,J5+BI5)) -> 41.66666667 | BK5: =IF(N5="","",N5*60+O5) -> 315 | BL5: =IF(N5="","",IF(BK5<=Basis!$F$8,0,(BK5-Basis!$F$8)*0.4)) -> 38 | BM5: =IF(N5="","",IF(BK5>Basis!$G$8,0,(Basis!$G$8-BK5)*0.4)) -> 0 | BN5: =IF(M5="","",IF(ISTEXT(M5),M5,IF(ISTEXT(P5),P5,M5+P5))) -> 58 | BP5: 22.5 | BQ5: 19.5 | BR5: =IF(BP5="","",BP5/3) -> 7.5 | BS5: =IF(BQ5="","",BQ5/3) -> 6.5
C6: 2 | I6: 190 | J6: =IF(I6="","",IF(ISTEXT(I6),I6,IF(I6<=Basis!$M$8,"Uit",(100-(I6/Basis!$L$8*100))*Basis!$Y$6))) -> 36.66666667 | K6: 0 | L6: 0 | M6: 0 | N6: 4 | O6: 58 | P6: =IF(N6="","",IF(N6*60+O6>Basis!$U$8,"Uit",BL6+BM6)) -> 31.2 | R6: 67.86666667 | S6: =IF(BP6="","",BR6) -> 7.5 | T6: =IF(BQ6="","",BS6) -> 6.5 | U6: =IF(R6="","",IF(ISTEXT(R6),R6,IF(BP6="","",R6-S6-T6))) -> 53.86666667 | X6: 2 | Y6: 0 | Z6: - | AA6: - | AB6: - | AC6: - | AD6: - | AE6: - | AF6: - | AG6: - | AH6: - | AI6: - | AJ6: - | AK6: - | AL6: - | AM6: - | AN6: - | AO6: - | AP6: - | AQ6: - | AR6: - | AX6: 0 | BA6: 2 | BC6: 10:02:00 | BD6: 10:06:58 | BE6: 00:04:58 | BF6: 4 | BG6: 58 | BI6: =IF(K6="","",IF(ISTEXT(K6),K6,IF(K6>Basis!$N$8,"Uit",IF(ISBLANK(L6),K6,K6+L6)))) -> 0 | BJ6: 36.66666667 | BK6: 298 | BL6: =IF(N6="","",IF(BK6<=Basis!$F$8,0,(BK6-Basis!$F$8)*0.4)) -> 31.2 | BM6: =IF(N6="","",IF(BK6>Basis!$G$8,0,(Basis!$G$8-BK6)*0.4)) -> 0 | BN6: 31.2 | BP6: 22.5 | BQ6: 19.5 | BR6: 7.5 | BS6: 6.5
C7: 3 | I7: 190 | J7: =IF(I7="","",IF(ISTEXT(I7),I7,IF(I7<=Basis!$M$8,"Uit",(100-(I7/Basis!$L$8*100))*Basis!$Y$6))) -> 36.66666667 | K7: 0 | L7: 0 | M7: 0 | N7: 5 | O7: 0 | P7: =IF(N7="","",IF(N7*60+O7>Basis!$U$8,"Uit",BL7+BM7)) -> 32 | R7: 68.66666667 | S7: 7.5 | T7: 6.5 | U7: =IF(R7="","",IF(ISTEXT(R7),R7,IF(BP7="","",R7-S7-T7))) -> 54.66666667 | X7: 3 | Y7: 0 | Z7: - | AA7: - | AB7: - | AC7: - | AD7: - | AE7: - | AF7: - | AG7: - | AH7: - | AI7: - | AJ7: - | AK7: - | AL7: - | AM7: - | AN7: - | AO7: - | AP7: - | AQ7: - | AR7: - | AX7: 0 | BA7: 3 | BC7: 10:04:00 | BD7: 10:09:00 | BE7: 00:05:00 | BF7: 5 | BG7: 0 | BI7: =IF(K7="","",IF(ISTEXT(K7),K7,IF(K7>Basis!$N$8,"Uit",IF(ISBLANK(L7),K7,K7+L7)))) -> 0 | BJ7: 36.66666667 | BK7: 300 | BL7: =IF(N7="","",IF(BK7<=Basis!$F$8,0,(BK7-Basis!$F$8)*0.4)) -> 32 | BM7: =IF(N7="","",IF(BK7>Basis!$G$8,0,(Basis!$G$8-BK7)*0.4)) -> 0 | BN7: 32 | BP7: 22.5 | BQ7: 19.5 | BR7: 7.5 | BS7: 6.5
C8: 4 | I8: 190 | J8: =IF(I8="","",IF(ISTEXT(I8),I8,IF(I8<=Basis!$M$8,"Uit",(100-(I8/Basis!$L$8*100))*Basis!$Y$6))) -> 36.66666667 | K8: 0 | L8: 0 | M8: 0 | N8: 4 | O8: 40 | P8: =IF(N8="","",IF(N8*60+O8>Basis!$U$8,"Uit",BL8+BM8)) -> 24 | R8: 60.66666667 | S8: 7.5 | T8: 6.5 | U8: 46.66666667 | X8: 4 | Y8: 0 | Z8: - | AA8: - | AB8: - | AC8: - | AD8: - | AE8: - | AF8: - | AG8: - | AH8: - | AI8: - | AJ8: - | AK8: - | AL8: - | AM8: - | AN8: - | AO8: - | AP8: - | AQ8: - | AR8: - | AX8: 0 | BA8: 4 | BC8: 10:06:00 | BD8: 10:10:40 | BE8: 00:04:40 | BF8: 4 | BG8: 40 | BI8: =IF(K8="","",IF(ISTEXT(K8),K8,IF(K8>Basis!$N$8,"Uit",IF(ISBLANK(L8),K8,K8+L8)))) -> 0 | BJ8: 36.66666667 | BK8: 280 | BL8: =IF(N8="","",IF(BK8<=Basis!$F$8,0,(BK8-Basis!$F$8)*0.4)) -> 24 | BM8: =IF(N8="","",IF(BK8>Basis!$G$8,0,(Basis!$G$8-BK8)*0.4)) -> 0 | BN8: 24 | BP8: 22.5 | BQ8: 19.5 | BR8: 7.5 | BS8: 6.5
C9: 5 | I9: 190 | J9: =IF(I9="","",IF(ISTEXT(I9),I9,IF(I9<=Basis!$M$8,"Uit",(100-(I9/Basis!$L$8*100))*Basis!$Y$6))) -> 36.66666667 | K9: 0 | L9: 0 | M9: 0 | N9: 4 | O9: 38 | P9: =IF(N9="","",IF(N9*60+O9>Basis!$U$8,"Uit",BL9+BM9)) -> 23.2 | R9: 59.86666667 | S9: 7.5 | T9: 6.5 | U9: 45.86666667 | X9: 5 | Y9: 0 | Z9: - | AA9: - | AB9: - | AC9: - | AD9: - | AE9: - | AF9: - | AG9: - | AH9: - | AI9: - | AJ9: - | AK9: - | AL9: - | AM9: - | AN9: - | AO9: - | AP9: - | AQ9: - | AR9: - | AX9: 0 | BA9: 5 | BC9: 10:08:00 | BD9: 10:12:38 | BE9: 00:04:38 | BF9: 4 | BG9: 38 | BI9: =IF(K9="","",IF(ISTEXT(K9),K9,IF(K9>Basis!$N$8,"Uit",IF(ISBLANK(L9),K9,K9+L9)))) -> 0 | BJ9: 36.66666667 | BK9: 278 | BL9: =IF(N9="","",IF(BK9<=Basis!$F$8,0,(BK9-Basis!$F$8)*0.4)) -> 23.2 | BM9: =IF(N9="","",IF(BK9>Basis!$G$8,0,(Basis!$G$8-BK9)*0.4)) -> 0 | BN9: 23.2 | BP9: 22.5 | BQ9: 19.5 | BR9: 7.5 | BS9: 6.5
C10: 6 | I10: 190 | J10: =IF(I10="","",IF(ISTEXT(I10),I10,IF(I10<=Basis!$M$8,"Uit",(100-(I10/Basis!$L$8*100))*Basis!$Y$6))) -> 36.66666667 | K10: 0 | L10: 0 | M10: 20 | N10: 5 | O10: 12 | P10: =IF(N10="","",IF(N10*60+O10>Basis!$U$8,"Uit",BL10+BM10)) -> 36.8 | R10: 93.46666667 | S10: 7.5 | T10: 6.5 | U10: 79.46666667 | X10: 6 | Y10: 0 | Z10: - | AA10: 20 | AB10: - | AC10: - | AD10: - | AE10: - | AF10: - | AG10: - | AH10: - | AI10: - | AJ10: - | AK10: - | AL10: - | AM10: - | AN10: - | AO10: - | AP10: - | AQ10: - | AR10: - | AX10: 20 | BA10: 6 | BC10: 10:10:00 | BD10: 10:15:12 | BE10: 00:05:12 | BF10: 5 | BG10: 12 | BI10: =IF(K10="","",IF(ISTEXT(K10),K10,IF(K10>Basis!$N$8,"Uit",IF(ISBLANK(L10),K10,K10+L10)))) -> 0 | BJ10: 36.66666667 | BK10: 312 | BL10: =IF(N10="","",IF(BK10<=Basis!$F$8,0,(BK10-Basis!$F$8)*0.4)) -> 36.8 | BM10: =IF(N10="","",IF(BK10>Basis!$G$8,0,(Basis!$G$8-BK10)*0.4)) -> 0 | BN10: 56.8 | BP10: 22.5 | BQ10: 19.5 | BR10: 7.5 | BS10: 6.5
C11: 7 | I11: 190 | J11: =IF(I11="","",IF(ISTEXT(I11),I11,IF(I11<=Basis!$M$8,"Uit",(100-(I11/Basis!$L$8*100))*Basis!$Y$6))) -> 36.66666667 | K11: 0 | L11: 0 | M11: Uit | N11: 5 | O11: 12 | P11: =IF(N11="","",IF(N11*60+O11>Basis!$U$8,"Uit",BL11+BM11)) -> 36.8 | R11: Uit | S11: 5 | T11: 5 | U11: Uit | V11: 4W | X11: 7 | Y11: 0 | Z11: - | AA11: - | AB11: 20 | AC11: 60 | AD11: 20 | AE11: - | AF11: - | AG11: - | AH11: - | AI11: - | AJ11: - | AK11: - | AL11: - | AM11: - | AN11: - | AO11: - | AP11: - | AQ11: - | AR11: - | AX11: Uit | AY11: 4W | BA11: 7 | BC11: 10:12:00 | BD11: 10:17:12 | BE11: 00:05:12 | BF11: 5 | BG11: 12 | BI11: =IF(K11="","",IF(ISTEXT(K11),K11,IF(K11>Basis!$N$8,"Uit",IF(ISBLANK(L11),K11,K11+L11)))) -> 0 | BJ11: 36.66666667 | BK11: 312 | BL11: =IF(N11="","",IF(BK11<=Basis!$F$8,0,(BK11-Basis!$F$8)*0.4)) -> 36.8 | BM11: =IF(N11="","",IF(BK11>Basis!$G$8,0,(Basis!$G$8-BK11)*0.4)) -> 0 | BN11: Uit | BP11: 15 | BQ11: 15 | BR11: 5 | BS11: 5
C12: 8 | I12: 190 | J12: =IF(I12="","",IF(ISTEXT(I12),I12,IF(I12<=Basis!$M$8,"Uit",(100-(I12/Basis!$L$8*100))*Basis!$Y$6))) -> 36.66666667 | P12: =IF(N12="","",IF(N12*60+O12>Basis!$U$8,"Uit",BL12+BM12)) ->  | R12: 36.66666667 | X12: 8 | Z12: - | AA12: - | AB12: - | AC12: - | AD12: - | AE12: - | AF12: - | AG12: - | AH12: - | AI12: - | AJ12: - | AK12: - | AL12: - | AM12: - | AN12: - | AO12: - | AP12: - | AQ12: - | AR12: - | AX12: =IF(Y12="","",IF(ISTEXT(Y12),Y12,SUM(Y12:AW12))) ->  | BA12: 8 | BC12: 10:14:00 | BI12: =IF(K12="","",IF(ISTEXT(K12),K12,IF(K12>Basis!$N$8,"Uit",IF(ISBLANK(L12),K12,K12+L12)))) ->  | BJ12: 36.66666667 | BL12: =IF(N12="","",IF(BK12<=Basis!$F$8,0,(BK12-Basis!$F$8)*0.4)) ->  | BM12: =IF(N12="","",IF(BK12>Basis!$G$8,0,(Basis!$G$8-BK12)*0.4)) -> 
C13: 9 | I13: 190 | J13: =IF(I13="","",IF(ISTEXT(I13),I13,IF(I13<=Basis!$M$8,"Uit",(100-(I13/Basis!$L$8*100))*Basis!$Y$6))) -> 36.66666667 | K13: 4 | L13: 3 | P13: =IF(N13="","",IF(N13*60+O13>Basis!$U$8,"Uit",BL13+BM13)) ->  | R13: 43.66666667 | X13: 9 | Z13: - | AA13: - | AB13: - | AC13: - | AD13: - | AE13: - | AF13: - | AG13: - | AH13: - | AI13: - | AJ13: - | AK13: - | AL13: - | AM13: - | AN13: - | AO13: - | AP13: - | AQ13: - | AR13: - | BA13: 9 | BC13: 10:16:00 | BI13: =IF(K13="","",IF(ISTEXT(K13),K13,IF(K13>Basis!$N$8,"Uit",IF(ISBLANK(L13),K13,K13+L13)))) -> 7 | BJ13: 43.66666667 | BL13: =IF(N13="","",IF(BK13<=Basis!$F$8,0,(BK13-Basis!$F$8)*0.4)) ->  | BM13: =IF(N13="","",IF(BK13>Basis!$G$8,0,(Basis!$G$8-BK13)*0.4)) -> 
C14: 10 | I14: 185 | J14: =IF(I14="","",IF(ISTEXT(I14),I14,IF(I14<=Basis!$M$8,"Uit",(100-(I14/Basis!$L$8*100))*Basis!$Y$6))) -> 38.33333333 | K14: Uit | M14: NG | P14: =IF(N14="","",IF(N14*60+O14>Basis!$U$8,"Uit",BL14+BM14)) ->  | R14: Uit | U14: Uit | V14: 3W spr | X14: 10 | Y14: NG | AX14: NG | AY14: 3W spr | BA14: 10 | BC14: 10:18:00 | BI14: =IF(K14="","",IF(ISTEXT(K14),K14,IF(K14>Basis!$N$8,"Uit",IF(ISBLANK(L14),K14,K14+L14)))) -> Uit | BJ14: Uit | BL14: =IF(N14="","",IF(BK14<=Basis!$F$8,0,(BK14-Basis!$F$8)*0.4)) ->  | BM14: =IF(N14="","",IF(BK14>Basis!$G$8,0,(Basis!$G$8-BK14)*0.4)) ->  | BN14: NG
C15: 11 | I15: 185 | J15: =IF(I15="","",IF(ISTEXT(I15),I15,IF(I15<=Basis!$M$8,"Uit",(100-(I15/Basis!$L$8*100))*Basis!$Y$6))) -> 38.33333333 | K15: 4 | L15: 0 | M15: 0 | N15: 5 | O15: 5 | P15: =IF(N15="","",IF(N15*60+O15>Basis!$U$8,"Uit",BL15+BM15)) -> 34 | R15: 76.33333333 | S15: 7.666666667 | T15: 6.333333333 | U15: 62.33333333 | X15: 11 | Y15: 0 | Z15: - | AA15: - | AB15: - | AC15: - | AD15: - | AE15: - | AF15: - | AG15: - | AH15: - | AI15: - | AJ15: - | AK15: - | AL15: - | AM15: - | AN15: - | AO15: - | AP15: - | AQ15: - | AR15: - | AX15: 0 | BA15: 11 | BC15: 10:20:00 | BI15: =IF(K15="","",IF(ISTEXT(K15),K15,IF(K15>Basis!$N$8,"Uit",IF(ISBLANK(L15),K15,K15+L15)))) -> 4 | BJ15: 42.33333333 | BK15: 305 | BL15: =IF(N15="","",IF(BK15<=Basis!$F$8,0,(BK15-Basis!$F$8)*0.4)) -> 34 | BM15: =IF(N15="","",IF(BK15>Basis!$G$8,0,(Basis!$G$8-BK15)*0.4)) -> 0 | BN15: 34 | BP15: 23 | BQ15: 19 | BR15: 7.666666667 | BS15: 6.333333333
A16: HC | C16: 12 | I16: 185 | J16: =IF(I16="","",IF(ISTEXT(I16),I16,IF(I16<=Basis!$M$8,"Uit",(100-(I16/Basis!$L$8*100))*Basis!$Y$6))) -> 38.33333333 | K16: 4 | L16: 3 | M16: 0 | N16: 4 | O16: 50 | P16: =IF(N16="","",IF(N16*60+O16>Basis!$U$8,"Uit",BL16+BM16)) -> 28 | R16: 73.33333333 | S16: 7.833333333 | T16: 6.166666667 | U16: 59.33333333 | X16: 12 | Y16: 0 | Z16: - | AA16: - | AB16: - | AC16: - | AD16: - | AE16: - | AF16: - | AG16: - | AH16: - | AI16: - | AJ16: - | AK16: - | AL16: - | AM16: - | AN16: - | AO16: - | AP16: - | AQ16: - | AR16: - | AX16: 0 | BA16: 12 | BC16: 10:22:00 | BI16: =IF(K16="","",IF(ISTEXT(K16),K16,IF(K16>Basis!$N$8,"Uit",IF(ISBLANK(L16),K16,K16+L16)))) -> 7 | BJ16: 45.33333333 | BK16: 290 | BL16: =IF(N16="","",IF(BK16<=Basis!$F$8,0,(BK16-Basis!$F$8)*0.4)) -> 28 | BM16: =IF(N16="","",IF(BK16>Basis!$G$8,0,(Basis!$G$8-BK16)*0.4)) -> 0 | BN16: 28 | BP16: 23.5 | BQ16: 18.5 | BR16: 7.833333333 | BS16: 6.166666667
C17: 13 | I17: Uit | J17: =IF(I17="","",IF(ISTEXT(I17),I17,IF(I17<=Basis!$M$8,"Uit",(100-(I17/Basis!$L$8*100))*Basis!$Y$6))) -> Uit | K17: NG | M17: NG | N17: =IF(ISBLANK(BD17),"",BF17) ->  | O17: =IF(ISBLANK(BD17),"",BG17) ->  | P17: =IF(N17="","",IF(N17*60+O17>Basis!$U$8,"Uit",BL17+BM17)) ->  | R17: Uit | U17: Uit | V17: dress | X17: 13 | Y17: NG | AX17: NG | AY17: dress | BA17: 13 | BC17: 10:24:00 | BI17: =IF(K17="","",IF(ISTEXT(K17),K17,IF(K17>Basis!$N$8,"Uit",IF(ISBLANK(L17),K17,K17+L17)))) -> NG | BJ17: Uit | BL17: =IF(N17="","",IF(BK17<=Basis!$F$8,0,(BK17-Basis!$F$8)*0.4)) ->  | BM17: =IF(N17="","",IF(BK17>Basis!$G$8,0,(Basis!$G$8-BK17)*0.4)) ->  | BN17: NG
C18: 14 | I18: 133 | J18: =IF(I18="","",IF(ISTEXT(I18),I18,IF(I18<=Basis!$M$8,"Uit",(100-(I18/Basis!$L$8*100))*Basis!$Y$6))) -> Uit | K18: NG | M18: NG | N18: =IF(ISBLANK(BD18),"",BF18) ->  | O18: =IF(ISBLANK(BD18),"",BG18) ->  | P18: =IF(N18="","",IF(N18*60+O18>Basis!$U$8,"Uit",BL18+BM18)) ->  | R18: Uit | U18: Uit | V18: <45% dress | X18: 14 | Y18: NG | AX18: NG | AY18: <45% dress | BA18: 14 | BC18: 10:26:00 | BI18: =IF(K18="","",IF(ISTEXT(K18),K18,IF(K18>Basis!$N$8,"Uit",IF(ISBLANK(L18),K18,K18+L18)))) -> NG | BJ18: Uit | BL18: =IF(N18="","",IF(BK18<=Basis!$F$8,0,(BK18-Basis!$F$8)*0.4)) ->  | BM18: =IF(N18="","",IF(BK18>Basis!$G$8,0,(Basis!$G$8-BK18)*0.4)) ->  | BN18: NG
C19: 15 | I19: 135 | J19: =IF(I19="","",IF(ISTEXT(I19),I19,IF(I19<=Basis!$M$8,"Uit",(100-(I19/Basis!$L$8*100))*Basis!$Y$6))) -> Uit | K19: NG | M19: NG | N19: =IF(ISBLANK(BD19),"",BF19) ->  | O19: =IF(ISBLANK(BD19),"",BG19) ->  | P19: =IF(N19="","",IF(N19*60+O19>Basis!$U$8,"Uit",BL19+BM19)) ->  | R19: Uit | U19: Uit | V19: 45% dress | X19: 15 | Y19: NG | AX19: NG | AY19: 45% dress | BA19: 15 | BC19: 10:28:00 | BI19: =IF(K19="","",IF(ISTEXT(K19),K19,IF(K19>Basis!$N$8,"Uit",IF(ISBLANK(L19),K19,K19+L19)))) -> NG | BJ19: Uit | BL19: =IF(N19="","",IF(BK19<=Basis!$F$8,0,(BK19-Basis!$F$8)*0.4)) ->  | BM19: =IF(N19="","",IF(BK19>Basis!$G$8,0,(Basis!$G$8-BK19)*0.4)) ->  | BN19: NG
C20: 16 | I20: 136 | J20: =IF(I20="","",IF(ISTEXT(I20),I20,IF(I20<=Basis!$M$8,"Uit",(100-(I20/Basis!$L$8*100))*Basis!$Y$6))) -> 54.66666667 | K20: 8 | L20: 1 | M20: 80 | N20: 10 | O20: 15 | P20: =IF(N20="","",IF(N20*60+O20>Basis!$U$8,"Uit",BL20+BM20)) -> Uit | R20: Uit | S20: 6 | T20: 6 | U20: Uit | V20: tijd cross | X20: 16 | Y20: 0 | Z20: - | AA20: - | AB20: - | AC20: 20 | AD20: - | AE20: - | AF20: - | AG20: - | AH20: - | AI20: 60 | AJ20: - | AK20: - | AL20: - | AM20: - | AN20: - | AO20: - | AP20: - | AQ20: - | AR20: - | AX20: 80 | AY20: tijd cross | BA20: 16 | BI20: =IF(K20="","",IF(ISTEXT(K20),K20,IF(K20>Basis!$N$8,"Uit",IF(ISBLANK(L20),K20,K20+L20)))) -> 9 | BJ20: 63.66666667 | BK20: 615 | BL20: =IF(N20="","",IF(BK20<=Basis!$F$8,0,(BK20-Basis!$F$8)*0.4)) -> 158 | BM20: =IF(N20="","",IF(BK20>Basis!$G$8,0,(Basis!$G$8-BK20)*0.4)) -> 0 | BN20: Uit | BP20: 18 | BQ20: 18 | BR20: 6 | BS20: 6
C21: 17 | I21: 200 | J21: =IF(I21="","",IF(ISTEXT(I21),I21,IF(I21<=Basis!$M$8,"Uit",(100-(I21/Basis!$L$8*100))*Basis!$Y$6))) -> 33.33333333 | K21: 24 | L21: 0 | M21: NG | N21: =IF(ISBLANK(BD21),"",BF21) ->  | O21: =IF(ISBLANK(BD21),"",BG21) ->  | P21: =IF(N21="","",IF(N21*60+O21>Basis!$U$8,"Uit",BL21+BM21)) ->  | R21: Uit | U21: Uit | V21: spr | X21: 17 | Y21: NG | AX21: NG | AY21: spr | BA21: 17 | BI21: =IF(K21="","",IF(ISTEXT(K21),K21,IF(K21>Basis!$N$8,"Uit",IF(ISBLANK(L21),K21,K21+L21)))) -> Uit | BJ21: Uit | BL21: =IF(N21="","",IF(BK21<=Basis!$F$8,0,(BK21-Basis!$F$8)*0.4)) ->  | BM21: =IF(N21="","",IF(BK21>Basis!$G$8,0,(Basis!$G$8-BK21)*0.4)) ->  | BN21: NG
C22: 18 | I22: 200 | J22: =IF(I22="","",IF(ISTEXT(I22),I22,IF(I22<=Basis!$M$8,"Uit",(100-(I22/Basis!$L$8*100))*Basis!$Y$6))) -> 33.33333333 | K22: 20 | L22: 5 | M22: 0 | N22: 10 | O22: 14 | P22: =IF(N22="","",IF(N22*60+O22>Basis!$U$8,"Uit",BL22+BM22)) -> Uit | R22: Uit | S22: 6 | T22: 5 | U22: Uit | X22: 18 | Y22: 0 | Z22: - | AA22: - | AB22: - | AC22: - | AD22: - | AE22: - | AF22: - | AG22: - | AH22: - | AI22: - | AJ22: - | AK22: - | AL22: - | AM22: - | AN22: - | AO22: - | AP22: - | AQ22: - | AR22: - | AX22: 0 | BA22: 18 | BI22: =IF(K22="","",IF(ISTEXT(K22),K22,IF(K22>Basis!$N$8,"Uit",IF(ISBLANK(L22),K22,K22+L22)))) -> 25 | BJ22: 58.33333333 | BK22: 614 | BL22: =IF(N22="","",IF(BK22<=Basis!$F$8,0,(BK22-Basis!$F$8)*0.4)) -> 157.6 | BM22: =IF(N22="","",IF(BK22>Basis!$G$8,0,(Basis!$G$8-BK22)*0.4)) -> 0 | BN22: Uit | BP22: 18 | BQ22: 15 | BR22: 6 | BS22: 5
C23: 19 | I23: 200 | J23: =IF(I23="","",IF(ISTEXT(I23),I23,IF(I23<=Basis!$M$8,"Uit",(100-(I23/Basis!$L$8*100))*Basis!$Y$6))) -> 33.33333333 | K23: 16 | L23: 7 | M23: Uit | N23: =IF(ISBLANK(BD23),"",BF23) ->  | O23: =IF(ISBLANK(BD23),"",BG23) ->  | P23: =IF(N23="","",IF(N23*60+O23>Basis!$U$8,"Uit",BL23+BM23)) ->  | R23: Uit | U23: Uit | V23: Vr.v h9 | X23: 19 | Y23: 0 | Z23: 20 | AA23: - | AB23: 20 | AC23: - | AD23: - | AE23: - | AF23: 20 | AG23: Vr.v | AX23: Uit | AY23: Vr.v h9 | BA23: 19 | BI23: =IF(K23="","",IF(ISTEXT(K23),K23,IF(K23>Basis!$N$8,"Uit",IF(ISBLANK(L23),K23,K23+L23)))) -> 23 | BJ23: 56.33333333 | BL23: =IF(N23="","",IF(BK23<=Basis!$F$8,0,(BK23-Basis!$F$8)*0.4)) ->  | BM23: =IF(N23="","",IF(BK23>Basis!$G$8,0,(Basis!$G$8-BK23)*0.4)) ->  | BN23: Uit
C24: 20 | I24: NG | J24: =IF(I24="","",IF(ISTEXT(I24),I24,IF(I24<=Basis!$M$8,"Uit",(100-(I24/Basis!$L$8*100))*Basis!$Y$6))) -> NG | M24: NG | P24: =IF(N24="","",IF(N24*60+O24>Basis!$U$8,"Uit",BL24+BM24)) ->  | R24: NG | U24: NG | X24: 20 | Y24: NG | AX24: NG | BA24: 20 | BI24: =IF(K24="","",IF(ISTEXT(K24),K24,IF(K24>Basis!$N$8,"Uit",IF(ISBLANK(L24),K24,K24+L24)))) ->  | BJ24: NG | BL24: =IF(N24="","",IF(BK24<=Basis!$F$8,0,(BK24-Basis!$F$8)*0.4)) ->  | BM24: =IF(N24="","",IF(BK24>Basis!$G$8,0,(Basis!$G$8-BK24)*0.4)) ->  | BN24: NG
C25: 21 | I25: 185 | J25: =IF(I25="","",IF(ISTEXT(I25),I25,IF(I25<=Basis!$M$8,"Uit",(100-(I25/Basis!$L$8*100))*Basis!$Y$6))) -> 38.33333333 | K25: 0 | L25: 0 | M25: Uit | P25: =IF(N25="","",IF(N25*60+O25>Basis!$U$8,"Uit",BL25+BM25)) ->  | R25: Uit | S25: 6 | T25: 6 | U25: Uit | V25: VP h12 | X25: 21 | Y25: 0 | Z25: - | AA25: - | AB25: - | AC25: - | AD25: - | AE25: 20 | AF25: - | AG25: - | AH25: - | AI25: - | AJ25: VP | AX25: Uit | AY25: VP h12 | BA25: 21 | BI25: =IF(K25="","",IF(ISTEXT(K25),K25,IF(K25>Basis!$N$8,"Uit",IF(ISBLANK(L25),K25,K25+L25)))) -> 0 | BJ25: 38.33333333 | BL25: =IF(N25="","",IF(BK25<=Basis!$F$8,0,(BK25-Basis!$F$8)*0.4)) ->  | BM25: =IF(N25="","",IF(BK25>Basis!$G$8,0,(Basis!$G$8-BK25)*0.4)) ->  | BN25: Uit | BP25: 18 | BQ25: 18 | BR25: 6 | BS25: 6
C26: 22 | I26: 185 | J26: =IF(I26="","",IF(ISTEXT(I26),I26,IF(I26<=Basis!$M$8,"Uit",(100-(I26/Basis!$L$8*100))*Basis!$Y$6))) -> 38.33333333 | K26: 8 | L26: 2 | M26: Uit | N26: 5 | O26: 25 | P26: =IF(N26="","",IF(N26*60+O26>Basis!$U$8,"Uit",BL26+BM26)) -> 42 | R26: Uit | S26: 6.5 | T26: 6 | U26: Uit | V26: vet cross | X26: 22 | Y26: 0 | Z26: - | AA26: - | AB26: 20 | AC26: - | AD26: - | AE26: - | AF26: - | AG26: 20 | AH26: - | AI26: - | AJ26: - | AK26: - | AL26: - | AM26: 20 | AN26: - | AO26: - | AP26: - | AQ26: - | AR26: - | AX26: Uit | AY26: vet cross | BA26: 22 | BI26: =IF(K26="","",IF(ISTEXT(K26),K26,IF(K26>Basis!$N$8,"Uit",IF(ISBLANK(L26),K26,K26+L26)))) -> 10 | BJ26: 48.33333333 | BK26: 325 | BL26: =IF(N26="","",IF(BK26<=Basis!$F$8,0,(BK26-Basis!$F$8)*0.4)) -> 42 | BM26: =IF(N26="","",IF(BK26>Basis!$G$8,0,(Basis!$G$8-BK26)*0.4)) -> 0 | BN26: Uit | BP26: 19.5 | BQ26: 18 | BR26: 6.5 | BS26: 6
C27: 23 | I27: 185 | J27: =IF(I27="","",IF(ISTEXT(I27),I27,IF(I27<=Basis!$M$8,"Uit",(100-(I27/Basis!$L$8*100))*Basis!$Y$6))) -> 38.33333333 | K27: Uit | M27: NG | P27: =IF(N27="","",IF(N27*60+O27>Basis!$U$8,"Uit",BL27+BM27)) ->  | R27: Uit | U27: Uit | V27: VR spr | X27: 23 | Y27: NG | AX27: NG | AY27: VR spr | BA27: 23 | BI27: =IF(K27="","",IF(ISTEXT(K27),K27,IF(K27>Basis!$N$8,"Uit",IF(ISBLANK(L27),K27,K27+L27)))) -> Uit | BJ27: Uit | BL27: =IF(N27="","",IF(BK27<=Basis!$F$8,0,(BK27-Basis!$F$8)*0.4)) ->  | BM27: =IF(N27="","",IF(BK27>Basis!$G$8,0,(Basis!$G$8-BK27)*0.4)) ->  | BN27: NG
C28: 24 | I28: 185 | J28: =IF(I28="","",IF(ISTEXT(I28),I28,IF(I28<=Basis!$M$8,"Uit",(100-(I28/Basis!$L$8*100))*Basis!$Y$6))) -> 38.33333333 | K28: 4 | L28: 0 | M28: Uit | N28: 5 | O28: 15 | P28: =IF(N28="","",IF(N28*60+O28>Basis!$U$8,"Uit",BL28+BM28)) -> 38 | R28: Uit | S28: 7 | T28: 6.5 | U28: Uit | V28: FP h19 | X28: 24 | Y28: 0 | Z28: - | AA28: - | AB28: - | AC28: - | AD28: 20 | AE28: - | AF28: - | AG28: - | AH28: - | AI28: - | AJ28: - | AK28: - | AL28: - | AM28: - | AN28: - | AO28: - | AP28: - | AQ28: FP | AR28: - | AX28: Uit | AY28: FP h19 | BA28: 24 | BI28: =IF(K28="","",IF(ISTEXT(K28),K28,IF(K28>Basis!$N$8,"Uit",IF(ISBLANK(L28),K28,K28+L28)))) -> 4 | BJ28: 42.33333333 | BK28: 315 | BL28: =IF(N28="","",IF(BK28<=Basis!$F$8,0,(BK28-Basis!$F$8)*0.4)) -> 38 | BM28: =IF(N28="","",IF(BK28>Basis!$G$8,0,(Basis!$G$8-BK28)*0.4)) -> 0 | BN28: Uit | BP28: 21 | BQ28: 19.5 | BR28: 7 | BS28: 6.5
J29: =IF(I29="","",IF(ISTEXT(I29),I29,IF(I29<=Basis!$M$8,"Uit",(100-(I29/Basis!$L$8*100))*Basis!$Y$6))) ->  | P29: =IF(N29="","",IF(N29*60+O29>Basis!$U$8,"Uit",BL29+BM29)) ->  | AX29: =IF(Y29="","",IF(ISTEXT(Y29),Y29,SUM(Y29:AW29))) ->  | BI29: =IF(K29="","",IF(ISTEXT(K29),K29,IF(K29>Basis!$N$8,"Uit",IF(ISBLANK(L29),K29,K29+L29)))) ->  | BL29: =IF(N29="","",IF(BK29<=Basis!$F$8,0,(BK29-Basis!$F$8)*0.4)) ->  | BM29: =IF(N29="","",IF(BK29>Basis!$G$8,0,(Basis!$G$8-BK29)*0.4)) -> 
A30: Bij uitsluiting reden vermelden : | P30: =NOW() -> 2018-06-30T22:02:24.880 | X30: =A30 -> Bij uitsluiting reden vermelden : | AU30: =NOW() -> 2018-06-30T22:02:24.880
A31: VP=val paard, VR=val ruiter, 3W=3 weigeringen op zelfde hindernis, 4W=4 weigeringen totaal, FP=foutief parcours, Vr.v= vrijwillig verlaten | X31: =A31 -> VP=val paard, VR=val ruiter, 3W=3 weigeringen op zelfde hindernis, 4W=4 weigeringen totaal, FP=foutief parcours, Vr.v= vrijwillig verlaten

Sheet Pa-zonder
A1: =" Samengestelde wedstrijd "&Basis!D5 -> Samengestelde wedstrijd Eventing Leende 30 juni 2018 | G1: Klasse B zonder dr. | K1: Dressuurjury : | X1: Verzamelstaat hindernisfouten in de cross | AK1: =A1 -> Samengestelde wedstrijd Eventing Leende 30 juni 2018 | BA1: =G1&" " -> Klasse B zonder dr. | BC1: Indien aankomstUUR cross wordt meegedeeld : | BI1: Hulpkolommen | BP1: Stijlcijfers :
A2: rank | C2: rugnr | D2: combinatie nr | E2: naam ruiter | F2: naam paard | G2: vereniging / plaats | I2: dressuur | J2: dressuur | K2: hind.ft. | L2: tijd.ft. | M2: hind.ft. | N2: min | O2: sec | P2: tijd.ft. | R2: totaal | S2: (1) stijl | T2: (2) stijl | U2: eind- | V2: reden | Y2: hindernisnummer | BI2: Uitslag | BJ2: NA | BK2: tijd (sec) | BL2: tijd.ft. | BM2: reg.ft. | BN2: totaal | BP2: Totaal | BQ2: Totaal | BR2: Gemiddelde | BS2: Gemiddelde
A3: HC | I3: totaal | J3: strafpntn. | K3: springen | L3: springen | M3: cross | N3: cross | P3: =Basis!$H$8&":"&TEXT(Basis!$I$8,"00") -> 3:40 | S3: cijfer | T3: cijfer | U3: totaal | V3: uitsluiting | X3: nr | Y3: 1 | Z3: 2 | AA3: 3 | AB3: 4 | AC3: 5 | AD3: 6 | AE3: 7 | AF3: 8 | AG3: VD | AH3: 9 | AI3: VD | AJ3: 10 | AK3: 11 | AL3: 12 | AM3: 13ab | AN3: 14 | AO3: 15 | AP3: F | AX3: totaal | AY3: reden uitsluiting | AZ3: hind. | BA3: nr | BC3: Vertrekuur | BD3: Aankomst | BE3: Tijd | BF3: Minuten | BG3: Seconden | BI3: Springen | BJ3: Springen | BK3: cross | BL3: opt.tijd = | BM3: =Basis!$H$8&":"&TEXT(Basis!$I$8,"00") -> 3:40 | BN3: cross | BP3: Jury 1 | BQ3: Jury 2 | BR3: Jury 1 | BS3: Jury 2
R4: =IF(ISBLANK(I4),"",IF(AND(ISBLANK(K4),ISBLANK(Y4)),J4,IF(ISTEXT(K4),K4,IF(OR(ISBLANK(M4),M4=""),J4+K4+L4,IF(ISTEXT(M4),M4,IF(ISBLANK(Y4),J4+K4+L4,J4+K4+L4+M4+P4+Q4)))))) -> 
A5: 1 | C5: 26 | D5: 704247EG | E5: Majoor Bart Jan Geers | F5: Ekato | G5: RV. Militaire Ruitersportvereniging 'Te Paard!' * | I5: 150 | J5: =IF(I5="","",IF(ISTEXT(I5),I5,IF(I5<=Basis!$M$8,"Uit",(100-(I5/Basis!$L$8*100))*Basis!$Y$6))) -> 50 | K5: 0 | L5: 0 | M5: =IF(AX5="","",AX5) -> 0 | N5: =IF(ISBLANK(BD5),"",BF5) -> 3 | O5: =IF(ISBLANK(BD5),"",BG5) -> 34 | P5: =IF(N5="","",IF(N5*60+O5>Basis!$U$8,"Uit",BL5+BM5)) -> 0 | R5: =IF(ISTEXT(BJ5),BJ5,IF(OR(ISBLANK(M5),M5="",ISBLANK(Y5)),BJ5,IF(ISTEXT(BN5),BN5,BJ5+BN5))) -> 50 | S5: =IF(BP5="","",BR5) -> 6.5 | T5: =IF(BQ5="","",BS5) -> 6.5 | U5: =IF(R5="","",IF(ISTEXT(R5),R5,IF(BP5="","",R5-S5-T5))) -> 37 | V5: =IF(AY5="","",AY5) ->  | X5: =IF($C5="","",$C5) -> 26 | Y5: 0 | Z5: - | AA5: - | AB5: - | AC5: - | AD5: - | AE5: - | AF5: - | AG5: - | AH5: - | AI5: - | AJ5: - | AK5: - | AL5: - | AM5: - | AN5: - | AO5: - | AP5: - | AX5: =IF(Y5="","",IF(ISTEXT(Y5),Y5,SUM(Y5:AW5))) -> 0 | BA5: =IF($C5="","",$C5) -> 26 | BC5: 10:00:00 | BD5: 10:03:34 | BE5: =IF(ISBLANK(BD5),"",BD5-BC5) -> 00:03:34 | BF5: =IF(ISBLANK(BD5),"",MINUTE(BE5)) -> 3 | BG5: =IF(ISBLANK(BD5),"",SECOND(BE5)) -> 34 | BI5: =IF(K5="","",IF(ISTEXT(K5),K5,IF(K5>Basis!$N$8,"Uit",IF(ISBLANK(L5),K5,K5+L5)))) -> 0 | BJ5: =IF(OR(ISTEXT(J5),BI5=""),J5,IF(ISTEXT(BI5),BI5,J5+BI5)) -> 50 | BK5: =IF(N5="","",N5*60+O5) -> 214 | BL5: =IF(N5="","",IF(BK5<=Basis!$F$8,0,(BK5-Basis!$F$8)*0.4)) -> 0 | BM5: =IF(N5="","",IF(BK5>Basis!$G$8,0,(Basis!$G$8-BK5)*0.4)) -> 0 | BN5: =IF(M5="","",IF(ISTEXT(M5),M5,IF(ISTEXT(P5),P5,M5+P5))) -> 0 | BP5: 19.5 | BQ5: 19.5 | BR5: =IF(BP5="","",BP5/3) -> 6.5 | BS5: =IF(BQ5="","",BQ5/3) -> 6.5
A6: 2 | C6: 12 | D6: 656057CB | E6: Ester Beumker | F6: Cascade | G6: RV. Vereniging Eindhovense Manege | I6: 150 | J6: =IF(I6="","",IF(ISTEXT(I6),I6,IF(I6<=Basis!$M$8,"Uit",(100-(I6/Basis!$L$8*100))*Basis!$Y$6))) -> 50 | K6: 0 | L6: 0 | M6: 0 | N6: 4 | O6: 10 | P6: =IF(N6="","",IF(N6*60+O6>Basis!$U$8,"Uit",BL6+BM6)) -> 12 | R6: 62 | S6: 7.5 | T6: 7 | U6: 47.5 | X6: 12 | Y6: 0 | Z6: - | AA6: - | AB6: - | AC6: - | AD6: - | AE6: - | AF6: - | AG6: - | AH6: - | AI6: - | AJ6: - | AK6: - | AL6: - | AM6: - | AN6: - | AO6: - | AP6: - | AX6: 0 | BA6: 12 | BC6: 09:32:00 | BD6: 09:36:10 | BE6: 00:04:10 | BF6: 4 | BG6: 10 | BI6: =IF(K6="","",IF(ISTEXT(K6),K6,IF(K6>Basis!$N$8,"Uit",IF(ISBLANK(L6),K6,K6+L6)))) -> 0 | BJ6: 50 | BK6: 250 | BL6: =IF(N6="","",IF(BK6<=Basis!$F$8,0,(BK6-Basis!$F$8)*0.4)) -> 12 | BM6: =IF(N6="","",IF(BK6>Basis!$G$8,0,(Basis!$G$8-BK6)*0.4)) -> 0 | BN6: 12 | BP6: 22.5 | BQ6: 21 | BR6: 7.5 | BS6: 7
A7: 3 | C7: 16 | D7: 765929WC | E7: Sanne Cornelisse | F7: Whispering Shadow | G7: RV. Bergakkerruiters | I7: 150 | J7: =IF(I7="","",IF(ISTEXT(I7),I7,IF(I7<=Basis!$M$8,"Uit",(100-(I7/Basis!$L$8*100))*Basis!$Y$6))) -> 50 | K7: 0 | L7: 0 | M7: 0 | N7: 4 | O7: 15 | P7: =IF(N7="","",IF(N7*60+O7>Basis!$U$8,"Uit",BL7+BM7)) -> 14 | R7: 64 | S7: 7.833333333 | T7: 7.333333333 | U7: 48.83333333 | X7: 16 | Y7: 0 | Z7: - | AA7: - | AB7: - | AC7: - | AD7: - | AE7: - | AF7: - | AG7: - | AH7: - | AI7: - | AJ7: - | AK7: - | AL7: - | AM7: - | AN7: - | AO7: - | AP7: - | AX7: 0 | BA7: 16 | BC7: 09:40:00 | BD7: 09:44:15 | BE7: 00:04:15 | BF7: 4 | BG7: 15 | BI7: =IF(K7="","",IF(ISTEXT(K7),K7,IF(K7>Basis!$N$8,"Uit",IF(ISBLANK(L7),K7,K7+L7)))) -> 0 | BJ7: 50 | BK7: 255 | BL7: =IF(N7="","",IF(BK7<=Basis!$F$8,0,(BK7-Basis!$F$8)*0.4)) -> 14 | BM7: =IF(N7="","",IF(BK7>Basis!$G$8,0,(Basis!$G$8-BK7)*0.4)) -> 0 | BN7: 14 | BP7: 23.5 | BQ7: 22 | BR7: 7.833333333 | BS7: 7.333333333
A8: 4 | C8: 37 | D8: 854927HB | E8: Willem Broekman | F8: Hero | G8: RV. de Voornruiters | I8: 150 | J8: =IF(I8="","",IF(ISTEXT(I8),I8,IF(I8<=Basis!$M$8,"Uit",(100-(I8/Basis!$L$8*100))*Basis!$Y$6))) -> 50 | K8: 0 | L8: 0 | M8: 0 | N8: 4 | O8: 15 | P8: =IF(N8="","",IF(N8*60+O8>Basis!$U$8,"Uit",BL8+BM8)) -> 14 | R8: 64 | S8: 7.833333333 | T8: 7.166666667 | U8: 49 | X8: 37 | Y8: 0 | Z8: - | AA8: - | AB8: - | AC8: - | AD8: - | AE8: - | AF8: - | AG8: - | AH8: - | AI8: - | AJ8: - | AK8: - | AL8: - | AM8: - | AN8: - | AO8: - | AP8: - | AX8: 0 | BA8: 37 | BC8: 10:22:00 | BD8: 10:26:15 | BE8: 00:04:15 | BF8: 4 | BG8: 15 | BI8: =IF(K8="","",IF(ISTEXT(K8),K8,IF(K8>Basis!$N$8,"Uit",IF(ISBLANK(L8),K8,K8+L8)))) -> 0 | BJ8: 50 | BK8: 255 | BL8: =IF(N8="","",IF(BK8<=Basis!$F$8,0,(BK8-Basis!$F$8)*0.4)) -> 14 | BM8: =IF(N8="","",IF(BK8>Basis!$G$8,0,(Basis!$G$8-BK8)*0.4)) -> 0 | BN8: 14 | BP8: 23.5 | BQ8: 21.5 | BR8: 7.833333333 | BS8: 7.166666667
A9: 5 | C9: 20 | D9: 728920GH | E9: Bianca Hol | F9: Gendt | G9: RV. de Waalruiters | I9: 150 | J9: =IF(I9="","",IF(ISTEXT(I9),I9,IF(I9<=Basis!$M$8,"Uit",(100-(I9/Basis!$L$8*100))*Basis!$Y$6))) -> 50 | K9: 0 | L9: 0 | M9: 0 | N9: 4 | O9: 18 | P9: =IF(N9="","",IF(N9*60+O9>Basis!$U$8,"Uit",BL9+BM9)) -> 15.2 | R9: 65.2 | S9: 7.833333333 | T9: 6.166666667 | U9: 51.2 | X9: 20 | Y9: 0 | Z9: - | AA9: - | AB9: - | AC9: - | AD9: - | AE9: - | AF9: - | AG9: - | AH9: - | AI9: - | AJ9: - | AK9: - | AL9: - | AM9: - | AN9: - | AO9: - | AP9: - | AX9: 0 | BA9: 20 | BC9: 09:48:00 | BD9: 09:52:18 | BE9: 00:04:18 | BF9: 4 | BG9: 18 | BI9: =IF(K9="","",IF(ISTEXT(K9),K9,IF(K9>Basis!$N$8,"Uit",IF(ISBLANK(L9),K9,K9+L9)))) -> 0 | BJ9: 50 | BK9: 258 | BL9: =IF(N9="","",IF(BK9<=Basis!$F$8,0,(BK9-Basis!$F$8)*0.4)) -> 15.2 | BM9: =IF(N9="","",IF(BK9>Basis!$G$8,0,(Basis!$G$8-BK9)*0.4)) -> 0 | BN9: 15.2 | BP9: 23.5 | BQ9: 18.5 | BR9: 7.833333333 | BS9: 6.166666667
A10: 6 | C10: 4 | D10: 840985CB | E10: Willem Broekman | F10: Coltin Z | G10: RV. de Voornruiters | I10: 150 | J10: =IF(I10="","",IF(ISTEXT(I10),I10,IF(I10<=Basis!$M$8,"Uit",(100-(I10/Basis!$L$8*100))*Basis!$Y$6))) -> 50 | K10: 0 | L10: 0 | M10: 0 | N10: 4 | O10: 26 | P10: =IF(N10="","",IF(N10*60+O10>Basis!$U$8,"Uit",BL10+BM10)) -> 18.4 | R10: 68.4 | S10: 7.666666667 | T10: 7.166666667 | U10: 53.56666667 | X10: 4 | Y10: 0 | Z10: - | AA10: - | AB10: - | AC10: - | AD10: - | AE10: - | AF10: - | AG10: - | AH10: - | AI10: - | AJ10: - | AK10: - | AL10: - | AM10: - | AN10: - | AO10: - | AP10: - | AX10: 0 | BA10: 4 | BC10: 09:16:00 | BD10: 09:20:26 | BE10: 00:04:26 | BF10: 4 | BG10: 26 | BI10: =IF(K10="","",IF(ISTEXT(K10),K10,IF(K10>Basis!$N$8,"Uit",IF(ISBLANK(L10),K10,K10+L10)))) -> 0 | BJ10: 50 | BK10: 266 | BL10: =IF(N10="","",IF(BK10<=Basis!$F$8,0,(BK10-Basis!$F$8)*0.4)) -> 18.4 | BM10: =IF(N10="","",IF(BK10>Basis!$G$8,0,(Basis!$G$8-BK10)*0.4)) -> 0 | BN10: 18.4 | BP10: 23 | BQ10: 21.5 | BR10: 7.666666667 | BS10: 7.166666667
A11: 7 | C11: 19 | D11: 775085GW | E11: Karin Wassink | F11: Gio | G11: RV. Hummelo | I11: 150 | J11: =IF(I11="","",IF(ISTEXT(I11),I11,IF(I11<=Basis!$M$8,"Uit",(100-(I11/Basis!$L$8*100))*Basis!$Y$6))) -> 50 | K11: 4 | L11: 0 | M11: 0 | N11: 4 | O11: 13 | P11: =IF(N11="","",IF(N11*60+O11>Basis!$U$8,"Uit",BL11+BM11)) -> 13.2 | R11: 67.2 | S11: 6 | T11: 6.833333333 | U11: 54.36666667 | X11: 19 | Y11: 0 | Z11: - | AA11: - | AB11: - | AC11: - | AD11: - | AE11: - | AF11: - | AG11: - | AH11: - | AI11: - | AJ11: - | AK11: - | AL11: - | AM11: - | AN11: - | AO11: - | AP11: - | AX11: 0 | BA11: 19 | BC11: 09:46:00 | BD11: 09:50:13 | BE11: 00:04:13 | BF11: 4 | BG11: 13 | BI11: =IF(K11="","",IF(ISTEXT(K11),K11,IF(K11>Basis!$N$8,"Uit",IF(ISBLANK(L11),K11,K11+L11)))) -> 4 | BJ11: 54 | BK11: 253 | BL11: =IF(N11="","",IF(BK11<=Basis!$F$8,0,(BK11-Basis!$F$8)*0.4)) -> 13.2 | BM11: =IF(N11="","",IF(BK11>Basis!$G$8,0,(Basis!$G$8-BK11)*0.4)) -> 0 | BN11: 13.2 | BP11: 18 | BQ11: 20.5 | BR11: 6 | BS11: 6.833333333
A12: 8 | C12: 59 | D12: 756598NH | E12: Senna van Houten | F12: Vagante | I12: 150 | J12: =IF(I12="","",IF(ISTEXT(I12),I12,IF(I12<=Basis!$M$8,"Uit",(100-(I12/Basis!$L$8*100))*Basis!$Y$6))) -> 50 | K12: 0 | L12: 0 | M12: 0 | N12: 4 | O12: 31 | P12: =IF(N12="","",IF(N12*60+O12>Basis!$U$8,"Uit",BL12+BM12)) -> 20.4 | R12: 70.4 | S12: 8.666666667 | T12: 6.666666667 | U12: 55.06666667 | X12: 59 | Y12: 0 | Z12: - | AA12: - | AB12: - | AC12: - | AD12: - | AE12: - | AF12: - | AG12: - | AH12: - | AI12: - | AJ12: - | AK12: - | AL12: - | AM12: - | AN12: - | AO12: - | AP12: - | AX12: 0 | BA12: 59 | BC12: 11:06:00 | BD12: 11:10:31 | BE12: 00:04:31 | BF12: 4 | BG12: 31 | BI12: =IF(K12="","",IF(ISTEXT(K12),K12,IF(K12>Basis!$N$8,"Uit",IF(ISBLANK(L12),K12,K12+L12)))) -> 0 | BJ12: 50 | BK12: 271 | BL12: =IF(N12="","",IF(BK12<=Basis!$F$8,0,(BK12-Basis!$F$8)*0.4)) -> 20.4 | BM12: =IF(N12="","",IF(BK12>Basis!$G$8,0,(Basis!$G$8-BK12)*0.4)) -> 0 | BN12: 20.4 | BP12: 26 | BQ12: 20 | BR12: 8.666666667 | BS12: 6.666666667
A13: 9 | C13: 25 | D13: Belgie | E13: Kyara Langendries | F13: Viya Cobronc'sz | I13: 150 | J13: =IF(I13="","",IF(ISTEXT(I13),I13,IF(I13<=Basis!$M$8,"Uit",(100-(I13/Basis!$L$8*100))*Basis!$Y$6))) -> 50 | K13: 8 | L13: 0 | M13: 0 | N13: 4 | O13: 18 | P13: =IF(N13="","",IF(N13*60+O13>Basis!$U$8,"Uit",BL13+BM13)) -> 15.2 | R13: 73.2 | S13: 7.666666667 | T13: 9.5 | U13: 56.03333333 | X13: 25 | Y13: 0 | Z13: - | AA13: - | AB13: - | AC13: - | AD13: - | AE13: - | AF13: - | AG13: - | AH13: - | AI13: - | AJ13: - | AK13: - | AL13: - | AM13: - | AN13: - | AO13: - | AP13: - | AX13: 0 | BA13: 25 | BC13: 09:58:00 | BD13: 10:02:18 | BE13: 00:04:18 | BF13: 4 | BG13: 18 | BI13: =IF(K13="","",IF(ISTEXT(K13),K13,IF(K13>Basis!$N$8,"Uit",IF(ISBLANK(L13),K13,K13+L13)))) -> 8 | BJ13: 58 | BK13: 258 | BL13: =IF(N13="","",IF(BK13<=Basis!$F$8,0,(BK13-Basis!$F$8)*0.4)) -> 15.2 | BM13: =IF(N13="","",IF(BK13>Basis!$G$8,0,(Basis!$G$8-BK13)*0.4)) -> 0 | BN13: 15.2 | BP13: 23 | BQ13: 28.5 | BR13: 7.666666667 | BS13: 9.5
A14: 10 | C14: 6 | D14: 823906QK | E14: Belinda Knoops | F14: Quite Catrick | G14: De Boschhoeve | I14: 150 | J14: =IF(I14="","",IF(ISTEXT(I14),I14,IF(I14<=Basis!$M$8,"Uit",(100-(I14/Basis!$L$8*100))*Basis!$Y$6))) -> 50 | K14: 0 | L14: 0 | M14: 0 | N14: 4 | O14: 35 | P14: =IF(N14="","",IF(N14*60+O14>Basis!$U$8,"Uit",BL14+BM14)) -> 22 | R14: 72 | S14: 8.166666667 | T14: 6.166666667 | U14: 57.66666667 | X14: 6 | Y14: 0 | Z14: - | AA14: - | AB14: - | AC14: - | AD14: - | AE14: - | AF14: - | AG14: - | AH14: - | AI14: - | AJ14: - | AK14: - | AL14: - | AM14: - | AN14: - | AO14: - | AP14: - | AX14: 0 | BA14: 6 | BC14: 09:20:00 | BD14: 09:24:35 | BE14: 00:04:35 | BF14: 4 | BG14: 35 | BI14: =IF(K14="","",IF(ISTEXT(K14),K14,IF(K14>Basis!$N$8,"Uit",IF(ISBLANK(L14),K14,K14+L14)))) -> 0 | BJ14: 50 | BK14: 275 | BL14: =IF(N14="","",IF(BK14<=Basis!$F$8,0,(BK14-Basis!$F$8)*0.4)) -> 22 | BM14: =IF(N14="","",IF(BK14>Basis!$G$8,0,(Basis!$G$8-BK14)*0.4)) -> 0 | BN14: 22 | BP14: 24.5 | BQ14: 18.5 | BR14: 8.166666667 | BS14: 6.166666667
A15: 11 | C15: 23 | D15: 854925IW | E15: Henk Wieberdink | F15: Indine | G15: RV. Stroe | I15: 150 | J15: =IF(I15="","",IF(ISTEXT(I15),I15,IF(I15<=Basis!$M$8,"Uit",(100-(I15/Basis!$L$8*100))*Basis!$Y$6))) -> 50 | K15: 4 | L15: 0 | M15: 0 | N15: 4 | O15: 31 | P15: =IF(N15="","",IF(N15*60+O15>Basis!$U$8,"Uit",BL15+BM15)) -> 20.4 | R15: 74.4 | S15: 8 | T15: 7.166666667 | U15: 59.23333333 | X15: 23 | Y15: 0 | Z15: - | AA15: - | AB15: - | AC15: - | AD15: - | AE15: - | AF15: - | AG15: - | AH15: - | AI15: - | AJ15: - | AK15: - | AL15: - | AM15: - | AN15: - | AO15: - | AP15: - | AX15: 0 | BA15: 23 | BC15: 10:04:00 | BD15: 10:08:31 | BE15: 00:04:31 | BF15: 4 | BG15: 31 | BI15: =IF(K15="","",IF(ISTEXT(K15),K15,IF(K15>Basis!$N$8,"Uit",IF(ISBLANK(L15),K15,K15+L15)))) -> 4 | BJ15: 54 | BK15: 271 | BL15: =IF(N15="","",IF(BK15<=Basis!$F$8,0,(BK15-Basis!$F$8)*0.4)) -> 20.4 | BM15: =IF(N15="","",IF(BK15>Basis!$G$8,0,(Basis!$G$8-BK15)*0.4)) -> 0 | BN15: 20.4 | BP15: 24 | BQ15: 21.5 | BR15: 8 | BS15: 7.166666667
A16: 12 | C16: 1 | D16: 845469IW | E16: Henk Wieberdink | F16: Immontane OMHG | G16: RV. Stroe | I16: 150 | J16: =IF(I16="","",IF(ISTEXT(I16),I16,IF(I16<=Basis!$M$8,"Uit",(100-(I16/Basis!$L$8*100))*Basis!$Y$6))) -> 50 | K16: 8 | L16: 0 | M16: 0 | N16: 4 | O16: 21 | P16: =IF(N16="","",IF(N16*60+O16>Basis!$U$8,"Uit",BL16+BM16)) -> 16.4 | R16: 74.4 | S16: 6.5 | T16: 6.166666667 | U16: 61.73333333 | X16: 1 | Y16: 0 | Z16: - | AA16: - | AB16: - | AC16: - | AD16: - | AE16: - | AF16: - | AG16: - | AH16: - | AI16: - | AJ16: - | AK16: - | AL16: - | AM16: - | AN16: - | AO16: - | AP16: - | AX16: 0 | BA16: 1 | BC16: 09:10:00 | BD16: 09:14:21 | BE16: 00:04:21 | BF16: 4 | BG16: 21 | BI16: =IF(K16="","",IF(ISTEXT(K16),K16,IF(K16>Basis!$N$8,"Uit",IF(ISBLANK(L16),K16,K16+L16)))) -> 8 | BJ16: 58 | BK16: 261 | BL16: =IF(N16="","",IF(BK16<=Basis!$F$8,0,(BK16-Basis!$F$8)*0.4)) -> 16.4 | BM16: =IF(N16="","",IF(BK16>Basis!$G$8,0,(Basis!$G$8-BK16)*0.4)) -> 0 | BN16: 16.4 | BP16: 19.5 | BQ16: 18.5 | BR16: 6.5 | BS16: 6.166666667
A17: 13 | C17: 52 | D17: 842701CK | E17: Renske Kroeze | F17: Can Fly | G17: RV. Leijeruiters Helvoirt (pv) | I17: 150 | J17: =IF(I17="","",IF(ISTEXT(I17),I17,IF(I17<=Basis!$M$8,"Uit",(100-(I17/Basis!$L$8*100))*Basis!$Y$6))) -> 50 | K17: 4 | L17: 0 | M17: 0 | N17: 4 | O17: 40 | P17: =IF(N17="","",IF(N17*60+O17>Basis!$U$8,"Uit",BL17+BM17)) -> 24 | R17: 78 | S17: 8.833333333 | T17: 7.333333333 | U17: 61.83333333 | X17: 52 | Y17: 0 | Z17: - | AA17: - | AB17: - | AC17: - | AD17: - | AE17: - | AF17: - | AG17: - | AH17: - | AI17: - | AJ17: - | AK17: - | AL17: - | AM17: - | AN17: - | AO17: - | AP17: - | AX17: 0 | BA17: 52 | BC17: 10:52:00 | BD17: 10:56:40 | BE17: 00:04:40 | BF17: 4 | BG17: 40 | BI17: =IF(K17="","",IF(ISTEXT(K17),K17,IF(K17>Basis!$N$8,"Uit",IF(ISBLANK(L17),K17,K17+L17)))) -> 4 | BJ17: 54 | BK17: 280 | BL17: =IF(N17="","",IF(BK17<=Basis!$F$8,0,(BK17-Basis!$F$8)*0.4)) -> 24 | BM17: =IF(N17="","",IF(BK17>Basis!$G$8,0,(Basis!$G$8-BK17)*0.4)) -> 0 | BN17: 24 | BP17: 26.5 | BQ17: 22 | BR17: 8.833333333 | BS17: 7.333333333
A18: 14 | C18: 27 | D18: 744335ME | E18: Vincent Erkamp | F18: Bellissimo S | G18: Manege De Hoef V.O.F. | I18: 150 | J18: =IF(I18="","",IF(ISTEXT(I18),I18,IF(I18<=Basis!$M$8,"Uit",(100-(I18/Basis!$L$8*100))*Basis!$Y$6))) -> 50 | K18: 4 | L18: 0 | M18: 0 | N18: 5 | O18: 7 | P18: =IF(N18="","",IF(N18*60+O18>Basis!$U$8,"Uit",BL18+BM18)) -> 34.8 | R18: 88.8 | S18: 8 | T18: 7 | U18: 73.8 | X18: 27 | Y18: 0 | Z18: - | AA18: - | AB18: - | AC18: - | AD18: - | AE18: - | AF18: - | AG18: - | AH18: - | AI18: - | AJ18: - | AK18: - | AL18: - | AM18: - | AN18: - | AO18: - | AP18: - | AX18: 0 | BA18: 27 | BC18: 10:02:00 | BD18: 10:07:07 | BE18: 00:05:07 | BF18: 5 | BG18: 7 | BI18: =IF(K18="","",IF(ISTEXT(K18),K18,IF(K18>Basis!$N$8,"Uit",IF(ISBLANK(L18),K18,K18+L18)))) -> 4 | BJ18: 54 | BK18: 307 | BL18: =IF(N18="","",IF(BK18<=Basis!$F$8,0,(BK18-Basis!$F$8)*0.4)) -> 34.8 | BM18: =IF(N18="","",IF(BK18>Basis!$G$8,0,(Basis!$G$8-BK18)*0.4)) -> 0 | BN18: 34.8 | BP18: 24 | BQ18: 21 | BR18: 8 | BS18: 7
A19: 15 | C19: 7 | D19: 822016AP | E19: Natasja van de Pavert | F19: Allure E | G19: RV. de Peelse Vrije Teugels | I19: 150 | J19: =IF(I19="","",IF(ISTEXT(I19),I19,IF(I19<=Basis!$M$8,"Uit",(100-(I19/Basis!$L$8*100))*Basis!$Y$6))) -> 50 | K19: 0 | L19: 0 | M19: 20 | N19: 4 | O19: 38 | P19: =IF(N19="","",IF(N19*60+O19>Basis!$U$8,"Uit",BL19+BM19)) -> 23.2 | R19: 93.2 | S19: 6.833333333 | T19: 6.333333333 | U19: 80.03333333 | X19: 7 | Y19: 0 | Z19: - | AA19: - | AB19: - | AC19: - | AD19: - | AE19: - | AF19: - | AG19: - | AH19: - | AI19: - | AJ19: - | AK19: - | AL19: 20 | AM19: - | AN19: - | AO19: - | AP19: - | AX19: 20 | BA19: 7 | BC19: 09:22:00 | BD19: 09:26:38 | BE19: 00:04:38 | BF19: 4 | BG19: 38 | BI19: =IF(K19="","",IF(ISTEXT(K19),K19,IF(K19>Basis!$N$8,"Uit",IF(ISBLANK(L19),K19,K19+L19)))) -> 0 | BJ19: 50 | BK19: 278 | BL19: =IF(N19="","",IF(BK19<=Basis!$F$8,0,(BK19-Basis!$F$8)*0.4)) -> 23.2 | BM19: =IF(N19="","",IF(BK19>Basis!$G$8,0,(Basis!$G$8-BK19)*0.4)) -> 0 | BN19: 43.2 | BP19: 20.5 | BQ19: 19 | BR19: 6.833333333 | BS19: 6.333333333
A20: 16 | C20: 5 | D20: 824576IB | E20: Shannon Bakker | F20: Ici Mabelle | G20: Manege De Hoef V.O.F. | I20: 150 | J20: =IF(I20="","",IF(ISTEXT(I20),I20,IF(I20<=Basis!$M$8,"Uit",(100-(I20/Basis!$L$8*100))*Basis!$Y$6))) -> 50 | K20: 8 | L20: 13 | M20: 0 | N20: 4 | O20: 50 | P20: =IF(N20="","",IF(N20*60+O20>Basis!$U$8,"Uit",BL20+BM20)) -> 28 | R20: 99 | S20: 6 | T20: 6.166666667 | U20: 86.83333333 | X20: 5 | Y20: 0 | Z20: - | AA20: - | AB20: - | AC20: - | AD20: - | AE20: - | AF20: - | AG20: - | AH20: - | AI20: - | AJ20: - | AK20: - | AL20: - | AM20: - | AN20: - | AO20: - | AP20: - | AX20: 0 | BA20: 5 | BC20: 09:18:00 | BD20: 09:22:50 | BE20: 00:04:50 | BF20: 4 | BG20: 50 | BI20: =IF(K20="","",IF(ISTEXT(K20),K20,IF(K20>Basis!$N$8,"Uit",IF(ISBLANK(L20),K20,K20+L20)))) -> 21 | BJ20: 71 | BK20: 290 | BL20: =IF(N20="","",IF(BK20<=Basis!$F$8,0,(BK20-Basis!$F$8)*0.4)) -> 28 | BM20: =IF(N20="","",IF(BK20>Basis!$G$8,0,(Basis!$G$8-BK20)*0.4)) -> 0 | BN20: 28 | BP20: 18 | BQ20: 18.5 | BR20: 6 | BS20: 6.166666667
A21: 17 | C21: 51 | D21: 856221GV | E21: Rosalie Vriens | F21: Gigi | I21: 150 | J21: =IF(I21="","",IF(ISTEXT(I21),I21,IF(I21<=Basis!$M$8,"Uit",(100-(I21/Basis!$L$8*100))*Basis!$Y$6))) -> 50 | K21: 4 | L21: 0 | M21: 0 | N21: 5 | O21: 43 | P21: =IF(N21="","",IF(N21*60+O21>Basis!$U$8,"Uit",BL21+BM21)) -> 49.2 | R21: 103.2 | S21: 8.5 | T21: 7 | U21: 87.7 | X21: 51 | Y21: 0 | Z21: - | AA21: - | AB21: - | AC21: - | AD21: - | AE21: - | AF21: - | AG21: - | AH21: - | AI21: - | AJ21: - | AK21: - | AL21: - | AM21: - | AN21: - | AO21: - | AP21: - | AX21: 0 | BA21: 51 | BC21: 10:50:00 | BD21: 10:55:43 | BE21: 00:05:43 | BF21: 5 | BG21: 43 | BI21: =IF(K21="","",IF(ISTEXT(K21),K21,IF(K21>Basis!$N$8,"Uit",IF(ISBLANK(L21),K21,K21+L21)))) -> 4 | BJ21: 54 | BK21: 343 | BL21: =IF(N21="","",IF(BK21<=Basis!$F$8,0,(BK21-Basis!$F$8)*0.4)) -> 49.2 | BM21: =IF(N21="","",IF(BK21>Basis!$G$8,0,(Basis!$G$8-BK21)*0.4)) -> 0 | BN21: 49.2 | BP21: 25.5 | BQ21: 21 | BR21: 8.5 | BS21: 7
A22: 18 | C22: 8 | D22: 789890AH | E22: Rick van Hout | F22: Affection SLZ | G22: RV. Treekerij | I22: 150 | J22: =IF(I22="","",IF(ISTEXT(I22),I22,IF(I22<=Basis!$M$8,"Uit",(100-(I22/Basis!$L$8*100))*Basis!$Y$6))) -> 50 | K22: 4 | L22: 0 | M22: 20 | N22: 4 | O22: 57 | P22: =IF(N22="","",IF(N22*60+O22>Basis!$U$8,"Uit",BL22+BM22)) -> 30.8 | R22: 104.8 | S22: 5.5 | T22: 6 | U22: 93.3 | X22: 8 | Y22: 0 | Z22: - | AA22: - | AB22: 20 | AC22: - | AD22: - | AE22: - | AF22: - | AG22: - | AH22: - | AI22: - | AJ22: - | AK22: - | AL22: - | AM22: - | AN22: - | AO22: - | AP22: - | AX22: 20 | BA22: 8 | BC22: 09:24:00 | BD22: 09:28:57 | BE22: 00:04:57 | BF22: 4 | BG22: 57 | BI22: =IF(K22="","",IF(ISTEXT(K22),K22,IF(K22>Basis!$N$8,"Uit",IF(ISBLANK(L22),K22,K22+L22)))) -> 4 | BJ22: 54 | BK22: 297 | BL22: =IF(N22="","",IF(BK22<=Basis!$F$8,0,(BK22-Basis!$F$8)*0.4)) -> 30.8 | BM22: =IF(N22="","",IF(BK22>Basis!$G$8,0,(Basis!$G$8-BK22)*0.4)) -> 0 | BN22: 50.8 | BP22: 16.5 | BQ22: 18 | BR22: 5.5 | BS22: 6
A23: 19 | C23: 3 | D23: 847198HC | E23: Minouche Castricum | F23: Highlander | G23: Manege De Hoef V.O.F. | I23: 150 | J23: =IF(I23="","",IF(ISTEXT(I23),I23,IF(I23<=Basis!$M$8,"Uit",(100-(I23/Basis!$L$8*100))*Basis!$Y$6))) -> 50 | K23: 0 | L23: 0 | M23: 40 | N23: 5 | O23: 12 | P23: =IF(N23="","",IF(N23*60+O23>Basis!$U$8,"Uit",BL23+BM23)) -> 36.8 | R23: 126.8 | S23: 6.166666667 | T23: 6 | U23: 114.6333333 | X23: 3 | Y23: 0 | Z23: - | AA23: - | AB23: - | AC23: - | AD23: - | AE23: 20 | AF23: - | AG23: - | AH23: - | AI23: - | AJ23: - | AK23: - | AL23: - | AM23: 20 | AN23: - | AO23: - | AP23: - | AX23: 40 | BA23: 3 | BC23: 09:14:00 | BD23: 09:19:12 | BE23: 00:05:12 | BF23: 5 | BG23: 12 | BI23: =IF(K23="","",IF(ISTEXT(K23),K23,IF(K23>Basis!$N$8,"Uit",IF(ISBLANK(L23),K23,K23+L23)))) -> 0 | BJ23: 50 | BK23: 312 | BL23: =IF(N23="","",IF(BK23<=Basis!$F$8,0,(BK23-Basis!$F$8)*0.4)) -> 36.8 | BM23: =IF(N23="","",IF(BK23>Basis!$G$8,0,(Basis!$G$8-BK23)*0.4)) -> 0 | BN23: 76.8 | BP23: 18.5 | BQ23: 18 | BR23: 6.166666667 | BS23: 6
A24: 20 | C24: 11 | D24: 840242CL | E24: Daphne Lenkens | F24: Charlotte | G24: RV. Ysselsteyn | I24: 150 | J24: =IF(I24="","",IF(ISTEXT(I24),I24,IF(I24<=Basis!$M$8,"Uit",(100-(I24/Basis!$L$8*100))*Basis!$Y$6))) -> 50 | K24: 0 | L24: 0 | M24: 60 | N24: 5 | O24: 54 | P24: =IF(N24="","",IF(N24*60+O24>Basis!$U$8,"Uit",BL24+BM24)) -> 53.6 | R24: 163.6 | S24: 5.5 | T24: 6.5 | U24: 151.6 | X24: 11 | Y24: 0 | Z24: - | AA24: - | AB24: 60 | AC24: - | AD24: - | AE24: - | AF24: - | AG24: - | AH24: - | AI24: - | AJ24: - | AK24: - | AL24: - | AM24: - | AN24: - | AO24: - | AP24: - | AX24: 60 | BA24: 11 | BC24: 09:30:00 | BD24: 09:35:54 | BE24: 00:05:54 | BF24: 5 | BG24: 54 | BI24: =IF(K24="","",IF(ISTEXT(K24),K24,IF(K24>Basis!$N$8,"Uit",IF(ISBLANK(L24),K24,K24+L24)))) -> 0 | BJ24: 50 | BK24: 354 | BL24: =IF(N24="","",IF(BK24<=Basis!$F$8,0,(BK24-Basis!$F$8)*0.4)) -> 53.6 | BM24: =IF(N24="","",IF(BK24>Basis!$G$8,0,(Basis!$G$8-BK24)*0.4)) -> 0 | BN24: 113.6 | BP24: 16.5 | BQ24: 19.5 | BR24: 5.5 | BS24: 6.5
A25: 21 | C25: 10 | D25: 846971AS | E25: Kelly Schiphorst | F25: Angel | G25: Manege Napoleon BV | I25: 150 | J25: =IF(I25="","",IF(ISTEXT(I25),I25,IF(I25<=Basis!$M$8,"Uit",(100-(I25/Basis!$L$8*100))*Basis!$Y$6))) -> 50 | K25: 0 | L25: 0 | M25: 100 | N25: 5 | O25: 23 | P25: =IF(N25="","",IF(N25*60+O25>Basis!$U$8,"Uit",BL25+BM25)) -> 41.2 | R25: 191.2 | S25: 5.166666667 | T25: 5 | U25: 181.0333333 | X25: 10 | Y25: 20 | Z25: - | AA25: - | AB25: 20 | AC25: - | AD25: - | AE25: - | AF25: - | AG25: - | AH25: - | AI25: - | AJ25: - | AK25: - | AL25: 60 | AM25: - | AN25: - | AO25: - | AP25: - | AX25: 100 | BA25: 10 | BC25: 09:28:00 | BD25: 09:33:23 | BE25: 00:05:23 | BF25: 5 | BG25: 23 | BI25: =IF(K25="","",IF(ISTEXT(K25),K25,IF(K25>Basis!$N$8,"Uit",IF(ISBLANK(L25),K25,K25+L25)))) -> 0 | BJ25: 50 | BK25: 323 | BL25: =IF(N25="","",IF(BK25<=Basis!$F$8,0,(BK25-Basis!$F$8)*0.4)) -> 41.2 | BM25: =IF(N25="","",IF(BK25>Basis!$G$8,0,(Basis!$G$8-BK25)*0.4)) -> 0 | BN25: 141.2 | BP25: 15.5 | BQ25: 15 | BR25: 5.166666667 | BS25: 5
C26: 9 | D26: 731891DM | E26: Patricia Meijs | F26: Daphne | G26: RV. Heeze (rsv.) | I26: 150 | J26: =IF(I26="","",IF(ISTEXT(I26),I26,IF(I26<=Basis!$M$8,"Uit",(100-(I26/Basis!$L$8*100))*Basis!$Y$6))) -> 50 | K26: NG | M26: NG | P26: =IF(N26="","",IF(N26*60+O26>Basis!$U$8,"Uit",BL26+BM26)) ->  | R26: NG | U26: NG | X26: 9 | Y26: NG | AX26: NG | BA26: 9 | BC26: 09:26:00 | BI26: =IF(K26="","",IF(ISTEXT(K26),K26,IF(K26>Basis!$N$8,"Uit",IF(ISBLANK(L26),K26,K26+L26)))) -> NG | BJ26: NG | BL26: =IF(N26="","",IF(BK26<=Basis!$F$8,0,(BK26-Basis!$F$8)*0.4)) ->  | BM26: =IF(N26="","",IF(BK26>Basis!$G$8,0,(Basis!$G$8-BK26)*0.4)) ->  | BN26: NG
C27: 13 | D27: 457651CP | E27: Anne-Marie Peters | F27: Cartouche van het Keizerhof | G27: RV. De Cavaliers | I27: 150 | J27: =IF(I27="","",IF(ISTEXT(I27),I27,IF(I27<=Basis!$M$8,"Uit",(100-(I27/Basis!$L$8*100))*Basis!$Y$6))) -> 50 | K27: NG | M27: NG | P27: =IF(N27="","",IF(N27*60+O27>Basis!$U$8,"Uit",BL27+BM27)) ->  | R27: NG | U27: NG | X27: 13 | Y27: NG | AX27: NG | BA27: 13 | BC27: 09:34:00 | BI27: =IF(K27="","",IF(ISTEXT(K27),K27,IF(K27>Basis!$N$8,"Uit",IF(ISBLANK(L27),K27,K27+L27)))) -> NG | BJ27: NG | BL27: =IF(N27="","",IF(BK27<=Basis!$F$8,0,(BK27-Basis!$F$8)*0.4)) ->  | BM27: =IF(N27="","",IF(BK27>Basis!$G$8,0,(Basis!$G$8-BK27)*0.4)) ->  | BN27: NG
C28: 17 | D28: Duitsland | E28: Marc Schoenen | F28: Limerix | I28: 150 | J28: =IF(I28="","",IF(ISTEXT(I28),I28,IF(I28<=Basis!$M$8,"Uit",(100-(I28/Basis!$L$8*100))*Basis!$Y$6))) -> 50 | K28: NG | M28: NG | P28: =IF(N28="","",IF(N28*60+O28>Basis!$U$8,"Uit",BL28+BM28)) ->  | R28: NG | U28: NG | X28: 17 | Y28: NG | Z28: - | AA28: - | AB28: - | AC28: - | AD28: - | AE28: - | AF28: - | AG28: - | AH28: - | AI28: - | AJ28: - | AK28: - | AL28: - | AM28: - | AN28: - | AO28: - | AP28: - | AX28: NG | BA28: 17 | BC28: 09:42:00 | BI28: =IF(K28="","",IF(ISTEXT(K28),K28,IF(K28>Basis!$N$8,"Uit",IF(ISBLANK(L28),K28,K28+L28)))) -> NG | BJ28: NG | BL28: =IF(N28="","",IF(BK28<=Basis!$F$8,0,(BK28-Basis!$F$8)*0.4)) ->  | BM28: =IF(N28="","",IF(BK28>Basis!$G$8,0,(Basis!$G$8-BK28)*0.4)) ->  | BN28: NG
C29: 15 | D29: 785183ER | E29: Justin de Ronde | F29: Easter Hurricane | G29: RV. Eendracht | I29: 150 | J29: =IF(I29="","",IF(ISTEXT(I29),I29,IF(I29<=Basis!$M$8,"Uit",(100-(I29/Basis!$L$8*100))*Basis!$Y$6))) -> 50 | K29: 0 | L29: 0 | M29: =IF(AX29="","",AX29) -> Uit | N29: 3 | O29: 53 | P29: =IF(N29="","",IF(N29*60+O29>Basis!$U$8,"Uit",BL29+BM29)) -> 5.2 | R29: Uit | S29: 8.666666667 | T29: 7.333333333 | U29: Uit | V29: FP h. 9 d* | X29: 15 | Y29: 0 | Z29: - | AA29: - | AB29: - | AC29: - | AD29: - | AE29: - | AF29: - | AG29: - | AH29: FP | AI29: - | AJ29: - | AK29: - | AL29: - | AM29: - | AN29: - | AO29: - | AP29: - | AX29: Uit | AY29: FP h. 9 d* | BA29: 15 | BC29: 09:38:00 | BD29: 09:41:53 | BE29: 00:03:53 | BF29: 3 | BG29: 53 | BI29: =IF(K29="","",IF(ISTEXT(K29),K29,IF(K29>Basis!$N$8,"Uit",IF(ISBLANK(L29),K29,K29+L29)))) -> 0 | BJ29: 50 | BK29: 233 | BL29: =IF(N29="","",IF(BK29<=Basis!$F$8,0,(BK29-Basis!$F$8)*0.4)) -> 5.2 | BM29: =IF(N29="","",IF(BK29>Basis!$G$8,0,(Basis!$G$8-BK29)*0.4)) -> 0 | BN29: Uit | BP29: 26 | BQ29: 22 | BR29: 8.666666667 | BS29: 7.333333333
C30: 21 | D30: Belgie | E30: Nicole Peters | F30: Silvana | I30: 150 | J30: =IF(I30="","",IF(ISTEXT(I30),I30,IF(I30<=Basis!$M$8,"Uit",(100-(I30/Basis!$L$8*100))*Basis!$Y$6))) -> 50 | K30: 4 | L30: 1 | M30: Uit | N30: 7 | O30: 8 | P30: =IF(N30="","",IF(N30*60+O30>Basis!$U$8,"Uit",BL30+BM30)) -> 83.2 | R30: Uit | T30: 6 | U30: Uit | V30: FP h.12 d* | X30: 21 | Y30: 0 | Z30: - | AA30: - | AB30: - | AC30: - | AD30: - | AE30: - | AF30: 20 | AG30: - | AH30: 20 | AI30: - | AJ30: - | AK30: - | AL30: FP | AM30: - | AN30: - | AO30: - | AP30: - | AX30: Uit | AY30: FP h.12 d* | BA30: 21 | BC30: 09:50:00 | BD30: 09:57:08 | BE30: 00:07:08 | BF30: 7 | BG30: 8 | BI30: =IF(K30="","",IF(ISTEXT(K30),K30,IF(K30>Basis!$N$8,"Uit",IF(ISBLANK(L30),K30,K30+L30)))) -> 5 | BJ30: 55 | BK30: 428 | BL30: =IF(N30="","",IF(BK30<=Basis!$F$8,0,(BK30-Basis!$F$8)*0.4)) -> 83.2 | BM30: =IF(N30="","",IF(BK30>Basis!$G$8,0,(Basis!$G$8-BK30)*0.4)) -> 0 | BN30: Uit | BQ30: 18 | BS30: 6
C31: 36 | D31: 836078GC | E31: Minouche Castricum | F31: Mulan | G31: Manege De Hoef V.O.F. | I31: 150 | J31: =IF(I31="","",IF(ISTEXT(I31),I31,IF(I31<=Basis!$M$8,"Uit",(100-(I31/Basis!$L$8*100))*Basis!$Y$6))) -> 50 | K31: 0 | L31: 0 | M31: Uit | P31: =IF(N31="","",IF(N31*60+O31>Basis!$U$8,"Uit",BL31+BM31)) ->  | R31: Uit | S31: 1 | U31: Uit | V31: 3W h.4 | X31: 36 | Y31: 0 | Z31: - | AA31: - | AB31: 3W | AX31: Uit | AY31: 3W h.4 | BA31: 36 | BC31: 10:20:00 | BI31: =IF(K31="","",IF(ISTEXT(K31),K31,IF(K31>Basis!$N$8,"Uit",IF(ISBLANK(L31),K31,K31+L31)))) -> 0 | BJ31: 50 | BL31: =IF(N31="","",IF(BK31<=Basis!$F$8,0,(BK31-Basis!$F$8)*0.4)) ->  | BM31: =IF(N31="","",IF(BK31>Basis!$G$8,0,(Basis!$G$8-BK31)*0.4)) ->  | BN31: Uit | BP31: 3 | BR31: 1
A32: HC | C32: 18 | D32: 858217MK | E32: Ilonka Kluytmans | F32: Mister Copperfield | I32: 150 | J32: =IF(I32="","",IF(ISTEXT(I32),I32,IF(I32<=Basis!$M$8,"Uit",(100-(I32/Basis!$L$8*100))*Basis!$Y$6))) -> 50 | K32: 0 | L32: 0 | M32: 0 | N32: 3 | O32: 54 | P32: =IF(N32="","",IF(N32*60+O32>Basis!$U$8,"Uit",BL32+BM32)) -> 5.6 | R32: 55.6 | S32: 9.5 | T32: 7 | U32: 39.1 | X32: 18 | Y32: 0 | Z32: - | AA32: - | AB32: - | AC32: - | AD32: - | AE32: - | AF32: - | AG32: - | AH32: - | AI32: - | AJ32: - | AK32: - | AL32: - | AM32: - | AN32: - | AO32: - | AP32: - | AX32: =IF(Y32="","",IF(ISTEXT(Y32),Y32,SUM(Y32:AW32))) -> 0 | BA32: 18 | BC32: 09:44:00 | BD32: 09:47:54 | BE32: 00:03:54 | BF32: 3 | BG32: 54 | BI32: =IF(K32="","",IF(ISTEXT(K32),K32,IF(K32>Basis!$N$8,"Uit",IF(ISBLANK(L32),K32,K32+L32)))) -> 0 | BJ32: 50 | BK32: 234 | BL32: =IF(N32="","",IF(BK32<=Basis!$F$8,0,(BK32-Basis!$F$8)*0.4)) -> 5.6 | BM32: =IF(N32="","",IF(BK32>Basis!$G$8,0,(Basis!$G$8-BK32)*0.4)) -> 0 | BN32: 5.6 | BP32: 28.5 | BQ32: 21 | BR32: 9.5 | BS32: 7
A33: HC | C33: 2 | D33: 855714IK | E33: Renske Kroeze | F33: Irvine | G33: RV. Leijeruiters Helvoirt (pv) | I33: 150 | J33: =IF(I33="","",IF(ISTEXT(I33),I33,IF(I33<=Basis!$M$8,"Uit",(100-(I33/Basis!$L$8*100))*Basis!$Y$6))) -> 50 | K33: 0 | L33: 0 | M33: 0 | N33: 4 | O33: 38 | P33: =IF(N33="","",IF(N33*60+O33>Basis!$U$8,"Uit",BL33+BM33)) -> 23.2 | R33: 73.2 | S33: 7.166666667 | T33: 7.166666667 | U33: 58.86666667 | X33: 2 | Y33: 0 | Z33: - | AA33: - | AB33: - | AC33: - | AD33: - | AE33: - | AF33: - | AG33: - | AH33: - | AI33: - | AJ33: - | AK33: - | AL33: - | AM33: - | AN33: - | AO33: - | AP33: - | AX33: 0 | BA33: 2 | BC33: 09:12:00 | BD33: 09:16:38 | BE33: 00:04:38 | BF33: 4 | BG33: 38 | BI33: =IF(K33="","",IF(ISTEXT(K33),K33,IF(K33>Basis!$N$8,"Uit",IF(ISBLANK(L33),K33,K33+L33)))) -> 0 | BJ33: 50 | BK33: 278 | BL33: =IF(N33="","",IF(BK33<=Basis!$F$8,0,(BK33-Basis!$F$8)*0.4)) -> 23.2 | BM33: =IF(N33="","",IF(BK33>Basis!$G$8,0,(Basis!$G$8-BK33)*0.4)) -> 0 | BN33: 23.2 | BP33: 21.5 | BQ33: 21.5 | BR33: 7.166666667 | BS33: 7.166666667
A34: HC | C34: 22 | D34: 644343PS | E34: Seezwaa Smit | F34: Petillante de ceran | G34: RV. Xanthus Spaarnwoude | I34: 150 | J34: =IF(I34="","",IF(ISTEXT(I34),I34,IF(I34<=Basis!$M$8,"Uit",(100-(I34/Basis!$L$8*100))*Basis!$Y$6))) -> 50 | K34: 0 | L34: 0 | M34: 0 | N34: 4 | O34: 44 | P34: =IF(N34="","",IF(N34*60+O34>Basis!$U$8,"Uit",BL34+BM34)) -> 25.6 | R34: 75.6 | S34: 8.333333333 | T34: 6.666666667 | U34: 60.6 | X34: 22 | Y34: 0 | Z34: - | AA34: - | AB34: - | AC34: - | AD34: - | AE34: - | AF34: - | AG34: - | AH34: - | AI34: - | AJ34: - | AK34: - | AL34: - | AM34: - | AN34: - | AO34: - | AP34: - | AX34: 0 | BA34: 22 | BC34: 09:52:00 | BD34: 09:56:44 | BE34: 00:04:44 | BF34: 4 | BG34: 44 | BI34: =IF(K34="","",IF(ISTEXT(K34),K34,IF(K34>Basis!$N$8,"Uit",IF(ISBLANK(L34),K34,K34+L34)))) -> 0 | BJ34: 50 | BK34: 284 | BL34: =IF(N34="","",IF(BK34<=Basis!$F$8,0,(BK34-Basis!$F$8)*0.4)) -> 25.6 | BM34: =IF(N34="","",IF(BK34>Basis!$G$8,0,(Basis!$G$8-BK34)*0.4)) -> 0 | BN34: 25.6 | BP34: 25 | BQ34: 20 | BR34: 8.333333333 | BS34: 6.666666667
A35: HC | C35: 24 | D35: 830384MK | E35: Renske Kroeze | F35: M can do it | G35: RV. Leijeruiters Helvoirt (pv) | I35: 150 | J35: =IF(I35="","",IF(ISTEXT(I35),I35,IF(I35<=Basis!$M$8,"Uit",(100-(I35/Basis!$L$8*100))*Basis!$Y$6))) -> 50 | K35: 0 | L35: 0 | M35: 20 | N35: 5 | O35: 24 | P35: =IF(N35="","",IF(N35*60+O35>Basis!$U$8,"Uit",BL35+BM35)) -> 41.6 | R35: 111.6 | S35: 8.666666667 | T35: 7.666666667 | U35: 95.26666667 | X35: 24 | Y35: 0 | Z35: - | AA35: - | AB35: - | AC35: - | AD35: - | AE35: 20 | AF35: - | AG35: - | AH35: - | AI35: - | AJ35: - | AK35: - | AL35: - | AM35: - | AN35: - | AO35: - | AP35: - | AX35: 20 | BA35: 24 | BC35: 09:56:00 | BD35: 10:01:24 | BE35: 00:05:24 | BF35: 5 | BG35: 24 | BI35: =IF(K35="","",IF(ISTEXT(K35),K35,IF(K35>Basis!$N$8,"Uit",IF(ISBLANK(L35),K35,K35+L35)))) -> 0 | BJ35: 50 | BK35: 324 | BL35: =IF(N35="","",IF(BK35<=Basis!$F$8,0,(BK35-Basis!$F$8)*0.4)) -> 41.6 | BM35: =IF(N35="","",IF(BK35>Basis!$G$8,0,(Basis!$G$8-BK35)*0.4)) -> 0 | BN35: 61.6 | BP35: 26 | BQ35: 23 | BR35: 8.666666667 | BS35: 7.666666667
C36: 14 | J36: =IF(I36="","",IF(ISTEXT(I36),I36,IF(I36<=Basis!$M$8,"Uit",(100-(I36/Basis!$L$8*100))*Basis!$Y$6))) ->  | P36: =IF(N36="","",IF(N36*60+O36>Basis!$U$8,"Uit",BL36+BM36)) ->  | X36: 14 | BA36: 14 | BC36: 09:36:00 | BI36: =IF(K36="","",IF(ISTEXT(K36),K36,IF(K36>Basis!$N$8,"Uit",IF(ISBLANK(L36),K36,K36+L36)))) ->  | BL36: =IF(N36="","",IF(BK36<=Basis!$F$8,0,(BK36-Basis!$F$8)*0.4)) ->  | BM36: =IF(N36="","",IF(BK36>Basis!$G$8,0,(Basis!$G$8-BK36)*0.4)) -> 
C37: 28 | J37: =IF(I37="","",IF(ISTEXT(I37),I37,IF(I37<=Basis!$M$8,"Uit",(100-(I37/Basis!$L$8*100))*Basis!$Y$6))) ->  | M37: =IF(AX37="","",AX37) ->  | P37: =IF(N37="","",IF(N37*60+O37>Basis!$U$8,"Uit",BL37+BM37)) ->  | X37: 28 | BA37: 28 | BC37: 10:04:00 | BI37: =IF(K37="","",IF(ISTEXT(K37),K37,IF(K37>Basis!$N$8,"Uit",IF(ISBLANK(L37),K37,K37+L37)))) ->  | BL37: =IF(N37="","",IF(BK37<=Basis!$F$8,0,(BK37-Basis!$F$8)*0.4)) ->  | BM37: =IF(N37="","",IF(BK37>Basis!$G$8,0,(Basis!$G$8-BK37)*0.4)) -> 
J38: =IF(I38="","",IF(ISTEXT(I38),I38,IF(I38<=Basis!$M$8,"Uit",(100-(I38/Basis!$L$8*100))*Basis!$Y$6))) ->  | M38: =IF(AX38="","",AX38) ->  | N38: =IF(ISBLANK(BD38),"",BF38) ->  | O38: =IF(ISBLANK(BD38),"",BG38) ->  | P38: =IF(N38="","",IF(N38*60+O38>Basis!$U$8,"Uit",BL38+BM38)) ->  | R38: =IF(ISTEXT(BJ38),BJ38,IF(OR(ISBLANK(M38),M38="",ISBLANK(Y38)),BJ38,IF(ISTEXT(BN38),BN38,BJ38+BN38))) ->  | S38: =IF(BP38="","",BR38) ->  | T38: =IF(BQ38="","",BS38) ->  | U38: =IF(R38="","",IF(ISTEXT(R38),R38,IF(BP38="","",R38-S38-T38))) ->  | V38: =IF(AY38="","",AY38) ->  | X38: =IF($C38="","",$C38) ->  | AX38: =IF(Y38="","",IF(ISTEXT(Y38),Y38,SUM(Y38:AW38))) ->  | BA38: =IF($C38="","",$C38) ->  | BE38: =IF(ISBLANK(BD38),"",BD38-BC38) ->  | BF38: =IF(ISBLANK(BD38),"",MINUTE(BE38)) ->  | BG38: =IF(ISBLANK(BD38),"",SECOND(BE38)) ->  | BI38: =IF(K38="","",IF(ISTEXT(K38),K38,IF(K38>Basis!$N$8,"Uit",IF(ISBLANK(L38),K38,K38+L38)))) ->  | BJ38: =IF(OR(ISTEXT(J38),BI38=""),J38,IF(ISTEXT(BI38),BI38,J38+BI38)) ->  | BK38: =IF(N38="","",N38*60+O38) ->  | BL38: =IF(N38="","",IF(BK38<=Basis!$F$8,0,(BK38-Basis!$F$8)*0.4)) ->  | BM38: =IF(N38="","",IF(BK38>Basis!$G$8,0,(Basis!$G$8-BK38)*0.4)) ->  | BN38: =IF(M38="","",IF(ISTEXT(M38),M38,IF(ISTEXT(P38),P38,M38+P38))) ->  | BR38: =IF(BP38="","",BP38/3) ->  | BS38: =IF(BQ38="","",BQ38/3) -> 
J39: =IF(I39="","",IF(ISTEXT(I39),I39,IF(I39<=Basis!$M$8,"Uit",(100-(I39/Basis!$L$8*100))*Basis!$Y$6))) ->  | P39: =IF(N39="","",IF(N39*60+O39>Basis!$U$8,"Uit",BL39+BM39)) ->  | BI39: =IF(K39="","",IF(ISTEXT(K39),K39,IF(K39>Basis!$N$8,"Uit",IF(ISBLANK(L39),K39,K39+L39)))) ->  | BL39: =IF(N39="","",IF(BK39<=Basis!$F$8,0,(BK39-Basis!$F$8)*0.4)) ->  | BM39: =IF(N39="","",IF(BK39>Basis!$G$8,0,(Basis!$G$8-BK39)*0.4)) -> 
J40: =IF(I40="","",IF(ISTEXT(I40),I40,IF(I40<=Basis!$M$8,"Uit",(100-(I40/Basis!$L$8*100))*Basis!$Y$6))) ->  | M40: =IF(AX40="","",AX40) ->  | N40: =IF(ISBLANK(BD40),"",BF40) ->  | O40: =IF(ISBLANK(BD40),"",BG40) ->  | P40: =IF(N40="","",IF(N40*60+O40>Basis!$U$8,"Uit",BL40+BM40)) ->  | R40: =IF(ISTEXT(BJ40),BJ40,IF(OR(ISBLANK(M40),M40="",ISBLANK(Y40)),BJ40,IF(ISTEXT(BN40),BN40,BJ40+BN40))) ->  | S40: =IF(BP40="","",BR40) ->  | U40: =IF(R40="","",IF(ISTEXT(R40),R40,IF(BP40="","",R40-S40-T40))) ->  | V40: =IF(AY40="","",AY40) ->  | X40: =IF($C40="","",$C40) ->  | AX40: =IF(Y40="","",IF(ISTEXT(Y40),Y40,SUM(Y40:AW40))) ->  | BA40: =IF($C40="","",$C40) ->  | BE40: =IF(ISBLANK(BD40),"",BD40-BC40) ->  | BF40: =IF(ISBLANK(BD40),"",MINUTE(BE40)) ->  | BG40: =IF(ISBLANK(BD40),"",SECOND(BE40)) ->  | BI40: =IF(K40="","",IF(ISTEXT(K40),K40,IF(K40>Basis!$N$8,"Uit",IF(ISBLANK(L40),K40,K40+L40)))) ->  | BJ40: =IF(OR(ISTEXT(J40),BI40=""),J40,IF(ISTEXT(BI40),BI40,J40+BI40)) ->  | BK40: =IF(N40="","",N40*60+O40) ->  | BL40: =IF(N40="","",IF(BK40<=Basis!$F$8,0,(BK40-Basis!$F$8)*0.4)) ->  | BM40: =IF(N40="","",IF(BK40>Basis!$G$8,0,(Basis!$G$8-BK40)*0.4)) ->  | BN40: =IF(M40="","",IF(ISTEXT(M40),M40,IF(ISTEXT(P40),P40,M40+P40))) ->  | BR40: =IF(BP40="","",BP40/3) -> 
A41: Bij uitsluiting reden vermelden : | P41: =NOW() -> 2018-06-30T22:02:24.880 | X41: =A41 -> Bij uitsluiting reden vermelden : | AU41: =NOW() -> 2018-06-30T22:02:24.880
A42: VP=val paard, VR=val ruiter, 3W=3 weigeringen op zelfde hindernis, 4W=4 weigeringen totaal, FP=foutief parcours, Vr.v= vrijwillig verlaten | X42: =A42 -> VP=val paard, VR=val ruiter, 3W=3 weigeringen op zelfde hindernis, 4W=4 weigeringen totaal, FP=foutief parcours, Vr.v= vrijwillig verlaten

Sheet Ring 1 - Bpaarden
A1: =" Samengestelde wedstrijd "&Basis!D5 -> Samengestelde wedstrijd Eventing Leende 30 juni 2018 | G1: Klasse B paarden - Ring 1 | K1: Dressuurjury : | L1: Ine van de Looij | X1: Verzamelstaat hindernisfouten in de cross | AK1: =A1 -> Samengestelde wedstrijd Eventing Leende 30 juni 2018 | BA1: =G1&" " -> Klasse B paarden - Ring 1 | BC1: Indien aankomstUUR cross wordt meegedeeld : | BI1: Hulpkolommen | BP1: Stijlcijfers :
A2: rank | C2: rugnr | D2: combinatie nr | E2: naam ruiter | F2: naam paard | G2: vereniging / plaats | I2: dressuur | J2: dressuur | K2: hind.ft. | L2: tijd.ft. | M2: hind.ft. | N2: min | O2: sec | P2: tijd.ft. | R2: totaal | S2: (1) stijl | T2: (2) stijl | U2: eind- | V2: reden | Y2: hindernisnummer | BI2: Uitslag | BJ2: NA | BK2: tijd (sec) | BL2: tijd.ft. | BM2: reg.ft. | BN2: totaal | BP2: Totaal | BQ2: Totaal | BR2: Gemiddelde | BS2: Gemiddelde
A3: HC | I3: totaal | J3: strafpntn. | K3: springen | L3: springen | M3: cross | N3: cross | P3: =Basis!$H$8&":"&TEXT(Basis!$I$8,"00") -> 3:40 | S3: cijfer | T3: cijfer | U3: totaal | V3: uitsluiting | X3: nr | Y3: 1 | Z3: 2 | AA3: 3 | AB3: 4 | AC3: 5 | AD3: 6 | AE3: 7 | AF3: 8 | AG3: VD | AH3: 9 | AI3: VD | AJ3: 10 | AK3: 11 | AL3: 12 | AM3: 13ab | AN3: 14 | AO3: 15 | AP3: F | AX3: totaal | AY3: reden uitsluiting | AZ3: hind. | BA3: nr | BC3: Vertrekuur | BD3: Aankomst | BE3: Tijd | BF3: Minuten | BG3: Seconden | BI3: Springen | BJ3: Springen | BK3: cross | BL3: opt.tijd = | BM3: =Basis!$H$8&":"&TEXT(Basis!$I$8,"00") -> 3:40 | BN3: cross | BP3: Jury 1 | BQ3: Jury 2 | BR3: Jury 1 | BS3: Jury 2
R4: =IF(ISBLANK(I4),"",IF(AND(ISBLANK(K4),ISBLANK(Y4)),J4,IF(ISTEXT(K4),K4,IF(OR(ISBLANK(M4),M4=""),J4+K4+L4,IF(ISTEXT(M4),M4,IF(ISBLANK(Y4),J4+K4+L4,J4+K4+L4+M4+P4+Q4)))))) -> 
A5: 1 | C5: 60 | D5: 778805CH | E5: Melissa Harskamp | F5: Clooney | I5: 199 | J5: =IF(I5="","",IF(ISTEXT(I5),I5,IF(I5<=Basis!$M$8,"Uit",(100-(I5/Basis!$L$8*100))*Basis!$Y$6))) -> 33.66666667 | K5: 0 | L5: 0 | M5: =IF(AX5="","",AX5) -> 0 | N5: =IF(ISBLANK(BD5),"",BF5) -> 4 | O5: =IF(ISBLANK(BD5),"",BG5) -> 3 | P5: =IF(N5="","",IF(N5*60+O5>Basis!$U$8,"Uit",BL5+BM5)) -> 9.2 | R5: =IF(ISTEXT(BJ5),BJ5,IF(OR(ISBLANK(M5),M5="",ISBLANK(Y5)),BJ5,IF(ISTEXT(BN5),BN5,BJ5+BN5))) -> 42.86666667 | S5: =IF(BP5="","",BR5) -> 7.5 | T5: =IF(BQ5="","",BS5) -> 7.166666667 | U5: =IF(R5="","",IF(ISTEXT(R5),R5,IF(BP5="","",R5-S5-T5))) -> 28.2 | V5: =IF(AY5="","",AY5) ->  | X5: =IF($C5="","",$C5) -> 60 | Y5: 0 | Z5: - | AA5: - | AB5: - | AC5: - | AD5: - | AE5: - | AF5: - | AG5: - | AH5: - | AI5: - | AJ5: - | AK5: - | AL5: - | AM5: - | AN5: - | AO5: - | AP5: - | AX5: =IF(Y5="","",IF(ISTEXT(Y5),Y5,SUM(Y5:AW5))) -> 0 | BA5: =IF($C5="","",$C5) -> 60 | BC5: 11:08:00 | BD5: 11:12:03 | BE5: =IF(ISBLANK(BD5),"",BD5-BC5) -> 00:04:03 | BF5: =IF(ISBLANK(BD5),"",MINUTE(BE5)) -> 4 | BG5: =IF(ISBLANK(BD5),"",SECOND(BE5)) -> 3 | BI5: =IF(K5="","",IF(ISTEXT(K5),K5,IF(K5>Basis!$N$8,"Uit",IF(ISBLANK(L5),K5,K5+L5)))) -> 0 | BJ5: =IF(OR(ISTEXT(J5),BI5=""),J5,IF(ISTEXT(BI5),BI5,J5+BI5)) -> 33.66666667 | BK5: =IF(N5="","",N5*60+O5) -> 243 | BL5: =IF(N5="","",IF(BK5<=Basis!$F$8,0,(BK5-Basis!$F$8)*0.4)) -> 9.2 | BM5: =IF(N5="","",IF(BK5>Basis!$G$8,0,(Basis!$G$8-BK5)*0.4)) -> 0 | BN5: =IF(M5="","",IF(ISTEXT(M5),M5,IF(ISTEXT(P5),P5,M5+P5))) -> 9.2 | BP5: 22.5 | BQ5: 21.5 | BR5: =IF(BP5="","",BP5/3) -> 7.5 | BS5: =IF(BQ5="","",BQ5/3) -> 7.166666667
A6: 2 | C6: 48 | D6: 817671MF | E6: Sabine Franken | F6: Mona Fay | G6: RV. Ysselsteyn | I6: 200 | J6: =IF(I6="","",IF(ISTEXT(I6),I6,IF(I6<=Basis!$M$8,"Uit",(100-(I6/Basis!$L$8*100))*Basis!$Y$6))) -> 33.33333333 | K6: 0 | L6: 0 | M6: 0 | N6: 4 | O6: 3 | P6: =IF(N6="","",IF(N6*60+O6>Basis!$U$8,"Uit",BL6+BM6)) -> 9.2 | R6: 42.53333333 | S6: 6 | T6: 6.833333333 | U6: 29.7 | X6: 48 | Y6: 0 | Z6: - | AA6: - | AB6: - | AC6: - | AD6: - | AE6: - | AF6: - | AG6: - | AH6: - | AI6: - | AJ6: - | AK6: - | AL6: - | AM6: - | AN6: - | AO6: - | AP6: - | AX6: 0 | BA6: 48 | BC6: 10:44:00 | BD6: 10:48:03 | BE6: 00:04:03 | BF6: 4 | BG6: 3 | BI6: =IF(K6="","",IF(ISTEXT(K6),K6,IF(K6>Basis!$N$8,"Uit",IF(ISBLANK(L6),K6,K6+L6)))) -> 0 | BJ6: 33.33333333 | BK6: 243 | BL6: =IF(N6="","",IF(BK6<=Basis!$F$8,0,(BK6-Basis!$F$8)*0.4)) -> 9.2 | BM6: =IF(N6="","",IF(BK6>Basis!$G$8,0,(Basis!$G$8-BK6)*0.4)) -> 0 | BN6: 9.2 | BP6: 18 | BQ6: 20.5 | BR6: 6 | BS6: 6.833333333
A7: 3 | C7: 38 | D7: 782500DD | E7: Britt Dieteren | F7: Dynamic H | G7: RV. Gele Ruiters | I7: 195 | J7: =IF(I7="","",IF(ISTEXT(I7),I7,IF(I7<=Basis!$M$8,"Uit",(100-(I7/Basis!$L$8*100))*Basis!$Y$6))) -> 35 | K7: 0 | L7: 0 | M7: 0 | N7: 4 | O7: 14 | P7: =IF(N7="","",IF(N7*60+O7>Basis!$U$8,"Uit",BL7+BM7)) -> 13.6 | R7: 48.6 | S7: 8 | T7: 6.833333333 | U7: 33.76666667 | X7: 38 | Y7: 0 | Z7: - | AA7: - | AB7: - | AC7: - | AD7: - | AE7: - | AF7: - | AG7: - | AH7: - | AI7: - | AJ7: - | AK7: - | AL7: - | AM7: - | AN7: - | AO7: - | AP7: - | AX7: 0 | BA7: 38 | BC7: 10:24:00 | BD7: 10:28:14 | BE7: 00:04:14 | BF7: 4 | BG7: 14 | BI7: =IF(K7="","",IF(ISTEXT(K7),K7,IF(K7>Basis!$N$8,"Uit",IF(ISBLANK(L7),K7,K7+L7)))) -> 0 | BJ7: 35 | BK7: 254 | BL7: =IF(N7="","",IF(BK7<=Basis!$F$8,0,(BK7-Basis!$F$8)*0.4)) -> 13.6 | BM7: =IF(N7="","",IF(BK7>Basis!$G$8,0,(Basis!$G$8-BK7)*0.4)) -> 0 | BN7: 13.6 | BP7: 24 | BQ7: 20.5 | BR7: 8 | BS7: 6.833333333
A8: 4 | C8: 40 | D8: 790552KH | E8: Loes Hamelers | F8: Kaweise Elliot | G8: RV. Molenberg (R.j.v.) | I8: 200.5 | J8: =IF(I8="","",IF(ISTEXT(I8),I8,IF(I8<=Basis!$M$8,"Uit",(100-(I8/Basis!$L$8*100))*Basis!$Y$6))) -> 33.16666667 | K8: 0 | L8: 0 | M8: 0 | N8: 4 | O8: 24 | P8: =IF(N8="","",IF(N8*60+O8>Basis!$U$8,"Uit",BL8+BM8)) -> 17.6 | R8: 50.76666667 | S8: 8.333333333 | T8: 7.666666667 | U8: 34.76666667 | X8: 40 | Y8: 0 | Z8: - | AA8: - | AB8: - | AC8: - | AD8: - | AE8: - | AF8: - | AG8: - | AH8: - | AI8: - | AJ8: - | AK8: - | AL8: - | AM8: - | AN8: - | AO8: - | AP8: - | AX8: 0 | BA8: 40 | BC8: 10:28:00 | BD8: 10:32:24 | BE8: 00:04:24 | BF8: 4 | BG8: 24 | BI8: =IF(K8="","",IF(ISTEXT(K8),K8,IF(K8>Basis!$N$8,"Uit",IF(ISBLANK(L8),K8,K8+L8)))) -> 0 | BJ8: 33.16666667 | BK8: 264 | BL8: =IF(N8="","",IF(BK8<=Basis!$F$8,0,(BK8-Basis!$F$8)*0.4)) -> 17.6 | BM8: =IF(N8="","",IF(BK8>Basis!$G$8,0,(Basis!$G$8-BK8)*0.4)) -> 0 | BN8: 17.6 | BP8: 25 | BQ8: 23 | BR8: 8.333333333 | BS8: 7.666666667
A9: 5 | C9: 42 | D9: 802111CG | E9: Kimberly de Groot | F9: Champ | G9: RV. Odulphus (pv. Best) | I9: 187.5 | J9: =IF(I9="","",IF(ISTEXT(I9),I9,IF(I9<=Basis!$M$8,"Uit",(100-(I9/Basis!$L$8*100))*Basis!$Y$6))) -> 37.5 | K9: 0 | L9: 0 | M9: 0 | N9: 4 | O9: 27 | P9: =IF(N9="","",IF(N9*60+O9>Basis!$U$8,"Uit",BL9+BM9)) -> 18.8 | R9: 56.3 | S9: 8.333333333 | T9: 6.666666667 | U9: 41.3 | X9: 42 | Y9: 0 | Z9: - | AA9: - | AB9: - | AC9: - | AD9: - | AE9: - | AF9: - | AG9: - | AH9: - | AI9: - | AJ9: - | AK9: - | AL9: - | AM9: - | AN9: - | AO9: - | AP9: - | AX9: 0 | BA9: 42 | BC9: 10:32:00 | BD9: 10:36:27 | BE9: 00:04:27 | BF9: 4 | BG9: 27 | BI9: =IF(K9="","",IF(ISTEXT(K9),K9,IF(K9>Basis!$N$8,"Uit",IF(ISBLANK(L9),K9,K9+L9)))) -> 0 | BJ9: 37.5 | BK9: 267 | BL9: =IF(N9="","",IF(BK9<=Basis!$F$8,0,(BK9-Basis!$F$8)*0.4)) -> 18.8 | BM9: =IF(N9="","",IF(BK9>Basis!$G$8,0,(Basis!$G$8-BK9)*0.4)) -> 0 | BN9: 18.8 | BP9: 25 | BQ9: 20 | BR9: 8.333333333 | BS9: 6.666666667
A10: 6 | C10: 44 | D10: Belgie | E10: Karolien de Keyser | F10: Weissenas Waikiki | I10: 182 | J10: =IF(I10="","",IF(ISTEXT(I10),I10,IF(I10<=Basis!$M$8,"Uit",(100-(I10/Basis!$L$8*100))*Basis!$Y$6))) -> 39.33333333 | K10: 0 | L10: 0 | M10: 0 | N10: 4 | O10: 27 | P10: =IF(N10="","",IF(N10*60+O10>Basis!$U$8,"Uit",BL10+BM10)) -> 18.8 | R10: 58.13333333 | S10: 7 | T10: 6.833333333 | U10: 44.3 | X10: 44 | Y10: 0 | Z10: - | AA10: - | AB10: - | AC10: - | AD10: - | AE10: - | AF10: - | AG10: - | AH10: - | AI10: - | AJ10: - | AK10: - | AL10: - | AM10: - | AN10: - | AO10: - | AP10: - | AX10: 0 | BA10: 44 | BC10: 10:36:00 | BD10: 10:40:27 | BE10: 00:04:27 | BF10: 4 | BG10: 27 | BI10: =IF(K10="","",IF(ISTEXT(K10),K10,IF(K10>Basis!$N$8,"Uit",IF(ISBLANK(L10),K10,K10+L10)))) -> 0 | BJ10: 39.33333333 | BK10: 267 | BL10: =IF(N10="","",IF(BK10<=Basis!$F$8,0,(BK10-Basis!$F$8)*0.4)) -> 18.8 | BM10: =IF(N10="","",IF(BK10>Basis!$G$8,0,(Basis!$G$8-BK10)*0.4)) -> 0 | BN10: 18.8 | BP10: 21 | BQ10: 20.5 | BR10: 7 | BS10: 6.833333333
A11: 7 | C11: 46 | D11: 850470FS | E11: Kerensa Smis | F11: Finesse Kera | G11: RV. Vereniging Riders Club Asten | I11: 175.5 | J11: =IF(I11="","",IF(ISTEXT(I11),I11,IF(I11<=Basis!$M$8,"Uit",(100-(I11/Basis!$L$8*100))*Basis!$Y$6))) -> 41.5 | K11: 4 | L11: 0 | M11: 0 | N11: 4 | O11: 18 | P11: =IF(N11="","",IF(N11*60+O11>Basis!$U$8,"Uit",BL11+BM11)) -> 15.2 | R11: 60.7 | S11: 7.666666667 | T11: 6.333333333 | U11: 46.7 | X11: 46 | Y11: 0 | Z11: - | AA11: - | AB11: - | AC11: - | AD11: - | AE11: - | AF11: - | AG11: - | AH11: - | AI11: - | AJ11: - | AK11: - | AL11: - | AM11: - | AN11: - | AO11: - | AP11: - | AX11: 0 | BA11: 46 | BC11: 10:40:00 | BD11: 10:44:18 | BE11: 00:04:18 | BF11: 4 | BG11: 18 | BI11: =IF(K11="","",IF(ISTEXT(K11),K11,IF(K11>Basis!$N$8,"Uit",IF(ISBLANK(L11),K11,K11+L11)))) -> 4 | BJ11: 45.5 | BK11: 258 | BL11: =IF(N11="","",IF(BK11<=Basis!$F$8,0,(BK11-Basis!$F$8)*0.4)) -> 15.2 | BM11: =IF(N11="","",IF(BK11>Basis!$G$8,0,(Basis!$G$8-BK11)*0.4)) -> 0 | BN11: 15.2 | BP11: 23 | BQ11: 19 | BR11: 7.666666667 | BS11: 6.333333333
A12: 8 | C12: 34 | D12: 814876MF | E12: Yorick Faasse | F12: Melchior junior | G12: RV. Sé-Ros | I12: 186 | J12: =IF(I12="","",IF(ISTEXT(I12),I12,IF(I12<=Basis!$M$8,"Uit",(100-(I12/Basis!$L$8*100))*Basis!$Y$6))) -> 38 | K12: 0 | L12: 0 | M12: 0 | N12: 4 | O12: 34 | P12: =IF(N12="","",IF(N12*60+O12>Basis!$U$8,"Uit",BL12+BM12)) -> 21.6 | R12: 59.6 | S12: 5.833333333 | T12: 6.666666667 | U12: 47.1 | X12: 34 | Y12: 0 | Z12: - | AA12: - | AB12: - | AC12: - | AD12: - | AE12: - | AF12: - | AG12: - | AH12: - | AI12: - | AJ12: - | AK12: - | AL12: - | AM12: - | AN12: - | AO12: - | AP12: - | AX12: 0 | BA12: 34 | BC12: 10:16:00 | BD12: 10:20:34 | BE12: 00:04:34 | BF12: 4 | BG12: 34 | BI12: =IF(K12="","",IF(ISTEXT(K12),K12,IF(K12>Basis!$N$8,"Uit",IF(ISBLANK(L12),K12,K12+L12)))) -> 0 | BJ12: 38 | BK12: 274 | BL12: =IF(N12="","",IF(BK12<=Basis!$F$8,0,(BK12-Basis!$F$8)*0.4)) -> 21.6 | BM12: =IF(N12="","",IF(BK12>Basis!$G$8,0,(Basis!$G$8-BK12)*0.4)) -> 0 | BN12: 21.6 | BP12: 17.5 | BQ12: 20 | BR12: 5.833333333 | BS12: 6.666666667
A13: 9 | C13: 54 | D13: Belgie | E13: Edith Tuytelaars | F13: Nalan van 't Greesa | I13: 174.5 | J13: =IF(I13="","",IF(ISTEXT(I13),I13,IF(I13<=Basis!$M$8,"Uit",(100-(I13/Basis!$L$8*100))*Basis!$Y$6))) -> 41.83333333 | K13: 4 | L13: 0 | M13: 0 | N13: 4 | O13: 24 | P13: =IF(N13="","",IF(N13*60+O13>Basis!$U$8,"Uit",BL13+BM13)) -> 17.6 | R13: 63.43333333 | S13: 8.166666667 | T13: 7.5 | U13: 47.76666667 | X13: 54 | Y13: 0 | Z13: - | AA13: - | AB13: - | AC13: - | AD13: - | AE13: - | AF13: - | AG13: - | AH13: - | AI13: - | AJ13: - | AK13: - | AL13: - | AM13: - | AN13: - | AO13: - | AP13: - | AX13: 0 | BA13: 54 | BC13: 10:56:00 | BD13: 11:00:24 | BE13: 00:04:24 | BF13: 4 | BG13: 24 | BI13: =IF(K13="","",IF(ISTEXT(K13),K13,IF(K13>Basis!$N$8,"Uit",IF(ISBLANK(L13),K13,K13+L13)))) -> 4 | BJ13: 45.83333333 | BK13: 264 | BL13: =IF(N13="","",IF(BK13<=Basis!$F$8,0,(BK13-Basis!$F$8)*0.4)) -> 17.6 | BM13: =IF(N13="","",IF(BK13>Basis!$G$8,0,(Basis!$G$8-BK13)*0.4)) -> 0 | BN13: 17.6 | BP13: 24.5 | BQ13: 22.5 | BR13: 8.166666667 | BS13: 7.5
A14: 10 | C14: 62 | D14: 812870DG | E14: Jessica Teygeler-Goudriaan | F14: Dubbeltje JG | G14: RV. Angerlo Keppel Langerak | I14: 173 | J14: =IF(I14="","",IF(ISTEXT(I14),I14,IF(I14<=Basis!$M$8,"Uit",(100-(I14/Basis!$L$8*100))*Basis!$Y$6))) -> 42.33333333 | K14: 4 | L14: 0 | M14: 0 | N14: 4 | O14: 30 | P14: =IF(N14="","",IF(N14*60+O14>Basis!$U$8,"Uit",BL14+BM14)) -> 20 | R14: 66.33333333 | S14: 6.333333333 | T14: 6.666666667 | U14: 53.33333333 | X14: 62 | Y14: 0 | Z14: - | AA14: - | AB14: - | AC14: - | AD14: - | AE14: - | AF14: - | AG14: - | AH14: - | AI14: - | AJ14: - | AK14: - | AL14: - | AM14: - | AN14: - | AO14: - | AP14: - | AX14: 0 | BA14: 62 | BC14: 11:12:00 | BD14: 11:16:30 | BE14: 00:04:30 | BF14: 4 | BG14: 30 | BI14: =IF(K14="","",IF(ISTEXT(K14),K14,IF(K14>Basis!$N$8,"Uit",IF(ISBLANK(L14),K14,K14+L14)))) -> 4 | BJ14: 46.33333333 | BK14: 270 | BL14: =IF(N14="","",IF(BK14<=Basis!$F$8,0,(BK14-Basis!$F$8)*0.4)) -> 20 | BM14: =IF(N14="","",IF(BK14>Basis!$G$8,0,(Basis!$G$8-BK14)*0.4)) -> 0 | BN14: 20 | BP14: 19 | BQ14: 20 | BR14: 6.333333333 | BS14: 6.666666667
A15: 11 | C15: 32 | D15: 850723LD | E15: Frederique Donders | F15: Last Minute | G15: RV. Arion | I15: 173 | J15: =IF(I15="","",IF(ISTEXT(I15),I15,IF(I15<=Basis!$M$8,"Uit",(100-(I15/Basis!$L$8*100))*Basis!$Y$6))) -> 42.33333333 | K15: 8 | L15: 16 | M15: 0 | N15: 3 | O15: 55 | P15: =IF(N15="","",IF(N15*60+O15>Basis!$U$8,"Uit",BL15+BM15)) -> 6 | R15: 72.33333333 | S15: 6.833333333 | T15: 6.833333333 | U15: 58.66666667 | X15: 32 | Y15: 0 | Z15: - | AA15: - | AB15: - | AC15: - | AD15: - | AE15: - | AF15: - | AG15: - | AH15: - | AI15: - | AJ15: - | AK15: - | AL15: - | AM15: - | AN15: - | AO15: - | AP15: - | AX15: 0 | BA15: 32 | BC15: 10:11:00 | BD15: 10:14:55 | BE15: 00:03:55 | BF15: 3 | BG15: 55 | BI15: =IF(K15="","",IF(ISTEXT(K15),K15,IF(K15>Basis!$N$8,"Uit",IF(ISBLANK(L15),K15,K15+L15)))) -> 24 | BJ15: 66.33333333 | BK15: 235 | BL15: =IF(N15="","",IF(BK15<=Basis!$F$8,0,(BK15-Basis!$F$8)*0.4)) -> 6 | BM15: =IF(N15="","",IF(BK15>Basis!$G$8,0,(Basis!$G$8-BK15)*0.4)) -> 0 | BN15: 6 | BP15: 20.5 | BQ15: 20.5 | BR15: 6.833333333 | BS15: 6.833333333
A16: 12 | C16: 30 | D16: 580801BL | E16: Irene van Lankvelt | F16: Bono | G16: RV. Sint Joris | I16: 210.5 | J16: =IF(I16="","",IF(ISTEXT(I16),I16,IF(I16<=Basis!$M$8,"Uit",(100-(I16/Basis!$L$8*100))*Basis!$Y$6))) -> 29.83333333 | K16: 4 | L16: 0 | M16: 20 | N16: 4 | O16: 50 | P16: =IF(N16="","",IF(N16*60+O16>Basis!$U$8,"Uit",BL16+BM16)) -> 28 | R16: 81.83333333 | S16: 7 | T16: 7.166666667 | U16: 67.66666667 | X16: 30 | Y16: 20 | Z16: - | AA16: - | AB16: - | AC16: - | AD16: - | AE16: - | AF16: - | AG16: - | AH16: - | AI16: - | AJ16: - | AK16: - | AL16: - | AM16: - | AN16: - | AO16: - | AP16: - | AX16: 20 | BA16: 30 | BC16: 10:08:00 | BD16: 10:12:50 | BE16: 00:04:50 | BF16: 4 | BG16: 50 | BI16: =IF(K16="","",IF(ISTEXT(K16),K16,IF(K16>Basis!$N$8,"Uit",IF(ISBLANK(L16),K16,K16+L16)))) -> 4 | BJ16: 33.83333333 | BK16: 290 | BL16: =IF(N16="","",IF(BK16<=Basis!$F$8,0,(BK16-Basis!$F$8)*0.4)) -> 28 | BM16: =IF(N16="","",IF(BK16>Basis!$G$8,0,(Basis!$G$8-BK16)*0.4)) -> 0 | BN16: 48 | BP16: 21 | BQ16: 21.5 | BR16: 7 | BS16: 7.166666667
A17: 13 | C17: 58 | D17: Belgie | E17: Pascal Goffart | F17: Neo Z | I17: 179 | J17: =IF(I17="","",IF(ISTEXT(I17),I17,IF(I17<=Basis!$M$8,"Uit",(100-(I17/Basis!$L$8*100))*Basis!$Y$6))) -> 40.33333333 | K17: 4 | L17: 0 | M17: 20 | N17: 4 | O17: 52 | P17: =IF(N17="","",IF(N17*60+O17>Basis!$U$8,"Uit",BL17+BM17)) -> 28.8 | R17: 93.13333333 | S17: 7.333333333 | T17: 6.166666667 | U17: 79.63333333 | X17: 58 | Y17: 0 | Z17: - | AA17: - | AB17: - | AC17: - | AD17: - | AE17: - | AF17: - | AG17: - | AH17: - | AI17: - | AJ17: - | AK17: - | AL17: - | AM17: 20 | AN17: - | AO17: - | AP17: - | AX17: 20 | BA17: 58 | BC17: 11:04:00 | BD17: 11:08:52 | BE17: 00:04:52 | BF17: 4 | BG17: 52 | BI17: =IF(K17="","",IF(ISTEXT(K17),K17,IF(K17>Basis!$N$8,"Uit",IF(ISBLANK(L17),K17,K17+L17)))) -> 4 | BJ17: 44.33333333 | BK17: 292 | BL17: =IF(N17="","",IF(BK17<=Basis!$F$8,0,(BK17-Basis!$F$8)*0.4)) -> 28.8 | BM17: =IF(N17="","",IF(BK17>Basis!$G$8,0,(Basis!$G$8-BK17)*0.4)) -> 0 | BN17: 48.8 | BP17: 22 | BQ17: 18.5 | BR17: 7.333333333 | BS17: 6.166666667
A18: 14 | C18: 50 | D18: 736336BO | E18: Etiënne Olberts | F18: Bonera | G18: RV. Ravensbosch | I18: 198 | J18: =IF(I18="","",IF(ISTEXT(I18),I18,IF(I18<=Basis!$M$8,"Uit",(100-(I18/Basis!$L$8*100))*Basis!$Y$6))) -> 34 | K18: 0 | L18: 0 | M18: Uit | N18: 4 | O18: 18 | P18: =IF(N18="","",IF(N18*60+O18>Basis!$U$8,"Uit",BL18+BM18)) -> 15.2 | R18: Uit | S18: 8.166666667 | T18: 6.333333333 | U18: Uit | V18: FP h.9 | X18: 50 | Y18: 0 | Z18: - | AA18: - | AB18: - | AC18: - | AD18: - | AE18: - | AF18: - | AG18: - | AH18: FP | AI18: - | AJ18: - | AK18: - | AL18: - | AM18: FP | AN18: - | AO18: - | AP18: - | AX18: Uit | AY18: FP h.9 | BA18: 50 | BC18: 10:48:00 | BD18: 10:52:18 | BE18: 00:04:18 | BF18: 4 | BG18: 18 | BI18: =IF(K18="","",IF(ISTEXT(K18),K18,IF(K18>Basis!$N$8,"Uit",IF(ISBLANK(L18),K18,K18+L18)))) -> 0 | BJ18: 34 | BK18: 258 | BL18: =IF(N18="","",IF(BK18<=Basis!$F$8,0,(BK18-Basis!$F$8)*0.4)) -> 15.2 | BM18: =IF(N18="","",IF(BK18>Basis!$G$8,0,(Basis!$G$8-BK18)*0.4)) -> 0 | BN18: Uit | BP18: 24.5 | BQ18: 19 | BR18: 8.166666667 | BS18: 6.333333333
A19: 15 | C19: 56 | D19: 810132EH | E19: Ronald Hillenaar | F19: Edelweis | G19: RV. Berg En Dal Ruiters | I19: 188 | J19: =IF(I19="","",IF(ISTEXT(I19),I19,IF(I19<=Basis!$M$8,"Uit",(100-(I19/Basis!$L$8*100))*Basis!$Y$6))) -> 37.33333333 | K19: 0 | L19: 0 | M19: Uit | N19: 4 | O19: 30 | P19: =IF(N19="","",IF(N19*60+O19>Basis!$U$8,"Uit",BL19+BM19)) -> 20 | R19: Uit | S19: 6.333333333 | T19: 6.5 | U19: Uit | V19: FP h.4 | X19: 56 | Y19: 20 | Z19: - | AA19: - | AB19: FP | AC19: - | AD19: - | AE19: - | AF19: - | AG19: - | AH19: - | AI19: - | AJ19: - | AK19: - | AL19: - | AM19: - | AN19: - | AO19: - | AP19: - | AX19: Uit | AY19: FP h.4 | BA19: 56 | BC19: 11:00:00 | BD19: 11:04:30 | BE19: 00:04:30 | BF19: 4 | BG19: 30 | BI19: =IF(K19="","",IF(ISTEXT(K19),K19,IF(K19>Basis!$N$8,"Uit",IF(ISBLANK(L19),K19,K19+L19)))) -> 0 | BJ19: 37.33333333 | BK19: 270 | BL19: =IF(N19="","",IF(BK19<=Basis!$F$8,0,(BK19-Basis!$F$8)*0.4)) -> 20 | BM19: =IF(N19="","",IF(BK19>Basis!$G$8,0,(Basis!$G$8-BK19)*0.4)) -> 0 | BN19: Uit | BP19: 19 | BQ19: 19.5 | BR19: 6.333333333 | BS19: 6.5
J20: =IF(I20="","",IF(ISTEXT(I20),I20,IF(I20<=Basis!$M$8,"Uit",(100-(I20/Basis!$L$8*100))*Basis!$Y$6))) ->  | M20: =IF(AX20="","",AX20) ->  | N20: =IF(ISBLANK(BD20),"",BF20) ->  | O20: =IF(ISBLANK(BD20),"",BG20) ->  | P20: =IF(N20="","",IF(N20*60+O20>Basis!$U$8,"Uit",BL20+BM20)) ->  | R20: =IF(ISTEXT(BJ20),BJ20,IF(OR(ISBLANK(M20),M20="",ISBLANK(Y20)),BJ20,IF(ISTEXT(BN20),BN20,BJ20+BN20))) ->  | S20: =IF(BP20="","",BR20) ->  | T20: =IF(BQ20="","",BS20) ->  | U20: =IF(R20="","",IF(ISTEXT(R20),R20,IF(BP20="","",R20-S20-T20))) ->  | V20: =IF(AY20="","",AY20) ->  | X20: =IF($C20="","",$C20) ->  | AX20: =IF(Y20="","",IF(ISTEXT(Y20),Y20,SUM(Y20:AW20))) ->  | BA20: =IF($C20="","",$C20) ->  | BE20: =IF(ISBLANK(BD20),"",BD20-BC20) ->  | BF20: =IF(ISBLANK(BD20),"",MINUTE(BE20)) ->  | BG20: =IF(ISBLANK(BD20),"",SECOND(BE20)) ->  | BI20: =IF(K20="","",IF(ISTEXT(K20),K20,IF(K20>Basis!$N$8,"Uit",IF(ISBLANK(L20),K20,K20+L20)))) ->  | BJ20: =IF(OR(ISTEXT(J20),BI20=""),J20,IF(ISTEXT(BI20),BI20,J20+BI20)) ->  | BK20: =IF(N20="","",N20*60+O20) ->  | BL20: =IF(N20="","",IF(BK20<=Basis!$F$8,0,(BK20-Basis!$F$8)*0.4)) ->  | BM20: =IF(N20="","",IF(BK20>Basis!$G$8,0,(Basis!$G$8-BK20)*0.4)) ->  | BN20: =IF(M20="","",IF(ISTEXT(M20),M20,IF(ISTEXT(P20),P20,M20+P20))) ->  | BR20: =IF(BP20="","",BP20/3) ->  | BS20: =IF(BQ20="","",BQ20/3) -> 
J21: =IF(I21="","",IF(ISTEXT(I21),I21,IF(I21<=Basis!$M$8,"Uit",(100-(I21/Basis!$L$8*100))*Basis!$Y$6))) ->  | P21: =IF(N21="","",IF(N21*60+O21>Basis!$U$8,"Uit",BL21+BM21)) ->  | BI21: =IF(K21="","",IF(ISTEXT(K21),K21,IF(K21>Basis!$N$8,"Uit",IF(ISBLANK(L21),K21,K21+L21)))) ->  | BL21: =IF(N21="","",IF(BK21<=Basis!$F$8,0,(BK21-Basis!$F$8)*0.4)) ->  | BM21: =IF(N21="","",IF(BK21>Basis!$G$8,0,(Basis!$G$8-BK21)*0.4)) -> 
J22: =IF(I22="","",IF(ISTEXT(I22),I22,IF(I22<=Basis!$M$8,"Uit",(100-(I22/Basis!$L$8*100))*Basis!$Y$6))) ->  | M22: =IF(AX22="","",AX22) ->  | N22: =IF(ISBLANK(BD22),"",BF22) ->  | O22: =IF(ISBLANK(BD22),"",BG22) ->  | P22: =IF(N22="","",IF(N22*60+O22>Basis!$U$8,"Uit",BL22+BM22)) ->  | R22: =IF(ISTEXT(BJ22),BJ22,IF(OR(ISBLANK(M22),M22="",ISBLANK(Y22)),BJ22,IF(ISTEXT(BN22),BN22,BJ22+BN22))) ->  | S22: =IF(BP22="","",BR22) ->  | T22: =IF(BQ22="","",BS22) ->  | U22: =IF(R22="","",IF(ISTEXT(R22),R22,IF(BP22="","",R22-S22-T22))) ->  | V22: =IF(AY22="","",AY22) ->  | X22: =IF($C22="","",$C22) ->  | AX22: =IF(Y22="","",IF(ISTEXT(Y22),Y22,SUM(Y22:AW22))) ->  | BA22: =IF($C22="","",$C22) ->  | BE22: =IF(ISBLANK(BD22),"",BD22-BC22) ->  | BF22: =IF(ISBLANK(BD22),"",MINUTE(BE22)) ->  | BG22: =IF(ISBLANK(BD22),"",SECOND(BE22)) ->  | BI22: =IF(K22="","",IF(ISTEXT(K22),K22,IF(K22>Basis!$N$8,"Uit",IF(ISBLANK(L22),K22,K22+L22)))) ->  | BJ22: =IF(OR(ISTEXT(J22),BI22=""),J22,IF(ISTEXT(BI22),BI22,J22+BI22)) ->  | BK22: =IF(N22="","",N22*60+O22) ->  | BL22: =IF(N22="","",IF(BK22<=Basis!$F$8,0,(BK22-Basis!$F$8)*0.4)) ->  | BM22: =IF(N22="","",IF(BK22>Basis!$G$8,0,(Basis!$G$8-BK22)*0.4)) ->  | BN22: =IF(M22="","",IF(ISTEXT(M22),M22,IF(ISTEXT(P22),P22,M22+P22))) ->  | BR22: =IF(BP22="","",BP22/3) ->  | BS22: =IF(BQ22="","",BQ22/3) -> 
A23: Bij uitsluiting reden vermelden : | P23: =NOW() -> 2018-06-30T22:02:24.880 | X23: =A23 -> Bij uitsluiting reden vermelden : | AU23: =NOW() -> 2018-06-30T22:02:24.880
A24: VP=val paard, VR=val ruiter, 3W=3 weigeringen op zelfde hindernis, 4W=4 weigeringen totaal, FP=foutief parcours, Vr.v= vrijwillig verlaten | X24: =A24 -> VP=val paard, VR=val ruiter, 3W=3 weigeringen op zelfde hindernis, 4W=4 weigeringen totaal, FP=foutief parcours, Vr.v= vrijwillig verlaten

Sheet Ring 2 - Bpaarden
A1: =" Samengestelde wedstrijd "&Basis!D5 -> Samengestelde wedstrijd Eventing Leende 30 juni 2018 | G1: Klasse B paarden - Ring 2 | K1: Dressuurjury : | L1: Martine van Winden | X1: Verzamelstaat hindernisfouten in de cross | AK1: =A1 -> Samengestelde wedstrijd Eventing Leende 30 juni 2018 | BA1: =G1&" " -> Klasse B paarden - Ring 2 | BC1: Indien aankomstUUR cross wordt meegedeeld : | BI1: Hulpkolommen | BP1: Stijlcijfers :
A2: rank | C2: rugnr | D2: combinatie nr | E2: naam ruiter | F2: naam paard | G2: vereniging / plaats | I2: dressuur | J2: dressuur | K2: hind.ft. | L2: tijd.ft. | M2: hind.ft. | N2: min | O2: sec | P2: tijd.ft. | R2: totaal | S2: (1) stijl | T2: (2) stijl | U2: eind- | V2: reden | Y2: hindernisnummer | BI2: Uitslag | BJ2: NA | BK2: tijd (sec) | BL2: tijd.ft. | BM2: reg.ft. | BN2: totaal | BP2: Totaal | BQ2: Totaal | BR2: Gemiddelde | BS2: Gemiddelde
A3: HC | I3: totaal | J3: strafpntn. | K3: springen | L3: springen | M3: cross | N3: cross | P3: =Basis!$H$8&":"&TEXT(Basis!$I$8,"00") -> 3:40 | S3: cijfer | T3: cijfer | U3: totaal | V3: uitsluiting | X3: nr | Y3: 1 | Z3: 2 | AA3: 3 | AB3: 4 | AC3: 5 | AD3: 6 | AE3: 7 | AF3: 8 | AG3: VD | AH3: 9 | AI3: VD | AJ3: 10 | AK3: 11 | AL3: 12 | AM3: 13ab | AN3: 14 | AO3: 15 | AP3: F | AX3: totaal | AY3: reden uitsluiting | AZ3: hind. | BA3: nr | BC3: Vertrekuur | BD3: Aankomst | BE3: Tijd | BF3: Minuten | BG3: Seconden | BI3: Springen | BJ3: Springen | BK3: cross | BL3: opt.tijd = | BM3: =Basis!$H$8&":"&TEXT(Basis!$I$8,"00") -> 3:40 | BN3: cross | BP3: Jury 1 | BQ3: Jury 2 | BR3: Jury 1 | BS3: Jury 2
R4: =IF(ISBLANK(I4),"",IF(AND(ISBLANK(K4),ISBLANK(Y4)),J4,IF(ISTEXT(K4),K4,IF(OR(ISBLANK(M4),M4=""),J4+K4+L4,IF(ISTEXT(M4),M4,IF(ISBLANK(Y4),J4+K4+L4,J4+K4+L4+M4+P4+Q4)))))) -> 
A5: 1 | C5: 39 | D5: 840366FW | E5: Simone Willems | F5: Freire | G5: RV. Ysselsteyn | I5: 207.5 | J5: =IF(I5="","",IF(ISTEXT(I5),I5,IF(I5<=Basis!$M$8,"Uit",(100-(I5/Basis!$L$8*100))*Basis!$Y$6))) -> 30.83333333 | K5: 0 | L5: 0 | M5: =IF(AX5="","",AX5) -> 0 | N5: =IF(ISBLANK(BD5),"",BF5) -> 3 | O5: =IF(ISBLANK(BD5),"",BG5) -> 57 | P5: =IF(N5="","",IF(N5*60+O5>Basis!$U$8,"Uit",BL5+BM5)) -> 6.8 | R5: =IF(ISTEXT(BJ5),BJ5,IF(OR(ISBLANK(M5),M5="",ISBLANK(Y5)),BJ5,IF(ISTEXT(BN5),BN5,BJ5+BN5))) -> 37.63333333 | S5: =IF(BP5="","",BR5) -> 8 | T5: =IF(BQ5="","",BS5) -> 7.5 | U5: =IF(R5="","",IF(ISTEXT(R5),R5,IF(BP5="","",R5-S5-T5))) -> 22.13333333 | V5: =IF(AY5="","",AY5) ->  | X5: =IF($C5="","",$C5) -> 39 | Y5: 0 | Z5: - | AA5: - | AB5: - | AC5: - | AD5: - | AE5: - | AF5: - | AG5: - | AH5: - | AI5: - | AJ5: - | AK5: - | AL5: - | AM5: - | AN5: - | AO5: - | AP5: - | AX5: =IF(Y5="","",IF(ISTEXT(Y5),Y5,SUM(Y5:AW5))) -> 0 | BA5: =IF($C5="","",$C5) -> 39 | BC5: 10:26:00 | BD5: 10:29:57 | BE5: =IF(ISBLANK(BD5),"",BD5-BC5) -> 00:03:57 | BF5: =IF(ISBLANK(BD5),"",MINUTE(BE5)) -> 3 | BG5: =IF(ISBLANK(BD5),"",SECOND(BE5)) -> 57 | BI5: =IF(K5="","",IF(ISTEXT(K5),K5,IF(K5>Basis!$N$8,"Uit",IF(ISBLANK(L5),K5,K5+L5)))) -> 0 | BJ5: =IF(OR(ISTEXT(J5),BI5=""),J5,IF(ISTEXT(BI5),BI5,J5+BI5)) -> 30.83333333 | BK5: =IF(N5="","",N5*60+O5) -> 237 | BL5: =IF(N5="","",IF(BK5<=Basis!$F$8,0,(BK5-Basis!$F$8)*0.4)) -> 6.8 | BM5: =IF(N5="","",IF(BK5>Basis!$G$8,0,(Basis!$G$8-BK5)*0.4)) -> 0 | BN5: =IF(M5="","",IF(ISTEXT(M5),M5,IF(ISTEXT(P5),P5,M5+P5))) -> 6.8 | BP5: 24 | BQ5: 22.5 | BR5: =IF(BP5="","",BP5/3) -> 8 | BS5: =IF(BQ5="","",BQ5/3) -> 7.5
A6: 2 | C6: 33 | D6: 741154WP | E6: Liana Peters | F6: Whitney R | G6: RV. Bucephalus | I6: 200.5 | J6: =IF(I6="","",IF(ISTEXT(I6),I6,IF(I6<=Basis!$M$8,"Uit",(100-(I6/Basis!$L$8*100))*Basis!$Y$6))) -> 33.16666667 | K6: 0 | L6: 0 | M6: 0 | N6: 4 | O6: 0 | P6: =IF(N6="","",IF(N6*60+O6>Basis!$U$8,"Uit",BL6+BM6)) -> 8 | R6: 41.16666667 | S6: 8.5 | T6: 7 | U6: 25.66666667 | X6: 33 | Y6: 0 | Z6: - | AA6: - | AB6: - | AC6: - | AD6: - | AE6: - | AF6: - | AG6: - | AH6: - | AI6: - | AJ6: - | AK6: - | AL6: - | AM6: - | AN6: - | AO6: - | AP6: - | AX6: 0 | BA6: 33 | BC6: 10:14:00 | BD6: 10:18:00 | BE6: 00:04:00 | BF6: 4 | BG6: 0 | BI6: =IF(K6="","",IF(ISTEXT(K6),K6,IF(K6>Basis!$N$8,"Uit",IF(ISBLANK(L6),K6,K6+L6)))) -> 0 | BJ6: 33.16666667 | BK6: 240 | BL6: =IF(N6="","",IF(BK6<=Basis!$F$8,0,(BK6-Basis!$F$8)*0.4)) -> 8 | BM6: =IF(N6="","",IF(BK6>Basis!$G$8,0,(Basis!$G$8-BK6)*0.4)) -> 0 | BN6: 8 | BP6: 25.5 | BQ6: 21 | BR6: 8.5 | BS6: 7
A7: 3 | C7: 43 | D7: 853705CK | E7: Quirijn Kalkman | F7: Castefield | G7: RV. Door Eenheid Sterk | I7: 183 | J7: =IF(I7="","",IF(ISTEXT(I7),I7,IF(I7<=Basis!$M$8,"Uit",(100-(I7/Basis!$L$8*100))*Basis!$Y$6))) -> 39 | K7: 4 | L7: 0 | M7: 0 | N7: 4 | O7: 12 | P7: =IF(N7="","",IF(N7*60+O7>Basis!$U$8,"Uit",BL7+BM7)) -> 12.8 | R7: 55.8 | S7: 8 | T7: 6.833333333 | U7: 40.96666667 | X7: 43 | Y7: 0 | Z7: - | AA7: - | AB7: - | AC7: - | AD7: - | AE7: - | AF7: - | AG7: - | AH7: - | AI7: - | AJ7: - | AK7: - | AL7: - | AM7: - | AN7: - | AO7: - | AP7: - | AX7: 0 | BA7: 43 | BC7: 10:34:00 | BD7: 10:38:12 | BE7: 00:04:12 | BF7: 4 | BG7: 12 | BI7: =IF(K7="","",IF(ISTEXT(K7),K7,IF(K7>Basis!$N$8,"Uit",IF(ISBLANK(L7),K7,K7+L7)))) -> 4 | BJ7: 43 | BK7: 252 | BL7: =IF(N7="","",IF(BK7<=Basis!$F$8,0,(BK7-Basis!$F$8)*0.4)) -> 12.8 | BM7: =IF(N7="","",IF(BK7>Basis!$G$8,0,(Basis!$G$8-BK7)*0.4)) -> 0 | BN7: 12.8 | BP7: 24 | BQ7: 20.5 | BR7: 8 | BS7: 6.833333333
A8: 4 | C8: 47 | D8: 779101FN | E8: Astrid Nitsch | F8: Fabuleux | G8: RV. Ravensbosch | I8: 183.5 | J8: =IF(I8="","",IF(ISTEXT(I8),I8,IF(I8<=Basis!$M$8,"Uit",(100-(I8/Basis!$L$8*100))*Basis!$Y$6))) -> 38.83333333 | K8: 8 | L8: 3 | M8: 0 | N8: 4 | O8: 14 | P8: =IF(N8="","",IF(N8*60+O8>Basis!$U$8,"Uit",BL8+BM8)) -> 13.6 | R8: 63.43333333 | S8: 5.5 | T8: 6.666666667 | U8: 51.26666667 | X8: 47 | Y8: 0 | Z8: - | AA8: - | AB8: - | AC8: - | AD8: - | AE8: - | AF8: - | AG8: - | AH8: - | AI8: - | AJ8: - | AK8: - | AL8: - | AM8: - | AN8: - | AO8: - | AP8: - | AX8: 0 | BA8: 47 | BC8: 10:42:00 | BD8: 10:46:14 | BE8: 00:04:14 | BF8: 4 | BG8: 14 | BI8: =IF(K8="","",IF(ISTEXT(K8),K8,IF(K8>Basis!$N$8,"Uit",IF(ISBLANK(L8),K8,K8+L8)))) -> 11 | BJ8: 49.83333333 | BK8: 254 | BL8: =IF(N8="","",IF(BK8<=Basis!$F$8,0,(BK8-Basis!$F$8)*0.4)) -> 13.6 | BM8: =IF(N8="","",IF(BK8>Basis!$G$8,0,(Basis!$G$8-BK8)*0.4)) -> 0 | BN8: 13.6 | BP8: 16.5 | BQ8: 20 | BR8: 5.5 | BS8: 6.666666667
A9: 5 | C9: 61 | D9: 728035DB | E9: Stefanie Baltissen | F9: Diva | G9: RV. Ons Genot | I9: 178 | J9: =IF(I9="","",IF(ISTEXT(I9),I9,IF(I9<=Basis!$M$8,"Uit",(100-(I9/Basis!$L$8*100))*Basis!$Y$6))) -> 40.66666667 | K9: 4 | L9: 0 | M9: 0 | N9: 5 | O9: 0 | P9: =IF(N9="","",IF(N9*60+O9>Basis!$U$8,"Uit",BL9+BM9)) -> 32 | R9: 76.66666667 | S9: 7.666666667 | T9: 6.333333333 | U9: 62.66666667 | X9: 61 | Y9: 0 | Z9: - | AA9: - | AB9: - | AC9: - | AD9: - | AE9: - | AF9: - | AG9: - | AH9: - | AI9: - | AJ9: - | AK9: - | AL9: - | AM9: - | AN9: - | AO9: - | AP9: - | AX9: 0 | BA9: 61 | BC9: 11:10:00 | BD9: 11:15:00 | BE9: 00:05:00 | BF9: 5 | BG9: 0 | BI9: =IF(K9="","",IF(ISTEXT(K9),K9,IF(K9>Basis!$N$8,"Uit",IF(ISBLANK(L9),K9,K9+L9)))) -> 4 | BJ9: 44.66666667 | BK9: 300 | BL9: =IF(N9="","",IF(BK9<=Basis!$F$8,0,(BK9-Basis!$F$8)*0.4)) -> 32 | BM9: =IF(N9="","",IF(BK9>Basis!$G$8,0,(Basis!$G$8-BK9)*0.4)) -> 0 | BN9: 32 | BP9: 23 | BQ9: 19 | BR9: 7.666666667 | BS9: 6.333333333
A10: 6 | C10: 53 | D10: Belgie | E10: Jan Willem van Gils | F10: Isvan James VDL | I10: 187.5 | J10: =IF(I10="","",IF(ISTEXT(I10),I10,IF(I10<=Basis!$M$8,"Uit",(100-(I10/Basis!$L$8*100))*Basis!$Y$6))) -> 37.5 | K10: 0 | L10: 0 | M10: 60 | N10: 6 | O10: 18 | P10: =IF(N10="","",IF(N10*60+O10>Basis!$U$8,"Uit",BL10+BM10)) -> 63.2 | R10: 160.7 | S10: 6.666666667 | T10: 6 | U10: 148.0333333 | X10: 53 | Y10: 0 | Z10: - | AA10: - | AB10: - | AC10: - | AD10: - | AE10: - | AF10: 20 | AG10: - | AH10: - | AI10: - | AJ10: 20 | AK10: - | AL10: - | AM10: 20 | AN10: - | AO10: - | AP10: - | AX10: 60 | BA10: 53 | BC10: 10:54:00 | BD10: 11:00:18 | BE10: 00:06:18 | BF10: 6 | BG10: 18 | BI10: =IF(K10="","",IF(ISTEXT(K10),K10,IF(K10>Basis!$N$8,"Uit",IF(ISBLANK(L10),K10,K10+L10)))) -> 0 | BJ10: 37.5 | BK10: 378 | BL10: =IF(N10="","",IF(BK10<=Basis!$F$8,0,(BK10-Basis!$F$8)*0.4)) -> 63.2 | BM10: =IF(N10="","",IF(BK10>Basis!$G$8,0,(Basis!$G$8-BK10)*0.4)) -> 0 | BN10: 123.2 | BP10: 20 | BQ10: 18 | BR10: 6.666666667 | BS10: 6
C11: 31 | D11: Belgie | E11: Tanja Wolff | F11: Evert | I11: 199.5 | J11: =IF(I11="","",IF(ISTEXT(I11),I11,IF(I11<=Basis!$M$8,"Uit",(100-(I11/Basis!$L$8*100))*Basis!$Y$6))) -> 33.5 | K11: 24 | L11: 36 | M11: NG | P11: =IF(N11="","",IF(N11*60+O11>Basis!$U$8,"Uit",BL11+BM11)) ->  | R11: Uit | U11: Uit | X11: 31 | Y11: NG | AX11: NG | BA11: 31 | BC11: 10:10:00 | BI11: =IF(K11="","",IF(ISTEXT(K11),K11,IF(K11>Basis!$N$8,"Uit",IF(ISBLANK(L11),K11,K11+L11)))) -> Uit | BJ11: Uit | BL11: =IF(N11="","",IF(BK11<=Basis!$F$8,0,(BK11-Basis!$F$8)*0.4)) ->  | BM11: =IF(N11="","",IF(BK11>Basis!$G$8,0,(Basis!$G$8-BK11)*0.4)) ->  | BN11: NG
C12: 35 | D12: 656083CG | E12: Marcel Gulikers | F12: Calimero | G12: RV. Pegasus | I12: 196.5 | J12: =IF(I12="","",IF(ISTEXT(I12),I12,IF(I12<=Basis!$M$8,"Uit",(100-(I12/Basis!$L$8*100))*Basis!$Y$6))) -> 34.5 | K12: 0 | L12: 0 | M12: Uit | P12: =IF(N12="","",IF(N12*60+O12>Basis!$U$8,"Uit",BL12+BM12)) ->  | R12: Uit | U12: Uit | V12: VR h.4 | X12: 35 | Y12: 0 | Z12: - | AA12: - | AB12: VR | AX12: Uit | AY12: VR h.4 | BA12: 35 | BC12: 10:18:00 | BI12: =IF(K12="","",IF(ISTEXT(K12),K12,IF(K12>Basis!$N$8,"Uit",IF(ISBLANK(L12),K12,K12+L12)))) -> 0 | BJ12: 34.5 | BL12: =IF(N12="","",IF(BK12<=Basis!$F$8,0,(BK12-Basis!$F$8)*0.4)) ->  | BM12: =IF(N12="","",IF(BK12>Basis!$G$8,0,(Basis!$G$8-BK12)*0.4)) ->  | BN12: Uit
C13: 41 | D13: 608758AN | E13: Emma de Nijs | F13: Aglaja | G13: RV. Leveroy | I13: 201 | J13: =IF(I13="","",IF(ISTEXT(I13),I13,IF(I13<=Basis!$M$8,"Uit",(100-(I13/Basis!$L$8*100))*Basis!$Y$6))) -> 33 | K13: 0 | L13: 0 | M13: Uit | N13: 5 | O13: 24 | P13: =IF(N13="","",IF(N13*60+O13>Basis!$U$8,"Uit",BL13+BM13)) -> 41.6 | R13: Uit | S13: 7.5 | T13: 7 | U13: Uit | V13: FP VD h.9 | X13: 41 | Y13: 20 | Z13: - | AA13: 20 | AB13: - | AC13: - | AD13: - | AE13: - | AF13: - | AG13: - | AH13: - | AI13: FP | AJ13: - | AK13: - | AL13: - | AM13: - | AN13: - | AO13: - | AP13: - | AX13: Uit | AY13: FP VD h.9 | BA13: 41 | BC13: 10:30:00 | BD13: 10:35:24 | BE13: 00:05:24 | BF13: 5 | BG13: 24 | BI13: =IF(K13="","",IF(ISTEXT(K13),K13,IF(K13>Basis!$N$8,"Uit",IF(ISBLANK(L13),K13,K13+L13)))) -> 0 | BJ13: 33 | BK13: 324 | BL13: =IF(N13="","",IF(BK13<=Basis!$F$8,0,(BK13-Basis!$F$8)*0.4)) -> 41.6 | BM13: =IF(N13="","",IF(BK13>Basis!$G$8,0,(Basis!$G$8-BK13)*0.4)) -> 0 | BN13: Uit | BP13: 22.5 | BQ13: 21 | BR13: 7.5 | BS13: 7
C14: 45 | D14: 848051BW | E14: Michelle Abeling-Willems | F14: Bløf D | I14: 198 | J14: =IF(I14="","",IF(ISTEXT(I14),I14,IF(I14<=Basis!$M$8,"Uit",(100-(I14/Basis!$L$8*100))*Basis!$Y$6))) -> 34 | K14: 0 | L14: 0 | M14: Uit | N14: 6 | O14: 3 | P14: =IF(N14="","",IF(N14*60+O14>Basis!$U$8,"Uit",BL14+BM14)) -> 57.2 | R14: Uit | S14: 6 | T14: 6.333333333 | U14: Uit | V14: FP h.4 | X14: 45 | Y14: 20 | Z14: - | AA14: - | AB14: FP | AC14: - | AD14: - | AE14: - | AF14: - | AG14: - | AH14: FP | AI14: - | AJ14: - | AK14: - | AL14: - | AM14: - | AN14: - | AO14: - | AP14: - | AX14: Uit | AY14: FP h.4 | BA14: 45 | BC14: 10:38:00 | BD14: 10:44:03 | BE14: 00:06:03 | BF14: 6 | BG14: 3 | BI14: =IF(K14="","",IF(ISTEXT(K14),K14,IF(K14>Basis!$N$8,"Uit",IF(ISBLANK(L14),K14,K14+L14)))) -> 0 | BJ14: 34 | BK14: 363 | BL14: =IF(N14="","",IF(BK14<=Basis!$F$8,0,(BK14-Basis!$F$8)*0.4)) -> 57.2 | BM14: =IF(N14="","",IF(BK14>Basis!$G$8,0,(Basis!$G$8-BK14)*0.4)) -> 0 | BN14: Uit | BP14: 18 | BQ14: 19 | BR14: 6 | BS14: 6.333333333
C15: 55 | D15: 807409SP | E15: Joost Pauli | F15: SFS Systems Leonardo Z | G15: RV. Ravensbosch | I15: 199.5 | J15: =IF(I15="","",IF(ISTEXT(I15),I15,IF(I15<=Basis!$M$8,"Uit",(100-(I15/Basis!$L$8*100))*Basis!$Y$6))) -> 33.5 | K15: 0 | L15: 0 | M15: Uit | P15: =IF(N15="","",IF(N15*60+O15>Basis!$U$8,"Uit",BL15+BM15)) ->  | R15: Uit | U15: Uit | V15: VR h.9 | X15: 55 | Y15: 0 | Z15: - | AA15: - | AB15: - | AC15: - | AD15: - | AE15: - | AF15: - | AG15: - | AH15: VR | AX15: Uit | AY15: VR h.9 | BA15: 55 | BC15: 10:58:00 | BI15: =IF(K15="","",IF(ISTEXT(K15),K15,IF(K15>Basis!$N$8,"Uit",IF(ISBLANK(L15),K15,K15+L15)))) -> 0 | BJ15: 33.5 | BL15: =IF(N15="","",IF(BK15<=Basis!$F$8,0,(BK15-Basis!$F$8)*0.4)) ->  | BM15: =IF(N15="","",IF(BK15>Basis!$G$8,0,(Basis!$G$8-BK15)*0.4)) ->  | BN15: Uit
C16: 49 | D16: 853055CK | E16: Lotte Kersten | F16: Chique Z | G16: RV. Tommix | I16: 194 | J16: =IF(I16="","",IF(ISTEXT(I16),I16,IF(I16<=Basis!$M$8,"Uit",(100-(I16/Basis!$L$8*100))*Basis!$Y$6))) -> 35.33333333 | K16: 0 | L16: 0 | M16: NG | P16: =IF(N16="","",IF(N16*60+O16>Basis!$U$8,"Uit",BL16+BM16)) ->  | R16: NG | U16: Uit | V16: Vet.spr. | X16: 49 | Y16: NG | AX16: =IF(Y16="","",IF(ISTEXT(Y16),Y16,SUM(Y16:AW16))) -> NG | AY16: Vet.spr. | BA16: 49 | BC16: 10:46:00 | BI16: =IF(K16="","",IF(ISTEXT(K16),K16,IF(K16>Basis!$N$8,"Uit",IF(ISBLANK(L16),K16,K16+L16)))) -> 0 | BJ16: 35.33333333 | BL16: =IF(N16="","",IF(BK16<=Basis!$F$8,0,(BK16-Basis!$F$8)*0.4)) ->  | BM16: =IF(N16="","",IF(BK16>Basis!$G$8,0,(Basis!$G$8-BK16)*0.4)) ->  | BN16: NG
C17: 29 | D17: 758408CS | E17: Karlijn Scheepens | F17: Cloe Z | G17: RV. Odulphus (pv. Best) | I17: NG | J17: =IF(I17="","",IF(ISTEXT(I17),I17,IF(I17<=Basis!$M$8,"Uit",(100-(I17/Basis!$L$8*100))*Basis!$Y$6))) -> NG | K17: NG | M17: NG | P17: =IF(N17="","",IF(N17*60+O17>Basis!$U$8,"Uit",BL17+BM17)) ->  | R17: NG | U17: =IF(R17="","",IF(ISTEXT(R17),R17,IF(BP17="","",R17-S17-T17))) -> NG | X17: 29 | Y17: NG | AX17: NG | BA17: 29 | BC17: 10:06:00 | BI17: =IF(K17="","",IF(ISTEXT(K17),K17,IF(K17>Basis!$N$8,"Uit",IF(ISBLANK(L17),K17,K17+L17)))) -> NG | BJ17: NG | BL17: =IF(N17="","",IF(BK17<=Basis!$F$8,0,(BK17-Basis!$F$8)*0.4)) ->  | BM17: =IF(N17="","",IF(BK17>Basis!$G$8,0,(Basis!$G$8-BK17)*0.4)) ->  | BN17: NG
C18: 57 | D18: 785148GB | E18: Bella van den Borch | F18: Guillietta W | G18: RV. St. Steffenrijders | I18: NG | J18: =IF(I18="","",IF(ISTEXT(I18),I18,IF(I18<=Basis!$M$8,"Uit",(100-(I18/Basis!$L$8*100))*Basis!$Y$6))) -> NG | K18: NG | M18: =IF(AX18="","",AX18) -> NG | P18: =IF(N18="","",IF(N18*60+O18>Basis!$U$8,"Uit",BL18+BM18)) ->  | R18: NG | U18: =IF(R18="","",IF(ISTEXT(R18),R18,IF(BP18="","",R18-S18-T18))) -> NG | X18: 57 | Y18: NG | AX18: NG | BA18: 57 | BC18: 11:02:00 | BI18: =IF(K18="","",IF(ISTEXT(K18),K18,IF(K18>Basis!$N$8,"Uit",IF(ISBLANK(L18),K18,K18+L18)))) -> NG | BJ18: NG | BL18: =IF(N18="","",IF(BK18<=Basis!$F$8,0,(BK18-Basis!$F$8)*0.4)) ->  | BM18: =IF(N18="","",IF(BK18>Basis!$G$8,0,(Basis!$G$8-BK18)*0.4)) ->  | BN18: NG
J19: =IF(I19="","",IF(ISTEXT(I19),I19,IF(I19<=Basis!$M$8,"Uit",(100-(I19/Basis!$L$8*100))*Basis!$Y$6))) ->  | M19: =IF(AX19="","",AX19) ->  | P19: =IF(N19="","",IF(N19*60+O19>Basis!$U$8,"Uit",BL19+BM19)) ->  | U19: =IF(R19="","",IF(ISTEXT(R19),R19,IF(BP19="","",R19-S19-T19))) ->  | BI19: =IF(K19="","",IF(ISTEXT(K19),K19,IF(K19>Basis!$N$8,"Uit",IF(ISBLANK(L19),K19,K19+L19)))) ->  | BL19: =IF(N19="","",IF(BK19<=Basis!$F$8,0,(BK19-Basis!$F$8)*0.4)) ->  | BM19: =IF(N19="","",IF(BK19>Basis!$G$8,0,(Basis!$G$8-BK19)*0.4)) -> 
J20: =IF(I20="","",IF(ISTEXT(I20),I20,IF(I20<=Basis!$M$8,"Uit",(100-(I20/Basis!$L$8*100))*Basis!$Y$6))) ->  | M20: =IF(AX20="","",AX20) ->  | P20: =IF(N20="","",IF(N20*60+O20>Basis!$U$8,"Uit",BL20+BM20)) ->  | U20: =IF(R20="","",IF(ISTEXT(R20),R20,IF(BP20="","",R20-S20-T20))) ->  | BI20: =IF(K20="","",IF(ISTEXT(K20),K20,IF(K20>Basis!$N$8,"Uit",IF(ISBLANK(L20),K20,K20+L20)))) ->  | BL20: =IF(N20="","",IF(BK20<=Basis!$F$8,0,(BK20-Basis!$F$8)*0.4)) ->  | BM20: =IF(N20="","",IF(BK20>Basis!$G$8,0,(Basis!$G$8-BK20)*0.4)) -> 
J21: =IF(I21="","",IF(ISTEXT(I21),I21,IF(I21<=Basis!$M$8,"Uit",(100-(I21/Basis!$L$8*100))*Basis!$Y$6))) ->  | M21: =IF(AX21="","",AX21) ->  | P21: =IF(N21="","",IF(N21*60+O21>Basis!$U$8,"Uit",BL21+BM21)) ->  | U21: =IF(R21="","",IF(ISTEXT(R21),R21,IF(BP21="","",R21-S21-T21))) ->  | BI21: =IF(K21="","",IF(ISTEXT(K21),K21,IF(K21>Basis!$N$8,"Uit",IF(ISBLANK(L21),K21,K21+L21)))) ->  | BL21: =IF(N21="","",IF(BK21<=Basis!$F$8,0,(BK21-Basis!$F$8)*0.4)) ->  | BM21: =IF(N21="","",IF(BK21>Basis!$G$8,0,(Basis!$G$8-BK21)*0.4)) -> 
J22: =IF(I22="","",IF(ISTEXT(I22),I22,IF(I22<=Basis!$M$8,"Uit",(100-(I22/Basis!$L$8*100))*Basis!$Y$6))) ->  | M22: =IF(AX22="","",AX22) ->  | N22: =IF(ISBLANK(BD22),"",BF22) ->  | O22: =IF(ISBLANK(BD22),"",BG22) ->  | P22: =IF(N22="","",IF(N22*60+O22>Basis!$U$8,"Uit",BL22+BM22)) ->  | R22: =IF(ISTEXT(BJ22),BJ22,IF(OR(ISBLANK(M22),M22="",ISBLANK(Y22)),BJ22,IF(ISTEXT(BN22),BN22,BJ22+BN22))) ->  | S22: =IF(BP22="","",BR22) ->  | U22: =IF(R22="","",IF(ISTEXT(R22),R22,IF(BP22="","",R22-S22-T22))) ->  | V22: =IF(AY22="","",AY22) ->  | AX22: =IF(Y22="","",IF(ISTEXT(Y22),Y22,SUM(Y22:AW22))) ->  | BE22: =IF(ISBLANK(BD22),"",BD22-BC22) ->  | BF22: =IF(ISBLANK(BD22),"",MINUTE(BE22)) ->  | BG22: =IF(ISBLANK(BD22),"",SECOND(BE22)) ->  | BI22: =IF(K22="","",IF(ISTEXT(K22),K22,IF(K22>Basis!$N$8,"Uit",IF(ISBLANK(L22),K22,K22+L22)))) ->  | BJ22: =IF(OR(ISTEXT(J22),BI22=""),J22,IF(ISTEXT(BI22),BI22,J22+BI22)) ->  | BK22: =IF(N22="","",N22*60+O22) ->  | BL22: =IF(N22="","",IF(BK22<=Basis!$F$8,0,(BK22-Basis!$F$8)*0.4)) ->  | BM22: =IF(N22="","",IF(BK22>Basis!$G$8,0,(Basis!$G$8-BK22)*0.4)) ->  | BN22: =IF(M22="","",IF(ISTEXT(M22),M22,IF(ISTEXT(P22),P22,M22+P22))) ->  | BR22: =IF(BP22="","",BP22/3) -> 
A23: Bij uitsluiting reden vermelden : | P23: =NOW() -> 2018-06-30T22:02:24.880 | X23: =A23 -> Bij uitsluiting reden vermelden : | AU23: =NOW() -> 2018-06-30T22:02:24.880
A24: VP=val paard, VR=val ruiter, 3W=3 weigeringen op zelfde hindernis, 4W=4 weigeringen totaal, FP=foutief parcours, Vr.v= vrijwillig verlaten | X24: =A24 -> VP=val paard, VR=val ruiter, 3W=3 weigeringen op zelfde hindernis, 4W=4 weigeringen totaal, FP=foutief parcours, Vr.v= vrijwillig verlaten

Sheet Ring 3 - Lpaarden
A1: =" Samengestelde wedstrijd "&Basis!D5 -> Samengestelde wedstrijd Eventing Leende 30 juni 2018 | G1: Klasse L paarden - Ring 3 | K1: Dressuurjury : | L1: Doortje Herk | X1: Verzamelstaat hindernisfouten in de cross | AK1: =A1 -> Samengestelde wedstrijd Eventing Leende 30 juni 2018 | BA1: =G1&" " -> Klasse L paarden - Ring 3 | BC1: Indien aankomstUUR cross wordt meegedeeld : | BI1: Hulpkolommen
A2: rank | C2: rugnr | D2: combinatie nr | E2: naam ruiter | F2: naam paard | G2: vereniging / plaats | H2: dressuur | J2: dressuur | K2: hind.ft. | L2: tijd.ft. | M2: hind.ft. | N2: min | O2: sec | P2: tijd.ft. | R2: totaal | S2: (1) stijl | T2: (2) stijl | U2: eind- | V2: reden | Y2: hindernisnummer | BI2: Uitslag | BJ2: NA | BK2: tijd (sec) | BL2: tijd.ft. | BM2: reg.ft. | BN2: totaal
A3: HC | H3: Jury C | I3: Jury 2 | J3: strafpntn. | K3: springen | L3: springen | M3: cross | N3: cross | P3: =Basis!$H$9&":"&TEXT(Basis!$I$9,"00") -> 4:15 | S3: cijfer | T3: cijfer | U3: totaal | V3: uitsluiting | X3: nr | Y3: 1 | Z3: 2 | AA3: 3 | AB3: 4ab | AC3: 5 | AD3: 6 | AE3: 7 | AF3: 8 | AG3: 9 | AH3: 10 | AI3: 11 | AJ3: 12 | AK3: 13 | AL3: 14 | AM3: 15 | AN3: VD | AO3: 16ab | AP3: VD | AQ3: 17 | AR3: 18 | AS3: 19 | AT3: F | AX3: totaal | AY3: reden uitsluiting | AZ3: hind. | BA3: nr | BC3: Vertrekuur | BD3: Aankomst | BE3: Tijd | BF3: Minuten | BG3: Seconden | BI3: Springen | BJ3: Springen | BK3: cross | BL3: opt.tijd = | BM3: =Basis!$H$9&":"&TEXT(Basis!$I$9,"00") -> 4:15 | BN3: cross
R4: =IF(ISBLANK(I4),"",IF(AND(ISBLANK(K4),ISBLANK(Y4)),J4,IF(ISTEXT(K4),K4,IF(OR(ISBLANK(M4),M4=""),J4+K4+L4,IF(ISTEXT(M4),M4,IF(ISBLANK(Y4),J4+K4+L4,J4+K4+L4+M4+P4+Q4)))))) -> 
A5: 1 | C5: 63 | D5: 784137GB | E5: Geesje Burema | F5: Ginante di Calvino | G5: RV. Heeze (rsv.) | H5: 174 | I5: 174 | J5: =IF(H5="","",IF(ISTEXT(H5),H5,IF(I5="","",IF((H5+I5)/2<=Basis!$M$9,"Uit",(100-((H5+I5)/2/Basis!$L$9*100))*Basis!$Y$6)))) -> 42 | K5: 0 | L5: 0 | M5: =IF(AX5="","",AX5) -> 0 | N5: =IF(ISBLANK(BD5),"",BF5) -> 4 | O5: =IF(ISBLANK(BD5),"",BG5) -> 11 | P5: =IF(N5="","",IF(N5*60+O5>Basis!$U$9,"Uit",BL5+BM5)) -> 0 | R5: =IF(ISTEXT(BJ5),BJ5,IF(OR(ISBLANK(M5),M5="",ISBLANK(Y5)),BJ5,IF(ISTEXT(BN5),BN5,BJ5+BN5))) -> 42 | U5: =IF(R5="","",IF(ISTEXT(R5),R5,R5-S5-T5)) -> 42 | V5: =IF(AY5="","",AY5) ->  | X5: =IF($C5="","",$C5) -> 63 | Y5: 0 | Z5: - | AA5: - | AB5: - | AC5: - | AD5: - | AE5: - | AF5: - | AG5: - | AH5: - | AI5: - | AJ5: - | AK5: - | AL5: - | AM5: - | AN5: - | AO5: - | AP5: - | AQ5: - | AR5: - | AS5: - | AT5: - | AX5: =IF(Y5="","",IF(ISTEXT(Y5),Y5,SUM(Y5:AW5))) -> 0 | BA5: =IF($C5="","",$C5) -> 63 | BC5: 11:30:00 | BD5: 11:34:11 | BE5: =IF(ISBLANK(BD5),"",BD5-BC5) -> 00:04:11 | BF5: =IF(ISBLANK(BD5),"",MINUTE(BE5)) -> 4 | BG5: =IF(ISBLANK(BD5),"",SECOND(BE5)) -> 11 | BI5: =IF(K5="","",IF(ISTEXT(K5),K5,IF(K5>Basis!$N$9,"Uit",IF(ISBLANK(L5),K5,K5+L5)))) -> 0 | BJ5: =IF(OR(ISTEXT(J5),BI5=""),J5,IF(ISTEXT(BI5),BI5,J5+BI5)) -> 42 | BK5: =IF(N5="","",N5*60+O5) -> 251 | BL5: =IF(N5="","",IF(BK5<=Basis!$F$9,0,(BK5-Basis!$F$9)*0.4)) -> 0 | BM5: =IF(N5="","",IF(BK5>Basis!$G$9,0,(Basis!$G$9-BK5)*0.4)) -> 0 | BN5: =IF(M5="","",IF(ISTEXT(M5),M5,IF(ISTEXT(P5),P5,M5+P5))) -> 0
A6: 2 | C6: 71 | D6: 774900FP | E6: Willemijn Poetsma | F6: Miss mc Flurrie | G6: RV. Paddock | H6: 196 | I6: 196 | J6: =IF(H6="","",IF(ISTEXT(H6),H6,IF(I6="","",IF((H6+I6)/2<=Basis!$M$9,"Uit",(100-((H6+I6)/2/Basis!$L$9*100))*Basis!$Y$6)))) -> 34.66666667 | K6: 4 | L6: 0 | M6: 0 | N6: 4 | O6: 28 | P6: =IF(N6="","",IF(N6*60+O6>Basis!$U$9,"Uit",BL6+BM6)) -> 5.2 | R6: 43.86666667 | U6: 43.86666667 | X6: 71 | Y6: 0 | Z6: - | AA6: - | AB6: - | AC6: - | AD6: - | AE6: - | AF6: - | AG6: - | AH6: - | AI6: - | AJ6: - | AK6: - | AL6: - | AM6: - | AN6: - | AO6: - | AP6: - | AQ6: - | AR6: - | AS6: - | AT6: - | AX6: 0 | BA6: 71 | BC6: 11:46:00 | BD6: 11:50:28 | BE6: 00:04:28 | BF6: 4 | BG6: 28 | BI6: =IF(K6="","",IF(ISTEXT(K6),K6,IF(K6>Basis!$N$9,"Uit",IF(ISBLANK(L6),K6,K6+L6)))) -> 4 | BJ6: 38.66666667 | BK6: 268 | BL6: =IF(N6="","",IF(BK6<=Basis!$F$9,0,(BK6-Basis!$F$9)*0.4)) -> 5.2 | BM6: =IF(N6="","",IF(BK6>Basis!$G$9,0,(Basis!$G$9-BK6)*0.4)) -> 0 | BN6: 5.2
A7: 3 | C7: 65 | D7: 855906HP | E7: Mythe Panman | F7: Hernán Termo | H7: 210 | I7: 210 | J7: =IF(H7="","",IF(ISTEXT(H7),H7,IF(I7="","",IF((H7+I7)/2<=Basis!$M$9,"Uit",(100-((H7+I7)/2/Basis!$L$9*100))*Basis!$Y$6)))) -> 30 | K7: 0 | L7: 0 | M7: 0 | N7: 4 | O7: 56 | P7: =IF(N7="","",IF(N7*60+O7>Basis!$U$9,"Uit",BL7+BM7)) -> 16.4 | R7: 46.4 | U7: 46.4 | X7: 65 | Y7: 0 | Z7: - | AA7: - | AB7: - | AC7: - | AD7: - | AE7: - | AF7: - | AG7: - | AH7: - | AI7: - | AJ7: - | AK7: - | AL7: - | AM7: - | AN7: - | AO7: - | AP7: - | AQ7: - | AR7: - | AS7: - | AT7: - | AX7: 0 | BA7: 65 | BC7: 11:34:00 | BD7: 11:38:56 | BE7: 00:04:56 | BF7: 4 | BG7: 56 | BI7: =IF(K7="","",IF(ISTEXT(K7),K7,IF(K7>Basis!$N$9,"Uit",IF(ISBLANK(L7),K7,K7+L7)))) -> 0 | BJ7: 30 | BK7: 296 | BL7: =IF(N7="","",IF(BK7<=Basis!$F$9,0,(BK7-Basis!$F$9)*0.4)) -> 16.4 | BM7: =IF(N7="","",IF(BK7>Basis!$G$9,0,(Basis!$G$9-BK7)*0.4)) -> 0 | BN7: 16.4
A8: 4 | C8: 93 | D8: 744312FV | E8: Niels van Vlerken | F8: Formidable | G8: RV. Equinus Stramproy | H8: 179 | I8: 179 | J8: =IF(H8="","",IF(ISTEXT(H8),H8,IF(I8="","",IF((H8+I8)/2<=Basis!$M$9,"Uit",(100-((H8+I8)/2/Basis!$L$9*100))*Basis!$Y$6)))) -> 40.33333333 | K8: 8 | L8: 4 | M8: 0 | N8: 4 | O8: 15 | P8: =IF(N8="","",IF(N8*60+O8>Basis!$U$9,"Uit",BL8+BM8)) -> 0 | R8: 52.33333333 | U8: 52.33333333 | X8: 93 | Y8: 0 | Z8: - | AA8: - | AB8: - | AC8: - | AD8: - | AE8: - | AF8: - | AG8: - | AH8: - | AI8: - | AJ8: - | AK8: - | AL8: - | AM8: - | AN8: - | AO8: - | AP8: - | AQ8: - | AR8: - | AS8: - | AT8: - | AX8: 0 | BA8: 93 | BC8: 13:08:00 | BD8: 13:12:15 | BE8: 00:04:15 | BF8: 4 | BG8: 15 | BI8: =IF(K8="","",IF(ISTEXT(K8),K8,IF(K8>Basis!$N$9,"Uit",IF(ISBLANK(L8),K8,K8+L8)))) -> 12 | BJ8: 52.33333333 | BK8: 255 | BL8: =IF(N8="","",IF(BK8<=Basis!$F$9,0,(BK8-Basis!$F$9)*0.4)) -> 0 | BM8: =IF(N8="","",IF(BK8>Basis!$G$9,0,(Basis!$G$9-BK8)*0.4)) -> 0 | BN8: 0
A9: 5 | C9: 75 | D9: 835389HW | E9: Kim van der Woude | F9: Hint C | G9: RV. Groenewoude | H9: 178.5 | I9: 178.5 | J9: =IF(H9="","",IF(ISTEXT(H9),H9,IF(I9="","",IF((H9+I9)/2<=Basis!$M$9,"Uit",(100-((H9+I9)/2/Basis!$L$9*100))*Basis!$Y$6)))) -> 40.5 | K9: 4 | L9: 0 | M9: 0 | N9: 4 | O9: 40 | P9: =IF(N9="","",IF(N9*60+O9>Basis!$U$9,"Uit",BL9+BM9)) -> 10 | R9: 54.5 | U9: 54.5 | X9: 75 | Y9: 0 | Z9: - | AA9: - | AB9: - | AC9: - | AD9: - | AE9: - | AF9: - | AG9: - | AH9: - | AI9: - | AJ9: - | AK9: - | AL9: - | AM9: - | AN9: - | AO9: - | AP9: - | AQ9: - | AR9: - | AS9: - | AT9: - | AX9: 0 | BA9: 75 | BC9: 12:32:00 | BD9: 12:36:40 | BE9: 00:04:40 | BF9: 4 | BG9: 40 | BI9: =IF(K9="","",IF(ISTEXT(K9),K9,IF(K9>Basis!$N$9,"Uit",IF(ISBLANK(L9),K9,K9+L9)))) -> 4 | BJ9: 44.5 | BK9: 280 | BL9: =IF(N9="","",IF(BK9<=Basis!$F$9,0,(BK9-Basis!$F$9)*0.4)) -> 10 | BM9: =IF(N9="","",IF(BK9>Basis!$G$9,0,(Basis!$G$9-BK9)*0.4)) -> 0 | BN9: 10
A10: 6 | C10: 73 | D10: 667113PV | E10: Colet van Vliet | F10: Pelle | G10: RV. de Voornruiters | H10: 160.5 | I10: 160.5 | J10: =IF(H10="","",IF(ISTEXT(H10),H10,IF(I10="","",IF((H10+I10)/2<=Basis!$M$9,"Uit",(100-((H10+I10)/2/Basis!$L$9*100))*Basis!$Y$6)))) -> 46.5 | K10: 0 | L10: 0 | M10: 0 | N10: 4 | O10: 37 | P10: =IF(N10="","",IF(N10*60+O10>Basis!$U$9,"Uit",BL10+BM10)) -> 8.8 | R10: 55.3 | U10: 55.3 | X10: 73 | Y10: 0 | Z10: - | AA10: - | AB10: - | AC10: - | AD10: - | AE10: - | AF10: - | AG10: - | AH10: - | AI10: - | AJ10: - | AK10: - | AL10: - | AM10: - | AN10: - | AO10: - | AP10: - | AQ10: - | AR10: - | AS10: - | AT10: - | AX10: 0 | BA10: 73 | BC10: 11:50:00 | BD10: 11:54:37 | BE10: 00:04:37 | BF10: 4 | BG10: 37 | BI10: =IF(K10="","",IF(ISTEXT(K10),K10,IF(K10>Basis!$N$9,"Uit",IF(ISBLANK(L10),K10,K10+L10)))) -> 0 | BJ10: 46.5 | BK10: 277 | BL10: =IF(N10="","",IF(BK10<=Basis!$F$9,0,(BK10-Basis!$F$9)*0.4)) -> 8.8 | BM10: =IF(N10="","",IF(BK10>Basis!$G$9,0,(Basis!$G$9-BK10)*0.4)) -> 0 | BN10: 8.8
A11: 7 | C11: 94 | D11: 698149FO | E11: Anne Olfers | F11: Frescobaldi | G11: RV. Drie Beerzen | H11: 193.5 | I11: 193.5 | J11: =IF(H11="","",IF(ISTEXT(H11),H11,IF(I11="","",IF((H11+I11)/2<=Basis!$M$9,"Uit",(100-((H11+I11)/2/Basis!$L$9*100))*Basis!$Y$6)))) -> 35.5 | K11: 0 | L11: 0 | M11: 0 | N11: 5 | O11: 6 | P11: =IF(N11="","",IF(N11*60+O11>Basis!$U$9,"Uit",BL11+BM11)) -> 20.4 | R11: 55.9 | U11: 55.9 | X11: 94 | Y11: 0 | Z11: - | AA11: - | AB11: - | AC11: - | AD11: - | AE11: - | AF11: - | AG11: - | AH11: - | AI11: - | AJ11: - | AK11: - | AL11: - | AM11: - | AN11: - | AO11: - | AP11: - | AQ11: - | AR11: - | AS11: - | AT11: - | AX11: 0 | BA11: 94 | BC11: 13:10:00 | BD11: 13:15:06 | BE11: 00:05:06 | BF11: 5 | BG11: 6 | BI11: =IF(K11="","",IF(ISTEXT(K11),K11,IF(K11>Basis!$N$9,"Uit",IF(ISBLANK(L11),K11,K11+L11)))) -> 0 | BJ11: 35.5 | BK11: 306 | BL11: =IF(N11="","",IF(BK11<=Basis!$F$9,0,(BK11-Basis!$F$9)*0.4)) -> 20.4 | BM11: =IF(N11="","",IF(BK11>Basis!$G$9,0,(Basis!$G$9-BK11)*0.4)) -> 0 | BN11: 20.4
A12: 8 | C12: 77 | D12: 856226GH | E12: Sterre van Houte | F12: G Star | H12: 162 | I12: 162 | J12: =IF(H12="","",IF(ISTEXT(H12),H12,IF(I12="","",IF((H12+I12)/2<=Basis!$M$9,"Uit",(100-((H12+I12)/2/Basis!$L$9*100))*Basis!$Y$6)))) -> 46 | K12: 0 | L12: 0 | M12: 0 | N12: 5 | O12: 7 | P12: =IF(N12="","",IF(N12*60+O12>Basis!$U$9,"Uit",BL12+BM12)) -> 20.8 | R12: 66.8 | U12: 66.8 | X12: 77 | Y12: 0 | Z12: - | AA12: - | AB12: - | AC12: - | AD12: - | AE12: - | AF12: - | AG12: - | AH12: - | AI12: - | AJ12: - | AK12: - | AL12: - | AM12: - | AN12: - | AO12: - | AP12: - | AQ12: - | AR12: - | AS12: - | AT12: - | AX12: 0 | BA12: 77 | BC12: 12:36:00 | BD12: 12:41:07 | BE12: 00:05:07 | BF12: 5 | BG12: 7 | BI12: =IF(K12="","",IF(ISTEXT(K12),K12,IF(K12>Basis!$N$9,"Uit",IF(ISBLANK(L12),K12,K12+L12)))) -> 0 | BJ12: 46 | BK12: 307 | BL12: =IF(N12="","",IF(BK12<=Basis!$F$9,0,(BK12-Basis!$F$9)*0.4)) -> 20.8 | BM12: =IF(N12="","",IF(BK12>Basis!$G$9,0,(Basis!$G$9-BK12)*0.4)) -> 0 | BN12: 20.8
A13: 9 | C13: 80 | D13: 750544BJ | E13: Iris Janssen | F13: Barilla | G13: RV. Zeldenrust | H13: 191.5 | I13: 191.5 | J13: =IF(H13="","",IF(ISTEXT(H13),H13,IF(I13="","",IF((H13+I13)/2<=Basis!$M$9,"Uit",(100-((H13+I13)/2/Basis!$L$9*100))*Basis!$Y$6)))) -> 36.16666667 | K13: 0 | L13: 0 | M13: 20 | N13: 4 | O13: 45 | P13: =IF(N13="","",IF(N13*60+O13>Basis!$U$9,"Uit",BL13+BM13)) -> 12 | R13: 68.16666667 | U13: 68.16666667 | X13: 80 | Y13: 0 | Z13: - | AA13: - | AB13: - | AC13: - | AD13: - | AE13: - | AF13: - | AG13: 20 | AH13: - | AI13: - | AJ13: - | AK13: - | AL13: - | AM13: - | AN13: - | AO13: - | AP13: - | AQ13: - | AR13: - | AS13: - | AT13: - | AX13: 20 | BA13: 80 | BC13: 12:42:00 | BD13: 12:46:45 | BE13: 00:04:45 | BF13: 4 | BG13: 45 | BI13: =IF(K13="","",IF(ISTEXT(K13),K13,IF(K13>Basis!$N$9,"Uit",IF(ISBLANK(L13),K13,K13+L13)))) -> 0 | BJ13: 36.16666667 | BK13: 285 | BL13: =IF(N13="","",IF(BK13<=Basis!$F$9,0,(BK13-Basis!$F$9)*0.4)) -> 12 | BM13: =IF(N13="","",IF(BK13>Basis!$G$9,0,(Basis!$G$9-BK13)*0.4)) -> 0 | BN13: 32
A14: 10 | C14: 86 | D14: 849985BW | E14: Alessandra Wiezer | F14: Bellissima | G14: RV. Laar | H14: 195.5 | I14: 195.5 | J14: =IF(H14="","",IF(ISTEXT(H14),H14,IF(I14="","",IF((H14+I14)/2<=Basis!$M$9,"Uit",(100-((H14+I14)/2/Basis!$L$9*100))*Basis!$Y$6)))) -> 34.83333333 | K14: 0 | L14: 0 | M14: 20 | N14: 4 | O14: 53 | P14: =IF(N14="","",IF(N14*60+O14>Basis!$U$9,"Uit",BL14+BM14)) -> 15.2 | R14: 70.03333333 | U14: 70.03333333 | X14: 86 | Y14: 0 | Z14: - | AA14: - | AB14: 20 | AC14: - | AD14: - | AE14: - | AF14: - | AG14: - | AH14: - | AI14: - | AJ14: - | AK14: - | AL14: - | AM14: - | AN14: - | AO14: - | AP14: - | AQ14: - | AR14: - | AS14: - | AT14: - | AX14: 20 | BA14: 86 | BC14: 12:54:00 | BD14: 12:58:53 | BE14: 00:04:53 | BF14: 4 | BG14: 53 | BI14: =IF(K14="","",IF(ISTEXT(K14),K14,IF(K14>Basis!$N$9,"Uit",IF(ISBLANK(L14),K14,K14+L14)))) -> 0 | BJ14: 34.83333333 | BK14: 293 | BL14: =IF(N14="","",IF(BK14<=Basis!$F$9,0,(BK14-Basis!$F$9)*0.4)) -> 15.2 | BM14: =IF(N14="","",IF(BK14>Basis!$G$9,0,(Basis!$G$9-BK14)*0.4)) -> 0 | BN14: 35.2
A15: 11 | C15: 67 | D15: 841391IB | E15: Lilian Bakker | F15: Ivy M | G15: Manege De Hoef V.O.F. | H15: 158.5 | I15: 158.5 | J15: =IF(H15="","",IF(ISTEXT(H15),H15,IF(I15="","",IF((H15+I15)/2<=Basis!$M$9,"Uit",(100-((H15+I15)/2/Basis!$L$9*100))*Basis!$Y$6)))) -> 47.16666667 | K15: 8 | L15: 0 | M15: 20 | N15: 5 | O15: 50 | P15: =IF(N15="","",IF(N15*60+O15>Basis!$U$9,"Uit",BL15+BM15)) -> 38 | R15: 113.1666667 | U15: 113.1666667 | X15: 67 | Y15: 0 | Z15: - | AA15: - | AB15: - | AC15: - | AD15: - | AE15: - | AF15: - | AG15: - | AH15: - | AI15: - | AJ15: - | AK15: - | AL15: - | AM15: - | AN15: - | AO15: 20 | AP15: - | AQ15: - | AR15: - | AS15: - | AT15: - | AX15: 20 | BA15: 67 | BC15: 11:38:00 | BD15: 11:43:50 | BE15: 00:05:50 | BF15: 5 | BG15: 50 | BI15: =IF(K15="","",IF(ISTEXT(K15),K15,IF(K15>Basis!$N$9,"Uit",IF(ISBLANK(L15),K15,K15+L15)))) -> 8 | BJ15: 55.16666667 | BK15: 350 | BL15: =IF(N15="","",IF(BK15<=Basis!$F$9,0,(BK15-Basis!$F$9)*0.4)) -> 38 | BM15: =IF(N15="","",IF(BK15>Basis!$G$9,0,(Basis!$G$9-BK15)*0.4)) -> 0 | BN15: 58
A16: 12 | C16: 92 | D16: 726098JB | E16: Nikki van den Berg | F16: Joya di Unaniem | G16: RV. De Kleine Heraut (rsv.) | H16: 170 | I16: 170 | J16: =IF(H16="","",IF(ISTEXT(H16),H16,IF(I16="","",IF((H16+I16)/2<=Basis!$M$9,"Uit",(100-((H16+I16)/2/Basis!$L$9*100))*Basis!$Y$6)))) -> 43.33333333 | K16: 0 | L16: 0 | M16: 80 | N16: 5 | O16: 17 | P16: =IF(N16="","",IF(N16*60+O16>Basis!$U$9,"Uit",BL16+BM16)) -> 24.8 | R16: 148.1333333 | U16: 148.1333333 | X16: 92 | Y16: 0 | Z16: - | AA16: - | AB16: 20 | AC16: - | AD16: - | AE16: - | AF16: - | AG16: 60 | AH16: - | AI16: - | AJ16: - | AK16: - | AL16: - | AM16: - | AN16: - | AO16: - | AP16: - | AQ16: - | AR16: - | AS16: - | AT16: - | AX16: 80 | BA16: 92 | BC16: 13:06:00 | BD16: 13:11:17 | BE16: 00:05:17 | BF16: 5 | BG16: 17 | BI16: =IF(K16="","",IF(ISTEXT(K16),K16,IF(K16>Basis!$N$9,"Uit",IF(ISBLANK(L16),K16,K16+L16)))) -> 0 | BJ16: 43.33333333 | BK16: 317 | BL16: =IF(N16="","",IF(BK16<=Basis!$F$9,0,(BK16-Basis!$F$9)*0.4)) -> 24.8 | BM16: =IF(N16="","",IF(BK16>Basis!$G$9,0,(Basis!$G$9-BK16)*0.4)) -> 0 | BN16: 104.8
C17: 82 | D17: 824447DV | E17: Jantina Vos | F17: Dior | G17: Manege De Hoef V.O.F. | H17: 130 | I17: 130 | J17: =IF(H17="","",IF(ISTEXT(H17),H17,IF(I17="","",IF((H17+I17)/2<=Basis!$M$9,"Uit",(100-((H17+I17)/2/Basis!$L$9*100))*Basis!$Y$6)))) -> Uit | K17: NG | M17: NG | P17: =IF(N17="","",IF(N17*60+O17>Basis!$U$9,"Uit",BL17+BM17)) ->  | R17: Uit | U17: Uit | V17: Uit dr. | X17: 82 | Y17: NG | AX17: NG | BA17: 82 | BC17: 12:46:00 | BI17: =IF(K17="","",IF(ISTEXT(K17),K17,IF(K17>Basis!$N$9,"Uit",IF(ISBLANK(L17),K17,K17+L17)))) -> NG | BJ17: Uit | BL17: =IF(N17="","",IF(BK17<=Basis!$F$9,0,(BK17-Basis!$F$9)*0.4)) ->  | BM17: =IF(N17="","",IF(BK17>Basis!$G$9,0,(Basis!$G$9-BK17)*0.4)) ->  | BN17: NG
C18: 84 | D18: 677482CD | E18: Sharon van Daal | F18: Cumlaude | G18: RV. Peelrossen | H18: 209.5 | I18: 209.5 | J18: =IF(H18="","",IF(ISTEXT(H18),H18,IF(I18="","",IF((H18+I18)/2<=Basis!$M$9,"Uit",(100-((H18+I18)/2/Basis!$L$9*100))*Basis!$Y$6)))) -> 30.16666667 | K18: 0 | L18: 0 | M18: Uit | N18: 4 | O18: 18 | P18: =IF(N18="","",IF(N18*60+O18>Basis!$U$9,"Uit",BL18+BM18)) -> 1.2 | R18: Uit | U18: Uit | V18: =IF(AY18="","",AY18) -> FP h.16 | X18: 84 | Y18: 0 | Z18: - | AA18: - | AB18: - | AC18: - | AD18: - | AE18: - | AF18: - | AG18: - | AH18: - | AI18: - | AJ18: - | AK18: - | AL18: - | AM18: - | AN18: - | AO18: FP | AP18: - | AQ18: - | AR18: - | AS18: - | AT18: - | AX18: Uit | AY18: FP h.16 | BA18: 84 | BC18: 12:50:00 | BD18: 12:54:18 | BE18: 00:04:18 | BF18: 4 | BG18: 18 | BI18: =IF(K18="","",IF(ISTEXT(K18),K18,IF(K18>Basis!$N$9,"Uit",IF(ISBLANK(L18),K18,K18+L18)))) -> 0 | BJ18: 30.16666667 | BK18: 258 | BL18: =IF(N18="","",IF(BK18<=Basis!$F$9,0,(BK18-Basis!$F$9)*0.4)) -> 1.2 | BM18: =IF(N18="","",IF(BK18>Basis!$G$9,0,(Basis!$G$9-BK18)*0.4)) -> 0 | BN18: Uit
C19: 89 | D19: 625894BB | E19: Linda de Beukelaer | F19: Banksy | G19: RV. Roerstreek | H19: 197 | I19: 197 | J19: =IF(H19="","",IF(ISTEXT(H19),H19,IF(I19="","",IF((H19+I19)/2<=Basis!$M$9,"Uit",(100-((H19+I19)/2/Basis!$L$9*100))*Basis!$Y$6)))) -> 34.33333333 | K19: 0 | L19: 0 | M19: Uit | P19: =IF(N19="","",IF(N19*60+O19>Basis!$U$9,"Uit",BL19+BM19)) ->  | R19: Uit | U19: Uit | V19: =IF(AY19="","",AY19) -> VP h.14 | X19: 89 | Y19: 0 | Z19: - | AA19: - | AB19: - | AC19: - | AD19: - | AE19: - | AF19: - | AG19: - | AH19: - | AI19: - | AJ19: - | AK19: - | AL19: VP | AM19: - | AN19: - | AX19: Uit | AY19: VP h.14 | BA19: 89 | BC19: 13:00:00 | BI19: =IF(K19="","",IF(ISTEXT(K19),K19,IF(K19>Basis!$N$9,"Uit",IF(ISBLANK(L19),K19,K19+L19)))) -> 0 | BJ19: 34.33333333 | BL19: =IF(N19="","",IF(BK19<=Basis!$F$9,0,(BK19-Basis!$F$9)*0.4)) ->  | BM19: =IF(N19="","",IF(BK19>Basis!$G$9,0,(Basis!$G$9-BK19)*0.4)) ->  | BN19: Uit
C20: 95 | D20: 818502CJ | E20: Chris Jordans | F20: Carlos | G20: RV. Equitania | H20: Uit | I20: Uit | J20: =IF(H20="","",IF(ISTEXT(H20),H20,IF(I20="","",IF((H20+I20)/2<=Basis!$M$9,"Uit",(100-((H20+I20)/2/Basis!$L$9*100))*Basis!$Y$6)))) -> Uit | K20: NG | M20: NG | P20: =IF(N20="","",IF(N20*60+O20>Basis!$U$9,"Uit",BL20+BM20)) ->  | R20: Uit | U20: Uit | V20: Uit dr.FP | X20: 95 | Y20: NG | AX20: =IF(Y20="","",IF(ISTEXT(Y20),Y20,SUM(Y20:AW20))) -> NG | BA20: 95 | BC20: 13:12:00 | BI20: =IF(K20="","",IF(ISTEXT(K20),K20,IF(K20>Basis!$N$9,"Uit",IF(ISBLANK(L20),K20,K20+L20)))) -> NG | BJ20: Uit | BL20: =IF(N20="","",IF(BK20<=Basis!$F$9,0,(BK20-Basis!$F$9)*0.4)) ->  | BM20: =IF(N20="","",IF(BK20>Basis!$G$9,0,(Basis!$G$9-BK20)*0.4)) ->  | BN20: NG
A21: HC | C21: 69 | D21: 154707BM | E21: Madelene Mertens | F21: Boxer | G21: RV. Sportvrienden | H21: 187.5 | I21: 187.5 | J21: =IF(H21="","",IF(ISTEXT(H21),H21,IF(I21="","",IF((H21+I21)/2<=Basis!$M$9,"Uit",(100-((H21+I21)/2/Basis!$L$9*100))*Basis!$Y$6)))) -> 37.5 | K21: 0 | L21: 0 | M21: 40 | N21: 5 | O21: 27 | P21: =IF(N21="","",IF(N21*60+O21>Basis!$U$9,"Uit",BL21+BM21)) -> 28.8 | R21: 106.3 | U21: 106.3 | V21: =IF(AY21="","",AY21) ->  | X21: 69 | Y21: 0 | Z21: - | AA21: - | AB21: - | AC21: - | AD21: - | AE21: - | AF21: - | AG21: 20 | AH21: - | AI21: 20 | AJ21: - | AK21: - | AL21: - | AM21: - | AN21: - | AO21: - | AP21: - | AQ21: - | AR21: - | AS21: - | AT21: - | AX21: =IF(Y21="","",IF(ISTEXT(Y21),Y21,SUM(Y21:AW21))) -> 40 | BA21: 69 | BC21: 11:42:00 | BD21: 11:47:27 | BE21: 00:05:27 | BF21: 5 | BG21: 27 | BI21: =IF(K21="","",IF(ISTEXT(K21),K21,IF(K21>Basis!$N$9,"Uit",IF(ISBLANK(L21),K21,K21+L21)))) -> 0 | BJ21: 37.5 | BK21: 327 | BL21: =IF(N21="","",IF(BK21<=Basis!$F$9,0,(BK21-Basis!$F$9)*0.4)) -> 28.8 | BM21: =IF(N21="","",IF(BK21>Basis!$G$9,0,(Basis!$G$9-BK21)*0.4)) -> 0 | BN21: 68.8
A22: HC | C22: 79 | D22: 835708IK | E22: Renske Kroeze | F22: i'm Gold | G22: RV. Leijeruiters Helvoirt (pv) | H22: NG | I22: NG | J22: =IF(H22="","",IF(ISTEXT(H22),H22,IF(I22="","",IF((H22+I22)/2<=Basis!$M$9,"Uit",(100-((H22+I22)/2/Basis!$L$9*100))*Basis!$Y$6)))) -> NG | K22: 4 | L22: 0 | M22: 0 | N22: 4 | O22: 45 | P22: =IF(N22="","",IF(N22*60+O22>Basis!$U$9,"Uit",BL22+BM22)) -> 12 | R22: NG | U22: NG | V22: =IF(AY22="","",AY22) ->  | X22: 79 | Y22: 0 | Z22: - | AA22: - | AB22: - | AC22: - | AD22: - | AE22: - | AF22: - | AG22: - | AH22: - | AI22: - | AJ22: - | AK22: - | AL22: - | AM22: - | AN22: - | AO22: - | AP22: - | AQ22: - | AR22: - | AS22: - | AT22: - | AX22: =IF(Y22="","",IF(ISTEXT(Y22),Y22,SUM(Y22:AW22))) -> 0 | BA22: 79 | BC22: 12:40:00 | BD22: 12:44:45 | BE22: 00:04:45 | BF22: 4 | BG22: 45 | BI22: =IF(K22="","",IF(ISTEXT(K22),K22,IF(K22>Basis!$N$9,"Uit",IF(ISBLANK(L22),K22,K22+L22)))) -> 4 | BJ22: NG | BK22: 285 | BL22: =IF(N22="","",IF(BK22<=Basis!$F$9,0,(BK22-Basis!$F$9)*0.4)) -> 12 | BM22: =IF(N22="","",IF(BK22>Basis!$G$9,0,(Basis!$G$9-BK22)*0.4)) -> 0 | BN22: 12
C23: 91 | D23: 815658ME | E23: Tim Eshuis | F23: Mister Paddington | G23: RV. Door Wilskracht Sterk | H23: NG | I23: NG | J23: =IF(H23="","",IF(ISTEXT(H23),H23,IF(I23="","",IF((H23+I23)/2<=Basis!$M$9,"Uit",(100-((H23+I23)/2/Basis!$L$9*100))*Basis!$Y$6)))) -> NG | K23: NG | M23: NG | P23: =IF(N23="","",IF(N23*60+O23>Basis!$U$9,"Uit",BL23+BM23)) ->  | R23: NG | U23: NG | V23: =IF(AY23="","",AY23) ->  | X23: 91 | Y23: NG | AX23: =IF(Y23="","",IF(ISTEXT(Y23),Y23,SUM(Y23:AW23))) -> NG | BA23: 91 | BC23: 13:04:00 | BI23: =IF(K23="","",IF(ISTEXT(K23),K23,IF(K23>Basis!$N$9,"Uit",IF(ISBLANK(L23),K23,K23+L23)))) -> NG | BJ23: NG | BL23: =IF(N23="","",IF(BK23<=Basis!$F$9,0,(BK23-Basis!$F$9)*0.4)) ->  | BM23: =IF(N23="","",IF(BK23>Basis!$G$9,0,(Basis!$G$9-BK23)*0.4)) ->  | BN23: NG
C24: 96 | D24: 687307EL | E24: Lielle van Laren | F24: Ennue | G24: RV. Alvernase R.j.v. | H24: NG | I24: NG | J24: =IF(H24="","",IF(ISTEXT(H24),H24,IF(I24="","",IF((H24+I24)/2<=Basis!$M$9,"Uit",(100-((H24+I24)/2/Basis!$L$9*100))*Basis!$Y$6)))) -> NG | K24: NG | M24: NG | P24: =IF(N24="","",IF(N24*60+O24>Basis!$U$9,"Uit",BL24+BM24)) ->  | R24: NG | U24: NG | V24: =IF(AY24="","",AY24) ->  | X24: 96 | Y24: NG | AX24: =IF(Y24="","",IF(ISTEXT(Y24),Y24,SUM(Y24:AW24))) -> NG | BA24: 96 | BC24: 13:14:00 | BI24: =IF(K24="","",IF(ISTEXT(K24),K24,IF(K24>Basis!$N$9,"Uit",IF(ISBLANK(L24),K24,K24+L24)))) -> NG | BJ24: NG | BL24: =IF(N24="","",IF(BK24<=Basis!$F$9,0,(BK24-Basis!$F$9)*0.4)) ->  | BM24: =IF(N24="","",IF(BK24>Basis!$G$9,0,(Basis!$G$9-BK24)*0.4)) ->  | BN24: NG
J25: =IF(H25="","",IF(ISTEXT(H25),H25,IF(I25="","",IF((H25+I25)/2<=Basis!$M$9,"Uit",(100-((H25+I25)/2/Basis!$L$9*100))*Basis!$Y$6)))) ->  | M25: =IF(AX25="","",AX25) ->  | N25: =IF(ISBLANK(BD25),"",BF25) ->  | O25: =IF(ISBLANK(BD25),"",BG25) ->  | P25: =IF(N25="","",IF(N25*60+O25>Basis!$U$9,"Uit",BL25+BM25)) ->  | R25: =IF(ISTEXT(BJ25),BJ25,IF(OR(ISBLANK(M25),M25="",ISBLANK(Y25)),BJ25,IF(ISTEXT(BN25),BN25,BJ25+BN25))) ->  | U25: =IF(R25="","",IF(ISTEXT(R25),R25,R25-S25-T25)) ->  | V25: =IF(AY25="","",AY25) ->  | X25: =IF($C25="","",$C25) ->  | AX25: =IF(Y25="","",IF(ISTEXT(Y25),Y25,SUM(Y25:AW25))) ->  | BA25: =IF($C25="","",$C25) ->  | BE25: =IF(ISBLANK(BD25),"",BD25-BC25) ->  | BF25: =IF(ISBLANK(BD25),"",MINUTE(BE25)) ->  | BG25: =IF(ISBLANK(BD25),"",SECOND(BE25)) ->  | BI25: =IF(K25="","",IF(ISTEXT(K25),K25,IF(K25>Basis!$N$9,"Uit",IF(ISBLANK(L25),K25,K25+L25)))) ->  | BJ25: =IF(OR(ISTEXT(J25),BI25=""),J25,IF(ISTEXT(BI25),BI25,J25+BI25)) ->  | BK25: =IF(N25="","",N25*60+O25) ->  | BL25: =IF(N25="","",IF(BK25<=Basis!$F$9,0,(BK25-Basis!$F$9)*0.4)) ->  | BM25: =IF(N25="","",IF(BK25>Basis!$G$9,0,(Basis!$G$9-BK25)*0.4)) ->  | BN25: =IF(M25="","",IF(ISTEXT(M25),M25,IF(ISTEXT(P25),P25,M25+P25))) -> 
J26: =IF(H26="","",IF(ISTEXT(H26),H26,IF(I26="","",IF((H26+I26)/2<=Basis!$M$9,"Uit",(100-((H26+I26)/2/Basis!$L$9*100))*Basis!$Y$6)))) ->  | P26: =IF(N26="","",IF(N26*60+O26>Basis!$U$9,"Uit",BL26+BM26)) ->  | BI26: =IF(K26="","",IF(ISTEXT(K26),K26,IF(K26>Basis!$N$9,"Uit",IF(ISBLANK(L26),K26,K26+L26)))) ->  | BL26: =IF(N26="","",IF(BK26<=Basis!$F$9,0,(BK26-Basis!$F$9)*0.4)) ->  | BM26: =IF(N26="","",IF(BK26>Basis!$G$9,0,(Basis!$G$9-BK26)*0.4)) -> 
J27: =IF(H27="","",IF(ISTEXT(H27),H27,IF(I27="","",IF((H27+I27)/2<=Basis!$M$9,"Uit",(100-((H27+I27)/2/Basis!$L$9*100))*Basis!$Y$6)))) ->  | P27: =IF(N27="","",IF(N27*60+O27>Basis!$U$9,"Uit",BL27+BM27)) ->  | BI27: =IF(K27="","",IF(ISTEXT(K27),K27,IF(K27>Basis!$N$9,"Uit",IF(ISBLANK(L27),K27,K27+L27)))) ->  | BL27: =IF(N27="","",IF(BK27<=Basis!$F$9,0,(BK27-Basis!$F$9)*0.4)) ->  | BM27: =IF(N27="","",IF(BK27>Basis!$G$9,0,(Basis!$G$9-BK27)*0.4)) -> 
J28: =IF(H28="","",IF(ISTEXT(H28),H28,IF(I28="","",IF((H28+I28)/2<=Basis!$M$9,"Uit",(100-((H28+I28)/2/Basis!$L$9*100))*Basis!$Y$6)))) ->  | P28: =IF(N28="","",IF(N28*60+O28>Basis!$U$9,"Uit",BL28+BM28)) ->  | BI28: =IF(K28="","",IF(ISTEXT(K28),K28,IF(K28>Basis!$N$9,"Uit",IF(ISBLANK(L28),K28,K28+L28)))) ->  | BL28: =IF(N28="","",IF(BK28<=Basis!$F$9,0,(BK28-Basis!$F$9)*0.4)) ->  | BM28: =IF(N28="","",IF(BK28>Basis!$G$9,0,(Basis!$G$9-BK28)*0.4)) -> 
J29: =IF(H29="","",IF(ISTEXT(H29),H29,IF(I29="","",IF((H29+I29)/2<=Basis!$M$9,"Uit",(100-((H29+I29)/2/Basis!$L$9*100))*Basis!$Y$6)))) ->  | M29: =IF(AX29="","",AX29) ->  | N29: =IF(ISBLANK(BD29),"",BF29) ->  | O29: =IF(ISBLANK(BD29),"",BG29) ->  | P29: =IF(N29="","",IF(N29*60+O29>Basis!$U$9,"Uit",BL29+BM29)) ->  | R29: =IF(ISTEXT(BJ29),BJ29,IF(OR(ISBLANK(M29),M29="",ISBLANK(Y29)),BJ29,IF(ISTEXT(BN29),BN29,BJ29+BN29))) ->  | U29: =IF(R29="","",IF(ISTEXT(R29),R29,R29-S29-T29)) ->  | V29: =IF(AY29="","",AY29) ->  | AX29: =IF(Y29="","",IF(ISTEXT(Y29),Y29,SUM(Y29:AW29))) ->  | BE29: =IF(ISBLANK(BD29),"",BD29-BC29) ->  | BF29: =IF(ISBLANK(BD29),"",MINUTE(BE29)) ->  | BG29: =IF(ISBLANK(BD29),"",SECOND(BE29)) ->  | BI29: =IF(K29="","",IF(ISTEXT(K29),K29,IF(K29>Basis!$N$9,"Uit",IF(ISBLANK(L29),K29,K29+L29)))) ->  | BL29: =IF(N29="","",IF(BK29<=Basis!$F$9,0,(BK29-Basis!$F$9)*0.4)) ->  | BM29: =IF(N29="","",IF(BK29>Basis!$G$9,0,(Basis!$G$9-BK29)*0.4)) -> 
J30: =IF(H30="","",IF(ISTEXT(H30),H30,IF(I30="","",IF((H30+I30)/2<=Basis!$M$9,"Uit",(100-((H30+I30)/2/Basis!$L$9*100))*Basis!$Y$6)))) ->  | M30: =IF(AX30="","",AX30) ->  | N30: =IF(ISBLANK(BD30),"",BF30) ->  | O30: =IF(ISBLANK(BD30),"",BG30) ->  | P30: =IF(N30="","",IF(N30*60+O30>Basis!$U$9,"Uit",BL30+BM30)) ->  | R30: =IF(ISTEXT(BJ30),BJ30,IF(OR(ISBLANK(M30),M30="",ISBLANK(Y30)),BJ30,IF(ISTEXT(BN30),BN30,BJ30+BN30))) ->  | U30: =IF(R30="","",IF(ISTEXT(R30),R30,R30-S30-T30)) ->  | V30: =IF(AY30="","",AY30) ->  | AX30: =IF(Y30="","",IF(ISTEXT(Y30),Y30,SUM(Y30:AW30))) ->  | BE30: =IF(ISBLANK(BD30),"",BD30-BC30) ->  | BF30: =IF(ISBLANK(BD30),"",MINUTE(BE30)) ->  | BG30: =IF(ISBLANK(BD30),"",SECOND(BE30)) ->  | BI30: =IF(K30="","",IF(ISTEXT(K30),K30,IF(K30>Basis!$N$9,"Uit",IF(ISBLANK(L30),K30,K30+L30)))) ->  | BJ30: =IF(OR(ISTEXT(J30),BI30=""),J30,IF(ISTEXT(BI30),BI30,J30+BI30)) ->  | BK30: =IF(N30="","",N30*60+O30) ->  | BL30: =IF(N30="","",IF(BK30<=Basis!$F$9,0,(BK30-Basis!$F$9)*0.4)) ->  | BM30: =IF(N30="","",IF(BK30>Basis!$G$9,0,(Basis!$G$9-BK30)*0.4)) ->  | BN30: =IF(M30="","",IF(ISTEXT(M30),M30,IF(ISTEXT(P30),P30,M30+P30))) -> 
A31: Bij uitsluiting reden vermelden : | P31: =NOW() -> 2018-06-30T22:02:24.880 | X31: =A31 -> Bij uitsluiting reden vermelden : | AU31: =NOW() -> 2018-06-30T22:02:24.880
A32: VP=val paard, VR=val ruiter, 3W=3 weigeringen op zelfde hindernis, 4W=4 weigeringen totaal, FP=foutief parcours, Vr.v= vrijwillig verlaten | X32: =A32 -> VP=val paard, VR=val ruiter, 3W=3 weigeringen op zelfde hindernis, 4W=4 weigeringen totaal, FP=foutief parcours, Vr.v= vrijwillig verlaten

Sheet Ring 4 - Lpaarden
A1: =" Samengestelde wedstrijd "&Basis!D5 -> Samengestelde wedstrijd Eventing Leende 30 juni 2018 | G1: Klasse L paarden - Ring 4 | K1: Dressuurjury : | L1: Anita Feije | X1: Verzamelstaat hindernisfouten in de cross | AK1: =A1 -> Samengestelde wedstrijd Eventing Leende 30 juni 2018 | BA1: =G1&" " -> Klasse L paarden - Ring 4 | BC1: Indien aankomstUUR cross wordt meegedeeld : | BI1: Hulpkolommen
A2: rank | C2: rugnr | D2: combinatie nr | E2: naam ruiter | F2: naam paard | G2: vereniging / plaats | H2: dressuur | J2: dressuur | K2: hind.ft. | L2: tijd.ft. | M2: hind.ft. | N2: min | O2: sec | P2: tijd.ft. | R2: totaal | S2: (1) stijl | T2: (2) stijl | U2: eind- | V2: reden | Y2: hindernisnummer | BI2: Uitslag | BJ2: NA | BK2: tijd (sec) | BL2: tijd.ft. | BM2: reg.ft. | BN2: totaal
A3: HC | H3: Jury C | I3: Jury 2 | J3: strafpntn. | K3: springen | L3: springen | M3: cross | N3: cross | P3: =Basis!$H$9&":"&TEXT(Basis!$I$9,"00") -> 4:15 | S3: cijfer | T3: cijfer | U3: totaal | V3: uitsluiting | X3: nr | Y3: 1 | Z3: 2 | AA3: 3 | AB3: 4ab | AC3: 5 | AD3: 6 | AE3: 7 | AF3: 8 | AG3: 9 | AH3: 10 | AI3: 11 | AJ3: 12 | AK3: 13 | AL3: 14 | AM3: 15 | AN3: VD | AO3: 16ab | AP3: VD | AQ3: 17 | AR3: 18 | AS3: 19 | AT3: F | AX3: totaal | AY3: reden uitsluiting | AZ3: hind. | BA3: nr | BC3: Vertrekuur | BD3: Aankomst | BE3: Tijd | BF3: Minuten | BG3: Seconden | BI3: Springen | BJ3: Springen | BK3: cross | BL3: opt.tijd = | BM3: =Basis!$H$9&":"&TEXT(Basis!$I$9,"00") -> 4:15 | BN3: cross
R4: =IF(ISBLANK(I4),"",IF(AND(ISBLANK(K4),ISBLANK(Y4)),J4,IF(ISTEXT(K4),K4,IF(OR(ISBLANK(M4),M4=""),J4+K4+L4,IF(ISTEXT(M4),M4,IF(ISBLANK(Y4),J4+K4+L4,J4+K4+L4+M4+P4+Q4)))))) -> 
A5: 1 | C5: 81 | D5: 573574FD | E5: Maxime Devos | F5: Fresh Orange Zaline | G5: RV. Peelrossen | H5: 218 | I5: 218 | J5: =IF(H5="","",IF(ISTEXT(H5),H5,IF(I5="","",IF((H5+I5)/2<=Basis!$M$9,"Uit",(100-((H5+I5)/2/Basis!$L$9*100))*Basis!$Y$6)))) -> 27.33333333 | K5: 0 | L5: 0 | M5: =IF(AX5="","",AX5) -> 0 | N5: =IF(ISBLANK(BD5),"",BF5) -> 4 | O5: =IF(ISBLANK(BD5),"",BG5) -> 16 | P5: =IF(N5="","",IF(N5*60+O5>Basis!$U$9,"Uit",BL5+BM5)) -> 0.4 | R5: =IF(ISTEXT(BJ5),BJ5,IF(OR(ISBLANK(M5),M5="",ISBLANK(Y5)),BJ5,IF(ISTEXT(BN5),BN5,BJ5+BN5))) -> 27.73333333 | U5: =IF(R5="","",IF(ISTEXT(R5),R5,R5-S5-T5)) -> 27.73333333 | V5: =IF(AY5="","",AY5) ->  | X5: =IF($C5="","",$C5) -> 81 | Y5: 0 | Z5: - | AA5: - | AB5: - | AC5: - | AD5: - | AE5: - | AF5: - | AG5: - | AH5: - | AI5: - | AJ5: - | AK5: - | AL5: - | AM5: - | AN5: - | AO5: - | AP5: - | AQ5: - | AR5: - | AS5: - | AT5: - | AX5: =IF(Y5="","",IF(ISTEXT(Y5),Y5,SUM(Y5:AW5))) -> 0 | BA5: =IF($C5="","",$C5) -> 81 | BC5: 12:44:00 | BD5: 12:48:16 | BE5: =IF(ISBLANK(BD5),"",BD5-BC5) -> 00:04:16 | BF5: =IF(ISBLANK(BD5),"",MINUTE(BE5)) -> 4 | BG5: =IF(ISBLANK(BD5),"",SECOND(BE5)) -> 16 | BI5: =IF(K5="","",IF(ISTEXT(K5),K5,IF(K5>Basis!$N$9,"Uit",IF(ISBLANK(L5),K5,K5+L5)))) -> 0 | BJ5: =IF(OR(ISTEXT(J5),BI5=""),J5,IF(ISTEXT(BI5),BI5,J5+BI5)) -> 27.33333333 | BK5: =IF(N5="","",N5*60+O5) -> 256 | BL5: =IF(N5="","",IF(BK5<=Basis!$F$9,0,(BK5-Basis!$F$9)*0.4)) -> 0.4 | BM5: =IF(N5="","",IF(BK5>Basis!$G$9,0,(Basis!$G$9-BK5)*0.4)) -> 0 | BN5: =IF(M5="","",IF(ISTEXT(M5),M5,IF(ISTEXT(P5),P5,M5+P5))) -> 0.4
A6: 2 | C6: 99 | D6: 719468JV | E6: Ilse Vossen | F6: Jacobo | G6: RV. Equinus Stramproy | H6: 223 | I6: 223 | J6: =IF(H6="","",IF(ISTEXT(H6),H6,IF(I6="","",IF((H6+I6)/2<=Basis!$M$9,"Uit",(100-((H6+I6)/2/Basis!$L$9*100))*Basis!$Y$6)))) -> 25.66666667 | K6: 4 | L6: 0 | M6: 0 | N6: 4 | O6: 16 | P6: =IF(N6="","",IF(N6*60+O6>Basis!$U$9,"Uit",BL6+BM6)) -> 0.4 | R6: 30.06666667 | U6: 30.06666667 | X6: 99 | Y6: 0 | Z6: - | AA6: - | AB6: - | AC6: - | AD6: - | AE6: - | AF6: - | AG6: - | AH6: - | AI6: - | AJ6: - | AK6: - | AL6: - | AM6: - | AN6: - | AO6: - | AP6: - | AQ6: - | AR6: - | AS6: - | AT6: - | AX6: 0 | BA6: 99 | BC6: 13:20:00 | BD6: 13:24:16 | BE6: 00:04:16 | BF6: 4 | BG6: 16 | BI6: =IF(K6="","",IF(ISTEXT(K6),K6,IF(K6>Basis!$N$9,"Uit",IF(ISBLANK(L6),K6,K6+L6)))) -> 4 | BJ6: 29.66666667 | BK6: 256 | BL6: =IF(N6="","",IF(BK6<=Basis!$F$9,0,(BK6-Basis!$F$9)*0.4)) -> 0.4 | BM6: =IF(N6="","",IF(BK6>Basis!$G$9,0,(Basis!$G$9-BK6)*0.4)) -> 0 | BN6: 0.4
A7: 3 | C7: 64 | D7: 847201ES | E7: Adriaan Smeulders | F7: Ekow | G7: RV. Zelden Rust | H7: 204 | I7: 204 | J7: =IF(H7="","",IF(ISTEXT(H7),H7,IF(I7="","",IF((H7+I7)/2<=Basis!$M$9,"Uit",(100-((H7+I7)/2/Basis!$L$9*100))*Basis!$Y$6)))) -> 32 | K7: 0 | L7: 0 | M7: 0 | N7: 4 | O7: 27 | P7: =IF(N7="","",IF(N7*60+O7>Basis!$U$9,"Uit",BL7+BM7)) -> 4.8 | R7: 36.8 | U7: 36.8 | X7: 64 | Y7: 0 | Z7: - | AA7: - | AB7: - | AC7: - | AD7: - | AE7: - | AF7: - | AG7: - | AH7: - | AI7: - | AJ7: - | AK7: - | AL7: - | AM7: - | AN7: - | AO7: - | AP7: - | AQ7: - | AR7: - | AS7: - | AT7: - | AX7: 0 | BA7: 64 | BC7: 11:32:00 | BD7: 11:36:27 | BE7: 00:04:27 | BF7: 4 | BG7: 27 | BI7: =IF(K7="","",IF(ISTEXT(K7),K7,IF(K7>Basis!$N$9,"Uit",IF(ISBLANK(L7),K7,K7+L7)))) -> 0 | BJ7: 32 | BK7: 267 | BL7: =IF(N7="","",IF(BK7<=Basis!$F$9,0,(BK7-Basis!$F$9)*0.4)) -> 4.8 | BM7: =IF(N7="","",IF(BK7>Basis!$G$9,0,(Basis!$G$9-BK7)*0.4)) -> 0 | BN7: 4.8
A8: 4 | C8: 72 | D8: 629375MP | E8: Anneke Pardoel | F8: Mister Cadillac Z | G8: RV. Heideruiters | H8: 206 | I8: 206 | J8: =IF(H8="","",IF(ISTEXT(H8),H8,IF(I8="","",IF((H8+I8)/2<=Basis!$M$9,"Uit",(100-((H8+I8)/2/Basis!$L$9*100))*Basis!$Y$6)))) -> 31.33333333 | K8: 0 | L8: 0 | M8: 0 | N8: 4 | O8: 29 | P8: =IF(N8="","",IF(N8*60+O8>Basis!$U$9,"Uit",BL8+BM8)) -> 5.6 | R8: 36.93333333 | U8: 36.93333333 | X8: 72 | Y8: 0 | Z8: - | AA8: - | AB8: - | AC8: - | AD8: - | AE8: - | AF8: - | AG8: - | AH8: - | AI8: - | AJ8: - | AK8: - | AL8: - | AM8: - | AN8: - | AO8: - | AP8: - | AQ8: - | AR8: - | AS8: - | AT8: - | AX8: 0 | BA8: 72 | BC8: 11:48:00 | BD8: 11:52:29 | BE8: 00:04:29 | BF8: 4 | BG8: 29 | BI8: =IF(K8="","",IF(ISTEXT(K8),K8,IF(K8>Basis!$N$9,"Uit",IF(ISBLANK(L8),K8,K8+L8)))) -> 0 | BJ8: 31.33333333 | BK8: 269 | BL8: =IF(N8="","",IF(BK8<=Basis!$F$9,0,(BK8-Basis!$F$9)*0.4)) -> 5.6 | BM8: =IF(N8="","",IF(BK8>Basis!$G$9,0,(Basis!$G$9-BK8)*0.4)) -> 0 | BN8: 5.6
A9: 5 | C9: 100 | D9: 852618NK | E9: Renske Kroeze | F9: Nearly Perfect | G9: RV. Leijeruiters Helvoirt (pv) | H9: 204 | I9: 204 | J9: =IF(H9="","",IF(ISTEXT(H9),H9,IF(I9="","",IF((H9+I9)/2<=Basis!$M$9,"Uit",(100-((H9+I9)/2/Basis!$L$9*100))*Basis!$Y$6)))) -> 32 | K9: 0 | L9: 0 | M9: 0 | N9: 4 | O9: 31 | P9: =IF(N9="","",IF(N9*60+O9>Basis!$U$9,"Uit",BL9+BM9)) -> 6.4 | R9: 38.4 | U9: 38.4 | X9: 100 | Y9: 0 | Z9: - | AA9: - | AB9: - | AC9: - | AD9: - | AE9: - | AF9: - | AG9: - | AH9: - | AI9: - | AJ9: - | AK9: - | AL9: - | AM9: - | AN9: - | AO9: - | AP9: - | AQ9: - | AR9: - | AS9: - | AT9: - | AX9: 0 | BA9: 100 | BC9: 13:22:00 | BD9: 13:26:31 | BE9: 00:04:31 | BF9: 4 | BG9: 31 | BI9: =IF(K9="","",IF(ISTEXT(K9),K9,IF(K9>Basis!$N$9,"Uit",IF(ISBLANK(L9),K9,K9+L9)))) -> 0 | BJ9: 32 | BK9: 271 | BL9: =IF(N9="","",IF(BK9<=Basis!$F$9,0,(BK9-Basis!$F$9)*0.4)) -> 6.4 | BM9: =IF(N9="","",IF(BK9>Basis!$G$9,0,(Basis!$G$9-BK9)*0.4)) -> 0 | BN9: 6.4
A10: 6 | C10: 87 | D10: 784138FB | E10: Geesje Burema | F10: Favourite Times | G10: RV. Heeze (rsv.) | H10: 175.5 | I10: 175.5 | J10: =IF(H10="","",IF(ISTEXT(H10),H10,IF(I10="","",IF((H10+I10)/2<=Basis!$M$9,"Uit",(100-((H10+I10)/2/Basis!$L$9*100))*Basis!$Y$6)))) -> 41.5 | K10: 0 | L10: 0 | M10: 0 | N10: 4 | O10: 10 | P10: =IF(N10="","",IF(N10*60+O10>Basis!$U$9,"Uit",BL10+BM10)) -> 0 | R10: 41.5 | U10: 41.5 | X10: 87 | Y10: 0 | Z10: - | AA10: - | AB10: - | AC10: - | AD10: - | AE10: - | AF10: - | AG10: - | AH10: - | AI10: - | AJ10: - | AK10: - | AL10: - | AM10: - | AN10: - | AO10: - | AP10: - | AQ10: - | AR10: - | AS10: - | AT10: - | AX10: 0 | BA10: 87 | BC10: 12:56:00 | BD10: 13:00:10 | BE10: 00:04:10 | BF10: 4 | BG10: 10 | BI10: =IF(K10="","",IF(ISTEXT(K10),K10,IF(K10>Basis!$N$9,"Uit",IF(ISBLANK(L10),K10,K10+L10)))) -> 0 | BJ10: 41.5 | BK10: 250 | BL10: =IF(N10="","",IF(BK10<=Basis!$F$9,0,(BK10-Basis!$F$9)*0.4)) -> 0 | BM10: =IF(N10="","",IF(BK10>Basis!$G$9,0,(Basis!$G$9-BK10)*0.4)) -> 0 | BN10: 0
A11: 7 | C11: 97 | D11: 853427HK | E11: Ilonka Kluytmans | F11: Hirkam | H11: 189 | I11: 189 | J11: =IF(H11="","",IF(ISTEXT(H11),H11,IF(I11="","",IF((H11+I11)/2<=Basis!$M$9,"Uit",(100-((H11+I11)/2/Basis!$L$9*100))*Basis!$Y$6)))) -> 37 | K11: 8 | L11: 0 | M11: 0 | N11: 4 | O11: 24 | P11: =IF(N11="","",IF(N11*60+O11>Basis!$U$9,"Uit",BL11+BM11)) -> 3.6 | R11: 48.6 | U11: 48.6 | X11: 97 | Y11: 0 | Z11: - | AA11: - | AB11: - | AC11: - | AD11: - | AE11: - | AF11: - | AG11: - | AH11: - | AI11: - | AJ11: - | AK11: - | AL11: - | AM11: - | AN11: - | AO11: - | AP11: - | AQ11: - | AR11: - | AS11: - | AT11: - | AX11: 0 | BA11: 97 | BC11: 13:16:00 | BD11: 13:20:24 | BE11: 00:04:24 | BF11: 4 | BG11: 24 | BI11: =IF(K11="","",IF(ISTEXT(K11),K11,IF(K11>Basis!$N$9,"Uit",IF(ISBLANK(L11),K11,K11+L11)))) -> 8 | BJ11: 45 | BK11: 264 | BL11: =IF(N11="","",IF(BK11<=Basis!$F$9,0,(BK11-Basis!$F$9)*0.4)) -> 3.6 | BM11: =IF(N11="","",IF(BK11>Basis!$G$9,0,(Basis!$G$9-BK11)*0.4)) -> 0 | BN11: 3.6
A12: 8 | C12: 83 | D12: 706460EJ | E12: Babette Jochems | F12: Eridain | G12: RV. Door Eenheid Sterk | H12: 204 | I12: 204 | J12: =IF(H12="","",IF(ISTEXT(H12),H12,IF(I12="","",IF((H12+I12)/2<=Basis!$M$9,"Uit",(100-((H12+I12)/2/Basis!$L$9*100))*Basis!$Y$6)))) -> 32 | K12: 0 | L12: 0 | M12: 20 | N12: 5 | O12: 0 | P12: =IF(N12="","",IF(N12*60+O12>Basis!$U$9,"Uit",BL12+BM12)) -> 18 | R12: 70 | U12: 70 | X12: 83 | Y12: 0 | Z12: - | AA12: - | AB12: - | AC12: - | AD12: - | AE12: - | AF12: - | AG12: 20 | AH12: - | AI12: - | AJ12: - | AK12: - | AL12: - | AM12: - | AN12: - | AO12: - | AP12: - | AQ12: - | AR12: - | AS12: - | AT12: - | AX12: 20 | BA12: 83 | BC12: 12:48:00 | BD12: 12:53:00 | BE12: 00:05:00 | BF12: 5 | BG12: 0 | BI12: =IF(K12="","",IF(ISTEXT(K12),K12,IF(K12>Basis!$N$9,"Uit",IF(ISBLANK(L12),K12,K12+L12)))) -> 0 | BJ12: 32 | BK12: 300 | BL12: =IF(N12="","",IF(BK12<=Basis!$F$9,0,(BK12-Basis!$F$9)*0.4)) -> 18 | BM12: =IF(N12="","",IF(BK12>Basis!$G$9,0,(Basis!$G$9-BK12)*0.4)) -> 0 | BN12: 38
A13: 9 | C13: 90 | D13: 842830EC | E13: Jeannette Chardon | F13: Esprit | H13: 214.5 | I13: 214.5 | J13: =IF(H13="","",IF(ISTEXT(H13),H13,IF(I13="","",IF((H13+I13)/2<=Basis!$M$9,"Uit",(100-((H13+I13)/2/Basis!$L$9*100))*Basis!$Y$6)))) -> 28.5 | K13: 0 | L13: 0 | M13: 20 | N13: 6 | O13: 13 | P13: =IF(N13="","",IF(N13*60+O13>Basis!$U$9,"Uit",BL13+BM13)) -> 47.2 | R13: 95.7 | U13: 95.7 | X13: 90 | Y13: 0 | Z13: - | AA13: - | AB13: - | AC13: 20 | AD13: - | AE13: - | AF13: - | AG13: - | AH13: - | AI13: - | AJ13: - | AK13: - | AL13: - | AM13: - | AN13: - | AO13: - | AP13: - | AQ13: - | AR13: - | AS13: - | AT13: - | AX13: 20 | BA13: 90 | BC13: 13:02:00 | BD13: 13:08:13 | BE13: 00:06:13 | BF13: 6 | BG13: 13 | BI13: =IF(K13="","",IF(ISTEXT(K13),K13,IF(K13>Basis!$N$9,"Uit",IF(ISBLANK(L13),K13,K13+L13)))) -> 0 | BJ13: 28.5 | BK13: 373 | BL13: =IF(N13="","",IF(BK13<=Basis!$F$9,0,(BK13-Basis!$F$9)*0.4)) -> 47.2 | BM13: =IF(N13="","",IF(BK13>Basis!$G$9,0,(Basis!$G$9-BK13)*0.4)) -> 0 | BN13: 67.2
A14: 10 | C14: 85 | D14: 750824ZO | E14: Dirk Ockhuizen | F14: Zevenster PCN | G14: RV. Militaire Ruitersportvereniging 'Te Paard!' * | H14: 187.2 | I14: 187.2 | J14: =IF(H14="","",IF(ISTEXT(H14),H14,IF(I14="","",IF((H14+I14)/2<=Basis!$M$9,"Uit",(100-((H14+I14)/2/Basis!$L$9*100))*Basis!$Y$6)))) -> 37.6 | K14: 4 | L14: 0 | M14: 60 | N14: 5 | O14: 38 | P14: =IF(N14="","",IF(N14*60+O14>Basis!$U$9,"Uit",BL14+BM14)) -> 33.2 | R14: 134.8 | U14: 134.8 | X14: 85 | Y14: 0 | Z14: - | AA14: - | AB14: - | AC14: 20 | AD14: - | AE14: - | AF14: - | AG14: - | AH14: - | AI14: - | AJ14: - | AK14: - | AL14: - | AM14: - | AN14: - | AO14: 20 | AP14: - | AQ14: 20 | AR14: - | AS14: - | AT14: - | AX14: 60 | BA14: 85 | BC14: 12:52:00 | BD14: 12:57:38 | BE14: 00:05:38 | BF14: 5 | BG14: 38 | BI14: =IF(K14="","",IF(ISTEXT(K14),K14,IF(K14>Basis!$N$9,"Uit",IF(ISBLANK(L14),K14,K14+L14)))) -> 4 | BJ14: 41.6 | BK14: 338 | BL14: =IF(N14="","",IF(BK14<=Basis!$F$9,0,(BK14-Basis!$F$9)*0.4)) -> 33.2 | BM14: =IF(N14="","",IF(BK14>Basis!$G$9,0,(Basis!$G$9-BK14)*0.4)) -> 0 | BN14: 93.2
A15: 11 | C15: 78 | D15: 853079AB | E15: Frederique Brouwers | F15: Annaghmore Qualistar | G15: RV. Fevior (r.s.v.) | H15: 163.5 | I15: 163.5 | J15: =IF(H15="","",IF(ISTEXT(H15),H15,IF(I15="","",IF((H15+I15)/2<=Basis!$M$9,"Uit",(100-((H15+I15)/2/Basis!$L$9*100))*Basis!$Y$6)))) -> 45.5 | K15: 0 | L15: 0 | M15: 80 | N15: 6 | O15: 24 | P15: =IF(N15="","",IF(N15*60+O15>Basis!$U$9,"Uit",BL15+BM15)) -> 51.6 | R15: 177.1 | U15: 177.1 | X15: 78 | Y15: 0 | Z15: - | AA15: - | AB15: 60 | AC15: 20 | AD15: - | AE15: - | AF15: - | AG15: - | AH15: - | AI15: - | AJ15: - | AK15: - | AL15: - | AM15: - | AN15: - | AO15: - | AP15: - | AQ15: - | AR15: - | AS15: - | AT15: - | AX15: 80 | BA15: 78 | BC15: 12:38:00 | BD15: 12:44:24 | BE15: 00:06:24 | BF15: 6 | BG15: 24 | BI15: =IF(K15="","",IF(ISTEXT(K15),K15,IF(K15>Basis!$N$9,"Uit",IF(ISBLANK(L15),K15,K15+L15)))) -> 0 | BJ15: 45.5 | BK15: 384 | BL15: =IF(N15="","",IF(BK15<=Basis!$F$9,0,(BK15-Basis!$F$9)*0.4)) -> 51.6 | BM15: =IF(N15="","",IF(BK15>Basis!$G$9,0,(Basis!$G$9-BK15)*0.4)) -> 0 | BN15: 131.6
A16: 12 | C16: 66 | D16: 547197CS | E16: Peter van Stiphout | F16: Chihua Z | G16: RV. Ysselsteyn | H16: 189.5 | I16: 189.5 | J16: =IF(H16="","",IF(ISTEXT(H16),H16,IF(I16="","",IF((H16+I16)/2<=Basis!$M$9,"Uit",(100-((H16+I16)/2/Basis!$L$9*100))*Basis!$Y$6)))) -> 36.83333333 | K16: 4 | L16: 0 | M16: Uit | N16: 4 | O16: 21 | P16: =IF(N16="","",IF(N16*60+O16>Basis!$U$9,"Uit",BL16+BM16)) -> 2.4 | R16: Uit | U16: Uit | V16: FP VD 16/17 | X16: 66 | Y16: 0 | Z16: - | AA16: - | AB16: - | AC16: - | AD16: - | AE16: - | AF16: - | AG16: - | AH16: - | AI16: - | AJ16: - | AK16: - | AL16: - | AM16: - | AN16: - | AO16: - | AP16: FP | AQ16: - | AR16: - | AS16: - | AT16: - | AX16: Uit | AY16: FP VD 16/17 | BA16: 66 | BC16: 11:36:00 | BD16: 11:40:21 | BE16: 00:04:21 | BF16: 4 | BG16: 21 | BI16: =IF(K16="","",IF(ISTEXT(K16),K16,IF(K16>Basis!$N$9,"Uit",IF(ISBLANK(L16),K16,K16+L16)))) -> 4 | BJ16: 40.83333333 | BK16: 261 | BL16: =IF(N16="","",IF(BK16<=Basis!$F$9,0,(BK16-Basis!$F$9)*0.4)) -> 2.4 | BM16: =IF(N16="","",IF(BK16>Basis!$G$9,0,(Basis!$G$9-BK16)*0.4)) -> 0 | BN16: Uit
A17: 13 | C17: 68 | D17: 801139HS | E17: Martijn van Stiphout | F17: Hannibal | G17: RV. Nijnselse Ruiters | H17: 220 | I17: 220 | J17: =IF(H17="","",IF(ISTEXT(H17),H17,IF(I17="","",IF((H17+I17)/2<=Basis!$M$9,"Uit",(100-((H17+I17)/2/Basis!$L$9*100))*Basis!$Y$6)))) -> 26.66666667 | K17: 0 | L17: 0 | M17: Uit | N17: 4 | O17: 32 | P17: =IF(N17="","",IF(N17*60+O17>Basis!$U$9,"Uit",BL17+BM17)) -> 6.8 | R17: Uit | U17: Uit | V17: FP VD 16/17 | X17: 68 | Y17: 0 | Z17: - | AA17: - | AB17: - | AC17: - | AD17: - | AE17: - | AF17: - | AG17: - | AH17: - | AI17: - | AJ17: - | AK17: - | AL17: - | AM17: - | AN17: - | AO17: - | AP17: FP | AQ17: - | AR17: - | AS17: - | AT17: - | AX17: Uit | AY17: FP VD 16/17 | BA17: 68 | BC17: 11:40:00 | BD17: 11:44:32 | BE17: 00:04:32 | BF17: 4 | BG17: 32 | BI17: =IF(K17="","",IF(ISTEXT(K17),K17,IF(K17>Basis!$N$9,"Uit",IF(ISBLANK(L17),K17,K17+L17)))) -> 0 | BJ17: 26.66666667 | BK17: 272 | BL17: =IF(N17="","",IF(BK17<=Basis!$F$9,0,(BK17-Basis!$F$9)*0.4)) -> 6.8 | BM17: =IF(N17="","",IF(BK17>Basis!$G$9,0,(Basis!$G$9-BK17)*0.4)) -> 0 | BN17: Uit
C18: 70 | D18: 771357BL | E18: Harry van Loon | F18: Bill Bailey | G18: RV. Mierden | H18: NG | J18: =IF(H18="","",IF(ISTEXT(H18),H18,IF(I18="","",IF((H18+I18)/2<=Basis!$M$9,"Uit",(100-((H18+I18)/2/Basis!$L$9*100))*Basis!$Y$6)))) -> NG | K18: NG | M18: NG | P18: =IF(N18="","",IF(N18*60+O18>Basis!$U$9,"Uit",BL18+BM18)) ->  | R18: NG | U18: NG | X18: 70 | Y18: NG | AX18: =IF(Y18="","",IF(ISTEXT(Y18),Y18,SUM(Y18:AW18))) -> NG | BA18: 70 | BC18: 11:44:00 | BI18: =IF(K18="","",IF(ISTEXT(K18),K18,IF(K18>Basis!$N$9,"Uit",IF(ISBLANK(L18),K18,K18+L18)))) -> NG | BJ18: NG | BL18: =IF(N18="","",IF(BK18<=Basis!$F$9,0,(BK18-Basis!$F$9)*0.4)) ->  | BM18: =IF(N18="","",IF(BK18>Basis!$G$9,0,(Basis!$G$9-BK18)*0.4)) ->  | BN18: NG
C19: 74 | D19: 788311UO | E19: Fran Oostenmeijer | F19: Un de Neipo | G19: RV. Gastlicentie | H19: NG | J19: =IF(H19="","",IF(ISTEXT(H19),H19,IF(I19="","",IF((H19+I19)/2<=Basis!$M$9,"Uit",(100-((H19+I19)/2/Basis!$L$9*100))*Basis!$Y$6)))) -> NG | K19: NG | M19: NG | P19: =IF(N19="","",IF(N19*60+O19>Basis!$U$9,"Uit",BL19+BM19)) ->  | R19: NG | U19: NG | X19: 74 | Y19: NG | AX19: =IF(Y19="","",IF(ISTEXT(Y19),Y19,SUM(Y19:AW19))) -> NG | BA19: 74 | BC19: 12:30:00 | BI19: =IF(K19="","",IF(ISTEXT(K19),K19,IF(K19>Basis!$N$9,"Uit",IF(ISBLANK(L19),K19,K19+L19)))) -> NG | BJ19: NG | BL19: =IF(N19="","",IF(BK19<=Basis!$F$9,0,(BK19-Basis!$F$9)*0.4)) ->  | BM19: =IF(N19="","",IF(BK19>Basis!$G$9,0,(Basis!$G$9-BK19)*0.4)) ->  | BN19: NG
C20: 76 | D20: 856220GB | E20: Willem Broekman | F20: Gidion | G20: RV. de Voornruiters | H20: NG | J20: =IF(H20="","",IF(ISTEXT(H20),H20,IF(I20="","",IF((H20+I20)/2<=Basis!$M$9,"Uit",(100-((H20+I20)/2/Basis!$L$9*100))*Basis!$Y$6)))) -> NG | K20: NG | M20: NG | P20: =IF(N20="","",IF(N20*60+O20>Basis!$U$9,"Uit",BL20+BM20)) ->  | R20: NG | U20: NG | X20: 76 | Y20: NG | AX20: =IF(Y20="","",IF(ISTEXT(Y20),Y20,SUM(Y20:AW20))) -> NG | BA20: 76 | BC20: 12:34:00 | BI20: =IF(K20="","",IF(ISTEXT(K20),K20,IF(K20>Basis!$N$9,"Uit",IF(ISBLANK(L20),K20,K20+L20)))) -> NG | BJ20: NG | BL20: =IF(N20="","",IF(BK20<=Basis!$F$9,0,(BK20-Basis!$F$9)*0.4)) ->  | BM20: =IF(N20="","",IF(BK20>Basis!$G$9,0,(Basis!$G$9-BK20)*0.4)) ->  | BN20: NG
C21: 88 | D21: 802945MB | E21: Lilian Bakker | F21: Taloubet 2 K Z | G21: Manege De Hoef V.O.F. | H21: 171 | I21: 171 | J21: =IF(H21="","",IF(ISTEXT(H21),H21,IF(I21="","",IF((H21+I21)/2<=Basis!$M$9,"Uit",(100-((H21+I21)/2/Basis!$L$9*100))*Basis!$Y$6)))) -> 43 | K21: NG | M21: NG | P21: =IF(N21="","",IF(N21*60+O21>Basis!$U$9,"Uit",BL21+BM21)) ->  | R21: NG | U21: NG | X21: 88 | Y21: NG | AX21: =IF(Y21="","",IF(ISTEXT(Y21),Y21,SUM(Y21:AW21))) -> NG | BA21: 88 | BC21: 13:00:00 | BI21: =IF(K21="","",IF(ISTEXT(K21),K21,IF(K21>Basis!$N$9,"Uit",IF(ISBLANK(L21),K21,K21+L21)))) -> NG | BJ21: NG | BL21: =IF(N21="","",IF(BK21<=Basis!$F$9,0,(BK21-Basis!$F$9)*0.4)) ->  | BM21: =IF(N21="","",IF(BK21>Basis!$G$9,0,(Basis!$G$9-BK21)*0.4)) ->  | BN21: NG
C22: 98 | D22: 824358HC | E22: Minouche Castricum | F22: High Five | G22: Manege De Hoef V.O.F. | H22: 181 | I22: 181 | J22: =IF(H22="","",IF(ISTEXT(H22),H22,IF(I22="","",IF((H22+I22)/2<=Basis!$M$9,"Uit",(100-((H22+I22)/2/Basis!$L$9*100))*Basis!$Y$6)))) -> 39.66666667 | K22: NG | M22: NG | P22: =IF(N22="","",IF(N22*60+O22>Basis!$U$9,"Uit",BL22+BM22)) ->  | R22: NG | U22: NG | X22: 98 | Y22: NG | AX22: =IF(Y22="","",IF(ISTEXT(Y22),Y22,SUM(Y22:AW22))) -> NG | BA22: 98 | BC22: 13:18:00 | BI22: =IF(K22="","",IF(ISTEXT(K22),K22,IF(K22>Basis!$N$9,"Uit",IF(ISBLANK(L22),K22,K22+L22)))) -> NG | BJ22: NG | BL22: =IF(N22="","",IF(BK22<=Basis!$F$9,0,(BK22-Basis!$F$9)*0.4)) ->  | BM22: =IF(N22="","",IF(BK22>Basis!$G$9,0,(Basis!$G$9-BK22)*0.4)) ->  | BN22: NG
J23: =IF(H23="","",IF(ISTEXT(H23),H23,IF(I23="","",IF((H23+I23)/2<=Basis!$M$9,"Uit",(100-((H23+I23)/2/Basis!$L$9*100))*Basis!$Y$6)))) ->  | M23: =IF(AX23="","",AX23) ->  | N23: =IF(ISBLANK(BD23),"",BF23) ->  | O23: =IF(ISBLANK(BD23),"",BG23) ->  | P23: =IF(N23="","",IF(N23*60+O23>Basis!$U$9,"Uit",BL23+BM23)) ->  | R23: =IF(ISTEXT(BJ23),BJ23,IF(OR(ISBLANK(M23),M23="",ISBLANK(Y23)),BJ23,IF(ISTEXT(BN23),BN23,BJ23+BN23))) ->  | U23: =IF(R23="","",IF(ISTEXT(R23),R23,R23-S23-T23)) ->  | V23: =IF(AY23="","",AY23) ->  | X23: =IF($C23="","",$C23) ->  | AX23: =IF(Y23="","",IF(ISTEXT(Y23),Y23,SUM(Y23:AW23))) ->  | BA23: =IF($C23="","",$C23) ->  | BE23: =IF(ISBLANK(BD23),"",BD23-BC23) ->  | BF23: =IF(ISBLANK(BD23),"",MINUTE(BE23)) ->  | BG23: =IF(ISBLANK(BD23),"",SECOND(BE23)) ->  | BI23: =IF(K23="","",IF(ISTEXT(K23),K23,IF(K23>Basis!$N$9,"Uit",IF(ISBLANK(L23),K23,K23+L23)))) ->  | BJ23: =IF(OR(ISTEXT(J23),BI23=""),J23,IF(ISTEXT(BI23),BI23,J23+BI23)) ->  | BK23: =IF(N23="","",N23*60+O23) ->  | BL23: =IF(N23="","",IF(BK23<=Basis!$F$9,0,(BK23-Basis!$F$9)*0.4)) ->  | BM23: =IF(N23="","",IF(BK23>Basis!$G$9,0,(Basis!$G$9-BK23)*0.4)) ->  | BN23: =IF(M23="","",IF(ISTEXT(M23),M23,IF(ISTEXT(P23),P23,M23+P23))) -> 
J24: =IF(H24="","",IF(ISTEXT(H24),H24,IF(I24="","",IF((H24+I24)/2<=Basis!$M$9,"Uit",(100-((H24+I24)/2/Basis!$L$9*100))*Basis!$Y$6)))) ->  | P24: =IF(N24="","",IF(N24*60+O24>Basis!$U$9,"Uit",BL24+BM24)) ->  | BI24: =IF(K24="","",IF(ISTEXT(K24),K24,IF(K24>Basis!$N$9,"Uit",IF(ISBLANK(L24),K24,K24+L24)))) ->  | BL24: =IF(N24="","",IF(BK24<=Basis!$F$9,0,(BK24-Basis!$F$9)*0.4)) ->  | BM24: =IF(N24="","",IF(BK24>Basis!$G$9,0,(Basis!$G$9-BK24)*0.4)) -> 
J25: =IF(H25="","",IF(ISTEXT(H25),H25,IF(I25="","",IF((H25+I25)/2<=Basis!$M$9,"Uit",(100-((H25+I25)/2/Basis!$L$9*100))*Basis!$Y$6)))) ->  | P25: =IF(N25="","",IF(N25*60+O25>Basis!$U$9,"Uit",BL25+BM25)) ->  | BI25: =IF(K25="","",IF(ISTEXT(K25),K25,IF(K25>Basis!$N$9,"Uit",IF(ISBLANK(L25),K25,K25+L25)))) ->  | BL25: =IF(N25="","",IF(BK25<=Basis!$F$9,0,(BK25-Basis!$F$9)*0.4)) ->  | BM25: =IF(N25="","",IF(BK25>Basis!$G$9,0,(Basis!$G$9-BK25)*0.4)) -> 
J26: =IF(H26="","",IF(ISTEXT(H26),H26,IF(I26="","",IF((H26+I26)/2<=Basis!$M$9,"Uit",(100-((H26+I26)/2/Basis!$L$9*100))*Basis!$Y$6)))) ->  | P26: =IF(N26="","",IF(N26*60+O26>Basis!$U$9,"Uit",BL26+BM26)) ->  | BI26: =IF(K26="","",IF(ISTEXT(K26),K26,IF(K26>Basis!$N$9,"Uit",IF(ISBLANK(L26),K26,K26+L26)))) ->  | BL26: =IF(N26="","",IF(BK26<=Basis!$F$9,0,(BK26-Basis!$F$9)*0.4)) ->  | BM26: =IF(N26="","",IF(BK26>Basis!$G$9,0,(Basis!$G$9-BK26)*0.4)) -> 
J27: =IF(H27="","",IF(ISTEXT(H27),H27,IF(I27="","",IF((H27+I27)/2<=Basis!$M$9,"Uit",(100-((H27+I27)/2/Basis!$L$9*100))*Basis!$Y$6)))) ->  | P27: =IF(N27="","",IF(N27*60+O27>Basis!$U$9,"Uit",BL27+BM27)) ->  | BI27: =IF(K27="","",IF(ISTEXT(K27),K27,IF(K27>Basis!$N$9,"Uit",IF(ISBLANK(L27),K27,K27+L27)))) ->  | BL27: =IF(N27="","",IF(BK27<=Basis!$F$9,0,(BK27-Basis!$F$9)*0.4)) ->  | BM27: =IF(N27="","",IF(BK27>Basis!$G$9,0,(Basis!$G$9-BK27)*0.4)) -> 
J28: =IF(H28="","",IF(ISTEXT(H28),H28,IF(I28="","",IF((H28+I28)/2<=Basis!$M$9,"Uit",(100-((H28+I28)/2/Basis!$L$9*100))*Basis!$Y$6)))) ->  | M28: =IF(AX28="","",AX28) ->  | N28: =IF(ISBLANK(BD28),"",BF28) ->  | O28: =IF(ISBLANK(BD28),"",BG28) ->  | P28: =IF(N28="","",IF(N28*60+O28>Basis!$U$9,"Uit",BL28+BM28)) ->  | R28: =IF(ISTEXT(BJ28),BJ28,IF(OR(ISBLANK(M28),M28="",ISBLANK(Y28)),BJ28,IF(ISTEXT(BN28),BN28,BJ28+BN28))) ->  | U28: =IF(R28="","",IF(ISTEXT(R28),R28,R28-S28-T28)) ->  | V28: =IF(AY28="","",AY28) ->  | AX28: =IF(Y28="","",IF(ISTEXT(Y28),Y28,SUM(Y28:AW28))) ->  | BE28: =IF(ISBLANK(BD28),"",BD28-BC28) ->  | BF28: =IF(ISBLANK(BD28),"",MINUTE(BE28)) ->  | BG28: =IF(ISBLANK(BD28),"",SECOND(BE28)) ->  | BI28: =IF(K28="","",IF(ISTEXT(K28),K28,IF(K28>Basis!$N$9,"Uit",IF(ISBLANK(L28),K28,K28+L28)))) ->  | BJ28: =IF(OR(ISTEXT(J28),BI28=""),J28,IF(ISTEXT(BI28),BI28,J28+BI28)) ->  | BK28: =IF(N28="","",N28*60+O28) ->  | BL28: =IF(N28="","",IF(BK28<=Basis!$F$9,0,(BK28-Basis!$F$9)*0.4)) ->  | BM28: =IF(N28="","",IF(BK28>Basis!$G$9,0,(Basis!$G$9-BK28)*0.4)) ->  | BN28: =IF(M28="","",IF(ISTEXT(M28),M28,IF(ISTEXT(P28),P28,M28+P28))) -> 
A29: Bij uitsluiting reden vermelden : | P29: =NOW() -> 2018-06-30T22:02:24.880 | X29: =A29 -> Bij uitsluiting reden vermelden : | AU29: =NOW() -> 2018-06-30T22:02:24.880
A30: VP=val paard, VR=val ruiter, 3W=3 weigeringen op zelfde hindernis, 4W=4 weigeringen totaal, FP=foutief parcours, Vr.v= vrijwillig verlaten | X30: =A30 -> VP=val paard, VR=val ruiter, 3W=3 weigeringen op zelfde hindernis, 4W=4 weigeringen totaal, FP=foutief parcours, Vr.v= vrijwillig verlaten

Sheet Ring 2 M-CDE
A1: =" Samengestelde wedstrijd "&Basis!D18 -> Samengestelde wedstrijd Eventing Leende 30 juni 2018 | G1: Klasse M - Cat CDE - Ring 2 | L1: Dressuurjury : | M1: Martine van Winden | X1: Verzamelstaat hindernisfouten in de cross | AK1: =A1 -> Samengestelde wedstrijd Eventing Leende 30 juni 2018 | BA1: =G1&" " -> Klasse M - Cat CDE - Ring 2 | BC1: Indien aankomstUUR cross wordt meegedeeld : | BI1: Hulpkolommen
A2: rank | B2: pony | C2: rugnr | D2: combinatie nr | E2: naam ruiter | F2: naam pony | G2: vereniging / plaats | I2: dressuur | J2: dressuur | K2: hind.ft. | L2: tijd.ft. | M2: hind.ft. | N2: min | O2: sec | P2: tijd.ft. | R2: totaal | S2: (1) stijl | T2: (2) stijl | U2: eind- | V2: reden | Y2: hindernisnummer | BI2: Uitslag | BJ2: NA | BK2: tijd (sec) | BL2: tijd.ft. | BM2: reg.ft. | BN2: totaal
A3: HC | B3: cat. | I3: totaal | J3: strafpntn. | K3: springen | L3: springen | M3: cross | N3: cross | P3: =Basis!$H$26&":"&TEXT(Basis!$I$26,"00") -> 4:15 | S3: cijfer | T3: cijfer | U3: totaal | V3: uitsluiting | X3: nr | Y3: 1 | Z3: 2 | AA3: 3 | AB3: 4ab | AC3: 5 | AD3: 6 | AE3: 7 | AF3: 8 | AG3: 9 | AH3: 10 | AI3: 11 | AJ3: 12 | AK3: 13 | AL3: 14 | AM3: 15 | AN3: VD | AO3: 16ab | AP3: VD | AQ3: 17 | AR3: F | AX3: totaal | AY3: reden uitsluiting | AZ3: hind. | BA3: nr | BC3: Vertrekuur | BD3: Aankomst | BE3: Tijd | BF3: Minuten | BG3: Seconden | BI3: Springen | BJ3: Springen | BK3: cross | BL3: opt.tijd = | BM3: =Basis!$H$26&":"&TEXT(Basis!$I$26,"00") -> 4:15 | BN3: cross
R4: =IF(ISBLANK(I4),"",IF(AND(ISBLANK(K4),ISBLANK(Y4)),J4,IF(ISTEXT(K4),K4,IF(OR(ISBLANK(M4),M4=""),J4+K4+L4,IF(ISTEXT(M4),M4,IF(ISBLANK(Y4),J4+K4+L4,J4+K4+L4+M4+P4+Q4)))))) -> 
A5: 1 | B5: D | C5: 106 | D5: 824433SS | E5: Jill Streppel | F5: Schanebroek's Chubby Lee | G5: PC. PPSV. Bussloo | I5: 199 | J5: =IF(I5="","",IF(ISTEXT(I5),I5,IF(I5<=Basis!$M$26,"Uit",(100-(I5/Basis!$L$26*100))*Basis!$Y$19))) -> 33.66666667 | K5: 0 | L5: 0 | M5: =IF(AX5="","",AX5) -> 0 | N5: =IF(ISBLANK(BD5),"",BF5) -> 4 | O5: =IF(ISBLANK(BD5),"",BG5) -> 19 | P5: =IF(N5="","",IF(N5*60+O5>Basis!$U$26,"Uit",BL5+BM5)) -> 1.6 | R5: =IF(ISTEXT(BJ5),BJ5,IF(OR(ISBLANK(M5),M5="",ISBLANK(Y5)),BJ5,IF(ISTEXT(BN5),BN5,BJ5+BN5))) -> 35.26666667 | U5: =IF(R5="","",IF(ISTEXT(R5),R5,R5-S5-T5)) -> 35.26666667 | V5: =IF(AY5="","",AY5) ->  | X5: =IF($C5="","",$C5) -> 106 | Y5: 0 | Z5: - | AA5: - | AB5: - | AC5: - | AD5: - | AE5: - | AF5: - | AG5: - | AH5: - | AI5: - | AJ5: - | AK5: - | AL5: - | AM5: - | AN5: - | AO5: - | AP5: - | AQ5: - | AR5: - | AX5: =IF(Y5="","",IF(ISTEXT(Y5),Y5,SUM(Y5:AW5))) -> 0 | BA5: =IF($C5="","",$C5) -> 106 | BC5: 13:34:00 | BD5: 13:38:19 | BE5: =IF(ISBLANK(BD5),"",BD5-BC5) -> 00:04:19 | BF5: =IF(ISBLANK(BD5),"",MINUTE(BE5)) -> 4 | BG5: =IF(ISBLANK(BD5),"",SECOND(BE5)) -> 19 | BI5: =IF(K5="","",IF(ISTEXT(K5),K5,IF(K5>Basis!$N$26,"Uit",IF(ISBLANK(L5),K5,K5+L5)))) -> 0 | BJ5: =IF(OR(ISTEXT(J5),BI5=""),J5,IF(ISTEXT(BI5),BI5,J5+BI5)) -> 33.66666667 | BK5: =IF(N5="","",N5*60+O5) -> 259 | BL5: =IF(N5="","",IF(BK5<=Basis!$F$26,0,(BK5-Basis!$F$26)*0.4)) -> 1.6 | BM5: =IF(N5="","",IF(BK5>Basis!$G$26,0,(Basis!$G$26-BK5)*0.4)) -> 0 | BN5: =IF(M5="","",IF(ISTEXT(M5),M5,IF(ISTEXT(P5),P5,M5+P5))) -> 1.6
A6: 2 | B6: D | C6: 107 | D6: 807412MB | E6: Merle Bloem | F6: Mernie | G6: PC. Isidorusruiters | I6: 188.5 | J6: =IF(I6="","",IF(ISTEXT(I6),I6,IF(I6<=Basis!$M$26,"Uit",(100-(I6/Basis!$L$26*100))*Basis!$Y$19))) -> 37.16666667 | K6: 0 | L6: 0 | M6: 0 | N6: 4 | O6: 14 | P6: =IF(N6="","",IF(N6*60+O6>Basis!$U$26,"Uit",BL6+BM6)) -> 0 | R6: 37.16666667 | U6: 37.16666667 | X6: 107 | Y6: 0 | Z6: - | AA6: - | AB6: - | AC6: - | AD6: - | AE6: - | AF6: - | AG6: - | AH6: - | AI6: - | AJ6: - | AK6: - | AL6: - | AM6: - | AN6: - | AO6: - | AP6: - | AQ6: - | AR6: - | AX6: 0 | BA6: 107 | BC6: 13:36:00 | BD6: 13:40:14 | BE6: 00:04:14 | BF6: 4 | BG6: 14 | BI6: =IF(K6="","",IF(ISTEXT(K6),K6,IF(K6>Basis!$N$26,"Uit",IF(ISBLANK(L6),K6,K6+L6)))) -> 0 | BJ6: 37.16666667 | BK6: 254 | BL6: =IF(N6="","",IF(BK6<=Basis!$F$26,0,(BK6-Basis!$F$26)*0.4)) -> 0 | BM6: =IF(N6="","",IF(BK6>Basis!$G$26,0,(Basis!$G$26-BK6)*0.4)) -> 0 | BN6: 0
A7: 3 | B7: D | C7: 101 | D7: 823142WB | E7: Puck Buijnsters | F7: Wielbraek's Ingaro | G7: PC. De Cavalieren | I7: 206.5 | J7: =IF(I7="","",IF(ISTEXT(I7),I7,IF(I7<=Basis!$M$26,"Uit",(100-(I7/Basis!$L$26*100))*Basis!$Y$19))) -> 31.16666667 | K7: 0 | L7: 0 | M7: 0 | N7: 4 | O7: 47 | P7: =IF(N7="","",IF(N7*60+O7>Basis!$U$26,"Uit",BL7+BM7)) -> 12.8 | R7: 43.96666667 | U7: 43.96666667 | X7: 101 | Y7: 0 | Z7: - | AA7: - | AB7: - | AC7: - | AD7: - | AE7: - | AF7: - | AG7: - | AH7: - | AI7: - | AJ7: - | AK7: - | AL7: - | AM7: - | AN7: - | AO7: - | AP7: - | AQ7: - | AR7: - | AX7: 0 | BA7: 101 | BC7: 13:24:00 | BD7: 13:28:47 | BE7: 00:04:47 | BF7: 4 | BG7: 47 | BI7: =IF(K7="","",IF(ISTEXT(K7),K7,IF(K7>Basis!$N$26,"Uit",IF(ISBLANK(L7),K7,K7+L7)))) -> 0 | BJ7: 31.16666667 | BK7: 287 | BL7: =IF(N7="","",IF(BK7<=Basis!$F$26,0,(BK7-Basis!$F$26)*0.4)) -> 12.8 | BM7: =IF(N7="","",IF(BK7>Basis!$G$26,0,(Basis!$G$26-BK7)*0.4)) -> 0 | BN7: 12.8
A8: 4 | B8: D | C8: 111 | D8: 756598NH | E8: Senna van Houte | F8: Naughty Boy | I8: 164.5 | J8: =IF(I8="","",IF(ISTEXT(I8),I8,IF(I8<=Basis!$M$26,"Uit",(100-(I8/Basis!$L$26*100))*Basis!$Y$19))) -> 45.16666667 | K8: 0 | L8: 0 | M8: 0 | N8: 3 | O8: 43 | P8: =IF(N8="","",IF(N8*60+O8>Basis!$U$26,"Uit",BL8+BM8)) -> 1.2 | R8: 46.36666667 | U8: 46.36666667 | X8: 111 | Y8: 0 | Z8: - | AA8: - | AB8: - | AC8: - | AD8: - | AE8: - | AF8: - | AG8: - | AH8: - | AI8: - | AJ8: - | AK8: - | AL8: - | AM8: - | AN8: - | AO8: - | AP8: - | AQ8: - | AR8: - | AX8: 0 | BA8: 111 | BC8: 14:12:00 | BD8: 14:15:43 | BE8: 00:03:43 | BF8: 3 | BG8: 43 | BI8: =IF(K8="","",IF(ISTEXT(K8),K8,IF(K8>Basis!$N$25,"Uit",IF(ISBLANK(L8),K8,K8+L8)))) -> 0 | BJ8: 45.16666667 | BK8: 223 | BL8: =IF(N8="","",IF(BK8<=Basis!$F$25,0,(BK8-Basis!$F$25)*0.4)) -> 1.2 | BM8: =IF(N8="","",IF(BK8>Basis!$G$25,0,(Basis!$G$25-BK8)*0.4)) -> 0 | BN8: 1.2
A9: 5 | B9: D | C9: 104 | D9: 778641SS | E9: Audrey Smits | F9: Shanouk S | G9: PC. De Duinrakkertjes | I9: 182 | J9: =IF(I9="","",IF(ISTEXT(I9),I9,IF(I9<=Basis!$M$26,"Uit",(100-(I9/Basis!$L$26*100))*Basis!$Y$19))) -> 39.33333333 | K9: 4 | L9: 0 | M9: 0 | N9: 4 | O9: 29 | P9: =IF(N9="","",IF(N9*60+O9>Basis!$U$26,"Uit",BL9+BM9)) -> 5.6 | R9: 48.93333333 | U9: 48.93333333 | X9: 104 | Y9: 0 | Z9: - | AA9: - | AB9: - | AC9: - | AD9: - | AE9: - | AF9: - | AG9: - | AH9: - | AI9: - | AJ9: - | AK9: - | AL9: - | AM9: - | AN9: - | AO9: - | AP9: - | AQ9: - | AR9: - | AX9: 0 | BA9: 104 | BC9: 13:30:00 | BD9: 13:34:29 | BE9: 00:04:29 | BF9: 4 | BG9: 29 | BI9: =IF(K9="","",IF(ISTEXT(K9),K9,IF(K9>Basis!$N$26,"Uit",IF(ISBLANK(L9),K9,K9+L9)))) -> 4 | BJ9: 43.33333333 | BK9: 269 | BL9: =IF(N9="","",IF(BK9<=Basis!$F$26,0,(BK9-Basis!$F$26)*0.4)) -> 5.6 | BM9: =IF(N9="","",IF(BK9>Basis!$G$26,0,(Basis!$G$26-BK9)*0.4)) -> 0 | BN9: 5.6
A10: 6 | B10: D | C10: 103 | D10: 681487BP | E10: Coen Philipsen | F10: Bianca | G10: PC. St. Jan Merselo | I10: 169 | J10: =IF(I10="","",IF(ISTEXT(I10),I10,IF(I10<=Basis!$M$26,"Uit",(100-(I10/Basis!$L$26*100))*Basis!$Y$19))) -> 43.66666667 | K10: 0 | L10: 0 | M10: 40 | N10: 4 | O10: 39 | P10: =IF(N10="","",IF(N10*60+O10>Basis!$U$26,"Uit",BL10+BM10)) -> 9.6 | R10: 93.26666667 | U10: 93.26666667 | X10: 103 | Y10: 20 | Z10: 20 | AA10: - | AB10: - | AC10: - | AD10: - | AE10: - | AF10: - | AG10: - | AH10: - | AI10: - | AJ10: - | AK10: - | AL10: - | AM10: - | AN10: - | AO10: - | AP10: - | AQ10: - | AR10: - | AX10: 40 | BA10: 103 | BC10: 13:28:00 | BD10: 13:32:39 | BE10: 00:04:39 | BF10: 4 | BG10: 39 | BI10: =IF(K10="","",IF(ISTEXT(K10),K10,IF(K10>Basis!$N$26,"Uit",IF(ISBLANK(L10),K10,K10+L10)))) -> 0 | BJ10: 43.66666667 | BK10: 279 | BL10: =IF(N10="","",IF(BK10<=Basis!$F$26,0,(BK10-Basis!$F$26)*0.4)) -> 9.6 | BM10: =IF(N10="","",IF(BK10>Basis!$G$26,0,(Basis!$G$26-BK10)*0.4)) -> 0 | BN10: 49.6
A11: 7 | B11: D | C11: 105 | D11: 766977AB | E11: Marieke de Bruijn | F11: Annabel de L'eguille | G11: PC. De Bosruiterkes | I11: 204.5 | J11: =IF(I11="","",IF(ISTEXT(I11),I11,IF(I11<=Basis!$M$26,"Uit",(100-(I11/Basis!$L$26*100))*Basis!$Y$19))) -> 31.83333333 | K11: 0 | L11: 0 | M11: 40 | N11: 5 | O11: 42 | P11: =IF(N11="","",IF(N11*60+O11>Basis!$U$26,"Uit",BL11+BM11)) -> 34.8 | R11: 106.6333333 | U11: 106.6333333 | X11: 105 | Y11: 0 | Z11: - | AA11: - | AB11: - | AC11: - | AD11: - | AE11: - | AF11: - | AG11: 20 | AH11: - | AI11: - | AJ11: - | AK11: - | AL11: - | AM11: - | AN11: - | AO11: 20 | AP11: - | AQ11: - | AR11: - | AX11: 40 | BA11: 105 | BC11: 13:32:00 | BD11: 13:37:42 | BE11: 00:05:42 | BF11: 5 | BG11: 42 | BI11: =IF(K11="","",IF(ISTEXT(K11),K11,IF(K11>Basis!$N$26,"Uit",IF(ISBLANK(L11),K11,K11+L11)))) -> 0 | BJ11: 31.83333333 | BK11: 342 | BL11: =IF(N11="","",IF(BK11<=Basis!$F$26,0,(BK11-Basis!$F$26)*0.4)) -> 34.8 | BM11: =IF(N11="","",IF(BK11>Basis!$G$26,0,(Basis!$G$26-BK11)*0.4)) -> 0 | BN11: 74.8
B12: D | C12: 102 | D12: 808797GJ | E12: Caya Jochems | F12: Goudlokje | G12: PC. De Voornruiters | I12: 178.5 | J12: =IF(I12="","",IF(ISTEXT(I12),I12,IF(I12<=Basis!$M$26,"Uit",(100-(I12/Basis!$L$26*100))*Basis!$Y$19))) -> 40.5 | K12: 4W | M12: NG | P12: =IF(N12="","",IF(N12*60+O12>Basis!$U$26,"Uit",BL12+BM12)) ->  | R12: 4W | U12: Uit | V12: 4W spr. | X12: 102 | Y12: NG | AX12: NG | BA12: 102 | BC12: 13:26:00 | BI12: =IF(K12="","",IF(ISTEXT(K12),K12,IF(K12>Basis!$N$26,"Uit",IF(ISBLANK(L12),K12,K12+L12)))) -> 4W | BJ12: 4W | BL12: =IF(N12="","",IF(BK12<=Basis!$F$26,0,(BK12-Basis!$F$26)*0.4)) ->  | BM12: =IF(N12="","",IF(BK12>Basis!$G$26,0,(Basis!$G$26-BK12)*0.4)) ->  | BN12: NG
B13: D | C13: 108 | D13: 840481HW | E13: Sophie Weening | F13: Hip Hop | G13: PC. 't Reelaer (hsv.) | I13: 196.5 | J13: =IF(I13="","",IF(ISTEXT(I13),I13,IF(I13<=Basis!$M$26,"Uit",(100-(I13/Basis!$L$26*100))*Basis!$Y$19))) -> 34.5 | K13: VR | M13: NG | P13: =IF(N13="","",IF(N13*60+O13>Basis!$U$26,"Uit",BL13+BM13)) ->  | R13: VR | U13: Uit | V13: VR spr. | X13: 108 | Y13: NG | AX13: NG | BA13: 108 | BC13: 13:38:00 | BI13: =IF(K13="","",IF(ISTEXT(K13),K13,IF(K13>Basis!$N$26,"Uit",IF(ISBLANK(L13),K13,K13+L13)))) -> VR | BJ13: VR | BL13: =IF(N13="","",IF(BK13<=Basis!$F$26,0,(BK13-Basis!$F$26)*0.4)) ->  | BM13: =IF(N13="","",IF(BK13>Basis!$G$26,0,(Basis!$G$26-BK13)*0.4)) ->  | BN13: NG
B14: D | C14: 109 | J14: =IF(I14="","",IF(ISTEXT(I14),I14,IF(I14<=Basis!$M$26,"Uit",(100-(I14/Basis!$L$26*100))*Basis!$Y$19))) ->  | P14: =IF(N14="","",IF(N14*60+O14>Basis!$U$26,"Uit",BL14+BM14)) ->  | U14: =IF(R14="","",IF(ISTEXT(R14),R14,R14-S14-T14)) ->  | V14: =IF(AY14="","",AY14) ->  | X14: 109 | BA14: 109 | BC14: 13:40:00 | BI14: =IF(K14="","",IF(ISTEXT(K14),K14,IF(K14>Basis!$N$26,"Uit",IF(ISBLANK(L14),K14,K14+L14)))) ->  | BL14: =IF(N14="","",IF(BK14<=Basis!$F$26,0,(BK14-Basis!$F$26)*0.4)) ->  | BM14: =IF(N14="","",IF(BK14>Basis!$G$26,0,(Basis!$G$26-BK14)*0.4)) -> 
J15: =IF(I15="","",IF(ISTEXT(I15),I15,IF(I15<=Basis!$M$26,"Uit",(100-(I15/Basis!$L$26*100))*Basis!$Y$19))) ->  | M15: =IF(AX15="","",AX15) ->  | N15: =IF(ISBLANK(BD15),"",BF15) ->  | O15: =IF(ISBLANK(BD15),"",BG15) ->  | P15: =IF(N15="","",IF(N15*60+O15>Basis!$U$26,"Uit",BL15+BM15)) ->  | R15: =IF(ISTEXT(BJ15),BJ15,IF(OR(ISBLANK(M15),M15="",ISBLANK(Y15)),BJ15,IF(ISTEXT(BN15),BN15,BJ15+BN15))) ->  | U15: =IF(R15="","",IF(ISTEXT(R15),R15,R15-S15-T15)) ->  | V15: =IF(AY15="","",AY15) ->  | X15: =IF($C15="","",$C15) ->  | AX15: =IF(Y15="","",IF(ISTEXT(Y15),Y15,SUM(Y15:AW15))) ->  | BA15: =IF($C15="","",$C15) ->  | BE15: =IF(ISBLANK(BD15),"",BD15-BC15) ->  | BF15: =IF(ISBLANK(BD15),"",MINUTE(BE15)) ->  | BG15: =IF(ISBLANK(BD15),"",SECOND(BE15)) ->  | BI15: =IF(K15="","",IF(ISTEXT(K15),K15,IF(K15>Basis!$N$26,"Uit",IF(ISBLANK(L15),K15,K15+L15)))) ->  | BJ15: =IF(OR(ISTEXT(J15),BI15=""),J15,IF(ISTEXT(BI15),BI15,J15+BI15)) ->  | BK15: =IF(N15="","",N15*60+O15) ->  | BL15: =IF(N15="","",IF(BK15<=Basis!$F$26,0,(BK15-Basis!$F$26)*0.4)) ->  | BM15: =IF(N15="","",IF(BK15>Basis!$G$26,0,(Basis!$G$26-BK15)*0.4)) ->  | BN15: =IF(M15="","",IF(ISTEXT(M15),M15,IF(ISTEXT(P15),P15,M15+P15))) -> 
J16: =IF(I16="","",IF(ISTEXT(I16),I16,IF(I16<=Basis!$M$26,"Uit",(100-(I16/Basis!$L$26*100))*Basis!$Y$19))) ->  | P16: =IF(N16="","",IF(N16*60+O16>Basis!$U$26,"Uit",BL16+BM16)) ->  | BI16: =IF(K16="","",IF(ISTEXT(K16),K16,IF(K16>Basis!$N$26,"Uit",IF(ISBLANK(L16),K16,K16+L16)))) ->  | BL16: =IF(N16="","",IF(BK16<=Basis!$F$26,0,(BK16-Basis!$F$26)*0.4)) ->  | BM16: =IF(N16="","",IF(BK16>Basis!$G$26,0,(Basis!$G$26-BK16)*0.4)) -> 
J17: =IF(I17="","",IF(ISTEXT(I17),I17,IF(I17<=Basis!$M$26,"Uit",(100-(I17/Basis!$L$26*100))*Basis!$Y$19))) ->  | P17: =IF(N17="","",IF(N17*60+O17>Basis!$U$26,"Uit",BL17+BM17)) ->  | BI17: =IF(K17="","",IF(ISTEXT(K17),K17,IF(K17>Basis!$N$26,"Uit",IF(ISBLANK(L17),K17,K17+L17)))) ->  | BL17: =IF(N17="","",IF(BK17<=Basis!$F$26,0,(BK17-Basis!$F$26)*0.4)) ->  | BM17: =IF(N17="","",IF(BK17>Basis!$G$26,0,(Basis!$G$26-BK17)*0.4)) -> 
J18: =IF(I18="","",IF(ISTEXT(I18),I18,IF(I18<=Basis!$M$26,"Uit",(100-(I18/Basis!$L$26*100))*Basis!$Y$19))) ->  | P18: =IF(N18="","",IF(N18*60+O18>Basis!$U$26,"Uit",BL18+BM18)) ->  | BI18: =IF(K18="","",IF(ISTEXT(K18),K18,IF(K18>Basis!$N$26,"Uit",IF(ISBLANK(L18),K18,K18+L18)))) ->  | BL18: =IF(N18="","",IF(BK18<=Basis!$F$26,0,(BK18-Basis!$F$26)*0.4)) ->  | BM18: =IF(N18="","",IF(BK18>Basis!$G$26,0,(Basis!$G$26-BK18)*0.4)) -> 
J19: =IF(I19="","",IF(ISTEXT(I19),I19,IF(I19<=Basis!$M$26,"Uit",(100-(I19/Basis!$L$26*100))*Basis!$Y$19))) ->  | P19: =IF(N19="","",IF(N19*60+O19>Basis!$U$26,"Uit",BL19+BM19)) ->  | BI19: =IF(K19="","",IF(ISTEXT(K19),K19,IF(K19>Basis!$N$26,"Uit",IF(ISBLANK(L19),K19,K19+L19)))) ->  | BL19: =IF(N19="","",IF(BK19<=Basis!$F$26,0,(BK19-Basis!$F$26)*0.4)) ->  | BM19: =IF(N19="","",IF(BK19>Basis!$G$26,0,(Basis!$G$26-BK19)*0.4)) -> 
A20: Bij uitsluiting reden vermelden : | P20: =NOW() -> 2018-06-30T22:02:24.880 | X20: =A20 -> Bij uitsluiting reden vermelden : | AU20: =NOW() -> 2018-06-30T22:02:24.880
A21: VP=val paard, VR=val ruiter, 3W=3 weigeringen op zelfde hindernis, 4W=4 weigeringen totaal, FP=foutief parcours, Vr.v= vrijwillig verlaten | X21: =A21 -> VP=val paard, VR=val ruiter, 3W=3 weigeringen op zelfde hindernis, 4W=4 weigeringen totaal, FP=foutief parcours, Vr.v= vrijwillig verlaten

Sheet Paarden M (hidden)
A1: =" Samengestelde wedstrijd "&Basis!D5 -> Samengestelde wedstrijd Eventing Leende 30 juni 2018 | G1: Klasse M - Ring 3 | K1: Dressuurjury : | X1: Verzamelstaat hindernisfouten in de cross | AK1: =A1 -> Samengestelde wedstrijd Eventing Leende 30 juni 2018 | BA1: =G1&" " -> Klasse M - Ring 3 | BC1: Indien aankomstUUR cross wordt meegedeeld : | BI1: Hulpkolommen
A2: rank | C2: rugnr | D2: combinatie nr | E2: naam ruiter | F2: naam paard | G2: vereniging / plaats | I2: dressuur | J2: dressuur | K2: hind.ft. | L2: tijd.ft. | M2: hind.ft. | N2: min | O2: sec | P2: tijd.ft. | R2: totaal | S2: (1) stijl | T2: (2) stijl | U2: eind- | V2: reden | Y2: hindernisnummer | BI2: Uitslag | BJ2: NA | BK2: tijd (sec) | BL2: tijd.ft. | BM2: reg.ft. | BN2: totaal
A3: HC | I3: totaal | J3: strafpntn. | K3: springen | L3: springen | M3: cross | N3: cross | P3: =Basis!$H$10&":"&TEXT(Basis!$I$10,"00") -> 4:36 | S3: cijfer | T3: cijfer | U3: totaal | V3: uitsluiting | X3: nr | Y3: 1 | Z3: 2 | AA3: 3 | AB3: 4 | AC3: 5 | AD3: 6 | AE3: 7 | AF3: 8 | AG3: 9 | AH3: 10 | AI3: 11 | AJ3: 12 | AK3: 13 | AL3: 14 | AM3: 15 | AN3: 16 | AO3: 17 | AP3: 18 | AQ3: 19 | AR3: 20 | AS3: 21 | AT3: 22 | AU3: 23 | AV3: 24 | AW3: 25 | AX3: totaal | AY3: reden uitsluiting | AZ3: hind. | BA3: nr | BC3: Vertrekuur | BD3: Aankomst | BE3: Tijd | BF3: Minuten | BG3: Seconden | BI3: Springen | BJ3: Springen | BK3: cross | BL3: opt.tijd = | BM3: =Basis!$H$10&":"&TEXT(Basis!$I$10,"00") -> 4:36 | BN3: cross
R4: =IF(ISBLANK(I4),"",IF(AND(ISBLANK(K4),ISBLANK(Y4)),J4,IF(ISTEXT(K4),K4,IF(OR(ISBLANK(M4),M4=""),J4+K4+L4,IF(ISTEXT(M4),M4,IF(ISBLANK(Y4),J4+K4+L4,J4+K4+L4+M4+P4+Q4)))))) -> 
C5: 1 | J5: =IF(I5="","",IF(ISTEXT(I5),I5,IF(I5<=Basis!$M$10,"Uit",(100-(I5/Basis!$L$10*100))*Basis!$Y$6))) ->  | M5: =IF(AX5="","",AX5) ->  | N5: =IF(ISBLANK(BD5),"",BF5) ->  | O5: =IF(ISBLANK(BD5),"",BG5) ->  | P5: =IF(N5="","",IF(N5*60+O5>Basis!$U$10,"Uit",BL5+BM5)) ->  | R5: =IF(ISTEXT(BJ5),BJ5,IF(OR(ISBLANK(M5),M5="",ISBLANK(Y5)),BJ5,IF(ISTEXT(BN5),BN5,BJ5+BN5))) ->  | U5: =IF(R5="","",IF(ISTEXT(R5),R5,R5-S5-T5)) ->  | V5: =IF(AY5="","",AY5) ->  | X5: =IF($C5="","",$C5) -> 1 | Z5: - | AA5: - | AB5: - | AC5: - | AD5: - | AE5: - | AF5: - | AG5: - | AH5: - | AI5: - | AJ5: - | AK5: - | AL5: - | AM5: - | AN5: - | AO5: - | AP5: - | AQ5: - | AR5: - | AS5: - | AT5: - | AU5: - | AV5: - | AW5: - | AX5: =IF(Y5="","",IF(ISTEXT(Y5),Y5,SUM(Y5:AW5))) ->  | BA5: =IF($C5="","",$C5) -> 1 | BC5: 10:00:00 | BE5: =IF(ISBLANK(BD5),"",BD5-BC5) ->  | BF5: =IF(ISBLANK(BD5),"",MINUTE(BE5)) ->  | BG5: =IF(ISBLANK(BD5),"",SECOND(BE5)) ->  | BI5: =IF(K5="","",IF(ISTEXT(K5),K5,IF(K5>Basis!$N$10,"Uit",IF(ISBLANK(L5),K5,K5+L5)))) ->  | BJ5: =IF(OR(ISTEXT(J5),BI5=""),J5,IF(ISTEXT(BI5),BI5,J5+BI5)) ->  | BK5: =IF(N5="","",N5*60+O5) ->  | BL5: =IF(N5="","",IF(BK5<=Basis!$F$10,0,(BK5-Basis!$F$10)*0.4)) ->  | BM5: =IF(N5="","",IF(BK5>Basis!$G$10,0,(Basis!$G$10-BK5)*0.4)) ->  | BN5: =IF(M5="","",IF(ISTEXT(M5),M5,IF(ISTEXT(P5),P5,M5+P5))) -> 
C6: 2 | J6: =IF(I6="","",IF(ISTEXT(I6),I6,IF(I6<=Basis!$M$10,"Uit",(100-(I6/Basis!$L$10*100))*Basis!$Y$6))) ->  | P6: =IF(N6="","",IF(N6*60+O6>Basis!$U$10,"Uit",BL6+BM6)) ->  | X6: 2 | Z6: - | AA6: - | AB6: - | AC6: - | AD6: - | AE6: - | AF6: - | AG6: - | AH6: - | AI6: - | AJ6: - | AK6: - | AL6: - | AM6: - | AN6: - | AO6: - | AP6: - | AQ6: - | AR6: - | AS6: - | AT6: - | AU6: - | AV6: - | AW6: - | BA6: 2 | BC6: 10:02:00 | BI6: =IF(K6="","",IF(ISTEXT(K6),K6,IF(K6>Basis!$N$10,"Uit",IF(ISBLANK(L6),K6,K6+L6)))) ->  | BJ6: =IF(OR(ISTEXT(J6),BI6=""),J6,IF(ISTEXT(BI6),BI6,J6+BI6)) ->  | BK6: =IF(N6="","",N6*60+O6) ->  | BL6: =IF(N6="","",IF(BK6<=Basis!$F$10,0,(BK6-Basis!$F$10)*0.4)) ->  | BM6: =IF(N6="","",IF(BK6>Basis!$G$10,0,(Basis!$G$10-BK6)*0.4)) ->  | BN6: =IF(M6="","",IF(ISTEXT(M6),M6,IF(ISTEXT(P6),P6,M6+P6))) -> 
C7: 3 | J7: =IF(I7="","",IF(ISTEXT(I7),I7,IF(I7<=Basis!$M$10,"Uit",(100-(I7/Basis!$L$10*100))*Basis!$Y$6))) ->  | P7: =IF(N7="","",IF(N7*60+O7>Basis!$U$10,"Uit",BL7+BM7)) ->  | X7: 3 | Z7: - | AA7: - | AB7: - | AC7: - | AD7: - | AE7: - | AF7: - | AG7: - | AH7: - | AI7: - | AJ7: - | AK7: - | AL7: - | AM7: - | AN7: - | AO7: - | AP7: - | AQ7: - | AR7: - | AS7: - | AT7: - | AU7: - | AV7: - | AW7: - | BA7: 3 | BC7: 10:04:00 | BI7: =IF(K7="","",IF(ISTEXT(K7),K7,IF(K7>Basis!$N$10,"Uit",IF(ISBLANK(L7),K7,K7+L7)))) ->  | BL7: =IF(N7="","",IF(BK7<=Basis!$F$10,0,(BK7-Basis!$F$10)*0.4)) ->  | BM7: =IF(N7="","",IF(BK7>Basis!$G$10,0,(Basis!$G$10-BK7)*0.4)) -> 
C8: 4 | J8: =IF(I8="","",IF(ISTEXT(I8),I8,IF(I8<=Basis!$M$10,"Uit",(100-(I8/Basis!$L$10*100))*Basis!$Y$6))) ->  | P8: =IF(N8="","",IF(N8*60+O8>Basis!$U$10,"Uit",BL8+BM8)) ->  | X8: 4 | Z8: - | AA8: - | AB8: - | AC8: - | AD8: - | AE8: - | AF8: - | AG8: - | AH8: - | AI8: - | AJ8: - | AK8: - | AL8: - | AM8: - | AN8: - | AO8: - | AP8: - | AQ8: - | AR8: - | AS8: - | AT8: - | AU8: - | AV8: - | AW8: - | BA8: 4 | BI8: =IF(K8="","",IF(ISTEXT(K8),K8,IF(K8>Basis!$N$10,"Uit",IF(ISBLANK(L8),K8,K8+L8)))) ->  | BL8: =IF(N8="","",IF(BK8<=Basis!$F$10,0,(BK8-Basis!$F$10)*0.4)) ->  | BM8: =IF(N8="","",IF(BK8>Basis!$G$10,0,(Basis!$G$10-BK8)*0.4)) -> 
C9: 5 | J9: =IF(I9="","",IF(ISTEXT(I9),I9,IF(I9<=Basis!$M$10,"Uit",(100-(I9/Basis!$L$10*100))*Basis!$Y$6))) ->  | P9: =IF(N9="","",IF(N9*60+O9>Basis!$U$10,"Uit",BL9+BM9)) ->  | X9: 5 | Z9: - | AA9: - | AB9: - | AC9: - | AD9: - | AE9: - | AF9: - | AG9: - | AH9: - | AI9: - | AJ9: - | AK9: - | AL9: - | AM9: - | AN9: - | AO9: - | AP9: - | AQ9: - | AR9: - | AS9: - | AT9: - | AU9: - | AV9: - | AW9: - | BA9: 5 | BI9: =IF(K9="","",IF(ISTEXT(K9),K9,IF(K9>Basis!$N$10,"Uit",IF(ISBLANK(L9),K9,K9+L9)))) ->  | BL9: =IF(N9="","",IF(BK9<=Basis!$F$10,0,(BK9-Basis!$F$10)*0.4)) ->  | BM9: =IF(N9="","",IF(BK9>Basis!$G$10,0,(Basis!$G$10-BK9)*0.4)) -> 
C10: 6 | J10: =IF(I10="","",IF(ISTEXT(I10),I10,IF(I10<=Basis!$M$10,"Uit",(100-(I10/Basis!$L$10*100))*Basis!$Y$6))) ->  | P10: =IF(N10="","",IF(N10*60+O10>Basis!$U$10,"Uit",BL10+BM10)) ->  | X10: 6 | Z10: - | AA10: - | AB10: - | AC10: - | AD10: - | AE10: - | AF10: - | AG10: - | AH10: - | AI10: - | AJ10: - | AK10: - | AL10: - | AM10: - | AN10: - | AO10: - | AP10: - | AQ10: - | AR10: - | AS10: - | AT10: - | AU10: - | AV10: - | AW10: - | BA10: 6 | BI10: =IF(K10="","",IF(ISTEXT(K10),K10,IF(K10>Basis!$N$10,"Uit",IF(ISBLANK(L10),K10,K10+L10)))) ->  | BL10: =IF(N10="","",IF(BK10<=Basis!$F$10,0,(BK10-Basis!$F$10)*0.4)) ->  | BM10: =IF(N10="","",IF(BK10>Basis!$G$10,0,(Basis!$G$10-BK10)*0.4)) -> 
C11: 7 | J11: =IF(I11="","",IF(ISTEXT(I11),I11,IF(I11<=Basis!$M$10,"Uit",(100-(I11/Basis!$L$10*100))*Basis!$Y$6))) ->  | P11: =IF(N11="","",IF(N11*60+O11>Basis!$U$10,"Uit",BL11+BM11)) ->  | X11: 7 | Z11: - | AA11: - | AB11: - | AC11: - | AD11: - | AE11: - | AF11: - | AG11: - | AH11: - | AI11: - | AJ11: - | AK11: - | AL11: - | AM11: - | AN11: - | AO11: - | AP11: - | AQ11: - | AR11: - | AS11: - | AT11: - | AU11: - | AV11: - | AW11: - | BA11: 7 | BI11: =IF(K11="","",IF(ISTEXT(K11),K11,IF(K11>Basis!$N$10,"Uit",IF(ISBLANK(L11),K11,K11+L11)))) ->  | BL11: =IF(N11="","",IF(BK11<=Basis!$F$10,0,(BK11-Basis!$F$10)*0.4)) ->  | BM11: =IF(N11="","",IF(BK11>Basis!$G$10,0,(Basis!$G$10-BK11)*0.4)) -> 
C12: 8 | J12: =IF(I12="","",IF(ISTEXT(I12),I12,IF(I12<=Basis!$M$10,"Uit",(100-(I12/Basis!$L$10*100))*Basis!$Y$6))) ->  | P12: =IF(N12="","",IF(N12*60+O12>Basis!$U$10,"Uit",BL12+BM12)) ->  | X12: 8 | Z12: - | AA12: - | AB12: - | AC12: - | AD12: - | AE12: - | AF12: - | AG12: - | AH12: - | AI12: - | AJ12: - | AK12: - | AL12: - | AM12: - | AN12: - | AO12: - | AP12: - | AQ12: - | AR12: - | AS12: - | AT12: - | AU12: - | AV12: - | AW12: - | BA12: 8 | BI12: =IF(K12="","",IF(ISTEXT(K12),K12,IF(K12>Basis!$N$10,"Uit",IF(ISBLANK(L12),K12,K12+L12)))) ->  | BL12: =IF(N12="","",IF(BK12<=Basis!$F$10,0,(BK12-Basis!$F$10)*0.4)) ->  | BM12: =IF(N12="","",IF(BK12>Basis!$G$10,0,(Basis!$G$10-BK12)*0.4)) -> 
C13: 9 | J13: =IF(I13="","",IF(ISTEXT(I13),I13,IF(I13<=Basis!$M$10,"Uit",(100-(I13/Basis!$L$10*100))*Basis!$Y$6))) ->  | P13: =IF(N13="","",IF(N13*60+O13>Basis!$U$10,"Uit",BL13+BM13)) ->  | X13: 9 | Z13: - | AA13: - | AB13: - | AC13: - | AD13: - | AE13: - | AF13: - | AG13: - | AH13: - | AI13: - | AJ13: - | AK13: - | AL13: - | AM13: - | AN13: - | AO13: - | AP13: - | AQ13: - | AR13: - | AS13: - | AT13: - | AU13: - | AV13: - | AW13: - | BA13: 9 | BI13: =IF(K13="","",IF(ISTEXT(K13),K13,IF(K13>Basis!$N$10,"Uit",IF(ISBLANK(L13),K13,K13+L13)))) ->  | BL13: =IF(N13="","",IF(BK13<=Basis!$F$10,0,(BK13-Basis!$F$10)*0.4)) ->  | BM13: =IF(N13="","",IF(BK13>Basis!$G$10,0,(Basis!$G$10-BK13)*0.4)) -> 
C14: 10 | J14: =IF(I14="","",IF(ISTEXT(I14),I14,IF(I14<=Basis!$M$10,"Uit",(100-(I14/Basis!$L$10*100))*Basis!$Y$6))) ->  | P14: =IF(N14="","",IF(N14*60+O14>Basis!$U$10,"Uit",BL14+BM14)) ->  | X14: 10 | Z14: - | AA14: - | AB14: - | AC14: - | AD14: - | AE14: - | AF14: - | AG14: - | AH14: - | AI14: - | AJ14: - | AK14: - | AL14: - | AM14: - | AN14: - | AO14: - | AP14: - | AQ14: - | AR14: - | AS14: - | AT14: - | AU14: - | AV14: - | AW14: - | BA14: 10 | BI14: =IF(K14="","",IF(ISTEXT(K14),K14,IF(K14>Basis!$N$10,"Uit",IF(ISBLANK(L14),K14,K14+L14)))) ->  | BL14: =IF(N14="","",IF(BK14<=Basis!$F$10,0,(BK14-Basis!$F$10)*0.4)) ->  | BM14: =IF(N14="","",IF(BK14>Basis!$G$10,0,(Basis!$G$10-BK14)*0.4)) -> 
J15: =IF(I15="","",IF(ISTEXT(I15),I15,IF(I15<=Basis!$M$10,"Uit",(100-(I15/Basis!$L$10*100))*Basis!$Y$6))) ->  | P15: =IF(N15="","",IF(N15*60+O15>Basis!$U$10,"Uit",BL15+BM15)) ->  | Z15: - | AA15: - | AB15: - | AC15: - | AD15: - | AE15: - | AF15: - | AG15: - | AH15: - | AI15: - | AJ15: - | AK15: - | AL15: - | AM15: - | AN15: - | AO15: - | AP15: - | AQ15: - | AR15: - | AS15: - | AT15: - | AU15: - | AV15: - | AW15: - | BI15: =IF(K15="","",IF(ISTEXT(K15),K15,IF(K15>Basis!$N$10,"Uit",IF(ISBLANK(L15),K15,K15+L15)))) ->  | BL15: =IF(N15="","",IF(BK15<=Basis!$F$10,0,(BK15-Basis!$F$10)*0.4)) ->  | BM15: =IF(N15="","",IF(BK15>Basis!$G$10,0,(Basis!$G$10-BK15)*0.4)) -> 
J16: =IF(I16="","",IF(ISTEXT(I16),I16,IF(I16<=Basis!$M$10,"Uit",(100-(I16/Basis!$L$10*100))*Basis!$Y$6))) ->  | P16: =IF(N16="","",IF(N16*60+O16>Basis!$U$10,"Uit",BL16+BM16)) ->  | Z16: - | AA16: - | AB16: - | AC16: - | AD16: - | AE16: - | AF16: - | AG16: - | AH16: - | AI16: - | AJ16: - | AK16: - | AL16: - | AM16: - | AN16: - | AO16: - | AP16: - | AQ16: - | AR16: - | AS16: - | AT16: - | AU16: - | AV16: - | AW16: - | BI16: =IF(K16="","",IF(ISTEXT(K16),K16,IF(K16>Basis!$N$10,"Uit",IF(ISBLANK(L16),K16,K16+L16)))) ->  | BL16: =IF(N16="","",IF(BK16<=Basis!$F$10,0,(BK16-Basis!$F$10)*0.4)) ->  | BM16: =IF(N16="","",IF(BK16>Basis!$G$10,0,(Basis!$G$10-BK16)*0.4)) -> 
J17: =IF(I17="","",IF(ISTEXT(I17),I17,IF(I17<=Basis!$M$10,"Uit",(100-(I17/Basis!$L$10*100))*Basis!$Y$6))) ->  | P17: =IF(N17="","",IF(N17*60+O17>Basis!$U$10,"Uit",BL17+BM17)) ->  | Z17: - | AA17: - | AB17: - | AC17: - | AD17: - | AE17: - | AF17: - | AG17: - | AH17: - | AI17: - | AJ17: - | AK17: - | AL17: - | AM17: - | AN17: - | AO17: - | AP17: - | AQ17: - | AR17: - | AS17: - | AT17: - | AU17: - | AV17: - | AW17: - | BI17: =IF(K17="","",IF(ISTEXT(K17),K17,IF(K17>Basis!$N$10,"Uit",IF(ISBLANK(L17),K17,K17+L17)))) ->  | BL17: =IF(N17="","",IF(BK17<=Basis!$F$10,0,(BK17-Basis!$F$10)*0.4)) ->  | BM17: =IF(N17="","",IF(BK17>Basis!$G$10,0,(Basis!$G$10-BK17)*0.4)) -> 
J18: =IF(I18="","",IF(ISTEXT(I18),I18,IF(I18<=Basis!$M$10,"Uit",(100-(I18/Basis!$L$10*100))*Basis!$Y$6))) ->  | P18: =IF(N18="","",IF(N18*60+O18>Basis!$U$10,"Uit",BL18+BM18)) ->  | Z18: - | AA18: - | AB18: - | AC18: - | AD18: - | AE18: - | AF18: - | AG18: - | AH18: - | AI18: - | AJ18: - | AK18: - | AL18: - | AM18: - | AN18: - | AO18: - | AP18: - | AQ18: - | AR18: - | AS18: - | AT18: - | AU18: - | AV18: - | AW18: - | BI18: =IF(K18="","",IF(ISTEXT(K18),K18,IF(K18>Basis!$N$10,"Uit",IF(ISBLANK(L18),K18,K18+L18)))) ->  | BL18: =IF(N18="","",IF(BK18<=Basis!$F$10,0,(BK18-Basis!$F$10)*0.4)) ->  | BM18: =IF(N18="","",IF(BK18>Basis!$G$10,0,(Basis!$G$10-BK18)*0.4)) -> 
J19: =IF(I19="","",IF(ISTEXT(I19),I19,IF(I19<=Basis!$M$10,"Uit",(100-(I19/Basis!$L$10*100))*Basis!$Y$6))) ->  | P19: =IF(N19="","",IF(N19*60+O19>Basis!$U$10,"Uit",BL19+BM19)) ->  | Z19: - | AA19: - | AB19: - | AC19: - | AD19: - | AE19: - | AF19: - | AG19: - | AH19: - | AI19: - | AJ19: - | AK19: - | AL19: - | AM19: - | AN19: - | AO19: - | AP19: - | AQ19: - | AR19: - | AS19: - | AT19: - | AU19: - | AV19: - | AW19: - | BI19: =IF(K19="","",IF(ISTEXT(K19),K19,IF(K19>Basis!$N$10,"Uit",IF(ISBLANK(L19),K19,K19+L19)))) ->  | BL19: =IF(N19="","",IF(BK19<=Basis!$F$10,0,(BK19-Basis!$F$10)*0.4)) ->  | BM19: =IF(N19="","",IF(BK19>Basis!$G$10,0,(Basis!$G$10-BK19)*0.4)) -> 
J20: =IF(I20="","",IF(ISTEXT(I20),I20,IF(I20<=Basis!$M$10,"Uit",(100-(I20/Basis!$L$10*100))*Basis!$Y$6))) ->  | P20: =IF(N20="","",IF(N20*60+O20>Basis!$U$10,"Uit",BL20+BM20)) ->  | Z20: - | AA20: - | AB20: - | AC20: - | AD20: - | AE20: - | AF20: - | AG20: - | AH20: - | AI20: - | AJ20: - | AK20: - | AL20: - | AM20: - | AN20: - | AO20: - | AP20: - | AQ20: - | AR20: - | AS20: - | AT20: - | AU20: - | AV20: - | AW20: - | BI20: =IF(K20="","",IF(ISTEXT(K20),K20,IF(K20>Basis!$N$10,"Uit",IF(ISBLANK(L20),K20,K20+L20)))) ->  | BL20: =IF(N20="","",IF(BK20<=Basis!$F$10,0,(BK20-Basis!$F$10)*0.4)) ->  | BM20: =IF(N20="","",IF(BK20>Basis!$G$10,0,(Basis!$G$10-BK20)*0.4)) -> 
J21: =IF(I21="","",IF(ISTEXT(I21),I21,IF(I21<=Basis!$M$10,"Uit",(100-(I21/Basis!$L$10*100))*Basis!$Y$6))) ->  | P21: =IF(N21="","",IF(N21*60+O21>Basis!$U$10,"Uit",BL21+BM21)) ->  | Z21: - | AA21: - | AB21: - | AC21: - | AD21: - | AE21: - | AF21: - | AG21: - | AH21: - | AI21: - | AJ21: - | AK21: - | AL21: - | AM21: - | AN21: - | AO21: - | AP21: - | AQ21: - | AR21: - | AS21: - | AT21: - | AU21: - | AV21: - | AW21: - | BI21: =IF(K21="","",IF(ISTEXT(K21),K21,IF(K21>Basis!$N$10,"Uit",IF(ISBLANK(L21),K21,K21+L21)))) ->  | BL21: =IF(N21="","",IF(BK21<=Basis!$F$10,0,(BK21-Basis!$F$10)*0.4)) ->  | BM21: =IF(N21="","",IF(BK21>Basis!$G$10,0,(Basis!$G$10-BK21)*0.4)) -> 
J22: =IF(I22="","",IF(ISTEXT(I22),I22,IF(I22<=Basis!$M$10,"Uit",(100-(I22/Basis!$L$10*100))*Basis!$Y$6))) ->  | P22: =IF(N22="","",IF(N22*60+O22>Basis!$U$10,"Uit",BL22+BM22)) ->  | Z22: - | AA22: - | AB22: - | AC22: - | AD22: - | AE22: - | AF22: - | AG22: - | AH22: - | AI22: - | AJ22: - | AK22: - | AL22: - | AM22: - | AN22: - | AO22: - | AP22: - | AQ22: - | AR22: - | AS22: - | AT22: - | AU22: - | AV22: - | AW22: - | BI22: =IF(K22="","",IF(ISTEXT(K22),K22,IF(K22>Basis!$N$10,"Uit",IF(ISBLANK(L22),K22,K22+L22)))) ->  | BL22: =IF(N22="","",IF(BK22<=Basis!$F$10,0,(BK22-Basis!$F$10)*0.4)) ->  | BM22: =IF(N22="","",IF(BK22>Basis!$G$10,0,(Basis!$G$10-BK22)*0.4)) -> 
J23: =IF(I23="","",IF(ISTEXT(I23),I23,IF(I23<=Basis!$M$10,"Uit",(100-(I23/Basis!$L$10*100))*Basis!$Y$6))) ->  | P23: =IF(N23="","",IF(N23*60+O23>Basis!$U$10,"Uit",BL23+BM23)) ->  | Z23: - | AA23: - | AB23: - | AC23: - | AD23: - | AE23: - | AF23: - | AG23: - | AH23: - | AI23: - | AJ23: - | AK23: - | AL23: - | AM23: - | AN23: - | AO23: - | AP23: - | AQ23: - | AR23: - | AS23: - | AT23: - | AU23: - | AV23: - | AW23: - | BI23: =IF(K23="","",IF(ISTEXT(K23),K23,IF(K23>Basis!$N$10,"Uit",IF(ISBLANK(L23),K23,K23+L23)))) ->  | BL23: =IF(N23="","",IF(BK23<=Basis!$F$10,0,(BK23-Basis!$F$10)*0.4)) ->  | BM23: =IF(N23="","",IF(BK23>Basis!$G$10,0,(Basis!$G$10-BK23)*0.4)) -> 
J24: =IF(I24="","",IF(ISTEXT(I24),I24,IF(I24<=Basis!$M$10,"Uit",(100-(I24/Basis!$L$10*100))*Basis!$Y$6))) ->  | P24: =IF(N24="","",IF(N24*60+O24>Basis!$U$10,"Uit",BL24+BM24)) ->  | Z24: - | AA24: - | AB24: - | AC24: - | AD24: - | AE24: - | AF24: - | AG24: - | AH24: - | AI24: - | AJ24: - | AK24: - | AL24: - | AM24: - | AN24: - | AO24: - | AP24: - | AQ24: - | AR24: - | AS24: - | AT24: - | AU24: - | AV24: - | AW24: - | BI24: =IF(K24="","",IF(ISTEXT(K24),K24,IF(K24>Basis!$N$10,"Uit",IF(ISBLANK(L24),K24,K24+L24)))) ->  | BL24: =IF(N24="","",IF(BK24<=Basis!$F$10,0,(BK24-Basis!$F$10)*0.4)) ->  | BM24: =IF(N24="","",IF(BK24>Basis!$G$10,0,(Basis!$G$10-BK24)*0.4)) -> 
J25: =IF(I25="","",IF(ISTEXT(I25),I25,IF(I25<=Basis!$M$10,"Uit",(100-(I25/Basis!$L$10*100))*Basis!$Y$6))) ->  | P25: =IF(N25="","",IF(N25*60+O25>Basis!$U$10,"Uit",BL25+BM25)) ->  | Z25: - | AA25: - | AB25: - | AC25: - | AD25: - | AE25: - | AF25: - | AG25: - | AH25: - | AI25: - | AJ25: - | AK25: - | AL25: - | AM25: - | AN25: - | AO25: - | AP25: - | AQ25: - | AR25: - | AS25: - | AT25: - | AU25: - | AV25: - | AW25: - | BI25: =IF(K25="","",IF(ISTEXT(K25),K25,IF(K25>Basis!$N$10,"Uit",IF(ISBLANK(L25),K25,K25+L25)))) ->  | BL25: =IF(N25="","",IF(BK25<=Basis!$F$10,0,(BK25-Basis!$F$10)*0.4)) ->  | BM25: =IF(N25="","",IF(BK25>Basis!$G$10,0,(Basis!$G$10-BK25)*0.4)) -> 
J26: =IF(I26="","",IF(ISTEXT(I26),I26,IF(I26<=Basis!$M$10,"Uit",(100-(I26/Basis!$L$10*100))*Basis!$Y$6))) ->  | P26: =IF(N26="","",IF(N26*60+O26>Basis!$U$10,"Uit",BL26+BM26)) ->  | Z26: - | AA26: - | AB26: - | AC26: - | AD26: - | AE26: - | AF26: - | AG26: - | AH26: - | AI26: - | AJ26: - | AK26: - | AL26: - | AM26: - | AN26: - | AO26: - | AP26: - | AQ26: - | AR26: - | AS26: - | AT26: - | AU26: - | AV26: - | AW26: - | BI26: =IF(K26="","",IF(ISTEXT(K26),K26,IF(K26>Basis!$N$10,"Uit",IF(ISBLANK(L26),K26,K26+L26)))) ->  | BL26: =IF(N26="","",IF(BK26<=Basis!$F$10,0,(BK26-Basis!$F$10)*0.4)) ->  | BM26: =IF(N26="","",IF(BK26>Basis!$G$10,0,(Basis!$G$10-BK26)*0.4)) -> 
J27: =IF(I27="","",IF(ISTEXT(I27),I27,IF(I27<=Basis!$M$10,"Uit",(100-(I27/Basis!$L$10*100))*Basis!$Y$6))) ->  | P27: =IF(N27="","",IF(N27*60+O27>Basis!$U$10,"Uit",BL27+BM27)) ->  | Z27: - | AA27: - | AB27: - | AC27: - | AD27: - | AE27: - | AF27: - | AG27: - | AH27: - | AI27: - | AJ27: - | AK27: - | AL27: - | AM27: - | AN27: - | AO27: - | AP27: - | AQ27: - | AR27: - | AS27: - | AT27: - | AU27: - | AV27: - | AW27: - | BI27: =IF(K27="","",IF(ISTEXT(K27),K27,IF(K27>Basis!$N$10,"Uit",IF(ISBLANK(L27),K27,K27+L27)))) ->  | BL27: =IF(N27="","",IF(BK27<=Basis!$F$10,0,(BK27-Basis!$F$10)*0.4)) ->  | BM27: =IF(N27="","",IF(BK27>Basis!$G$10,0,(Basis!$G$10-BK27)*0.4)) -> 
J28: =IF(I28="","",IF(ISTEXT(I28),I28,IF(I28<=Basis!$M$10,"Uit",(100-(I28/Basis!$L$10*100))*Basis!$Y$6))) ->  | P28: =IF(N28="","",IF(N28*60+O28>Basis!$U$10,"Uit",BL28+BM28)) ->  | Z28: - | AA28: - | AB28: - | AC28: - | AD28: - | AE28: - | AF28: - | AG28: - | AH28: - | AI28: - | AJ28: - | AK28: - | AL28: - | AM28: - | AN28: - | AO28: - | AP28: - | AQ28: - | AR28: - | AS28: - | AT28: - | AU28: - | AV28: - | AW28: - | BI28: =IF(K28="","",IF(ISTEXT(K28),K28,IF(K28>Basis!$N$10,"Uit",IF(ISBLANK(L28),K28,K28+L28)))) ->  | BL28: =IF(N28="","",IF(BK28<=Basis!$F$10,0,(BK28-Basis!$F$10)*0.4)) ->  | BM28: =IF(N28="","",IF(BK28>Basis!$G$10,0,(Basis!$G$10-BK28)*0.4)) -> 
J29: =IF(I29="","",IF(ISTEXT(I29),I29,IF(I29<=Basis!$M$10,"Uit",(100-(I29/Basis!$L$10*100))*Basis!$Y$6))) ->  | P29: =IF(N29="","",IF(N29*60+O29>Basis!$U$10,"Uit",BL29+BM29)) ->  | Z29: - | AA29: - | AB29: - | AC29: - | AD29: - | AE29: - | AF29: - | AG29: - | AH29: - | AI29: - | AJ29: - | AK29: - | AL29: - | AM29: - | AN29: - | AO29: - | AP29: - | AQ29: - | AR29: - | AS29: - | AT29: - | AU29: - | AV29: - | AW29: - | BI29: =IF(K29="","",IF(ISTEXT(K29),K29,IF(K29>Basis!$N$10,"Uit",IF(ISBLANK(L29),K29,K29+L29)))) ->  | BL29: =IF(N29="","",IF(BK29<=Basis!$F$10,0,(BK29-Basis!$F$10)*0.4)) ->  | BM29: =IF(N29="","",IF(BK29>Basis!$G$10,0,(Basis!$G$10-BK29)*0.4)) -> 
A30: Bij uitsluiting reden vermelden : | P30: =NOW() -> 2018-06-30T22:02:24.880 | X30: =A30 -> Bij uitsluiting reden vermelden : | AU30: =NOW() -> 2018-06-30T22:02:24.880
A31: VP=val paard, VR=val ruiter, 3W=3 weigeringen op zelfde hindernis, 4W=4 weigeringen totaal, FP=foutief parcours, Vr.v= vrijwillig verlaten | X31: =A31 -> VP=val paard, VR=val ruiter, 3W=3 weigeringen op zelfde hindernis, 4W=4 weigeringen totaal, FP=foutief parcours, Vr.v= vrijwillig verlaten

Sheet Paarden Z (hidden)
A1: =" Samengestelde wedstrijd "&Basis!D5 -> Samengestelde wedstrijd Eventing Leende 30 juni 2018 | G1: Klasse Z - Ring 4 | K1: Dressuurjury : | X1: Verzamelstaat hindernisfouten in de cross | AK1: =A1 -> Samengestelde wedstrijd Eventing Leende 30 juni 2018 | BA1: =G1&" " -> Klasse Z - Ring 4 | BC1: Indien aankomstUUR cross wordt meegedeeld : | BI1: Hulpkolommen
A2: rank | C2: rugnr | D2: combinatie nr | E2: naam ruiter | F2: naam paard | G2: vereniging / plaats | H2: dressuur | J2: dressuur | K2: hind.ft. | L2: tijd.ft. | M2: hind.ft. | N2: min | O2: sec | P2: tijd.ft. | R2: totaal | S2: (1) stijl | T2: (2) stijl | U2: eind- | V2: reden | Y2: hindernisnummer | BI2: Uitslag | BJ2: NA | BK2: tijd (sec) | BL2: tijd.ft. | BM2: reg.ft. | BN2: totaal
A3: HC | H3: Jury C | I3: Jury 2 | J3: strafpntn. | K3: springen | L3: springen | M3: cross | N3: cross | P3: =Basis!$H$11&":"&TEXT(Basis!$I$11,"00") -> 5:00 | S3: cijfer | T3: cijfer | U3: totaal | V3: uitsluiting | X3: nr | Y3: 1 | Z3: 2 | AA3: 3 | AB3: 4 | AC3: 5 | AD3: 6 | AE3: 7 | AF3: 8 | AG3: 9 | AH3: 10 | AI3: 11 | AJ3: 12 | AK3: 13 | AL3: 14 | AM3: 15 | AN3: 16 | AO3: 17 | AP3: 18 | AQ3: 19 | AR3: 20 | AS3: 21 | AT3: 22 | AU3: 23 | AV3: 24 | AW3: 25 | AX3: totaal | AY3: reden uitsluiting | AZ3: hind. | BA3: nr | BC3: Vertrekuur | BD3: Aankomst | BE3: Tijd | BF3: Minuten | BG3: Seconden | BI3: Springen | BJ3: Springen | BK3: cross | BL3: opt.tijd = | BM3: =Basis!$H$11&":"&TEXT(Basis!$I$11,"00") -> 5:00 | BN3: cross
R4: =IF(ISBLANK(I4),"",IF(AND(ISBLANK(K4),ISBLANK(Y4)),J4,IF(ISTEXT(K4),K4,IF(OR(ISBLANK(M4),M4=""),J4+K4+L4,IF(ISTEXT(M4),M4,IF(ISBLANK(Y4),J4+K4+L4,J4+K4+L4+M4+P4+Q4)))))) -> 
C5: 1 | J5: =IF(H5="","",IF(ISTEXT(H5),H5,IF(I5="","",IF((H5+I5)/2<=Basis!$M$11,"Uit",(100-((H5+I5)/2/Basis!$L$11*100))*Basis!$Y$6)))) ->  | M5: =IF(AX5="","",AX5) ->  | N5: =IF(ISBLANK(BD5),"",BF5) ->  | O5: =IF(ISBLANK(BD5),"",BG5) ->  | P5: =IF(N5="","",IF(N5*60+O5>Basis!$U$11,"Uit",BL5+BM5)) ->  | R5: =IF(ISTEXT(BJ5),BJ5,IF(OR(ISBLANK(M5),M5="",ISBLANK(Y5)),BJ5,IF(ISTEXT(BN5),BN5,BJ5+BN5))) ->  | U5: =IF(R5="","",IF(ISTEXT(R5),R5,R5-S5-T5)) ->  | V5: =IF(AY5="","",AY5) ->  | X5: =IF($C5="","",$C5) -> 1 | Z5: - | AA5: - | AB5: - | AC5: - | AD5: - | AE5: - | AF5: - | AG5: - | AH5: - | AI5: - | AJ5: - | AK5: - | AL5: - | AM5: - | AN5: - | AO5: - | AP5: - | AQ5: - | AR5: - | AS5: - | AT5: - | AU5: - | AV5: - | AW5: - | AX5: =IF(Y5="","",IF(ISTEXT(Y5),Y5,SUM(Y5:AW5))) ->  | BA5: =IF($C5="","",$C5) -> 1 | BC5: 10:00:00 | BE5: =IF(ISBLANK(BD5),"",BD5-BC5) ->  | BF5: =IF(ISBLANK(BD5),"",MINUTE(BE5)) ->  | BG5: =IF(ISBLANK(BD5),"",SECOND(BE5)) ->  | BI5: =IF(K5="","",IF(ISTEXT(K5),K5,IF(K5>Basis!$N$11,"Uit",IF(ISBLANK(L5),K5,K5+L5)))) ->  | BJ5: =IF(OR(ISTEXT(J5),BI5=""),J5,IF(ISTEXT(BI5),BI5,J5+BI5)) ->  | BK5: =IF(N5="","",N5*60+O5) ->  | BL5: =IF(N5="","",IF(BK5<=Basis!$F$11,0,(BK5-Basis!$F$11)*0.4)) ->  | BM5: =IF(N5="","",IF(BK5>Basis!$G$11,0,(Basis!$G$11-BK5)*0.4)) ->  | BN5: =IF(M5="","",IF(ISTEXT(M5),M5,IF(ISTEXT(P5),P5,M5+P5))) -> 
C6: 2 | J6: =IF(H6="","",IF(ISTEXT(H6),H6,IF(I6="","",IF((H6+I6)/2<=Basis!$M$11,"Uit",(100-((H6+I6)/2/Basis!$L$11*100))*Basis!$Y$6)))) ->  | P6: =IF(N6="","",IF(N6*60+O6>Basis!$U$11,"Uit",BL6+BM6)) ->  | X6: 2 | Z6: - | AA6: - | AB6: - | AC6: - | AD6: - | AE6: - | AF6: - | AG6: - | AH6: - | AI6: - | AJ6: - | AK6: - | AL6: - | AM6: - | AN6: - | AO6: - | AP6: - | AQ6: - | AR6: - | AS6: - | AT6: - | AU6: - | AV6: - | AW6: - | BA6: 2 | BC6: 10:02:00 | BI6: =IF(K6="","",IF(ISTEXT(K6),K6,IF(K6>Basis!$N$11,"Uit",IF(ISBLANK(L6),K6,K6+L6)))) ->  | BJ6: =IF(OR(ISTEXT(J6),BI6=""),J6,IF(ISTEXT(BI6),BI6,J6+BI6)) ->  | BK6: =IF(N6="","",N6*60+O6) ->  | BL6: =IF(N6="","",IF(BK6<=Basis!$F$11,0,(BK6-Basis!$F$11)*0.4)) ->  | BM6: =IF(N6="","",IF(BK6>Basis!$G$11,0,(Basis!$G$11-BK6)*0.4)) ->  | BN6: =IF(M6="","",IF(ISTEXT(M6),M6,IF(ISTEXT(P6),P6,M6+P6))) -> 
C7: 3 | J7: =IF(H7="","",IF(ISTEXT(H7),H7,IF(I7="","",IF((H7+I7)/2<=Basis!$M$11,"Uit",(100-((H7+I7)/2/Basis!$L$11*100))*Basis!$Y$6)))) ->  | P7: =IF(N7="","",IF(N7*60+O7>Basis!$U$11,"Uit",BL7+BM7)) ->  | X7: 3 | Z7: - | AA7: - | AB7: - | AC7: - | AD7: - | AE7: - | AF7: - | AG7: - | AH7: - | AI7: - | AJ7: - | AK7: - | AL7: - | AM7: - | AN7: - | AO7: - | AP7: - | AQ7: - | AR7: - | AS7: - | AT7: - | AU7: - | AV7: - | AW7: - | BA7: 3 | BC7: 10:04:00 | BI7: =IF(K7="","",IF(ISTEXT(K7),K7,IF(K7>Basis!$N$11,"Uit",IF(ISBLANK(L7),K7,K7+L7)))) ->  | BL7: =IF(N7="","",IF(BK7<=Basis!$F$11,0,(BK7-Basis!$F$11)*0.4)) ->  | BM7: =IF(N7="","",IF(BK7>Basis!$G$11,0,(Basis!$G$11-BK7)*0.4)) -> 
C8: 4 | J8: =IF(H8="","",IF(ISTEXT(H8),H8,IF(I8="","",IF((H8+I8)/2<=Basis!$M$11,"Uit",(100-((H8+I8)/2/Basis!$L$11*100))*Basis!$Y$6)))) ->  | P8: =IF(N8="","",IF(N8*60+O8>Basis!$U$11,"Uit",BL8+BM8)) ->  | X8: 4 | Z8: - | AA8: - | AB8: - | AC8: - | AD8: - | AE8: - | AF8: - | AG8: - | AH8: - | AI8: - | AJ8: - | AK8: - | AL8: - | AM8: - | AN8: - | AO8: - | AP8: - | AQ8: - | AR8: - | AS8: - | AT8: - | AU8: - | AV8: - | AW8: - | BA8: 4 | BI8: =IF(K8="","",IF(ISTEXT(K8),K8,IF(K8>Basis!$N$11,"Uit",IF(ISBLANK(L8),K8,K8+L8)))) ->  | BL8: =IF(N8="","",IF(BK8<=Basis!$F$11,0,(BK8-Basis!$F$11)*0.4)) ->  | BM8: =IF(N8="","",IF(BK8>Basis!$G$11,0,(Basis!$G$11-BK8)*0.4)) -> 
C9: 5 | J9: =IF(H9="","",IF(ISTEXT(H9),H9,IF(I9="","",IF((H9+I9)/2<=Basis!$M$11,"Uit",(100-((H9+I9)/2/Basis!$L$11*100))*Basis!$Y$6)))) ->  | P9: =IF(N9="","",IF(N9*60+O9>Basis!$U$11,"Uit",BL9+BM9)) ->  | X9: 5 | Z9: - | AA9: - | AB9: - | AC9: - | AD9: - | AE9: - | AF9: - | AG9: - | AH9: - | AI9: - | AJ9: - | AK9: - | AL9: - | AM9: - | AN9: - | AO9: - | AP9: - | AQ9: - | AR9: - | AS9: - | AT9: - | AU9: - | AV9: - | AW9: - | BA9: 5 | BI9: =IF(K9="","",IF(ISTEXT(K9),K9,IF(K9>Basis!$N$11,"Uit",IF(ISBLANK(L9),K9,K9+L9)))) ->  | BL9: =IF(N9="","",IF(BK9<=Basis!$F$11,0,(BK9-Basis!$F$11)*0.4)) ->  | BM9: =IF(N9="","",IF(BK9>Basis!$G$11,0,(Basis!$G$11-BK9)*0.4)) -> 
C10: 6 | J10: =IF(H10="","",IF(ISTEXT(H10),H10,IF(I10="","",IF((H10+I10)/2<=Basis!$M$11,"Uit",(100-((H10+I10)/2/Basis!$L$11*100))*Basis!$Y$6)))) ->  | P10: =IF(N10="","",IF(N10*60+O10>Basis!$U$11,"Uit",BL10+BM10)) ->  | X10: 6 | Z10: - | AA10: - | AB10: - | AC10: - | AD10: - | AE10: - | AF10: - | AG10: - | AH10: - | AI10: - | AJ10: - | AK10: - | AL10: - | AM10: - | AN10: - | AO10: - | AP10: - | AQ10: - | AR10: - | AS10: - | AT10: - | AU10: - | AV10: - | AW10: - | BA10: 6 | BI10: =IF(K10="","",IF(ISTEXT(K10),K10,IF(K10>Basis!$N$11,"Uit",IF(ISBLANK(L10),K10,K10+L10)))) ->  | BL10: =IF(N10="","",IF(BK10<=Basis!$F$11,0,(BK10-Basis!$F$11)*0.4)) ->  | BM10: =IF(N10="","",IF(BK10>Basis!$G$11,0,(Basis!$G$11-BK10)*0.4)) -> 
C11: 7 | J11: =IF(H11="","",IF(ISTEXT(H11),H11,IF(I11="","",IF((H11+I11)/2<=Basis!$M$11,"Uit",(100-((H11+I11)/2/Basis!$L$11*100))*Basis!$Y$6)))) ->  | P11: =IF(N11="","",IF(N11*60+O11>Basis!$U$11,"Uit",BL11+BM11)) ->  | X11: 7 | Z11: - | AA11: - | AB11: - | AC11: - | AD11: - | AE11: - | AF11: - | AG11: - | AH11: - | AI11: - | AJ11: - | AK11: - | AL11: - | AM11: - | AN11: - | AO11: - | AP11: - | AQ11: - | AR11: - | AS11: - | AT11: - | AU11: - | AV11: - | AW11: - | BA11: 7 | BI11: =IF(K11="","",IF(ISTEXT(K11),K11,IF(K11>Basis!$N$11,"Uit",IF(ISBLANK(L11),K11,K11+L11)))) ->  | BL11: =IF(N11="","",IF(BK11<=Basis!$F$11,0,(BK11-Basis!$F$11)*0.4)) ->  | BM11: =IF(N11="","",IF(BK11>Basis!$G$11,0,(Basis!$G$11-BK11)*0.4)) -> 
C12: 8 | J12: =IF(H12="","",IF(ISTEXT(H12),H12,IF(I12="","",IF((H12+I12)/2<=Basis!$M$11,"Uit",(100-((H12+I12)/2/Basis!$L$11*100))*Basis!$Y$6)))) ->  | P12: =IF(N12="","",IF(N12*60+O12>Basis!$U$11,"Uit",BL12+BM12)) ->  | X12: 8 | Z12: - | AA12: - | AB12: - | AC12: - | AD12: - | AE12: - | AF12: - | AG12: - | AH12: - | AI12: - | AJ12: - | AK12: - | AL12: - | AM12: - | AN12: - | AO12: - | AP12: - | AQ12: - | AR12: - | AS12: - | AT12: - | AU12: - | AV12: - | AW12: - | BA12: 8 | BI12: =IF(K12="","",IF(ISTEXT(K12),K12,IF(K12>Basis!$N$11,"Uit",IF(ISBLANK(L12),K12,K12+L12)))) ->  | BL12: =IF(N12="","",IF(BK12<=Basis!$F$11,0,(BK12-Basis!$F$11)*0.4)) ->  | BM12: =IF(N12="","",IF(BK12>Basis!$G$11,0,(Basis!$G$11-BK12)*0.4)) -> 
C13: 9 | J13: =IF(H13="","",IF(ISTEXT(H13),H13,IF(I13="","",IF((H13+I13)/2<=Basis!$M$11,"Uit",(100-((H13+I13)/2/Basis!$L$11*100))*Basis!$Y$6)))) ->  | P13: =IF(N13="","",IF(N13*60+O13>Basis!$U$11,"Uit",BL13+BM13)) ->  | X13: 9 | Z13: - | AA13: - | AB13: - | AC13: - | AD13: - | AE13: - | AF13: - | AG13: - | AH13: - | AI13: - | AJ13: - | AK13: - | AL13: - | AM13: - | AN13: - | AO13: - | AP13: - | AQ13: - | AR13: - | AS13: - | AT13: - | AU13: - | AV13: - | AW13: - | BA13: 9 | BI13: =IF(K13="","",IF(ISTEXT(K13),K13,IF(K13>Basis!$N$11,"Uit",IF(ISBLANK(L13),K13,K13+L13)))) ->  | BL13: =IF(N13="","",IF(BK13<=Basis!$F$11,0,(BK13-Basis!$F$11)*0.4)) ->  | BM13: =IF(N13="","",IF(BK13>Basis!$G$11,0,(Basis!$G$11-BK13)*0.4)) -> 
C14: 10 | J14: =IF(H14="","",IF(ISTEXT(H14),H14,IF(I14="","",IF((H14+I14)/2<=Basis!$M$11,"Uit",(100-((H14+I14)/2/Basis!$L$11*100))*Basis!$Y$6)))) ->  | P14: =IF(N14="","",IF(N14*60+O14>Basis!$U$11,"Uit",BL14+BM14)) ->  | X14: 10 | Z14: - | AA14: - | AB14: - | AC14: - | AD14: - | AE14: - | AF14: - | AG14: - | AH14: - | AI14: - | AJ14: - | AK14: - | AL14: - | AM14: - | AN14: - | AO14: - | AP14: - | AQ14: - | AR14: - | AS14: - | AT14: - | AU14: - | AV14: - | AW14: - | BA14: 10 | BI14: =IF(K14="","",IF(ISTEXT(K14),K14,IF(K14>Basis!$N$11,"Uit",IF(ISBLANK(L14),K14,K14+L14)))) ->  | BL14: =IF(N14="","",IF(BK14<=Basis!$F$11,0,(BK14-Basis!$F$11)*0.4)) ->  | BM14: =IF(N14="","",IF(BK14>Basis!$G$11,0,(Basis!$G$11-BK14)*0.4)) -> 
J15: =IF(H15="","",IF(ISTEXT(H15),H15,IF(I15="","",IF((H15+I15)/2<=Basis!$M$11,"Uit",(100-((H15+I15)/2/Basis!$L$11*100))*Basis!$Y$6)))) ->  | P15: =IF(N15="","",IF(N15*60+O15>Basis!$U$11,"Uit",BL15+BM15)) ->  | Z15: - | AA15: - | AB15: - | AC15: - | AD15: - | AE15: - | AF15: - | AG15: - | AH15: - | AI15: - | AJ15: - | AK15: - | AL15: - | AM15: - | AN15: - | AO15: - | AP15: - | AQ15: - | AR15: - | AS15: - | AT15: - | AU15: - | AV15: - | AW15: - | BI15: =IF(K15="","",IF(ISTEXT(K15),K15,IF(K15>Basis!$N$11,"Uit",IF(ISBLANK(L15),K15,K15+L15)))) ->  | BL15: =IF(N15="","",IF(BK15<=Basis!$F$11,0,(BK15-Basis!$F$11)*0.4)) ->  | BM15: =IF(N15="","",IF(BK15>Basis!$G$11,0,(Basis!$G$11-BK15)*0.4)) -> 
J16: =IF(H16="","",IF(ISTEXT(H16),H16,IF(I16="","",IF((H16+I16)/2<=Basis!$M$11,"Uit",(100-((H16+I16)/2/Basis!$L$11*100))*Basis!$Y$6)))) ->  | P16: =IF(N16="","",IF(N16*60+O16>Basis!$U$11,"Uit",BL16+BM16)) ->  | Z16: - | AA16: - | AB16: - | AC16: - | AD16: - | AE16: - | AF16: - | AG16: - | AH16: - | AI16: - | AJ16: - | AK16: - | AL16: - | AM16: - | AN16: - | AO16: - | AP16: - | AQ16: - | AR16: - | AS16: - | AT16: - | AU16: - | AV16: - | AW16: - | BI16: =IF(K16="","",IF(ISTEXT(K16),K16,IF(K16>Basis!$N$11,"Uit",IF(ISBLANK(L16),K16,K16+L16)))) ->  | BL16: =IF(N16="","",IF(BK16<=Basis!$F$11,0,(BK16-Basis!$F$11)*0.4)) ->  | BM16: =IF(N16="","",IF(BK16>Basis!$G$11,0,(Basis!$G$11-BK16)*0.4)) -> 
J17: =IF(H17="","",IF(ISTEXT(H17),H17,IF(I17="","",IF((H17+I17)/2<=Basis!$M$11,"Uit",(100-((H17+I17)/2/Basis!$L$11*100))*Basis!$Y$6)))) ->  | P17: =IF(N17="","",IF(N17*60+O17>Basis!$U$11,"Uit",BL17+BM17)) ->  | Z17: - | AA17: - | AB17: - | AC17: - | AD17: - | AE17: - | AF17: - | AG17: - | AH17: - | AI17: - | AJ17: - | AK17: - | AL17: - | AM17: - | AN17: - | AO17: - | AP17: - | AQ17: - | AR17: - | AS17: - | AT17: - | AU17: - | AV17: - | AW17: - | BI17: =IF(K17="","",IF(ISTEXT(K17),K17,IF(K17>Basis!$N$11,"Uit",IF(ISBLANK(L17),K17,K17+L17)))) ->  | BL17: =IF(N17="","",IF(BK17<=Basis!$F$11,0,(BK17-Basis!$F$11)*0.4)) ->  | BM17: =IF(N17="","",IF(BK17>Basis!$G$11,0,(Basis!$G$11-BK17)*0.4)) -> 
J18: =IF(H18="","",IF(ISTEXT(H18),H18,IF(I18="","",IF((H18+I18)/2<=Basis!$M$11,"Uit",(100-((H18+I18)/2/Basis!$L$11*100))*Basis!$Y$6)))) ->  | P18: =IF(N18="","",IF(N18*60+O18>Basis!$U$11,"Uit",BL18+BM18)) ->  | Z18: - | AA18: - | AB18: - | AC18: - | AD18: - | AE18: - | AF18: - | AG18: - | AH18: - | AI18: - | AJ18: - | AK18: - | AL18: - | AM18: - | AN18: - | AO18: - | AP18: - | AQ18: - | AR18: - | AS18: - | AT18: - | AU18: - | AV18: - | AW18: - | BI18: =IF(K18="","",IF(ISTEXT(K18),K18,IF(K18>Basis!$N$11,"Uit",IF(ISBLANK(L18),K18,K18+L18)))) ->  | BL18: =IF(N18="","",IF(BK18<=Basis!$F$11,0,(BK18-Basis!$F$11)*0.4)) ->  | BM18: =IF(N18="","",IF(BK18>Basis!$G$11,0,(Basis!$G$11-BK18)*0.4)) -> 
J19: =IF(H19="","",IF(ISTEXT(H19),H19,IF(I19="","",IF((H19+I19)/2<=Basis!$M$11,"Uit",(100-((H19+I19)/2/Basis!$L$11*100))*Basis!$Y$6)))) ->  | P19: =IF(N19="","",IF(N19*60+O19>Basis!$U$11,"Uit",BL19+BM19)) ->  | Z19: - | AA19: - | AB19: - | AC19: - | AD19: - | AE19: - | AF19: - | AG19: - | AH19: - | AI19: - | AJ19: - | AK19: - | AL19: - | AM19: - | AN19: - | AO19: - | AP19: - | AQ19: - | AR19: - | AS19: - | AT19: - | AU19: - | AV19: - | AW19: - | BI19: =IF(K19="","",IF(ISTEXT(K19),K19,IF(K19>Basis!$N$11,"Uit",IF(ISBLANK(L19),K19,K19+L19)))) ->  | BL19: =IF(N19="","",IF(BK19<=Basis!$F$11,0,(BK19-Basis!$F$11)*0.4)) ->  | BM19: =IF(N19="","",IF(BK19>Basis!$G$11,0,(Basis!$G$11-BK19)*0.4)) -> 
J20: =IF(H20="","",IF(ISTEXT(H20),H20,IF(I20="","",IF((H20+I20)/2<=Basis!$M$11,"Uit",(100-((H20+I20)/2/Basis!$L$11*100))*Basis!$Y$6)))) ->  | P20: =IF(N20="","",IF(N20*60+O20>Basis!$U$11,"Uit",BL20+BM20)) ->  | Z20: - | AA20: - | AB20: - | AC20: - | AD20: - | AE20: - | AF20: - | AG20: - | AH20: - | AI20: - | AJ20: - | AK20: - | AL20: - | AM20: - | AN20: - | AO20: - | AP20: - | AQ20: - | AR20: - | AS20: - | AT20: - | AU20: - | AV20: - | AW20: - | BI20: =IF(K20="","",IF(ISTEXT(K20),K20,IF(K20>Basis!$N$11,"Uit",IF(ISBLANK(L20),K20,K20+L20)))) ->  | BL20: =IF(N20="","",IF(BK20<=Basis!$F$11,0,(BK20-Basis!$F$11)*0.4)) ->  | BM20: =IF(N20="","",IF(BK20>Basis!$G$11,0,(Basis!$G$11-BK20)*0.4)) -> 
J21: =IF(H21="","",IF(ISTEXT(H21),H21,IF(I21="","",IF((H21+I21)/2<=Basis!$M$11,"Uit",(100-((H21+I21)/2/Basis!$L$11*100))*Basis!$Y$6)))) ->  | P21: =IF(N21="","",IF(N21*60+O21>Basis!$U$11,"Uit",BL21+BM21)) ->  | Z21: - | AA21: - | AB21: - | AC21: - | AD21: - | AE21: - | AF21: - | AG21: - | AH21: - | AI21: - | AJ21: - | AK21: - | AL21: - | AM21: - | AN21: - | AO21: - | AP21: - | AQ21: - | AR21: - | AS21: - | AT21: - | AU21: - | AV21: - | AW21: - | BI21: =IF(K21="","",IF(ISTEXT(K21),K21,IF(K21>Basis!$N$11,"Uit",IF(ISBLANK(L21),K21,K21+L21)))) ->  | BL21: =IF(N21="","",IF(BK21<=Basis!$F$11,0,(BK21-Basis!$F$11)*0.4)) ->  | BM21: =IF(N21="","",IF(BK21>Basis!$G$11,0,(Basis!$G$11-BK21)*0.4)) -> 
J22: =IF(H22="","",IF(ISTEXT(H22),H22,IF(I22="","",IF((H22+I22)/2<=Basis!$M$11,"Uit",(100-((H22+I22)/2/Basis!$L$11*100))*Basis!$Y$6)))) ->  | P22: =IF(N22="","",IF(N22*60+O22>Basis!$U$11,"Uit",BL22+BM22)) ->  | Z22: - | AA22: - | AB22: - | AC22: - | AD22: - | AE22: - | AF22: - | AG22: - | AH22: - | AI22: - | AJ22: - | AK22: - | AL22: - | AM22: - | AN22: - | AO22: - | AP22: - | AQ22: - | AR22: - | AS22: - | AT22: - | AU22: - | AV22: - | AW22: - | BI22: =IF(K22="","",IF(ISTEXT(K22),K22,IF(K22>Basis!$N$11,"Uit",IF(ISBLANK(L22),K22,K22+L22)))) ->  | BL22: =IF(N22="","",IF(BK22<=Basis!$F$11,0,(BK22-Basis!$F$11)*0.4)) ->  | BM22: =IF(N22="","",IF(BK22>Basis!$G$11,0,(Basis!$G$11-BK22)*0.4)) -> 
J23: =IF(H23="","",IF(ISTEXT(H23),H23,IF(I23="","",IF((H23+I23)/2<=Basis!$M$11,"Uit",(100-((H23+I23)/2/Basis!$L$11*100))*Basis!$Y$6)))) ->  | P23: =IF(N23="","",IF(N23*60+O23>Basis!$U$11,"Uit",BL23+BM23)) ->  | Z23: - | AA23: - | AB23: - | AC23: - | AD23: - | AE23: - | AF23: - | AG23: - | AH23: - | AI23: - | AJ23: - | AK23: - | AL23: - | AM23: - | AN23: - | AO23: - | AP23: - | AQ23: - | AR23: - | AS23: - | AT23: - | AU23: - | AV23: - | AW23: - | BI23: =IF(K23="","",IF(ISTEXT(K23),K23,IF(K23>Basis!$N$11,"Uit",IF(ISBLANK(L23),K23,K23+L23)))) ->  | BL23: =IF(N23="","",IF(BK23<=Basis!$F$11,0,(BK23-Basis!$F$11)*0.4)) ->  | BM23: =IF(N23="","",IF(BK23>Basis!$G$11,0,(Basis!$G$11-BK23)*0.4)) -> 
J24: =IF(H24="","",IF(ISTEXT(H24),H24,IF(I24="","",IF((H24+I24)/2<=Basis!$M$11,"Uit",(100-((H24+I24)/2/Basis!$L$11*100))*Basis!$Y$6)))) ->  | P24: =IF(N24="","",IF(N24*60+O24>Basis!$U$11,"Uit",BL24+BM24)) ->  | Z24: - | AA24: - | AB24: - | AC24: - | AD24: - | AE24: - | AF24: - | AG24: - | AH24: - | AI24: - | AJ24: - | AK24: - | AL24: - | AM24: - | AN24: - | AO24: - | AP24: - | AQ24: - | AR24: - | AS24: - | AT24: - | AU24: - | AV24: - | AW24: - | BI24: =IF(K24="","",IF(ISTEXT(K24),K24,IF(K24>Basis!$N$11,"Uit",IF(ISBLANK(L24),K24,K24+L24)))) ->  | BL24: =IF(N24="","",IF(BK24<=Basis!$F$11,0,(BK24-Basis!$F$11)*0.4)) ->  | BM24: =IF(N24="","",IF(BK24>Basis!$G$11,0,(Basis!$G$11-BK24)*0.4)) -> 
J25: =IF(H25="","",IF(ISTEXT(H25),H25,IF(I25="","",IF((H25+I25)/2<=Basis!$M$11,"Uit",(100-((H25+I25)/2/Basis!$L$11*100))*Basis!$Y$6)))) ->  | P25: =IF(N25="","",IF(N25*60+O25>Basis!$U$11,"Uit",BL25+BM25)) ->  | Z25: - | AA25: - | AB25: - | AC25: - | AD25: - | AE25: - | AF25: - | AG25: - | AH25: - | AI25: - | AJ25: - | AK25: - | AL25: - | AM25: - | AN25: - | AO25: - | AP25: - | AQ25: - | AR25: - | AS25: - | AT25: - | AU25: - | AV25: - | AW25: - | BI25: =IF(K25="","",IF(ISTEXT(K25),K25,IF(K25>Basis!$N$11,"Uit",IF(ISBLANK(L25),K25,K25+L25)))) ->  | BL25: =IF(N25="","",IF(BK25<=Basis!$F$11,0,(BK25-Basis!$F$11)*0.4)) ->  | BM25: =IF(N25="","",IF(BK25>Basis!$G$11,0,(Basis!$G$11-BK25)*0.4)) -> 
J26: =IF(H26="","",IF(ISTEXT(H26),H26,IF(I26="","",IF((H26+I26)/2<=Basis!$M$11,"Uit",(100-((H26+I26)/2/Basis!$L$11*100))*Basis!$Y$6)))) ->  | P26: =IF(N26="","",IF(N26*60+O26>Basis!$U$11,"Uit",BL26+BM26)) ->  | Z26: - | AA26: - | AB26: - | AC26: - | AD26: - | AE26: - | AF26: - | AG26: - | AH26: - | AI26: - | AJ26: - | AK26: - | AL26: - | AM26: - | AN26: - | AO26: - | AP26: - | AQ26: - | AR26: - | AS26: - | AT26: - | AU26: - | AV26: - | AW26: - | BI26: =IF(K26="","",IF(ISTEXT(K26),K26,IF(K26>Basis!$N$11,"Uit",IF(ISBLANK(L26),K26,K26+L26)))) ->  | BL26: =IF(N26="","",IF(BK26<=Basis!$F$11,0,(BK26-Basis!$F$11)*0.4)) ->  | BM26: =IF(N26="","",IF(BK26>Basis!$G$11,0,(Basis!$G$11-BK26)*0.4)) -> 
J27: =IF(H27="","",IF(ISTEXT(H27),H27,IF(I27="","",IF((H27+I27)/2<=Basis!$M$11,"Uit",(100-((H27+I27)/2/Basis!$L$11*100))*Basis!$Y$6)))) ->  | P27: =IF(N27="","",IF(N27*60+O27>Basis!$U$11,"Uit",BL27+BM27)) ->  | Z27: - | AA27: - | AB27: - | AC27: - | AD27: - | AE27: - | AF27: - | AG27: - | AH27: - | AI27: - | AJ27: - | AK27: - | AL27: - | AM27: - | AN27: - | AO27: - | AP27: - | AQ27: - | AR27: - | AS27: - | AT27: - | AU27: - | AV27: - | AW27: - | BI27: =IF(K27="","",IF(ISTEXT(K27),K27,IF(K27>Basis!$N$11,"Uit",IF(ISBLANK(L27),K27,K27+L27)))) ->  | BL27: =IF(N27="","",IF(BK27<=Basis!$F$11,0,(BK27-Basis!$F$11)*0.4)) ->  | BM27: =IF(N27="","",IF(BK27>Basis!$G$11,0,(Basis!$G$11-BK27)*0.4)) -> 
J28: =IF(H28="","",IF(ISTEXT(H28),H28,IF(I28="","",IF((H28+I28)/2<=Basis!$M$11,"Uit",(100-((H28+I28)/2/Basis!$L$11*100))*Basis!$Y$6)))) ->  | P28: =IF(N28="","",IF(N28*60+O28>Basis!$U$11,"Uit",BL28+BM28)) ->  | Z28: - | AA28: - | AB28: - | AC28: - | AD28: - | AE28: - | AF28: - | AG28: - | AH28: - | AI28: - | AJ28: - | AK28: - | AL28: - | AM28: - | AN28: - | AO28: - | AP28: - | AQ28: - | AR28: - | AS28: - | AT28: - | AU28: - | AV28: - | AW28: - | BI28: =IF(K28="","",IF(ISTEXT(K28),K28,IF(K28>Basis!$N$11,"Uit",IF(ISBLANK(L28),K28,K28+L28)))) ->  | BL28: =IF(N28="","",IF(BK28<=Basis!$F$11,0,(BK28-Basis!$F$11)*0.4)) ->  | BM28: =IF(N28="","",IF(BK28>Basis!$G$11,0,(Basis!$G$11-BK28)*0.4)) -> 
J29: =IF(H29="","",IF(ISTEXT(H29),H29,IF(I29="","",IF((H29+I29)/2<=Basis!$M$11,"Uit",(100-((H29+I29)/2/Basis!$L$11*100))*Basis!$Y$6)))) ->  | P29: =IF(N29="","",IF(N29*60+O29>Basis!$U$11,"Uit",BL29+BM29)) ->  | Z29: - | AA29: - | AB29: - | AC29: - | AD29: - | AE29: - | AF29: - | AG29: - | AH29: - | AI29: - | AJ29: - | AK29: - | AL29: - | AM29: - | AN29: - | AO29: - | AP29: - | AQ29: - | AR29: - | AS29: - | AT29: - | AU29: - | AV29: - | AW29: - | BI29: =IF(K29="","",IF(ISTEXT(K29),K29,IF(K29>Basis!$N$11,"Uit",IF(ISBLANK(L29),K29,K29+L29)))) ->  | BL29: =IF(N29="","",IF(BK29<=Basis!$F$11,0,(BK29-Basis!$F$11)*0.4)) ->  | BM29: =IF(N29="","",IF(BK29>Basis!$G$11,0,(Basis!$G$11-BK29)*0.4)) -> 
A30: Bij uitsluiting reden vermelden : | P30: =NOW() -> 2018-06-30T22:02:24.880 | X30: =A30 -> Bij uitsluiting reden vermelden : | AU30: =NOW() -> 2018-06-30T22:02:24.880
A31: VP=val paard, VR=val ruiter, 3W=3 weigeringen op zelfde hindernis, 4W=4 weigeringen totaal, FP=foutief parcours, Vr.v= vrijwillig verlaten | X31: =A31 -> VP=val paard, VR=val ruiter, 3W=3 weigeringen op zelfde hindernis, 4W=4 weigeringen totaal, FP=foutief parcours, Vr.v= vrijwillig verlaten

Sheet Pony's B-ABC (hidden)
A1: =" Samengestelde wedstrijd "&Basis!D18 -> Samengestelde wedstrijd Eventing Leende 30 juni 2018 | G1: Klasse B - Cat ABC - Ring 1 | L1: Dressuurjury : | X1: Verzamelstaat hindernisfouten in de cross | AK1: =A1 -> Samengestelde wedstrijd Eventing Leende 30 juni 2018 | BA1: =G1&" " -> Klasse B - Cat ABC - Ring 1 | BC1: Indien aankomstUUR cross wordt meegedeeld : | BI1: Hulpkolommen | BP1: Stijlcijfers :
A2: rank | B2: pony | C2: rugnr | D2: combinatie nr | E2: naam ruiter | F2: naam pony | G2: vereniging / plaats | I2: dressuur | J2: dressuur | K2: hind.ft. | L2: tijd.ft. | M2: hind.ft. | N2: min | O2: sec | P2: tijd.ft. | R2: totaal | S2: (1) stijl | T2: (2) stijl | U2: eind- | V2: reden | Y2: hindernisnummer | BI2: Uitslag | BJ2: NA | BK2: tijd (sec) | BL2: tijd.ft. | BM2: reg.ft. | BN2: totaal | BP2: Totaal | BQ2: Totaal | BR2: Gemiddelde | BS2: Gemiddelde
A3: HC | B3: cat. | I3: totaal | J3: strafpntn. | K3: springen | L3: springen | M3: cross | N3: cross | P3: =Basis!$H$20&":"&TEXT(Basis!$I$20,"00") -> 3:58 | S3: cijfer | T3: cijfer | U3: totaal | V3: uitsluiting | X3: nr | Y3: 1 | Z3: 2 | AA3: 3 | AB3: 4 | AC3: 5 | AD3: 6 | AE3: 7 | AF3: 8 | AG3: 9 | AH3: 10 | AI3: 11 | AJ3: 12 | AK3: 13 | AL3: 14 | AM3: 15 | AN3: 16 | AO3: 17 | AP3: 18 | AQ3: 19 | AR3: 20 | AS3: 21 | AT3: 22 | AU3: 23 | AV3: 24 | AW3: 25 | AX3: totaal | AY3: reden uitsluiting | AZ3: hind. | BA3: nr | BC3: Vertrekuur | BD3: Aankomst | BE3: Tijd | BF3: Minuten | BG3: Seconden | BI3: Springen | BJ3: Springen | BK3: cross | BL3: opt.tijd = | BM3: =Basis!$H$20&":"&TEXT(Basis!$I$20,"00") -> 3:58 | BN3: cross | BP3: Jury 1 | BQ3: Jury 2 | BR3: Jury 1 | BS3: Jury 2
R4: =IF(ISBLANK(I4),"",IF(AND(ISBLANK(K4),ISBLANK(Y4)),J4,IF(ISTEXT(K4),K4,IF(OR(ISBLANK(M4),M4=""),J4+K4+L4,IF(ISTEXT(M4),M4,IF(ISBLANK(Y4),J4+K4+L4,J4+K4+L4+M4+P4+Q4)))))) -> 
C5: 1 | J5: =IF(I5="","",IF(ISTEXT(I5),I5,IF(I5<=Basis!$M$20,"Uit",(100-(I5/Basis!$L$20*100))*Basis!$Y$19))) ->  | M5: =IF(AX5="","",AX5) ->  | N5: =IF(ISBLANK(BD5),"",BF5) ->  | O5: =IF(ISBLANK(BD5),"",BG5) ->  | P5: =IF(N5="","",IF(N5*60+O5>Basis!$U$20,"Uit",BL5+BM5)) ->  | R5: =IF(ISTEXT(BJ5),BJ5,IF(OR(ISBLANK(M5),M5="",ISBLANK(Y5)),BJ5,IF(ISTEXT(BN5),BN5,BJ5+BN5))) ->  | S5: =IF(BP5="","",BR5) ->  | T5: =IF(BQ5="","",BS5) ->  | U5: =IF(R5="","",IF(ISTEXT(R5),R5,IF(BP5="","",R5-S5-T5))) ->  | V5: =IF(AY5="","",AY5) ->  | X5: =IF($C5="","",$C5) -> 1 | Z5: - | AA5: - | AB5: - | AC5: - | AD5: - | AE5: - | AF5: - | AG5: - | AH5: - | AI5: - | AJ5: - | AK5: - | AL5: - | AM5: - | AN5: - | AO5: - | AP5: - | AQ5: - | AR5: - | AS5: - | AT5: - | AU5: - | AV5: - | AW5: - | AX5: =IF(Y5="","",IF(ISTEXT(Y5),Y5,SUM(Y5:AW5))) ->  | BA5: =IF($C5="","",$C5) -> 1 | BC5: 10:00:00 | BE5: =IF(ISBLANK(BD5),"",BD5-BC5) ->  | BF5: =IF(ISBLANK(BD5),"",MINUTE(BE5)) ->  | BG5: =IF(ISBLANK(BD5),"",SECOND(BE5)) ->  | BI5: =IF(K5="","",IF(ISTEXT(K5),K5,IF(K5>Basis!$N$20,"Uit",IF(ISBLANK(L5),K5,K5+L5)))) ->  | BJ5: =IF(OR(ISTEXT(J5),BI5=""),J5,IF(ISTEXT(BI5),BI5,J5+BI5)) ->  | BK5: =IF(N5="","",N5*60+O5) ->  | BL5: =IF(N5="","",IF(BK5<=Basis!$F$20,0,(BK5-Basis!$F$20)*0.4)) ->  | BM5: =IF(N5="","",IF(BK5>Basis!$G$20,0,(Basis!$G$20-BK5)*0.4)) ->  | BN5: =IF(M5="","",IF(ISTEXT(M5),M5,IF(ISTEXT(P5),P5,M5+P5))) ->  | BR5: =IF(BP5="","",BP5/3) ->  | BS5: =IF(BQ5="","",BQ5/3) -> 
C6: 2 | J6: =IF(I6="","",IF(ISTEXT(I6),I6,IF(I6<=Basis!$M$20,"Uit",(100-(I6/Basis!$L$20*100))*Basis!$Y$19))) ->  | P6: =IF(N6="","",IF(N6*60+O6>Basis!$U$20,"Uit",BL6+BM6)) ->  | S6: =IF(BP6="","",BR6) ->  | U6: =IF(R6="","",IF(ISTEXT(R6),R6,IF(BP6="","",R6-S6-T6))) ->  | X6: 2 | Z6: - | AA6: - | AB6: - | AC6: - | AD6: - | AE6: - | AF6: - | AG6: - | AH6: - | AI6: - | AJ6: - | AK6: - | AL6: - | AM6: - | AN6: - | AO6: - | AP6: - | AQ6: - | AR6: - | AS6: - | AT6: - | AU6: - | AV6: - | AW6: - | BA6: 2 | BC6: 10:02:00 | BI6: =IF(K6="","",IF(ISTEXT(K6),K6,IF(K6>Basis!$N$20,"Uit",IF(ISBLANK(L6),K6,K6+L6)))) ->  | BJ6: =IF(OR(ISTEXT(J6),BI6=""),J6,IF(ISTEXT(BI6),BI6,J6+BI6)) ->  | BK6: =IF(N6="","",N6*60+O6) ->  | BL6: =IF(N6="","",IF(BK6<=Basis!$F$20,0,(BK6-Basis!$F$20)*0.4)) ->  | BM6: =IF(N6="","",IF(BK6>Basis!$G$20,0,(Basis!$G$20-BK6)*0.4)) ->  | BN6: =IF(M6="","",IF(ISTEXT(M6),M6,IF(ISTEXT(P6),P6,M6+P6))) ->  | BR6: =IF(BP6="","",BP6/3) -> 
C7: 3 | J7: =IF(I7="","",IF(ISTEXT(I7),I7,IF(I7<=Basis!$M$20,"Uit",(100-(I7/Basis!$L$20*100))*Basis!$Y$19))) ->  | P7: =IF(N7="","",IF(N7*60+O7>Basis!$U$20,"Uit",BL7+BM7)) ->  | X7: 3 | Z7: - | AA7: - | AB7: - | AC7: - | AD7: - | AE7: - | AF7: - | AG7: - | AH7: - | AI7: - | AJ7: - | AK7: - | AL7: - | AM7: - | AN7: - | AO7: - | AP7: - | AQ7: - | AR7: - | AS7: - | AT7: - | AU7: - | AV7: - | AW7: - | BA7: 3 | BC7: 10:04:00 | BI7: =IF(K7="","",IF(ISTEXT(K7),K7,IF(K7>Basis!$N$20,"Uit",IF(ISBLANK(L7),K7,K7+L7)))) ->  | BL7: =IF(N7="","",IF(BK7<=Basis!$F$20,0,(BK7-Basis!$F$20)*0.4)) ->  | BM7: =IF(N7="","",IF(BK7>Basis!$G$20,0,(Basis!$G$20-BK7)*0.4)) -> 
C8: 4 | J8: =IF(I8="","",IF(ISTEXT(I8),I8,IF(I8<=Basis!$M$20,"Uit",(100-(I8/Basis!$L$20*100))*Basis!$Y$19))) ->  | P8: =IF(N8="","",IF(N8*60+O8>Basis!$U$20,"Uit",BL8+BM8)) ->  | X8: 4 | Z8: - | AA8: - | AB8: - | AC8: - | AD8: - | AE8: - | AF8: - | AG8: - | AH8: - | AI8: - | AJ8: - | AK8: - | AL8: - | AM8: - | AN8: - | AO8: - | AP8: - | AQ8: - | AR8: - | AS8: - | AT8: - | AU8: - | AV8: - | AW8: - | BA8: 4 | BI8: =IF(K8="","",IF(ISTEXT(K8),K8,IF(K8>Basis!$N$20,"Uit",IF(ISBLANK(L8),K8,K8+L8)))) ->  | BL8: =IF(N8="","",IF(BK8<=Basis!$F$20,0,(BK8-Basis!$F$20)*0.4)) ->  | BM8: =IF(N8="","",IF(BK8>Basis!$G$20,0,(Basis!$G$20-BK8)*0.4)) -> 
C9: 5 | J9: =IF(I9="","",IF(ISTEXT(I9),I9,IF(I9<=Basis!$M$20,"Uit",(100-(I9/Basis!$L$20*100))*Basis!$Y$19))) ->  | P9: =IF(N9="","",IF(N9*60+O9>Basis!$U$20,"Uit",BL9+BM9)) ->  | X9: 5 | Z9: - | AA9: - | AB9: - | AC9: - | AD9: - | AE9: - | AF9: - | AG9: - | AH9: - | AI9: - | AJ9: - | AK9: - | AL9: - | AM9: - | AN9: - | AO9: - | AP9: - | AQ9: - | AR9: - | AS9: - | AT9: - | AU9: - | AV9: - | AW9: - | BA9: 5 | BI9: =IF(K9="","",IF(ISTEXT(K9),K9,IF(K9>Basis!$N$20,"Uit",IF(ISBLANK(L9),K9,K9+L9)))) ->  | BL9: =IF(N9="","",IF(BK9<=Basis!$F$20,0,(BK9-Basis!$F$20)*0.4)) ->  | BM9: =IF(N9="","",IF(BK9>Basis!$G$20,0,(Basis!$G$20-BK9)*0.4)) -> 
C10: 6 | J10: =IF(I10="","",IF(ISTEXT(I10),I10,IF(I10<=Basis!$M$20,"Uit",(100-(I10/Basis!$L$20*100))*Basis!$Y$19))) ->  | P10: =IF(N10="","",IF(N10*60+O10>Basis!$U$20,"Uit",BL10+BM10)) ->  | X10: 6 | Z10: - | AA10: - | AB10: - | AC10: - | AD10: - | AE10: - | AF10: - | AG10: - | AH10: - | AI10: - | AJ10: - | AK10: - | AL10: - | AM10: - | AN10: - | AO10: - | AP10: - | AQ10: - | AR10: - | AS10: - | AT10: - | AU10: - | AV10: - | AW10: - | BA10: 6 | BI10: =IF(K10="","",IF(ISTEXT(K10),K10,IF(K10>Basis!$N$20,"Uit",IF(ISBLANK(L10),K10,K10+L10)))) ->  | BL10: =IF(N10="","",IF(BK10<=Basis!$F$20,0,(BK10-Basis!$F$20)*0.4)) ->  | BM10: =IF(N10="","",IF(BK10>Basis!$G$20,0,(Basis!$G$20-BK10)*0.4)) -> 
C11: 7 | J11: =IF(I11="","",IF(ISTEXT(I11),I11,IF(I11<=Basis!$M$20,"Uit",(100-(I11/Basis!$L$20*100))*Basis!$Y$19))) ->  | P11: =IF(N11="","",IF(N11*60+O11>Basis!$U$20,"Uit",BL11+BM11)) ->  | X11: 7 | Z11: - | AA11: - | AB11: - | AC11: - | AD11: - | AE11: - | AF11: - | AG11: - | AH11: - | AI11: - | AJ11: - | AK11: - | AL11: - | AM11: - | AN11: - | AO11: - | AP11: - | AQ11: - | AR11: - | AS11: - | AT11: - | AU11: - | AV11: - | AW11: - | BA11: 7 | BI11: =IF(K11="","",IF(ISTEXT(K11),K11,IF(K11>Basis!$N$20,"Uit",IF(ISBLANK(L11),K11,K11+L11)))) ->  | BL11: =IF(N11="","",IF(BK11<=Basis!$F$20,0,(BK11-Basis!$F$20)*0.4)) ->  | BM11: =IF(N11="","",IF(BK11>Basis!$G$20,0,(Basis!$G$20-BK11)*0.4)) -> 
C12: 8 | J12: =IF(I12="","",IF(ISTEXT(I12),I12,IF(I12<=Basis!$M$20,"Uit",(100-(I12/Basis!$L$20*100))*Basis!$Y$19))) ->  | P12: =IF(N12="","",IF(N12*60+O12>Basis!$U$20,"Uit",BL12+BM12)) ->  | X12: 8 | Z12: - | AA12: - | AB12: - | AC12: - | AD12: - | AE12: - | AF12: - | AG12: - | AH12: - | AI12: - | AJ12: - | AK12: - | AL12: - | AM12: - | AN12: - | AO12: - | AP12: - | AQ12: - | AR12: - | AS12: - | AT12: - | AU12: - | AV12: - | AW12: - | BA12: 8 | BI12: =IF(K12="","",IF(ISTEXT(K12),K12,IF(K12>Basis!$N$20,"Uit",IF(ISBLANK(L12),K12,K12+L12)))) ->  | BL12: =IF(N12="","",IF(BK12<=Basis!$F$20,0,(BK12-Basis!$F$20)*0.4)) ->  | BM12: =IF(N12="","",IF(BK12>Basis!$G$20,0,(Basis!$G$20-BK12)*0.4)) -> 
C13: 9 | J13: =IF(I13="","",IF(ISTEXT(I13),I13,IF(I13<=Basis!$M$20,"Uit",(100-(I13/Basis!$L$20*100))*Basis!$Y$19))) ->  | P13: =IF(N13="","",IF(N13*60+O13>Basis!$U$20,"Uit",BL13+BM13)) ->  | X13: 9 | Z13: - | AA13: - | AB13: - | AC13: - | AD13: - | AE13: - | AF13: - | AG13: - | AH13: - | AI13: - | AJ13: - | AK13: - | AL13: - | AM13: - | AN13: - | AO13: - | AP13: - | AQ13: - | AR13: - | AS13: - | AT13: - | AU13: - | AV13: - | AW13: - | BA13: 9 | BI13: =IF(K13="","",IF(ISTEXT(K13),K13,IF(K13>Basis!$N$20,"Uit",IF(ISBLANK(L13),K13,K13+L13)))) ->  | BL13: =IF(N13="","",IF(BK13<=Basis!$F$20,0,(BK13-Basis!$F$20)*0.4)) ->  | BM13: =IF(N13="","",IF(BK13>Basis!$G$20,0,(Basis!$G$20-BK13)*0.4)) -> 
C14: 10 | J14: =IF(I14="","",IF(ISTEXT(I14),I14,IF(I14<=Basis!$M$20,"Uit",(100-(I14/Basis!$L$20*100))*Basis!$Y$19))) ->  | P14: =IF(N14="","",IF(N14*60+O14>Basis!$U$20,"Uit",BL14+BM14)) ->  | X14: 10 | Z14: - | AA14: - | AB14: - | AC14: - | AD14: - | AE14: - | AF14: - | AG14: - | AH14: - | AI14: - | AJ14: - | AK14: - | AL14: - | AM14: - | AN14: - | AO14: - | AP14: - | AQ14: - | AR14: - | AS14: - | AT14: - | AU14: - | AV14: - | AW14: - | BA14: 10 | BI14: =IF(K14="","",IF(ISTEXT(K14),K14,IF(K14>Basis!$N$20,"Uit",IF(ISBLANK(L14),K14,K14+L14)))) ->  | BL14: =IF(N14="","",IF(BK14<=Basis!$F$20,0,(BK14-Basis!$F$20)*0.4)) ->  | BM14: =IF(N14="","",IF(BK14>Basis!$G$20,0,(Basis!$G$20-BK14)*0.4)) -> 
J15: =IF(I15="","",IF(ISTEXT(I15),I15,IF(I15<=Basis!$M$20,"Uit",(100-(I15/Basis!$L$20*100))*Basis!$Y$19))) ->  | P15: =IF(N15="","",IF(N15*60+O15>Basis!$U$20,"Uit",BL15+BM15)) ->  | Z15: - | AA15: - | AB15: - | AC15: - | AD15: - | AE15: - | AF15: - | AG15: - | AH15: - | AI15: - | AJ15: - | AK15: - | AL15: - | AM15: - | AN15: - | AO15: - | AP15: - | AQ15: - | AR15: - | AS15: - | AT15: - | AU15: - | AV15: - | AW15: - | BI15: =IF(K15="","",IF(ISTEXT(K15),K15,IF(K15>Basis!$N$20,"Uit",IF(ISBLANK(L15),K15,K15+L15)))) ->  | BL15: =IF(N15="","",IF(BK15<=Basis!$F$20,0,(BK15-Basis!$F$20)*0.4)) ->  | BM15: =IF(N15="","",IF(BK15>Basis!$G$20,0,(Basis!$G$20-BK15)*0.4)) -> 
J16: =IF(I16="","",IF(ISTEXT(I16),I16,IF(I16<=Basis!$M$20,"Uit",(100-(I16/Basis!$L$20*100))*Basis!$Y$19))) ->  | P16: =IF(N16="","",IF(N16*60+O16>Basis!$U$20,"Uit",BL16+BM16)) ->  | Z16: - | AA16: - | AB16: - | AC16: - | AD16: - | AE16: - | AF16: - | AG16: - | AH16: - | AI16: - | AJ16: - | AK16: - | AL16: - | AM16: - | AN16: - | AO16: - | AP16: - | AQ16: - | AR16: - | AS16: - | AT16: - | AU16: - | AV16: - | AW16: - | BI16: =IF(K16="","",IF(ISTEXT(K16),K16,IF(K16>Basis!$N$20,"Uit",IF(ISBLANK(L16),K16,K16+L16)))) ->  | BL16: =IF(N16="","",IF(BK16<=Basis!$F$20,0,(BK16-Basis!$F$20)*0.4)) ->  | BM16: =IF(N16="","",IF(BK16>Basis!$G$20,0,(Basis!$G$20-BK16)*0.4)) -> 
J17: =IF(I17="","",IF(ISTEXT(I17),I17,IF(I17<=Basis!$M$20,"Uit",(100-(I17/Basis!$L$20*100))*Basis!$Y$19))) ->  | P17: =IF(N17="","",IF(N17*60+O17>Basis!$U$20,"Uit",BL17+BM17)) ->  | Z17: - | AA17: - | AB17: - | AC17: - | AD17: - | AE17: - | AF17: - | AG17: - | AH17: - | AI17: - | AJ17: - | AK17: - | AL17: - | AM17: - | AN17: - | AO17: - | AP17: - | AQ17: - | AR17: - | AS17: - | AT17: - | AU17: - | AV17: - | AW17: - | BI17: =IF(K17="","",IF(ISTEXT(K17),K17,IF(K17>Basis!$N$20,"Uit",IF(ISBLANK(L17),K17,K17+L17)))) ->  | BL17: =IF(N17="","",IF(BK17<=Basis!$F$20,0,(BK17-Basis!$F$20)*0.4)) ->  | BM17: =IF(N17="","",IF(BK17>Basis!$G$20,0,(Basis!$G$20-BK17)*0.4)) -> 
J18: =IF(I18="","",IF(ISTEXT(I18),I18,IF(I18<=Basis!$M$20,"Uit",(100-(I18/Basis!$L$20*100))*Basis!$Y$19))) ->  | P18: =IF(N18="","",IF(N18*60+O18>Basis!$U$20,"Uit",BL18+BM18)) ->  | Z18: - | AA18: - | AB18: - | AC18: - | AD18: - | AE18: - | AF18: - | AG18: - | AH18: - | AI18: - | AJ18: - | AK18: - | AL18: - | AM18: - | AN18: - | AO18: - | AP18: - | AQ18: - | AR18: - | AS18: - | AT18: - | AU18: - | AV18: - | AW18: - | BI18: =IF(K18="","",IF(ISTEXT(K18),K18,IF(K18>Basis!$N$20,"Uit",IF(ISBLANK(L18),K18,K18+L18)))) ->  | BL18: =IF(N18="","",IF(BK18<=Basis!$F$20,0,(BK18-Basis!$F$20)*0.4)) ->  | BM18: =IF(N18="","",IF(BK18>Basis!$G$20,0,(Basis!$G$20-BK18)*0.4)) -> 
J19: =IF(I19="","",IF(ISTEXT(I19),I19,IF(I19<=Basis!$M$20,"Uit",(100-(I19/Basis!$L$20*100))*Basis!$Y$19))) ->  | P19: =IF(N19="","",IF(N19*60+O19>Basis!$U$20,"Uit",BL19+BM19)) ->  | Z19: - | AA19: - | AB19: - | AC19: - | AD19: - | AE19: - | AF19: - | AG19: - | AH19: - | AI19: - | AJ19: - | AK19: - | AL19: - | AM19: - | AN19: - | AO19: - | AP19: - | AQ19: - | AR19: - | AS19: - | AT19: - | AU19: - | AV19: - | AW19: - | BI19: =IF(K19="","",IF(ISTEXT(K19),K19,IF(K19>Basis!$N$20,"Uit",IF(ISBLANK(L19),K19,K19+L19)))) ->  | BL19: =IF(N19="","",IF(BK19<=Basis!$F$20,0,(BK19-Basis!$F$20)*0.4)) ->  | BM19: =IF(N19="","",IF(BK19>Basis!$G$20,0,(Basis!$G$20-BK19)*0.4)) -> 
J20: =IF(I20="","",IF(ISTEXT(I20),I20,IF(I20<=Basis!$M$20,"Uit",(100-(I20/Basis!$L$20*100))*Basis!$Y$19))) ->  | P20: =IF(N20="","",IF(N20*60+O20>Basis!$U$20,"Uit",BL20+BM20)) ->  | Z20: - | AA20: - | AB20: - | AC20: - | AD20: - | AE20: - | AF20: - | AG20: - | AH20: - | AI20: - | AJ20: - | AK20: - | AL20: - | AM20: - | AN20: - | AO20: - | AP20: - | AQ20: - | AR20: - | AS20: - | AT20: - | AU20: - | AV20: - | AW20: - | BI20: =IF(K20="","",IF(ISTEXT(K20),K20,IF(K20>Basis!$N$20,"Uit",IF(ISBLANK(L20),K20,K20+L20)))) ->  | BL20: =IF(N20="","",IF(BK20<=Basis!$F$20,0,(BK20-Basis!$F$20)*0.4)) ->  | BM20: =IF(N20="","",IF(BK20>Basis!$G$20,0,(Basis!$G$20-BK20)*0.4)) -> 
J21: =IF(I21="","",IF(ISTEXT(I21),I21,IF(I21<=Basis!$M$20,"Uit",(100-(I21/Basis!$L$20*100))*Basis!$Y$19))) ->  | P21: =IF(N21="","",IF(N21*60+O21>Basis!$U$20,"Uit",BL21+BM21)) ->  | Z21: - | AA21: - | AB21: - | AC21: - | AD21: - | AE21: - | AF21: - | AG21: - | AH21: - | AI21: - | AJ21: - | AK21: - | AL21: - | AM21: - | AN21: - | AO21: - | AP21: - | AQ21: - | AR21: - | AS21: - | AT21: - | AU21: - | AV21: - | AW21: - | BI21: =IF(K21="","",IF(ISTEXT(K21),K21,IF(K21>Basis!$N$20,"Uit",IF(ISBLANK(L21),K21,K21+L21)))) ->  | BL21: =IF(N21="","",IF(BK21<=Basis!$F$20,0,(BK21-Basis!$F$20)*0.4)) ->  | BM21: =IF(N21="","",IF(BK21>Basis!$G$20,0,(Basis!$G$20-BK21)*0.4)) -> 
J22: =IF(I22="","",IF(ISTEXT(I22),I22,IF(I22<=Basis!$M$20,"Uit",(100-(I22/Basis!$L$20*100))*Basis!$Y$19))) ->  | P22: =IF(N22="","",IF(N22*60+O22>Basis!$U$20,"Uit",BL22+BM22)) ->  | Z22: - | AA22: - | AB22: - | AC22: - | AD22: - | AE22: - | AF22: - | AG22: - | AH22: - | AI22: - | AJ22: - | AK22: - | AL22: - | AM22: - | AN22: - | AO22: - | AP22: - | AQ22: - | AR22: - | AS22: - | AT22: - | AU22: - | AV22: - | AW22: - | BI22: =IF(K22="","",IF(ISTEXT(K22),K22,IF(K22>Basis!$N$20,"Uit",IF(ISBLANK(L22),K22,K22+L22)))) ->  | BL22: =IF(N22="","",IF(BK22<=Basis!$F$20,0,(BK22-Basis!$F$20)*0.4)) ->  | BM22: =IF(N22="","",IF(BK22>Basis!$G$20,0,(Basis!$G$20-BK22)*0.4)) -> 
J23: =IF(I23="","",IF(ISTEXT(I23),I23,IF(I23<=Basis!$M$20,"Uit",(100-(I23/Basis!$L$20*100))*Basis!$Y$19))) ->  | P23: =IF(N23="","",IF(N23*60+O23>Basis!$U$20,"Uit",BL23+BM23)) ->  | Z23: - | AA23: - | AB23: - | AC23: - | AD23: - | AE23: - | AF23: - | AG23: - | AH23: - | AI23: - | AJ23: - | AK23: - | AL23: - | AM23: - | AN23: - | AO23: - | AP23: - | AQ23: - | AR23: - | AS23: - | AT23: - | AU23: - | AV23: - | AW23: - | BI23: =IF(K23="","",IF(ISTEXT(K23),K23,IF(K23>Basis!$N$20,"Uit",IF(ISBLANK(L23),K23,K23+L23)))) ->  | BL23: =IF(N23="","",IF(BK23<=Basis!$F$20,0,(BK23-Basis!$F$20)*0.4)) ->  | BM23: =IF(N23="","",IF(BK23>Basis!$G$20,0,(Basis!$G$20-BK23)*0.4)) -> 
J24: =IF(I24="","",IF(ISTEXT(I24),I24,IF(I24<=Basis!$M$20,"Uit",(100-(I24/Basis!$L$20*100))*Basis!$Y$19))) ->  | P24: =IF(N24="","",IF(N24*60+O24>Basis!$U$20,"Uit",BL24+BM24)) ->  | Z24: - | AA24: - | AB24: - | AC24: - | AD24: - | AE24: - | AF24: - | AG24: - | AH24: - | AI24: - | AJ24: - | AK24: - | AL24: - | AM24: - | AN24: - | AO24: - | AP24: - | AQ24: - | AR24: - | AS24: - | AT24: - | AU24: - | AV24: - | AW24: - | BI24: =IF(K24="","",IF(ISTEXT(K24),K24,IF(K24>Basis!$N$20,"Uit",IF(ISBLANK(L24),K24,K24+L24)))) ->  | BL24: =IF(N24="","",IF(BK24<=Basis!$F$20,0,(BK24-Basis!$F$20)*0.4)) ->  | BM24: =IF(N24="","",IF(BK24>Basis!$G$20,0,(Basis!$G$20-BK24)*0.4)) -> 
J25: =IF(I25="","",IF(ISTEXT(I25),I25,IF(I25<=Basis!$M$20,"Uit",(100-(I25/Basis!$L$20*100))*Basis!$Y$19))) ->  | P25: =IF(N25="","",IF(N25*60+O25>Basis!$U$20,"Uit",BL25+BM25)) ->  | Z25: - | AA25: - | AB25: - | AC25: - | AD25: - | AE25: - | AF25: - | AG25: - | AH25: - | AI25: - | AJ25: - | AK25: - | AL25: - | AM25: - | AN25: - | AO25: - | AP25: - | AQ25: - | AR25: - | AS25: - | AT25: - | AU25: - | AV25: - | AW25: - | BI25: =IF(K25="","",IF(ISTEXT(K25),K25,IF(K25>Basis!$N$20,"Uit",IF(ISBLANK(L25),K25,K25+L25)))) ->  | BL25: =IF(N25="","",IF(BK25<=Basis!$F$20,0,(BK25-Basis!$F$20)*0.4)) ->  | BM25: =IF(N25="","",IF(BK25>Basis!$G$20,0,(Basis!$G$20-BK25)*0.4)) -> 
J26: =IF(I26="","",IF(ISTEXT(I26),I26,IF(I26<=Basis!$M$20,"Uit",(100-(I26/Basis!$L$20*100))*Basis!$Y$19))) ->  | P26: =IF(N26="","",IF(N26*60+O26>Basis!$U$20,"Uit",BL26+BM26)) ->  | Z26: - | AA26: - | AB26: - | AC26: - | AD26: - | AE26: - | AF26: - | AG26: - | AH26: - | AI26: - | AJ26: - | AK26: - | AL26: - | AM26: - | AN26: - | AO26: - | AP26: - | AQ26: - | AR26: - | AS26: - | AT26: - | AU26: - | AV26: - | AW26: - | BI26: =IF(K26="","",IF(ISTEXT(K26),K26,IF(K26>Basis!$N$20,"Uit",IF(ISBLANK(L26),K26,K26+L26)))) ->  | BL26: =IF(N26="","",IF(BK26<=Basis!$F$20,0,(BK26-Basis!$F$20)*0.4)) ->  | BM26: =IF(N26="","",IF(BK26>Basis!$G$20,0,(Basis!$G$20-BK26)*0.4)) -> 
J27: =IF(I27="","",IF(ISTEXT(I27),I27,IF(I27<=Basis!$M$20,"Uit",(100-(I27/Basis!$L$20*100))*Basis!$Y$19))) ->  | P27: =IF(N27="","",IF(N27*60+O27>Basis!$U$20,"Uit",BL27+BM27)) ->  | Z27: - | AA27: - | AB27: - | AC27: - | AD27: - | AE27: - | AF27: - | AG27: - | AH27: - | AI27: - | AJ27: - | AK27: - | AL27: - | AM27: - | AN27: - | AO27: - | AP27: - | AQ27: - | AR27: - | AS27: - | AT27: - | AU27: - | AV27: - | AW27: - | BI27: =IF(K27="","",IF(ISTEXT(K27),K27,IF(K27>Basis!$N$20,"Uit",IF(ISBLANK(L27),K27,K27+L27)))) ->  | BL27: =IF(N27="","",IF(BK27<=Basis!$F$20,0,(BK27-Basis!$F$20)*0.4)) ->  | BM27: =IF(N27="","",IF(BK27>Basis!$G$20,0,(Basis!$G$20-BK27)*0.4)) -> 
J28: =IF(I28="","",IF(ISTEXT(I28),I28,IF(I28<=Basis!$M$20,"Uit",(100-(I28/Basis!$L$20*100))*Basis!$Y$19))) ->  | P28: =IF(N28="","",IF(N28*60+O28>Basis!$U$20,"Uit",BL28+BM28)) ->  | Z28: - | AA28: - | AB28: - | AC28: - | AD28: - | AE28: - | AF28: - | AG28: - | AH28: - | AI28: - | AJ28: - | AK28: - | AL28: - | AM28: - | AN28: - | AO28: - | AP28: - | AQ28: - | AR28: - | AS28: - | AT28: - | AU28: - | AV28: - | AW28: - | BI28: =IF(K28="","",IF(ISTEXT(K28),K28,IF(K28>Basis!$N$20,"Uit",IF(ISBLANK(L28),K28,K28+L28)))) ->  | BL28: =IF(N28="","",IF(BK28<=Basis!$F$20,0,(BK28-Basis!$F$20)*0.4)) ->  | BM28: =IF(N28="","",IF(BK28>Basis!$G$20,0,(Basis!$G$20-BK28)*0.4)) -> 
J29: =IF(I29="","",IF(ISTEXT(I29),I29,IF(I29<=Basis!$M$20,"Uit",(100-(I29/Basis!$L$20*100))*Basis!$Y$19))) ->  | P29: =IF(N29="","",IF(N29*60+O29>Basis!$U$20,"Uit",BL29+BM29)) ->  | Z29: - | AA29: - | AB29: - | AC29: - | AD29: - | AE29: - | AF29: - | AG29: - | AH29: - | AI29: - | AJ29: - | AK29: - | AL29: - | AM29: - | AN29: - | AO29: - | AP29: - | AQ29: - | AR29: - | AS29: - | AT29: - | AU29: - | AV29: - | AW29: - | BI29: =IF(K29="","",IF(ISTEXT(K29),K29,IF(K29>Basis!$N$20,"Uit",IF(ISBLANK(L29),K29,K29+L29)))) ->  | BL29: =IF(N29="","",IF(BK29<=Basis!$F$20,0,(BK29-Basis!$F$20)*0.4)) ->  | BM29: =IF(N29="","",IF(BK29>Basis!$G$20,0,(Basis!$G$20-BK29)*0.4)) -> 
A30: Bij uitsluiting reden vermelden : | P30: =NOW() -> 2018-06-30T22:02:24.880 | X30: =A30 -> Bij uitsluiting reden vermelden : | AU30: =NOW() -> 2018-06-30T22:02:24.880
A31: VP=val paard, VR=val ruiter, 3W=3 weigeringen op zelfde hindernis, 4W=4 weigeringen totaal, FP=foutief parcours, Vr.v= vrijwillig verlaten | X31: =A31 -> VP=val paard, VR=val ruiter, 3W=3 weigeringen op zelfde hindernis, 4W=4 weigeringen totaal, FP=foutief parcours, Vr.v= vrijwillig verlaten

Sheet Ring 3 - L-DE
A1: =" Samengestelde wedstrijd "&Basis!D18 -> Samengestelde wedstrijd Eventing Leende 30 juni 2018 | G1: Klasse L - Cat DE - Ring 3 | L1: Dressuurjury : | M1: Doortje Herk | X1: Verzamelstaat hindernisfouten in de cross | AK1: =A1 -> Samengestelde wedstrijd Eventing Leende 30 juni 2018 | BA1: =G1&" " -> Klasse L - Cat DE - Ring 3 | BC1: Indien aankomstUUR cross wordt meegedeeld : | BI1: Hulpkolommen
A2: rank | B2: pony | C2: rugnr | D2: combinatie nr | E2: naam ruiter | F2: naam pony | G2: vereniging / plaats | I2: dressuur | J2: dressuur | K2: hind.ft. | L2: tijd.ft. | M2: hind.ft. | N2: min | O2: sec | P2: tijd.ft. | R2: totaal | S2: (1) stijl | T2: (2) stijl | U2: eind- | V2: reden | Y2: hindernisnummer | BI2: Uitslag | BJ2: NA | BK2: tijd (sec) | BL2: tijd.ft. | BM2: reg.ft. | BN2: totaal
A3: HC | B3: cat. | I3: totaal | J3: strafpntn. | K3: springen | L3: springen | M3: cross | N3: cross | P3: =Basis!$H$25&":"&TEXT(Basis!$I$25,"00") -> 3:40 | S3: cijfer | T3: cijfer | U3: totaal | V3: uitsluiting | X3: nr | Y3: 1 | Z3: 2 | AA3: 3 | AB3: 4 | AC3: 5 | AD3: 6 | AE3: 7 | AF3: 8 | AG3: VD | AH3: 9 | AI3: VD | AJ3: 10 | AK3: 11 | AL3: 12 | AM3: 13ab | AN3: 14 | AO3: 15 | AP3: F | AX3: totaal | AY3: reden uitsluiting | AZ3: hind. | BA3: nr | BC3: Vertrekuur | BD3: Aankomst | BE3: Tijd | BF3: Minuten | BG3: Seconden | BI3: Springen | BJ3: Springen | BK3: cross | BL3: opt.tijd = | BM3: =Basis!$H$25&":"&TEXT(Basis!$I$25,"00") -> 3:40 | BN3: cross
R4: =IF(ISBLANK(I4),"",IF(AND(ISBLANK(K4),ISBLANK(Y4)),J4,IF(ISTEXT(K4),K4,IF(OR(ISBLANK(M4),M4=""),J4+K4+L4,IF(ISTEXT(M4),M4,IF(ISBLANK(Y4),J4+K4+L4,J4+K4+L4+M4+P4+Q4)))))) -> 
A5: 1 | B5: E | C5: 114 | D5: 808140VO | E5: Nanke Oosterink | F5: Vivid | G5: PC. Hummelo | I5: 203.5 | J5: =IF(I5="","",IF(ISTEXT(I5),I5,IF(I5<=Basis!$M$25,"Uit",(100-(I5/Basis!$L$25*100))*Basis!$Y$19))) -> 32.16666667 | K5: 0 | L5: 0 | M5: =IF(AX5="","",AX5) -> 0 | N5: =IF(ISBLANK(BD5),"",BF5) -> 3 | O5: =IF(ISBLANK(BD5),"",BG5) -> 43 | P5: =IF(N5="","",IF(N5*60+O5>Basis!$U$25,"Uit",BL5+BM5)) -> 1.2 | R5: =IF(ISTEXT(BJ5),BJ5,IF(OR(ISBLANK(M5),M5="",ISBLANK(Y5)),BJ5,IF(ISTEXT(BN5),BN5,BJ5+BN5))) -> 33.36666667 | U5: =IF(R5="","",IF(ISTEXT(R5),R5,R5-S5-T5)) -> 33.36666667 | V5: =IF(AY5="","",AY5) ->  | X5: =IF($C5="","",$C5) -> 114 | Y5: 0 | Z5: - | AA5: - | AB5: - | AC5: - | AD5: - | AE5: - | AF5: - | AG5: - | AH5: - | AI5: - | AJ5: - | AK5: - | AL5: - | AM5: - | AN5: - | AO5: - | AP5: - | AX5: =IF(Y5="","",IF(ISTEXT(Y5),Y5,SUM(Y5:AW5))) -> 0 | BA5: =IF($C5="","",$C5) -> 114 | BC5: 14:18:00 | BD5: 14:21:43 | BE5: =IF(ISBLANK(BD5),"",BD5-BC5) -> 00:03:43 | BF5: =IF(ISBLANK(BD5),"",MINUTE(BE5)) -> 3 | BG5: =IF(ISBLANK(BD5),"",SECOND(BE5)) -> 43 | BI5: =IF(K5="","",IF(ISTEXT(K5),K5,IF(K5>Basis!$N$25,"Uit",IF(ISBLANK(L5),K5,K5+L5)))) -> 0 | BJ5: =IF(OR(ISTEXT(J5),BI5=""),J5,IF(ISTEXT(BI5),BI5,J5+BI5)) -> 32.16666667 | BK5: =IF(N5="","",N5*60+O5) -> 223 | BL5: =IF(N5="","",IF(BK5<=Basis!$F$25,0,(BK5-Basis!$F$25)*0.4)) -> 1.2 | BM5: =IF(N5="","",IF(BK5>Basis!$G$25,0,(Basis!$G$25-BK5)*0.4)) -> 0 | BN5: =IF(M5="","",IF(ISTEXT(M5),M5,IF(ISTEXT(P5),P5,M5+P5))) -> 1.2
A6: 2 | B6: D | C6: 113 | D6: 721840MH | E6: Megan van de Heijkant | F6: Mochito | G6: PC. Sint Michaël (rsv.) | I6: 186.5 | J6: =IF(I6="","",IF(ISTEXT(I6),I6,IF(I6<=Basis!$M$25,"Uit",(100-(I6/Basis!$L$25*100))*Basis!$Y$19))) -> 37.83333333 | K6: 8 | L6: 0 | M6: 0 | N6: 3 | O6: 58 | P6: =IF(N6="","",IF(N6*60+O6>Basis!$U$25,"Uit",BL6+BM6)) -> 7.2 | R6: 53.03333333 | U6: 53.03333333 | X6: 113 | Y6: 0 | Z6: - | AA6: - | AB6: - | AC6: - | AD6: - | AE6: - | AF6: - | AG6: - | AH6: - | AI6: - | AJ6: - | AK6: - | AL6: - | AM6: - | AN6: - | AO6: - | AP6: - | AX6: 0 | BA6: 113 | BC6: 14:16:00 | BD6: 14:19:58 | BE6: 00:03:58 | BF6: 3 | BG6: 58 | BI6: =IF(K6="","",IF(ISTEXT(K6),K6,IF(K6>Basis!$N$25,"Uit",IF(ISBLANK(L6),K6,K6+L6)))) -> 8 | BJ6: 45.83333333 | BK6: 238 | BL6: =IF(N6="","",IF(BK6<=Basis!$F$25,0,(BK6-Basis!$F$25)*0.4)) -> 7.2 | BM6: =IF(N6="","",IF(BK6>Basis!$G$25,0,(Basis!$G$25-BK6)*0.4)) -> 0 | BN6: 7.2
A7: 3 | B7: D | C7: 112 | D7: 690206UW | E7: Alice Weijman | F7: Carrick | G7: PC. Klein Maar Dapper | I7: 198 | J7: =IF(I7="","",IF(ISTEXT(I7),I7,IF(I7<=Basis!$M$25,"Uit",(100-(I7/Basis!$L$25*100))*Basis!$Y$19))) -> 34 | K7: 0 | L7: 0 | M7: 20 | N7: 4 | O7: 10 | P7: =IF(N7="","",IF(N7*60+O7>Basis!$U$25,"Uit",BL7+BM7)) -> 12 | R7: 66 | U7: 66 | X7: 112 | Y7: 0 | Z7: - | AA7: - | AB7: - | AC7: - | AD7: - | AE7: - | AF7: - | AG7: - | AH7: - | AI7: - | AJ7: 20 | AK7: - | AL7: - | AM7: - | AN7: - | AO7: - | AP7: - | AX7: 20 | BA7: 112 | BC7: 14:14:00 | BD7: 14:18:10 | BE7: 00:04:10 | BF7: 4 | BG7: 10 | BI7: =IF(K7="","",IF(ISTEXT(K7),K7,IF(K7>Basis!$N$25,"Uit",IF(ISBLANK(L7),K7,K7+L7)))) -> 0 | BJ7: 34 | BK7: 250 | BL7: =IF(N7="","",IF(BK7<=Basis!$F$25,0,(BK7-Basis!$F$25)*0.4)) -> 12 | BM7: =IF(N7="","",IF(BK7>Basis!$G$25,0,(Basis!$G$25-BK7)*0.4)) -> 0 | BN7: 32
J8: =IF(I8="","",IF(ISTEXT(I8),I8,IF(I8<=Basis!$M$25,"Uit",(100-(I8/Basis!$L$25*100))*Basis!$Y$19))) ->  | P8: =IF(N8="","",IF(N8*60+O8>Basis!$U$25,"Uit",BL8+BM8)) ->  | BI8: =IF(K8="","",IF(ISTEXT(K8),K8,IF(K8>Basis!$N$25,"Uit",IF(ISBLANK(L8),K8,K8+L8)))) ->  | BL8: =IF(N8="","",IF(BK8<=Basis!$F$25,0,(BK8-Basis!$F$25)*0.4)) ->  | BM8: =IF(N8="","",IF(BK8>Basis!$G$25,0,(Basis!$G$25-BK8)*0.4)) -> 
B9: D | C9: 115 | J9: =IF(I9="","",IF(ISTEXT(I9),I9,IF(I9<=Basis!$M$25,"Uit",(100-(I9/Basis!$L$25*100))*Basis!$Y$19))) ->  | P9: =IF(N9="","",IF(N9*60+O9>Basis!$U$25,"Uit",BL9+BM9)) ->  | X9: 115 | BA9: 115 | BC9: 14:20:00 | BI9: =IF(K9="","",IF(ISTEXT(K9),K9,IF(K9>Basis!$N$25,"Uit",IF(ISBLANK(L9),K9,K9+L9)))) ->  | BL9: =IF(N9="","",IF(BK9<=Basis!$F$25,0,(BK9-Basis!$F$25)*0.4)) ->  | BM9: =IF(N9="","",IF(BK9>Basis!$G$25,0,(Basis!$G$25-BK9)*0.4)) -> 
B10: D | C10: 110 | D10: 744460GD | E10: Jinte van Dongen | F10: Geralja's tommie | I10: NG | J10: =IF(I10="","",IF(ISTEXT(I10),I10,IF(I10<=Basis!$M$25,"Uit",(100-(I10/Basis!$L$25*100))*Basis!$Y$19))) -> NG | M10: NG | P10: =IF(N10="","",IF(N10*60+O10>Basis!$U$25,"Uit",BL10+BM10)) ->  | R10: NG | U10: NG | X10: 110 | Y10: NG | Z10: - | AA10: - | AB10: - | AC10: - | AD10: - | AE10: - | AF10: - | AG10: - | AH10: - | AI10: - | AJ10: - | AK10: - | AL10: - | AM10: - | AN10: - | AO10: - | AP10: - | AX10: NG | BA10: 110 | BC10: 14:10:00 | BI10: =IF(K10="","",IF(ISTEXT(K10),K10,IF(K10>Basis!$N$25,"Uit",IF(ISBLANK(L10),K10,K10+L10)))) ->  | BJ10: NG | BL10: =IF(N10="","",IF(BK10<=Basis!$F$25,0,(BK10-Basis!$F$25)*0.4)) ->  | BM10: =IF(N10="","",IF(BK10>Basis!$G$25,0,(Basis!$G$25-BK10)*0.4)) ->  | BN10: NG
B11: D | C11: 116 | D11: 697290OD | E11: Nikki Dekkers | F11: Orchid's Xantho Diëgo | G11: PC. Rutger Van Herpenruiters (hsv.) | I11: NG | J11: =IF(I11="","",IF(ISTEXT(I11),I11,IF(I11<=Basis!$M$25,"Uit",(100-(I11/Basis!$L$25*100))*Basis!$Y$19))) -> NG | M11: NG | P11: =IF(N11="","",IF(N11*60+O11>Basis!$U$25,"Uit",BL11+BM11)) ->  | R11: NG | U11: NG | X11: 116 | Y11: NG | Z11: - | AA11: - | AB11: - | AC11: - | AD11: - | AE11: - | AF11: - | AG11: - | AH11: - | AI11: - | AJ11: - | AK11: - | AL11: - | AM11: - | AN11: - | AO11: - | AP11: - | AX11: NG | BA11: 116 | BC11: 14:22:00 | BI11: =IF(K11="","",IF(ISTEXT(K11),K11,IF(K11>Basis!$N$25,"Uit",IF(ISBLANK(L11),K11,K11+L11)))) ->  | BJ11: NG | BL11: =IF(N11="","",IF(BK11<=Basis!$F$25,0,(BK11-Basis!$F$25)*0.4)) ->  | BM11: =IF(N11="","",IF(BK11>Basis!$G$25,0,(Basis!$G$25-BK11)*0.4)) ->  | BN11: NG
J12: =IF(I12="","",IF(ISTEXT(I12),I12,IF(I12<=Basis!$M$25,"Uit",(100-(I12/Basis!$L$25*100))*Basis!$Y$19))) ->  | P12: =IF(N12="","",IF(N12*60+O12>Basis!$U$25,"Uit",BL12+BM12)) ->  | BI12: =IF(K12="","",IF(ISTEXT(K12),K12,IF(K12>Basis!$N$25,"Uit",IF(ISBLANK(L12),K12,K12+L12)))) ->  | BL12: =IF(N12="","",IF(BK12<=Basis!$F$25,0,(BK12-Basis!$F$25)*0.4)) ->  | BM12: =IF(N12="","",IF(BK12>Basis!$G$25,0,(Basis!$G$25-BK12)*0.4)) -> 
J13: =IF(I13="","",IF(ISTEXT(I13),I13,IF(I13<=Basis!$M$25,"Uit",(100-(I13/Basis!$L$25*100))*Basis!$Y$19))) ->  | P13: =IF(N13="","",IF(N13*60+O13>Basis!$U$25,"Uit",BL13+BM13)) ->  | BI13: =IF(K13="","",IF(ISTEXT(K13),K13,IF(K13>Basis!$N$25,"Uit",IF(ISBLANK(L13),K13,K13+L13)))) ->  | BL13: =IF(N13="","",IF(BK13<=Basis!$F$25,0,(BK13-Basis!$F$25)*0.4)) ->  | BM13: =IF(N13="","",IF(BK13>Basis!$G$25,0,(Basis!$G$25-BK13)*0.4)) -> 
J14: =IF(I14="","",IF(ISTEXT(I14),I14,IF(I14<=Basis!$M$25,"Uit",(100-(I14/Basis!$L$25*100))*Basis!$Y$19))) ->  | P14: =IF(N14="","",IF(N14*60+O14>Basis!$U$25,"Uit",BL14+BM14)) ->  | BI14: =IF(K14="","",IF(ISTEXT(K14),K14,IF(K14>Basis!$N$25,"Uit",IF(ISBLANK(L14),K14,K14+L14)))) ->  | BL14: =IF(N14="","",IF(BK14<=Basis!$F$25,0,(BK14-Basis!$F$25)*0.4)) ->  | BM14: =IF(N14="","",IF(BK14>Basis!$G$25,0,(Basis!$G$25-BK14)*0.4)) -> 
A15: Bij uitsluiting reden vermelden : | P15: =NOW() -> 2018-06-30T22:02:24.880 | X15: =A15 -> Bij uitsluiting reden vermelden : | AU15: =NOW() -> 2018-06-30T22:02:24.880
A16: VP=val paard, VR=val ruiter, 3W=3 weigeringen op zelfde hindernis, 4W=4 weigeringen totaal, FP=foutief parcours, Vr.v= vrijwillig verlaten | X16: =A16 -> VP=val paard, VR=val ruiter, 3W=3 weigeringen op zelfde hindernis, 4W=4 weigeringen totaal, FP=foutief parcours, Vr.v= vrijwillig verlaten

Sheet Ring 3 - L-ABC
A1: =" Samengestelde wedstrijd "&Basis!D18 -> Samengestelde wedstrijd Eventing Leende 30 juni 2018 | G1: Klasse L - Cat ABC - Ring 3 | L1: Dressuurjury : | M1: Doortje Herk | X1: Verzamelstaat hindernisfouten in de cross | AK1: =A1 -> Samengestelde wedstrijd Eventing Leende 30 juni 2018 | BA1: =G1&" " -> Klasse L - Cat ABC - Ring 3 | BC1: Indien aankomstUUR cross wordt meegedeeld : | BI1: Hulpkolommen
A2: rank | B2: pony | C2: rugnr | D2: combinatie nr | E2: naam ruiter | F2: naam pony | G2: vereniging / plaats | I2: dressuur | J2: dressuur | K2: hind.ft. | L2: tijd.ft. | M2: hind.ft. | N2: min | O2: sec | P2: tijd.ft. | R2: totaal | S2: (1) stijl | T2: (2) stijl | U2: eind- | V2: reden | Y2: hindernisnummer | BI2: Uitslag | BJ2: NA | BK2: tijd (sec) | BL2: tijd.ft. | BM2: reg.ft. | BN2: totaal
A3: HC | B3: cat. | I3: totaal | J3: strafpntn. | K3: springen | L3: springen | M3: cross | N3: cross | P3: =Basis!$H$23&":"&TEXT(Basis!$I$23,"00") -> 3:55 | S3: cijfer | T3: cijfer | U3: totaal | V3: uitsluiting | X3: nr | Y3: 1 | Z3: 2 | AA3: 3 | AB3: 4 | AC3: 5 | AD3: 6 | AE3: 7 | AF3: 8 | AG3: VD | AH3: 9 | AI3: VD | AJ3: 10 | AK3: 11 | AL3: 12 | AM3: 13ab | AN3: 14 | AO3: 15 | AP3: F | AX3: totaal | AY3: reden uitsluiting | AZ3: hind. | BA3: nr | BC3: Vertrekuur | BD3: Aankomst | BE3: Tijd | BF3: Minuten | BG3: Seconden | BI3: Springen | BJ3: Springen | BK3: cross | BL3: opt.tijd = | BM3: =Basis!$H$23&":"&TEXT(Basis!$I$23,"00") -> 3:55 | BN3: cross
R4: =IF(ISBLANK(I4),"",IF(AND(ISBLANK(K4),ISBLANK(Y4)),J4,IF(ISTEXT(K4),K4,IF(OR(ISBLANK(M4),M4=""),J4+K4+L4,IF(ISTEXT(M4),M4,IF(ISBLANK(Y4),J4+K4+L4,J4+K4+L4+M4+P4+Q4)))))) -> 
A5: 1 | B5: C | C5: 119 | D5: 761467TW | E5: Sophie Weening | F5: Tobias | G5: PC. 't Reelaer (hsv.) | I5: 188 | J5: =IF(I5="","",IF(ISTEXT(I5),I5,IF(I5<=Basis!$M$24,"Uit",(100-(I5/Basis!$L$24*100))*Basis!$Y$19))) -> 37.33333333 | K5: 0 | L5: 0 | M5: =IF(AX5="","",AX5) -> 0 | N5: =IF(ISBLANK(BD5),"",BF5) -> 4 | O5: =IF(ISBLANK(BD5),"",BG5) -> 12 | P5: =IF(N5="","",IF(N5*60+O5>Basis!$U$24,"Uit",BL5+BM5)) -> 6.8 | R5: =IF(ISTEXT(BJ5),BJ5,IF(OR(ISBLANK(M5),M5="",ISBLANK(Y5)),BJ5,IF(ISTEXT(BN5),BN5,BJ5+BN5))) -> 44.13333333 | U5: =IF(R5="","",IF(ISTEXT(R5),R5,R5-S5-T5)) -> 44.13333333 | V5: =IF(AY5="","",AY5) ->  | X5: =IF($C5="","",$C5) -> 119 | Y5: 0 | Z5: - | AA5: - | AB5: - | AC5: - | AD5: - | AE5: - | AF5: - | AG5: - | AH5: - | AI5: - | AJ5: - | AK5: - | AL5: - | AM5: - | AN5: - | AO5: - | AP5: - | AX5: =IF(Y5="","",IF(ISTEXT(Y5),Y5,SUM(Y5:AW5))) -> 0 | BA5: =IF($C5="","",$C5) -> 119 | BC5: 14:34:00 | BD5: 14:38:12 | BE5: =IF(ISBLANK(BD5),"",BD5-BC5) -> 00:04:12 | BF5: =IF(ISBLANK(BD5),"",MINUTE(BE5)) -> 4 | BG5: =IF(ISBLANK(BD5),"",SECOND(BE5)) -> 12 | BI5: =IF(K5="","",IF(ISTEXT(K5),K5,IF(K5>Basis!$N$23,"Uit",IF(ISBLANK(L5),K5,K5+L5)))) -> 0 | BJ5: =IF(OR(ISTEXT(J5),BI5=""),J5,IF(ISTEXT(BI5),BI5,J5+BI5)) -> 37.33333333 | BK5: =IF(N5="","",N5*60+O5) -> 252 | BL5: =IF(N5="","",IF(BK5<=Basis!$F$23,0,(BK5-Basis!$F$23)*0.4)) -> 6.8 | BM5: =IF(N5="","",IF(BK5>Basis!$G$23,0,(Basis!$G$23-BK5)*0.4)) -> 0 | BN5: =IF(M5="","",IF(ISTEXT(M5),M5,IF(ISTEXT(P5),P5,M5+P5))) -> 6.8
B6: B | C6: 117 | D6: 766510JH | E6: Louise Hooijen | F6: Jolly Jumper | G6: PC. Irene-Bosruiters | I6: 201.5 | J6: =IF(I6="","",IF(ISTEXT(I6),I6,IF(I6<=Basis!$M$23,"Uit",(100-(I6/Basis!$L$23*100))*Basis!$Y$19))) -> 32.83333333 | K6: 4 | L6: 0 | M6: =IF(AX6="","",AX6) -> Uit | N6: =IF(ISBLANK(BD6),"",BF6) ->  | O6: =IF(ISBLANK(BD6),"",BG6) ->  | P6: =IF(N6="","",IF(N6*60+O6>Basis!$U$23,"Uit",BL6+BM6)) ->  | R6: =IF(ISTEXT(BJ6),BJ6,IF(OR(ISBLANK(M6),M6="",ISBLANK(Y6)),BJ6,IF(ISTEXT(BN6),BN6,BJ6+BN6))) -> Uit | U6: =IF(R6="","",IF(ISTEXT(R6),R6,R6-S6-T6)) -> Uit | V6: =IF(AY6="","",AY6) -> 4W h.4 d* | X6: =IF($C6="","",$C6) -> 117 | Y6: 60 | Z6: 20 | AA6: - | AB6: 3W | AC6: - | AD6: - | AE6: - | AX6: Uit | AY6: 4W h.4 d* | BA6: =IF($C6="","",$C6) -> 117 | BC6: 14:30:00 | BE6: =IF(ISBLANK(BD6),"",BD6-BC6) ->  | BF6: =IF(ISBLANK(BD6),"",MINUTE(BE6)) ->  | BG6: =IF(ISBLANK(BD6),"",SECOND(BE6)) ->  | BI6: =IF(K6="","",IF(ISTEXT(K6),K6,IF(K6>Basis!$N$23,"Uit",IF(ISBLANK(L6),K6,K6+L6)))) -> 4 | BJ6: =IF(OR(ISTEXT(J6),BI6=""),J6,IF(ISTEXT(BI6),BI6,J6+BI6)) -> 36.83333333 | BK6: =IF(N6="","",N6*60+O6) ->  | BL6: =IF(N6="","",IF(BK6<=Basis!$F$23,0,(BK6-Basis!$F$23)*0.4)) ->  | BM6: =IF(N6="","",IF(BK6>Basis!$G$23,0,(Basis!$G$23-BK6)*0.4)) ->  | BN6: =IF(M6="","",IF(ISTEXT(M6),M6,IF(ISTEXT(P6),P6,M6+P6))) -> Uit
B7: C | C7: 118 | D7: 768171HB | E7: Tijn de Blaauw | F7: Hunter | I7: 169 | J7: =IF(I7="","",IF(ISTEXT(I7),I7,IF(I7<=Basis!$M$24,"Uit",(100-(I7/Basis!$L$24*100))*Basis!$Y$19))) -> 43.66666667 | K7: 0 | L7: 0 | M7: Uit | P7: =IF(N7="","",IF(N7*60+O7>Basis!$U$24,"Uit",BL7+BM7)) ->  | R7: Uit | U7: Uit | V7: FP h.9 d* | X7: 118 | Y7: 20 | Z7: - | AA7: - | AB7: 20 | AC7: - | AD7: - | AE7: 20 | AF7: - | AG7: - | AH7: FP | AI7: - | AJ7: - | AK7: - | AL7: - | AM7: VR | AX7: Uit | AY7: FP h.9 d* | BA7: 118 | BC7: 14:32:00 | BI7: =IF(K7="","",IF(ISTEXT(K7),K7,IF(K7>Basis!$N$23,"Uit",IF(ISBLANK(L7),K7,K7+L7)))) -> 0 | BJ7: =IF(OR(ISTEXT(J7),BI7=""),J7,IF(ISTEXT(BI7),BI7,J7+BI7)) -> 43.66666667 | BK7: =IF(N7="","",N7*60+O7) ->  | BL7: =IF(N7="","",IF(BK7<=Basis!$F$23,0,(BK7-Basis!$F$23)*0.4)) ->  | BM7: =IF(N7="","",IF(BK7>Basis!$G$23,0,(Basis!$G$23-BK7)*0.4)) ->  | BN7: =IF(M7="","",IF(ISTEXT(M7),M7,IF(ISTEXT(P7),P7,M7+P7))) -> Uit
B8: C | C8: 120 | J8: =IF(I8="","",IF(ISTEXT(I8),I8,IF(I8<=Basis!$M$24,"Uit",(100-(I8/Basis!$L$24*100))*Basis!$Y$19))) ->  | M8: =IF(AX8="","",AX8) ->  | N8: =IF(ISBLANK(BD8),"",BF8) ->  | O8: =IF(ISBLANK(BD8),"",BG8) ->  | P8: =IF(N8="","",IF(N8*60+O8>Basis!$U$24,"Uit",BL8+BM8)) ->  | X8: 120 | Z8: - | AA8: - | AB8: - | AC8: - | AD8: - | AE8: - | AF8: - | AG8: - | AH8: - | AI8: - | AJ8: - | AK8: - | AL8: - | AM8: - | AN8: - | AO8: - | AP8: - | AX8: =IF(Y8="","",IF(ISTEXT(Y8),Y8,SUM(Y8:AW8))) ->  | BA8: 120 | BI8: =IF(K8="","",IF(ISTEXT(K8),K8,IF(K8>Basis!$N$23,"Uit",IF(ISBLANK(L8),K8,K8+L8)))) ->  | BL8: =IF(N8="","",IF(BK8<=Basis!$F$23,0,(BK8-Basis!$F$23)*0.4)) ->  | BM8: =IF(N8="","",IF(BK8>Basis!$G$23,0,(Basis!$G$23-BK8)*0.4)) -> 
J9: =IF(I9="","",IF(ISTEXT(I9),I9,IF(I9<=Basis!$M$23,"Uit",(100-(I9/Basis!$L$23*100))*Basis!$Y$19))) ->  | P9: =IF(N9="","",IF(N9*60+O9>Basis!$U$23,"Uit",BL9+BM9)) ->  | BI9: =IF(K9="","",IF(ISTEXT(K9),K9,IF(K9>Basis!$N$23,"Uit",IF(ISBLANK(L9),K9,K9+L9)))) ->  | BL9: =IF(N9="","",IF(BK9<=Basis!$F$23,0,(BK9-Basis!$F$23)*0.4)) ->  | BM9: =IF(N9="","",IF(BK9>Basis!$G$23,0,(Basis!$G$23-BK9)*0.4)) -> 
J10: =IF(I10="","",IF(ISTEXT(I10),I10,IF(I10<=Basis!$M$23,"Uit",(100-(I10/Basis!$L$23*100))*Basis!$Y$19))) ->  | P10: =IF(N10="","",IF(N10*60+O10>Basis!$U$23,"Uit",BL10+BM10)) ->  | BI10: =IF(K10="","",IF(ISTEXT(K10),K10,IF(K10>Basis!$N$23,"Uit",IF(ISBLANK(L10),K10,K10+L10)))) ->  | BL10: =IF(N10="","",IF(BK10<=Basis!$F$23,0,(BK10-Basis!$F$23)*0.4)) ->  | BM10: =IF(N10="","",IF(BK10>Basis!$G$23,0,(Basis!$G$23-BK10)*0.4)) -> 
J11: =IF(I11="","",IF(ISTEXT(I11),I11,IF(I11<=Basis!$M$23,"Uit",(100-(I11/Basis!$L$23*100))*Basis!$Y$19))) ->  | P11: =IF(N11="","",IF(N11*60+O11>Basis!$U$23,"Uit",BL11+BM11)) ->  | BI11: =IF(K11="","",IF(ISTEXT(K11),K11,IF(K11>Basis!$N$23,"Uit",IF(ISBLANK(L11),K11,K11+L11)))) ->  | BL11: =IF(N11="","",IF(BK11<=Basis!$F$23,0,(BK11-Basis!$F$23)*0.4)) ->  | BM11: =IF(N11="","",IF(BK11>Basis!$G$23,0,(Basis!$G$23-BK11)*0.4)) -> 
J12: =IF(I12="","",IF(ISTEXT(I12),I12,IF(I12<=Basis!$M$23,"Uit",(100-(I12/Basis!$L$23*100))*Basis!$Y$19))) ->  | P12: =IF(N12="","",IF(N12*60+O12>Basis!$U$23,"Uit",BL12+BM12)) ->  | BI12: =IF(K12="","",IF(ISTEXT(K12),K12,IF(K12>Basis!$N$23,"Uit",IF(ISBLANK(L12),K12,K12+L12)))) ->  | BL12: =IF(N12="","",IF(BK12<=Basis!$F$23,0,(BK12-Basis!$F$23)*0.4)) ->  | BM12: =IF(N12="","",IF(BK12>Basis!$G$23,0,(Basis!$G$23-BK12)*0.4)) -> 
A13: Bij uitsluiting reden vermelden : | P13: =NOW() -> 2018-06-30T22:02:24.880 | X13: =A13 -> Bij uitsluiting reden vermelden : | AU13: =NOW() -> 2018-06-30T22:02:24.880
A14: VP=val paard, VR=val ruiter, 3W=3 weigeringen op zelfde hindernis, 4W=4 weigeringen totaal, FP=foutief parcours, Vr.v= vrijwillig verlaten | X14: =A14 -> VP=val paard, VR=val ruiter, 3W=3 weigeringen op zelfde hindernis, 4W=4 weigeringen totaal, FP=foutief parcours, Vr.v= vrijwillig verlaten

Sheet BB Paarden
A1: =" Samengestelde wedstrijd "&Basis!D5 -> Samengestelde wedstrijd Eventing Leende 30 juni 2018 | G1: Klasse BB paarden | K1: Dressuurjury : | L1: nvt | X1: Verzamelstaat hindernisfouten in de cross | AK1: =A1 -> Samengestelde wedstrijd Eventing Leende 30 juni 2018 | BA1: =G1&" " -> Klasse BB paarden | BC1: Indien aankomstUUR cross wordt meegedeeld : | BI1: Hulpkolommen | BP1: Stijlcijfers :
A2: rank | C2: rugnr | D2: combinatie nr | E2: naam ruiter | F2: naam paard | G2: vereniging / plaats | I2: dressuur | J2: dressuur | K2: hind.ft. | L2: tijd.ft. | M2: hind.ft. | N2: min | O2: sec | P2: tijd.ft. | R2: totaal | S2: (1) stijl | T2: (2) stijl | U2: eind- | V2: reden | Y2: hindernisnummer | BI2: Uitslag | BJ2: NA | BK2: tijd (sec) | BL2: tijd.ft. | BM2: reg.ft. | BN2: totaal | BP2: Totaal | BQ2: Totaal | BR2: Gemiddelde | BS2: Gemiddelde
A3: HC | I3: totaal | J3: strafpntn. | K3: springen | L3: springen | M3: cross | N3: cross | P3: =Basis!$H$8&":"&TEXT(Basis!$I$8,"00") -> 3:40 | S3: cijfer | T3: cijfer | U3: totaal | V3: uitsluiting | X3: nr | Y3: 1 | Z3: 2 | AA3: 3 | AB3: 4 | AC3: 5 | AD3: 6 | AE3: VD | AF3: 7 | AG3: VD | AH3: 8ab | AI3: 9 | AJ3: 10ab | AK3: 11 | AL3: 12 | AM3: F | AX3: totaal | AY3: reden uitsluiting | AZ3: hind. | BA3: nr | BC3: Vertrekuur | BD3: Aankomst | BE3: Tijd | BF3: Minuten | BG3: Seconden | BI3: Springen | BJ3: Springen | BK3: cross | BL3: opt.tijd = | BM3: =Basis!$H$8&":"&TEXT(Basis!$I$8,"00") -> 3:40 | BN3: cross | BP3: Jury 1 | BQ3: Jury 2 | BR3: Jury 1 | BS3: Jury 2
R4: =IF(ISBLANK(I4),"",IF(AND(ISBLANK(K4),ISBLANK(Y4)),J4,IF(ISTEXT(K4),K4,IF(OR(ISBLANK(M4),M4=""),J4+K4+L4,IF(ISTEXT(M4),M4,IF(ISBLANK(Y4),J4+K4+L4,J4+K4+L4+M4+P4+Q4)))))) -> 
A5: 1 | C5: 121 | E5: Majoor Bart Jan Geers | F5: Gigi | G5: RV. Militaire Ruitersportvereniging 'Te Paard!' * | I5: 150 | J5: =IF(I5="","",IF(ISTEXT(I5),I5,IF(I5<=Basis!$M$8,"Uit",(100-(I5/Basis!$L$8*100))*Basis!$Y$6))) -> 50 | K5: 0 | L5: 0 | M5: =IF(AX5="","",AX5) -> 0 | N5: =IF(ISBLANK(BD5),"",BF5) -> 3 | O5: =IF(ISBLANK(BD5),"",BG5) -> 59 | P5: =IF(N5="","",IF(N5*60+O5>Basis!$U$8,"Uit",BL5+BM5)) -> 7.6 | R5: =IF(ISTEXT(BJ5),BJ5,IF(OR(ISBLANK(M5),M5="",ISBLANK(Y5)),BJ5,IF(ISTEXT(BN5),BN5,BJ5+BN5))) -> 57.6 | S5: =IF(BP5="","",BR5) -> 7.166666667 | T5: =IF(BQ5="","",BS5) -> 7.166666667 | U5: =IF(R5="","",IF(ISTEXT(R5),R5,IF(BP5="","",R5-S5-T5))) -> 43.26666667 | V5: =IF(AY5="","",AY5) ->  | X5: =IF($C5="","",$C5) -> 121 | Y5: 0 | Z5: - | AA5: - | AB5: - | AC5: - | AD5: - | AE5: - | AF5: - | AG5: - | AH5: - | AI5: - | AJ5: - | AK5: - | AL5: - | AM5: - | AX5: =IF(Y5="","",IF(ISTEXT(Y5),Y5,SUM(Y5:AW5))) -> 0 | BA5: =IF($C5="","",$C5) -> 121 | BC5: 15:04:00 | BD5: 15:07:59 | BE5: =IF(ISBLANK(BD5),"",BD5-BC5) -> 00:03:59 | BF5: =IF(ISBLANK(BD5),"",MINUTE(BE5)) -> 3 | BG5: =IF(ISBLANK(BD5),"",SECOND(BE5)) -> 59 | BI5: =IF(K5="","",IF(ISTEXT(K5),K5,IF(K5>Basis!$N$8,"Uit",IF(ISBLANK(L5),K5,K5+L5)))) -> 0 | BJ5: =IF(OR(ISTEXT(J5),BI5=""),J5,IF(ISTEXT(BI5),BI5,J5+BI5)) -> 50 | BK5: =IF(N5="","",N5*60+O5) -> 239 | BL5: =IF(N5="","",IF(BK5<=Basis!$F$8,0,(BK5-Basis!$F$8)*0.4)) -> 7.6 | BM5: =IF(N5="","",IF(BK5>Basis!$G$8,0,(Basis!$G$8-BK5)*0.4)) -> 0 | BN5: =IF(M5="","",IF(ISTEXT(M5),M5,IF(ISTEXT(P5),P5,M5+P5))) -> 7.6 | BP5: 21.5 | BQ5: 21.5 | BR5: =IF(BP5="","",BP5/3) -> 7.166666667 | BS5: =IF(BQ5="","",BQ5/3) -> 7.166666667
A6: 2 | C6: 131 | E6: Marieke Nowee | F6: Furenda | I6: 150 | J6: =IF(I6="","",IF(ISTEXT(I6),I6,IF(I6<=Basis!$M$8,"Uit",(100-(I6/Basis!$L$8*100))*Basis!$Y$6))) -> 50 | K6: 0 | L6: 0 | M6: 0 | N6: 4 | O6: 27 | P6: =IF(N6="","",IF(N6*60+O6>Basis!$U$8,"Uit",BL6+BM6)) -> 18.8 | R6: 68.8 | S6: 7.833333333 | T6: 7.333333333 | U6: 53.63333333 | X6: 131 | Y6: 0 | Z6: - | AA6: - | AB6: - | AC6: - | AD6: - | AE6: - | AF6: - | AG6: - | AH6: - | AI6: - | AJ6: - | AK6: - | AL6: - | AM6: - | AX6: =IF(Y6="","",IF(ISTEXT(Y6),Y6,SUM(Y6:AW6))) -> 0 | BA6: 131 | BC6: 15:24:00 | BD6: 15:28:27 | BE6: 00:04:27 | BF6: 4 | BG6: 27 | BI6: =IF(K6="","",IF(ISTEXT(K6),K6,IF(K6>Basis!$N$8,"Uit",IF(ISBLANK(L6),K6,K6+L6)))) -> 0 | BJ6: 50 | BK6: 267 | BL6: =IF(N6="","",IF(BK6<=Basis!$F$8,0,(BK6-Basis!$F$8)*0.4)) -> 18.8 | BM6: =IF(N6="","",IF(BK6>Basis!$G$8,0,(Basis!$G$8-BK6)*0.4)) -> 0 | BN6: 18.8 | BP6: 23.5 | BQ6: 22 | BR6: 7.833333333 | BS6: 7.333333333
A7: 3 | C7: 124 | E7: Marlissa Opneneer | F7: Nashita Zarascha | G7: RV. Prins Maurits | I7: 150 | J7: =IF(I7="","",IF(ISTEXT(I7),I7,IF(I7<=Basis!$M$8,"Uit",(100-(I7/Basis!$L$8*100))*Basis!$Y$6))) -> 50 | K7: 4 | L7: 0 | M7: 0 | N7: 4 | O7: 22 | P7: =IF(N7="","",IF(N7*60+O7>Basis!$U$8,"Uit",BL7+BM7)) -> 16.8 | R7: 70.8 | S7: 7.833333333 | T7: 6.333333333 | U7: 56.63333333 | X7: 124 | Y7: 0 | Z7: - | AA7: - | AB7: - | AC7: - | AD7: - | AE7: - | AF7: - | AG7: - | AH7: - | AI7: - | AJ7: - | AK7: - | AL7: - | AM7: - | AX7: =IF(Y7="","",IF(ISTEXT(Y7),Y7,SUM(Y7:AW7))) -> 0 | BA7: 124 | BC7: 15:30:00 | BD7: 15:34:22 | BE7: 00:04:22 | BF7: 4 | BG7: 22 | BI7: =IF(K7="","",IF(ISTEXT(K7),K7,IF(K7>Basis!$N$8,"Uit",IF(ISBLANK(L7),K7,K7+L7)))) -> 4 | BJ7: 54 | BK7: 262 | BL7: =IF(N7="","",IF(BK7<=Basis!$F$8,0,(BK7-Basis!$F$8)*0.4)) -> 16.8 | BM7: =IF(N7="","",IF(BK7>Basis!$G$8,0,(Basis!$G$8-BK7)*0.4)) -> 0 | BN7: 16.8 | BP7: 23.5 | BQ7: 19 | BR7: 7.833333333 | BS7: 6.333333333
A8: 4 | C8: 135 | E8: Leonie van Bekhoven | F8: Gandhi | I8: 150 | J8: =IF(I8="","",IF(ISTEXT(I8),I8,IF(I8<=Basis!$M$8,"Uit",(100-(I8/Basis!$L$8*100))*Basis!$Y$6))) -> 50 | K8: 0 | L8: 3 | M8: 0 | N8: 4 | O8: 36 | P8: =IF(N8="","",IF(N8*60+O8>Basis!$U$8,"Uit",BL8+BM8)) -> 22.4 | R8: 75.4 | S8: 7.166666667 | T8: 7.166666667 | U8: 61.06666667 | X8: 135 | Y8: 0 | Z8: - | AA8: - | AB8: - | AC8: - | AD8: - | AE8: - | AF8: - | AG8: - | AH8: - | AI8: - | AJ8: - | AK8: - | AL8: - | AM8: - | AX8: =IF(Y8="","",IF(ISTEXT(Y8),Y8,SUM(Y8:AW8))) -> 0 | BA8: 135 | BC8: 15:32:00 | BD8: 15:36:36 | BE8: 00:04:36 | BF8: 4 | BG8: 36 | BI8: =IF(K8="","",IF(ISTEXT(K8),K8,IF(K8>Basis!$N$8,"Uit",IF(ISBLANK(L8),K8,K8+L8)))) -> 3 | BJ8: 53 | BK8: 276 | BL8: =IF(N8="","",IF(BK8<=Basis!$F$8,0,(BK8-Basis!$F$8)*0.4)) -> 22.4 | BM8: =IF(N8="","",IF(BK8>Basis!$G$8,0,(Basis!$G$8-BK8)*0.4)) -> 0 | BN8: 22.4 | BP8: 21.5 | BQ8: 21.5 | BR8: 7.166666667 | BS8: 7.166666667
A9: 5 | C9: 133 | E9: Alexandra Vandamme | F9: Delia Mail | I9: 150 | J9: =IF(I9="","",IF(ISTEXT(I9),I9,IF(I9<=Basis!$M$8,"Uit",(100-(I9/Basis!$L$8*100))*Basis!$Y$6))) -> 50 | K9: 0 | L9: 0 | M9: 0 | N9: 5 | O9: 34 | P9: =IF(N9="","",IF(N9*60+O9>Basis!$U$8,"Uit",BL9+BM9)) -> 45.6 | R9: 95.6 | S9: 7 | T9: 7.166666667 | U9: 81.43333333 | X9: 133 | Y9: 0 | Z9: - | AA9: - | AB9: - | AC9: - | AD9: - | AE9: - | AF9: - | AG9: - | AH9: - | AI9: - | AJ9: - | AK9: - | AL9: - | AM9: - | AX9: =IF(Y9="","",IF(ISTEXT(Y9),Y9,SUM(Y9:AW9))) -> 0 | BA9: 133 | BC9: 15:28:00 | BD9: 15:33:34 | BE9: 00:05:34 | BF9: 5 | BG9: 34 | BI9: =IF(K9="","",IF(ISTEXT(K9),K9,IF(K9>Basis!$N$8,"Uit",IF(ISBLANK(L9),K9,K9+L9)))) -> 0 | BJ9: 50 | BK9: 334 | BL9: =IF(N9="","",IF(BK9<=Basis!$F$8,0,(BK9-Basis!$F$8)*0.4)) -> 45.6 | BM9: =IF(N9="","",IF(BK9>Basis!$G$8,0,(Basis!$G$8-BK9)*0.4)) -> 0 | BN9: 45.6 | BP9: 21 | BQ9: 21.5 | BR9: 7 | BS9: 7.166666667
C10: 125 | E10: Heleen van Pol | F10: Winning Boy P Z | G10: RV. Trouwe Kameraden | I10: 150 | J10: =IF(I10="","",IF(ISTEXT(I10),I10,IF(I10<=Basis!$M$8,"Uit",(100-(I10/Basis!$L$8*100))*Basis!$Y$6))) -> 50 | K10: 12 | L10: 42 | M10: Uit | N10: 12 | O10: 56 | P10: =IF(N10="","",IF(N10*60+O10>Basis!$U$8,"Uit",BL10+BM10)) -> Uit | R10: Uit | S10: 6.666666667 | T10: 6.333333333 | U10: Uit | V10: 4W h.5 d* | X10: 125 | Y10: 0 | Z10: - | AA10: - | AB10: 20 | AC10: 3W | AD10: 60 | AE10: - | AF10: - | AG10: - | AH10: - | AI10: 20 | AJ10: - | AK10: 11 | AL10: - | AM10: - | AX10: Uit | AY10: 4W h.5 d* | BA10: 125 | BC10: 15:12:00 | BD10: 15:24:56 | BE10: 00:12:56 | BF10: 12 | BG10: 56 | BI10: =IF(K10="","",IF(ISTEXT(K10),K10,IF(K10>Basis!$N$8,"Uit",IF(ISBLANK(L10),K10,K10+L10)))) -> 54 | BJ10: 104 | BK10: 776 | BL10: =IF(N10="","",IF(BK10<=Basis!$F$8,0,(BK10-Basis!$F$8)*0.4)) -> 222.4 | BM10: =IF(N10="","",IF(BK10>Basis!$G$8,0,(Basis!$G$8-BK10)*0.4)) -> 0 | BN10: Uit | BP10: 20 | BQ10: 19 | BR10: 6.666666667 | BS10: 6.333333333
C11: 126 | E11: Heather Huijers | F11: Gloriant | G11: RV. Maresca Ruiters | I11: 150 | J11: =IF(I11="","",IF(ISTEXT(I11),I11,IF(I11<=Basis!$M$8,"Uit",(100-(I11/Basis!$L$8*100))*Basis!$Y$6))) -> 50 | K11: 12 | L11: 16 | M11: Uit | N11: 5 | O11: 54 | P11: =IF(N11="","",IF(N11*60+O11>Basis!$U$8,"Uit",BL11+BM11)) -> 53.6 | R11: Uit | S11: 5.833333333 | T11: 6.833333333 | U11: Uit | V11: 4W h.10 d* | X11: 126 | Y11: 0 | Z11: - | AA11: 20 | AB11: - | AC11: 20 | AD11: - | AE11: - | AF11: - | AG11: - | AH11: 20 | AI11: - | AJ11: 20 | AK11: - | AL11: - | AM11: - | AX11: Uit | AY11: 4W h.10 d* | BA11: 126 | BC11: 15:14:00 | BD11: 15:19:54 | BE11: 00:05:54 | BF11: 5 | BG11: 54 | BI11: =IF(K11="","",IF(ISTEXT(K11),K11,IF(K11>Basis!$N$8,"Uit",IF(ISBLANK(L11),K11,K11+L11)))) -> 28 | BJ11: 78 | BK11: 354 | BL11: =IF(N11="","",IF(BK11<=Basis!$F$8,0,(BK11-Basis!$F$8)*0.4)) -> 53.6 | BM11: =IF(N11="","",IF(BK11>Basis!$G$8,0,(Basis!$G$8-BK11)*0.4)) -> 0 | BN11: Uit | BP11: 17.5 | BQ11: 20.5 | BR11: 5.833333333 | BS11: 6.833333333
C12: 127 | E12: Nadja Olberts | F12: Habibi | G12: RV. Voerendaal | I12: 150 | J12: =IF(I12="","",IF(ISTEXT(I12),I12,IF(I12<=Basis!$M$8,"Uit",(100-(I12/Basis!$L$8*100))*Basis!$Y$6))) -> 50 | K12: 0 | L12: 6 | M12: Uit | N12: 8 | O12: 50 | P12: =IF(N12="","",IF(N12*60+O12>Basis!$U$8,"Uit",BL12+BM12)) -> Uit | R12: Uit | S12: 5.666666667 | T12: 6.666666667 | U12: Uit | V12: 4W h.8 d* | X12: 127 | Y12: 20 | Z12: - | AA12: 60 | AB12: - | AC12: - | AD12: - | AE12: - | AF12: - | AG12: - | AH12: 20 | AI12: - | AJ12: 20 | AK12: - | AL12: - | AM12: - | AX12: Uit | AY12: 4W h.8 d* | BA12: 127 | BC12: 15:16:00 | BD12: 15:24:50 | BE12: 00:08:50 | BF12: 8 | BG12: 50 | BI12: =IF(K12="","",IF(ISTEXT(K12),K12,IF(K12>Basis!$N$8,"Uit",IF(ISBLANK(L12),K12,K12+L12)))) -> 6 | BJ12: 56 | BK12: 530 | BL12: =IF(N12="","",IF(BK12<=Basis!$F$8,0,(BK12-Basis!$F$8)*0.4)) -> 124 | BM12: =IF(N12="","",IF(BK12>Basis!$G$8,0,(Basis!$G$8-BK12)*0.4)) -> 0 | BN12: Uit | BP12: 17 | BQ12: 20 | BR12: 5.666666667 | BS12: 6.666666667
C13: 129 | E13: Sofie Schobre | F13: Sinvest Wolverine | I13: 150 | J13: =IF(I13="","",IF(ISTEXT(I13),I13,IF(I13<=Basis!$M$8,"Uit",(100-(I13/Basis!$L$8*100))*Basis!$Y$6))) -> 50 | K13: 8 | L13: 0 | M13: Uit | N13: 8 | O13: 27 | P13: =IF(N13="","",IF(N13*60+O13>Basis!$U$8,"Uit",BL13+BM13)) -> Uit | R13: Uit | S13: 6.333333333 | T13: 7 | U13: Uit | V13: 4W h.5 d* | X13: 129 | Y13: 20 | Z13: - | AA13: - | AB13: 60 | AC13: 20 | AD13: 20 | AE13: - | AF13: - | AG13: - | AH13: - | AI13: 3W | AJ13: - | AK13: - | AL13: - | AM13: - | AX13: Uit | AY13: 4W h.5 d* | BA13: 129 | BC13: 15:20:00 | BD13: 15:28:27 | BE13: 00:08:27 | BF13: 8 | BG13: 27 | BI13: =IF(K13="","",IF(ISTEXT(K13),K13,IF(K13>Basis!$N$8,"Uit",IF(ISBLANK(L13),K13,K13+L13)))) -> 8 | BJ13: 58 | BK13: 507 | BL13: =IF(N13="","",IF(BK13<=Basis!$F$8,0,(BK13-Basis!$F$8)*0.4)) -> 114.8 | BM13: =IF(N13="","",IF(BK13>Basis!$G$8,0,(Basis!$G$8-BK13)*0.4)) -> 0 | BN13: Uit | BP13: 19 | BQ13: 21 | BR13: 6.333333333 | BS13: 7
C14: 130 | E14: Yvette Waumans | F14: Gavi | G14: RV. Pegasus | I14: 150 | J14: =IF(I14="","",IF(ISTEXT(I14),I14,IF(I14<=Basis!$M$8,"Uit",(100-(I14/Basis!$L$8*100))*Basis!$Y$6))) -> 50 | K14: 0 | L14: 0 | M14: Uit | N14: 9 | O14: 42 | P14: =IF(N14="","",IF(N14*60+O14>Basis!$U$8,"Uit",BL14+BM14)) -> Uit | R14: Uit | S14: 5.5 | T14: 7 | U14: Uit | V14: 4W h.9 d* | X14: 130 | Y14: 60 | Z14: - | AA14: 20 | AB14: - | AC14: - | AD14: - | AE14: - | AF14: - | AG14: - | AH14: - | AI14: 20 | AJ14: - | AK14: - | AL14: - | AM14: - | AX14: Uit | AY14: 4W h.9 d* | BA14: 130 | BC14: 15:22:00 | BD14: 15:31:42 | BE14: 00:09:42 | BF14: 9 | BG14: 42 | BI14: =IF(K14="","",IF(ISTEXT(K14),K14,IF(K14>Basis!$N$8,"Uit",IF(ISBLANK(L14),K14,K14+L14)))) -> 0 | BJ14: 50 | BK14: 582 | BL14: =IF(N14="","",IF(BK14<=Basis!$F$8,0,(BK14-Basis!$F$8)*0.4)) -> 144.8 | BM14: =IF(N14="","",IF(BK14>Basis!$G$8,0,(Basis!$G$8-BK14)*0.4)) -> 0 | BN14: Uit | BP14: 16.5 | BQ14: 21 | BR14: 5.5 | BS14: 7
C15: 132 | E15: Frederique Brouwers | F15: Blue Velvet | G15: RV. Fevior (r.s.v.) | I15: 150 | J15: =IF(I15="","",IF(ISTEXT(I15),I15,IF(I15<=Basis!$M$8,"Uit",(100-(I15/Basis!$L$8*100))*Basis!$Y$6))) -> 50 | K15: 0 | L15: 0 | M15: Uit | N15: 6 | O15: 10 | P15: =IF(N15="","",IF(N15*60+O15>Basis!$U$8,"Uit",BL15+BM15)) -> 60 | R15: Uit | S15: 6.666666667 | T15: 6.5 | U15: Uit | V15: FP VD h.7 d* | X15: 132 | Y15: 0 | Z15: - | AA15: - | AB15: - | AC15: - | AD15: - | AE15: - | AF15: - | AG15: FP | AH15: 20 | AI15: - | AJ15: 20 | AK15: FP | AL15: - | AM15: - | AX15: Uit | AY15: FP VD h.7 d* | BA15: 132 | BC15: 15:26:00 | BD15: 15:32:10 | BE15: 00:06:10 | BF15: 6 | BG15: 10 | BI15: =IF(K15="","",IF(ISTEXT(K15),K15,IF(K15>Basis!$N$8,"Uit",IF(ISBLANK(L15),K15,K15+L15)))) -> 0 | BJ15: 50 | BK15: 370 | BL15: =IF(N15="","",IF(BK15<=Basis!$F$8,0,(BK15-Basis!$F$8)*0.4)) -> 60 | BM15: =IF(N15="","",IF(BK15>Basis!$G$8,0,(Basis!$G$8-BK15)*0.4)) -> 0 | BN15: Uit | BP15: 20 | BQ15: 19.5 | BR15: 6.666666667 | BS15: 6.5
C16: 122 | E16: Vincent Erkamp | F16: Ivan | G16: Manege De Hoef V.O.F. | I16: 150 | J16: =IF(I16="","",IF(ISTEXT(I16),I16,IF(I16<=Basis!$M$8,"Uit",(100-(I16/Basis!$L$8*100))*Basis!$Y$6))) -> 50 | K16: NG | M16: NG | P16: =IF(N16="","",IF(N16*60+O16>Basis!$U$8,"Uit",BL16+BM16)) ->  | R16: NG | U16: NG | X16: 122 | Y16: NG | Z16: - | AA16: - | AB16: - | AC16: - | AD16: - | AE16: - | AF16: - | AG16: - | AH16: - | AI16: - | AJ16: - | AK16: - | AL16: - | AM16: - | AX16: =IF(Y16="","",IF(ISTEXT(Y16),Y16,SUM(Y16:AW16))) -> NG | BA16: 122 | BC16: 15:06:00 | BI16: =IF(K16="","",IF(ISTEXT(K16),K16,IF(K16>Basis!$N$8,"Uit",IF(ISBLANK(L16),K16,K16+L16)))) -> NG | BJ16: NG | BL16: =IF(N16="","",IF(BK16<=Basis!$F$8,0,(BK16-Basis!$F$8)*0.4)) ->  | BM16: =IF(N16="","",IF(BK16>Basis!$G$8,0,(Basis!$G$8-BK16)*0.4)) ->  | BN16: NG
C17: 123 | I17: 150 | J17: =IF(I17="","",IF(ISTEXT(I17),I17,IF(I17<=Basis!$M$8,"Uit",(100-(I17/Basis!$L$8*100))*Basis!$Y$6))) -> 50 | K17: NG | M17: NG | P17: =IF(N17="","",IF(N17*60+O17>Basis!$U$8,"Uit",BL17+BM17)) ->  | R17: NG | U17: NG | X17: 123 | Y17: NG | Z17: - | AA17: - | AB17: - | AC17: - | AD17: - | AE17: - | AF17: - | AG17: - | AH17: - | AI17: - | AJ17: - | AK17: - | AL17: - | AM17: - | AX17: =IF(Y17="","",IF(ISTEXT(Y17),Y17,SUM(Y17:AW17))) -> NG | BA17: 123 | BC17: 15:08:00 | BI17: =IF(K17="","",IF(ISTEXT(K17),K17,IF(K17>Basis!$N$8,"Uit",IF(ISBLANK(L17),K17,K17+L17)))) -> NG | BJ17: NG | BL17: =IF(N17="","",IF(BK17<=Basis!$F$8,0,(BK17-Basis!$F$8)*0.4)) ->  | BM17: =IF(N17="","",IF(BK17>Basis!$G$8,0,(Basis!$G$8-BK17)*0.4)) ->  | BN17: NG
C18: 128 | E18: Janneke Siepman | F18: Glanmire Rosie | G18: RV. Prins Maurits | I18: 150 | J18: =IF(I18="","",IF(ISTEXT(I18),I18,IF(I18<=Basis!$M$8,"Uit",(100-(I18/Basis!$L$8*100))*Basis!$Y$6))) -> 50 | K18: NG | M18: NG | N18: 9 | O18: 39 | P18: =IF(N18="","",IF(N18*60+O18>Basis!$U$8,"Uit",BL18+BM18)) -> Uit | R18: NG | U18: NG | X18: 128 | Y18: NG | Z18: - | AA18: - | AB18: - | AC18: - | AD18: - | AE18: - | AF18: - | AG18: - | AH18: - | AI18: - | AJ18: - | AK18: - | AL18: - | AM18: - | AX18: =IF(Y18="","",IF(ISTEXT(Y18),Y18,SUM(Y18:AW18))) -> NG | BA18: 128 | BC18: 15:18:00 | BD18: 15:27:39 | BE18: 00:09:39 | BF18: 9 | BG18: 39 | BI18: =IF(K18="","",IF(ISTEXT(K18),K18,IF(K18>Basis!$N$8,"Uit",IF(ISBLANK(L18),K18,K18+L18)))) -> NG | BJ18: NG | BK18: 579 | BL18: =IF(N18="","",IF(BK18<=Basis!$F$8,0,(BK18-Basis!$F$8)*0.4)) -> 143.6 | BM18: =IF(N18="","",IF(BK18>Basis!$G$8,0,(Basis!$G$8-BK18)*0.4)) -> 0 | BN18: NG
C19: 134 | E19: Tessa van Ewijk | F19: Torenta hc | I19: 150 | J19: =IF(I19="","",IF(ISTEXT(I19),I19,IF(I19<=Basis!$M$8,"Uit",(100-(I19/Basis!$L$8*100))*Basis!$Y$6))) -> 50 | K19: NG | M19: NG | P19: =IF(N19="","",IF(N19*60+O19>Basis!$U$8,"Uit",BL19+BM19)) ->  | R19: NG | U19: NG | X19: 134 | Y19: NG | Z19: - | AA19: - | AB19: - | AC19: - | AD19: - | AE19: - | AF19: - | AG19: - | AH19: - | AI19: - | AJ19: - | AK19: - | AL19: - | AM19: - | AX19: =IF(Y19="","",IF(ISTEXT(Y19),Y19,SUM(Y19:AW19))) -> NG | BA19: 134 | BC19: 15:30:00 | BI19: =IF(K19="","",IF(ISTEXT(K19),K19,IF(K19>Basis!$N$8,"Uit",IF(ISBLANK(L19),K19,K19+L19)))) -> NG | BJ19: NG | BL19: =IF(N19="","",IF(BK19<=Basis!$F$8,0,(BK19-Basis!$F$8)*0.4)) ->  | BM19: =IF(N19="","",IF(BK19>Basis!$G$8,0,(Basis!$G$8-BK19)*0.4)) ->  | BN19: NG
J20: =IF(I20="","",IF(ISTEXT(I20),I20,IF(I20<=Basis!$M$8,"Uit",(100-(I20/Basis!$L$8*100))*Basis!$Y$6))) ->  | M20: =IF(AX20="","",AX20) ->  | N20: =IF(ISBLANK(BD20),"",BF20) ->  | O20: =IF(ISBLANK(BD20),"",BG20) ->  | P20: =IF(N20="","",IF(N20*60+O20>Basis!$U$8,"Uit",BL20+BM20)) ->  | R20: =IF(ISTEXT(BJ20),BJ20,IF(OR(ISBLANK(M20),M20="",ISBLANK(Y20)),BJ20,IF(ISTEXT(BN20),BN20,BJ20+BN20))) ->  | S20: =IF(BP20="","",BR20) ->  | T20: =IF(BQ20="","",BS20) ->  | U20: =IF(R20="","",IF(ISTEXT(R20),R20,IF(BP20="","",R20-S20-T20))) ->  | V20: =IF(AY20="","",AY20) ->  | X20: =IF($C20="","",$C20) ->  | AX20: =IF(Y20="","",IF(ISTEXT(Y20),Y20,SUM(Y20:AW20))) ->  | BA20: =IF($C20="","",$C20) ->  | BE20: =IF(ISBLANK(BD20),"",BD20-BC20) ->  | BF20: =IF(ISBLANK(BD20),"",MINUTE(BE20)) ->  | BG20: =IF(ISBLANK(BD20),"",SECOND(BE20)) ->  | BI20: =IF(K20="","",IF(ISTEXT(K20),K20,IF(K20>Basis!$N$8,"Uit",IF(ISBLANK(L20),K20,K20+L20)))) ->  | BJ20: =IF(OR(ISTEXT(J20),BI20=""),J20,IF(ISTEXT(BI20),BI20,J20+BI20)) ->  | BK20: =IF(N20="","",N20*60+O20) ->  | BL20: =IF(N20="","",IF(BK20<=Basis!$F$8,0,(BK20-Basis!$F$8)*0.4)) ->  | BM20: =IF(N20="","",IF(BK20>Basis!$G$8,0,(Basis!$G$8-BK20)*0.4)) ->  | BN20: =IF(M20="","",IF(ISTEXT(M20),M20,IF(ISTEXT(P20),P20,M20+P20))) ->  | BR20: =IF(BP20="","",BP20/3) ->  | BS20: =IF(BQ20="","",BQ20/3) -> 
J21: =IF(I21="","",IF(ISTEXT(I21),I21,IF(I21<=Basis!$M$8,"Uit",(100-(I21/Basis!$L$8*100))*Basis!$Y$6))) ->  | P21: =IF(N21="","",IF(N21*60+O21>Basis!$U$8,"Uit",BL21+BM21)) ->  | BI21: =IF(K21="","",IF(ISTEXT(K21),K21,IF(K21>Basis!$N$8,"Uit",IF(ISBLANK(L21),K21,K21+L21)))) ->  | BL21: =IF(N21="","",IF(BK21<=Basis!$F$8,0,(BK21-Basis!$F$8)*0.4)) ->  | BM21: =IF(N21="","",IF(BK21>Basis!$G$8,0,(Basis!$G$8-BK21)*0.4)) -> 
J22: =IF(I22="","",IF(ISTEXT(I22),I22,IF(I22<=Basis!$M$8,"Uit",(100-(I22/Basis!$L$8*100))*Basis!$Y$6))) ->  | P22: =IF(N22="","",IF(N22*60+O22>Basis!$U$8,"Uit",BL22+BM22)) ->  | BI22: =IF(K22="","",IF(ISTEXT(K22),K22,IF(K22>Basis!$N$8,"Uit",IF(ISBLANK(L22),K22,K22+L22)))) ->  | BL22: =IF(N22="","",IF(BK22<=Basis!$F$8,0,(BK22-Basis!$F$8)*0.4)) ->  | BM22: =IF(N22="","",IF(BK22>Basis!$G$8,0,(Basis!$G$8-BK22)*0.4)) -> 
J23: =IF(I23="","",IF(ISTEXT(I23),I23,IF(I23<=Basis!$M$8,"Uit",(100-(I23/Basis!$L$8*100))*Basis!$Y$6))) ->  | P23: =IF(N23="","",IF(N23*60+O23>Basis!$U$8,"Uit",BL23+BM23)) ->  | BI23: =IF(K23="","",IF(ISTEXT(K23),K23,IF(K23>Basis!$N$8,"Uit",IF(ISBLANK(L23),K23,K23+L23)))) ->  | BL23: =IF(N23="","",IF(BK23<=Basis!$F$8,0,(BK23-Basis!$F$8)*0.4)) ->  | BM23: =IF(N23="","",IF(BK23>Basis!$G$8,0,(Basis!$G$8-BK23)*0.4)) -> 
J24: =IF(I24="","",IF(ISTEXT(I24),I24,IF(I24<=Basis!$M$8,"Uit",(100-(I24/Basis!$L$8*100))*Basis!$Y$6))) ->  | M24: =IF(AX24="","",AX24) ->  | N24: =IF(ISBLANK(BD24),"",BF24) ->  | O24: =IF(ISBLANK(BD24),"",BG24) ->  | P24: =IF(N24="","",IF(N24*60+O24>Basis!$U$8,"Uit",BL24+BM24)) ->  | R24: =IF(ISTEXT(BJ24),BJ24,IF(OR(ISBLANK(M24),M24="",ISBLANK(Y24)),BJ24,IF(ISTEXT(BN24),BN24,BJ24+BN24))) ->  | S24: =IF(BP24="","",BR24) ->  | U24: =IF(R24="","",IF(ISTEXT(R24),R24,IF(BP24="","",R24-S24-T24))) ->  | V24: =IF(AY24="","",AY24) ->  | X24: =IF($C24="","",$C24) ->  | AX24: =IF(Y24="","",IF(ISTEXT(Y24),Y24,SUM(Y24:AW24))) ->  | BA24: =IF($C24="","",$C24) ->  | BE24: =IF(ISBLANK(BD24),"",BD24-BC24) ->  | BF24: =IF(ISBLANK(BD24),"",MINUTE(BE24)) ->  | BG24: =IF(ISBLANK(BD24),"",SECOND(BE24)) ->  | BI24: =IF(K24="","",IF(ISTEXT(K24),K24,IF(K24>Basis!$N$8,"Uit",IF(ISBLANK(L24),K24,K24+L24)))) ->  | BJ24: =IF(OR(ISTEXT(J24),BI24=""),J24,IF(ISTEXT(BI24),BI24,J24+BI24)) ->  | BK24: =IF(N24="","",N24*60+O24) ->  | BL24: =IF(N24="","",IF(BK24<=Basis!$F$8,0,(BK24-Basis!$F$8)*0.4)) ->  | BM24: =IF(N24="","",IF(BK24>Basis!$G$8,0,(Basis!$G$8-BK24)*0.4)) ->  | BN24: =IF(M24="","",IF(ISTEXT(M24),M24,IF(ISTEXT(P24),P24,M24+P24))) ->  | BR24: =IF(BP24="","",BP24/3) -> 
A25: Bij uitsluiting reden vermelden : | P25: =NOW() -> 2018-06-30T22:02:24.880 | X25: =A25 -> Bij uitsluiting reden vermelden : | AU25: =NOW() -> 2018-06-30T22:02:24.880
A26: VP=val paard, VR=val ruiter, 3W=3 weigeringen op zelfde hindernis, 4W=4 weigeringen totaal, FP=foutief parcours, Vr.v= vrijwillig verlaten | X26: =A26 -> VP=val paard, VR=val ruiter, 3W=3 weigeringen op zelfde hindernis, 4W=4 weigeringen totaal, FP=foutief parcours, Vr.v= vrijwillig verlaten

Sheet Ring 4 - B-CD
A1: =" Samengestelde wedstrijd "&Basis!D18 -> Samengestelde wedstrijd Eventing Leende 30 juni 2018 | G1: Klasse B - Cat CD - Ring 4 | L1: Dressuurjury : | M1: Anita Feije | X1: Verzamelstaat hindernisfouten in de cross | AK1: =A1 -> Samengestelde wedstrijd Eventing Leende 30 juni 2018 | BA1: =G1&" " -> Klasse B - Cat CD - Ring 4 | BC1: Indien aankomstUUR cross wordt meegedeeld : | BI1: Hulpkolommen | BP1: Stijlcijfers :
A2: rank | B2: pony | C2: rugnr | D2: combinatie nr | E2: naam ruiter | F2: naam pony | G2: vereniging / plaats | I2: dressuur | J2: dressuur | K2: hind.ft. | L2: tijd.ft. | M2: hind.ft. | N2: min | O2: sec | P2: tijd.ft. | R2: totaal | S2: (1) stijl | T2: (2) stijl | U2: eind- | V2: reden | Y2: hindernisnummer | BI2: Uitslag | BJ2: NA | BK2: tijd (sec) | BL2: tijd.ft. | BM2: reg.ft. | BN2: totaal | BP2: Totaal | BQ2: Totaal | BR2: Gemiddelde | BS2: Gemiddelde
A3: HC | B3: cat. | I3: totaal | J3: strafpntn. | K3: springen | L3: springen | M3: cross | N3: cross | P3: =Basis!$H$22&":"&TEXT(Basis!$I$22,"00") -> 3:42 | S3: cijfer | T3: cijfer | U3: totaal | V3: uitsluiting | X3: nr | Y3: 1 | Z3: 2 | AA3: 3 | AB3: 4 | AC3: 5 | AD3: 6 | AE3: VD | AF3: 7 | AG3: VD | AH3: 8ab | AI3: 9 | AJ3: 10ab | AK3: 11 | AL3: 12 | AM3: F | AX3: totaal | AY3: reden uitsluiting | AZ3: hind. | BA3: nr | BC3: Vertrekuur | BD3: Aankomst | BE3: Tijd | BF3: Minuten | BG3: Seconden | BI3: Springen | BJ3: Springen | BK3: cross | BL3: opt.tijd = | BM3: =Basis!$H$22&":"&TEXT(Basis!$I$22,"00") -> 3:42 | BN3: cross | BP3: Jury 1 | BQ3: Jury 2 | BR3: Jury 1 | BS3: Jury 2
R4: =IF(ISBLANK(I4),"",IF(AND(ISBLANK(K4),ISBLANK(Y4)),J4,IF(ISTEXT(K4),K4,IF(OR(ISBLANK(M4),M4=""),J4+K4+L4,IF(ISTEXT(M4),M4,IF(ISBLANK(Y4),J4+K4+L4,J4+K4+L4+M4+P4+Q4)))))) -> 
A5: 1 | B5: D | C5: 138 | D5: 800947KJ | E5: Margje Janssen | F5: Kosmo's Badboy | G5: PC. Rijdt Met Beleid | I5: 231.5 | J5: =IF(I5="","",IF(ISTEXT(I5),I5,IF(I5<=Basis!$M$22,"Uit",(100-(I5/Basis!$L$22*100))*Basis!$Y$19))) -> 22.83333333 | K5: 0 | L5: 0 | M5: =IF(AX5="","",AX5) -> 0 | N5: =IF(ISBLANK(BD5),"",BF5) -> 3 | O5: =IF(ISBLANK(BD5),"",BG5) -> 57 | P5: =IF(N5="","",IF(N5*60+O5>Basis!$U$22,"Uit",BL5+BM5)) -> 6 | R5: =IF(ISTEXT(BJ5),BJ5,IF(OR(ISBLANK(M5),M5="",ISBLANK(Y5)),BJ5,IF(ISTEXT(BN5),BN5,BJ5+BN5))) -> 28.83333333 | S5: =IF(BP5="","",BR5) -> 6.5 | T5: =IF(BQ5="","",BS5) -> 7.166666667 | U5: =IF(R5="","",IF(ISTEXT(R5),R5,IF(BP5="","",R5-S5-T5))) -> 15.16666667 | V5: =IF(AY5="","",AY5) ->  | X5: =IF($C5="","",$C5) -> 138 | Y5: 0 | Z5: - | AA5: - | AB5: - | AC5: - | AD5: - | AE5: - | AF5: - | AG5: - | AH5: - | AI5: - | AJ5: - | AK5: - | AL5: - | AM5: - | AX5: =IF(Y5="","",IF(ISTEXT(Y5),Y5,SUM(Y5:AW5))) -> 0 | BA5: =IF($C5="","",$C5) -> 138 | BC5: 15:38:00 | BD5: 15:41:57 | BE5: =IF(ISBLANK(BD5),"",BD5-BC5) -> 00:03:57 | BF5: =IF(ISBLANK(BD5),"",MINUTE(BE5)) -> 3 | BG5: =IF(ISBLANK(BD5),"",SECOND(BE5)) -> 57 | BI5: =IF(K5="","",IF(ISTEXT(K5),K5,IF(K5>Basis!$N$22,"Uit",IF(ISBLANK(L5),K5,K5+L5)))) -> 0 | BJ5: =IF(OR(ISTEXT(J5),BI5=""),J5,IF(ISTEXT(BI5),BI5,J5+BI5)) -> 22.83333333 | BK5: =IF(N5="","",N5*60+O5) -> 237 | BL5: =IF(N5="","",IF(BK5<=Basis!$F$22,0,(BK5-Basis!$F$22)*0.4)) -> 6 | BM5: =IF(N5="","",IF(BK5>Basis!$G$22,0,(Basis!$G$22-BK5)*0.4)) -> 0 | BN5: =IF(M5="","",IF(ISTEXT(M5),M5,IF(ISTEXT(P5),P5,M5+P5))) -> 6 | BP5: 19.5 | BQ5: 21.5 | BR5: =IF(BP5="","",BP5/3) -> 6.5 | BS5: =IF(BQ5="","",BQ5/3) -> 7.166666667
A6: 2 | B6: D | C6: 143 | D6: 774782PR | E6: Annika Renkens | F6: Pearl | G6: PC. De Musketiers | I6: 198 | J6: =IF(I6="","",IF(ISTEXT(I6),I6,IF(I6<=Basis!$M$22,"Uit",(100-(I6/Basis!$L$22*100))*Basis!$Y$19))) -> 34 | K6: 0 | L6: 0 | M6: 0 | N6: 4 | O6: 0 | P6: =IF(N6="","",IF(N6*60+O6>Basis!$U$22,"Uit",BL6+BM6)) -> 7.2 | R6: 41.2 | S6: 8 | T6: 7.333333333 | U6: 25.86666667 | X6: 143 | Y6: 0 | Z6: - | AA6: - | AB6: - | AC6: - | AD6: - | AE6: - | AF6: - | AG6: - | AH6: - | AI6: - | AJ6: - | AK6: - | AL6: - | AM6: - | AX6: 0 | BA6: 143 | BC6: 15:48:00 | BD6: 15:52:00 | BE6: 00:04:00 | BF6: 4 | BG6: 0 | BI6: =IF(K6="","",IF(ISTEXT(K6),K6,IF(K6>Basis!$N$22,"Uit",IF(ISBLANK(L6),K6,K6+L6)))) -> 0 | BJ6: 34 | BK6: 240 | BL6: =IF(N6="","",IF(BK6<=Basis!$F$22,0,(BK6-Basis!$F$22)*0.4)) -> 7.2 | BM6: =IF(N6="","",IF(BK6>Basis!$G$22,0,(Basis!$G$22-BK6)*0.4)) -> 0 | BN6: 7.2 | BP6: 24 | BQ6: 22 | BR6: 8 | BS6: 7.333333333
A7: 3 | B7: C | C7: 148 | D7: 845806KG | E7: Serlina van Gelder | F7: Kyra's Promising Hidden Treas | G7: PC. Sint Anthonis (Saxe Gotha) | I7: 193 | J7: =IF(I7="","",IF(ISTEXT(I7),I7,IF(I7<=Basis!$M$21,"Uit",(100-(I7/Basis!$L$21*100))*Basis!$Y$19))) -> 35.66666667 | K7: 0 | L7: 0 | M7: 0 | N7: 4 | O7: 13 | P7: =IF(N7="","",IF(N7*60+O7>Basis!$U$21,"Uit",BL7+BM7)) -> 10.4 | R7: 46.06666667 | S7: 8.5 | T7: 6.666666667 | U7: 30.9 | X7: 148 | Y7: 0 | Z7: - | AA7: - | AB7: - | AC7: - | AD7: - | AE7: - | AF7: - | AG7: - | AH7: - | AI7: - | AJ7: - | AK7: - | AL7: - | AM7: - | AX7: 0 | BA7: 148 | BC7: 15:59:00 | BD7: 16:03:13 | BE7: 00:04:13 | BF7: 4 | BG7: 13 | BI7: =IF(K7="","",IF(ISTEXT(K7),K7,IF(K7>Basis!$N$21,"Uit",IF(ISBLANK(L7),K7,K7+L7)))) -> 0 | BJ7: 35.66666667 | BK7: 253 | BL7: =IF(N7="","",IF(BK7<=Basis!$F$21,0,(BK7-Basis!$F$21)*0.4)) -> 10.4 | BM7: =IF(N7="","",IF(BK7>Basis!$G$21,0,(Basis!$G$21-BK7)*0.4)) -> 0 | BN7: 10.4 | BP7: 25.5 | BQ7: 20 | BR7: 8.5 | BS7: 6.666666667
A8: 4 | B8: D | C8: 140 | D8: 831886SH | E8: Luc Hakkesteegt | F8: Stan de Man | G8: PC. Beyaert | I8: 190 | J8: =IF(I8="","",IF(ISTEXT(I8),I8,IF(I8<=Basis!$M$22,"Uit",(100-(I8/Basis!$L$22*100))*Basis!$Y$19))) -> 36.66666667 | K8: 0 | L8: 0 | M8: 0 | N8: 4 | O8: 5 | P8: =IF(N8="","",IF(N8*60+O8>Basis!$U$22,"Uit",BL8+BM8)) -> 9.2 | R8: 45.86666667 | S8: 6.833333333 | T8: 7 | U8: 32.03333333 | X8: 140 | Y8: 0 | Z8: - | AA8: - | AB8: - | AC8: - | AD8: - | AE8: - | AF8: - | AG8: - | AH8: - | AI8: - | AJ8: - | AK8: - | AL8: - | AM8: - | AX8: 0 | BA8: 140 | BC8: 15:42:00 | BD8: 15:46:05 | BE8: 00:04:05 | BF8: 4 | BG8: 5 | BI8: =IF(K8="","",IF(ISTEXT(K8),K8,IF(K8>Basis!$N$22,"Uit",IF(ISBLANK(L8),K8,K8+L8)))) -> 0 | BJ8: 36.66666667 | BK8: 245 | BL8: =IF(N8="","",IF(BK8<=Basis!$F$22,0,(BK8-Basis!$F$22)*0.4)) -> 9.2 | BM8: =IF(N8="","",IF(BK8>Basis!$G$22,0,(Basis!$G$22-BK8)*0.4)) -> 0 | BN8: 9.2 | BP8: 20.5 | BQ8: 21 | BR8: 6.833333333 | BS8: 7
A9: 5 | B9: D | C9: 137 | D9: 758467DS | E9: Noa Sporenberg | F9: Dreamgirl | G9: PC. De Reigertjes | I9: 214.5 | J9: =IF(I9="","",IF(ISTEXT(I9),I9,IF(I9<=Basis!$M$22,"Uit",(100-(I9/Basis!$L$22*100))*Basis!$Y$19))) -> 28.5 | K9: 4 | L9: 0 | M9: 0 | N9: 4 | O9: 23 | P9: =IF(N9="","",IF(N9*60+O9>Basis!$U$22,"Uit",BL9+BM9)) -> 16.4 | R9: 48.9 | S9: 7.333333333 | T9: 7.666666667 | U9: 33.9 | X9: 137 | Y9: 0 | Z9: - | AA9: - | AB9: - | AC9: - | AD9: - | AE9: - | AF9: - | AG9: - | AH9: - | AI9: - | AJ9: - | AK9: - | AL9: - | AM9: - | AX9: 0 | BA9: 137 | BC9: 15:36:00 | BD9: 15:40:23 | BE9: 00:04:23 | BF9: 4 | BG9: 23 | BI9: =IF(K9="","",IF(ISTEXT(K9),K9,IF(K9>Basis!$N$22,"Uit",IF(ISBLANK(L9),K9,K9+L9)))) -> 4 | BJ9: 32.5 | BK9: 263 | BL9: =IF(N9="","",IF(BK9<=Basis!$F$22,0,(BK9-Basis!$F$22)*0.4)) -> 16.4 | BM9: =IF(N9="","",IF(BK9>Basis!$G$22,0,(Basis!$G$22-BK9)*0.4)) -> 0 | BN9: 16.4 | BP9: 22 | BQ9: 23 | BR9: 7.333333333 | BS9: 7.666666667
A10: 6 | B10: D | C10: 144 | D10: 799738EP | E10: Femke Plass | F10: Eikenhorst’s Messi | I10: 206 | J10: =IF(I10="","",IF(ISTEXT(I10),I10,IF(I10<=Basis!$M$22,"Uit",(100-(I10/Basis!$L$22*100))*Basis!$Y$19))) -> 31.33333333 | K10: 0 | L10: 0 | M10: 0 | N10: 4 | O10: 48 | P10: =IF(N10="","",IF(N10*60+O10>Basis!$U$22,"Uit",BL10+BM10)) -> 26.4 | R10: 57.73333333 | S10: 7.833333333 | T10: 7.333333333 | U10: 42.56666667 | X10: 144 | Y10: 0 | Z10: - | AA10: - | AB10: - | AC10: - | AD10: - | AE10: - | AF10: - | AG10: - | AH10: - | AI10: - | AJ10: - | AK10: - | AL10: - | AM10: - | AX10: 0 | BA10: 144 | BC10: 15:50:00 | BD10: 15:54:48 | BE10: 00:04:48 | BF10: 4 | BG10: 48 | BI10: =IF(K10="","",IF(ISTEXT(K10),K10,IF(K10>Basis!$N$22,"Uit",IF(ISBLANK(L10),K10,K10+L10)))) -> 0 | BJ10: 31.33333333 | BK10: 288 | BL10: =IF(N10="","",IF(BK10<=Basis!$F$22,0,(BK10-Basis!$F$22)*0.4)) -> 26.4 | BM10: =IF(N10="","",IF(BK10>Basis!$G$22,0,(Basis!$G$22-BK10)*0.4)) -> 0 | BN10: 26.4 | BP10: 23.5 | BQ10: 22 | BR10: 7.833333333 | BS10: 7.333333333
A11: 7 | B11: D | C11: 141 | D11: 853142MS | E11: Esmee van der Sterren | F11: Magic Roses Cocktail | G11: PC. St. Jan Merselo | I11: 179.5 | J11: =IF(I11="","",IF(ISTEXT(I11),I11,IF(I11<=Basis!$M$22,"Uit",(100-(I11/Basis!$L$22*100))*Basis!$Y$19))) -> 40.16666667 | K11: 0 | L11: 0 | M11: 0 | N11: 4 | O11: 29 | P11: =IF(N11="","",IF(N11*60+O11>Basis!$U$22,"Uit",BL11+BM11)) -> 18.8 | R11: 58.96666667 | S11: 6.833333333 | T11: 7.5 | U11: 44.63333333 | X11: 141 | Y11: 0 | Z11: - | AA11: - | AB11: - | AC11: - | AD11: - | AE11: - | AF11: - | AG11: - | AH11: - | AI11: - | AJ11: - | AK11: - | AL11: - | AM11: - | AX11: 0 | BA11: 141 | BC11: 15:44:00 | BD11: 15:48:29 | BE11: 00:04:29 | BF11: 4 | BG11: 29 | BI11: =IF(K11="","",IF(ISTEXT(K11),K11,IF(K11>Basis!$N$22,"Uit",IF(ISBLANK(L11),K11,K11+L11)))) -> 0 | BJ11: 40.16666667 | BK11: 269 | BL11: =IF(N11="","",IF(BK11<=Basis!$F$22,0,(BK11-Basis!$F$22)*0.4)) -> 18.8 | BM11: =IF(N11="","",IF(BK11>Basis!$G$22,0,(Basis!$G$22-BK11)*0.4)) -> 0 | BN11: 18.8 | BP11: 20.5 | BQ11: 22.5 | BR11: 6.833333333 | BS11: 7.5
A12: 8 | B12: D | C12: 139 | D12: 829737CB | E12: Stijn van Bokhoven | F12: Coshla Bill | G12: PC. Het Edele Ros | I12: 189 | J12: =IF(I12="","",IF(ISTEXT(I12),I12,IF(I12<=Basis!$M$22,"Uit",(100-(I12/Basis!$L$22*100))*Basis!$Y$19))) -> 37 | K12: 0 | L12: 0 | M12: 20 | N12: 5 | O12: 8 | P12: =IF(N12="","",IF(N12*60+O12>Basis!$U$22,"Uit",BL12+BM12)) -> 34.4 | R12: 91.4 | S12: 7.166666667 | T12: 7.333333333 | U12: 76.9 | X12: 139 | Y12: 0 | Z12: - | AA12: 20 | AB12: - | AC12: - | AD12: - | AE12: - | AF12: - | AG12: - | AH12: - | AI12: - | AJ12: - | AK12: - | AL12: - | AM12: - | AX12: 20 | BA12: 139 | BC12: 15:40:00 | BD12: 15:45:08 | BE12: 00:05:08 | BF12: 5 | BG12: 8 | BI12: =IF(K12="","",IF(ISTEXT(K12),K12,IF(K12>Basis!$N$22,"Uit",IF(ISBLANK(L12),K12,K12+L12)))) -> 0 | BJ12: 37 | BK12: 308 | BL12: =IF(N12="","",IF(BK12<=Basis!$F$22,0,(BK12-Basis!$F$22)*0.4)) -> 34.4 | BM12: =IF(N12="","",IF(BK12>Basis!$G$22,0,(Basis!$G$22-BK12)*0.4)) -> 0 | BN12: 54.4 | BP12: 21.5 | BQ12: 22 | BR12: 7.166666667 | BS12: 7.333333333
A13: 9 | B13: D | C13: 136 | D13: 777601RS | E13: Nomi Steenbergen | F13: Sterre | G13: PC. Rynland | I13: 184 | J13: =IF(I13="","",IF(ISTEXT(I13),I13,IF(I13<=Basis!$M$22,"Uit",(100-(I13/Basis!$L$22*100))*Basis!$Y$19))) -> 38.66666667 | K13: 0 | L13: 0 | M13: 20 | N13: 4 | O13: 51 | P13: =IF(N13="","",IF(N13*60+O13>Basis!$U$22,"Uit",BL13+BM13)) -> 27.6 | R13: 86.26666667 | S13: 8 | T13: 6.166666667 | U13: 72.1 | X13: 136 | Y13: 0 | Z13: - | AA13: - | AB13: - | AC13: - | AD13: - | AE13: - | AF13: - | AG13: - | AH13: - | AI13: - | AJ13: 20 | AK13: - | AL13: - | AM13: - | AX13: 20 | BA13: 136 | BC13: 15:34:00 | BD13: 15:38:51 | BE13: 00:04:51 | BF13: 4 | BG13: 51 | BI13: =IF(K13="","",IF(ISTEXT(K13),K13,IF(K13>Basis!$N$22,"Uit",IF(ISBLANK(L13),K13,K13+L13)))) -> 0 | BJ13: 38.66666667 | BK13: 291 | BL13: =IF(N13="","",IF(BK13<=Basis!$F$22,0,(BK13-Basis!$F$22)*0.4)) -> 27.6 | BM13: =IF(N13="","",IF(BK13>Basis!$G$22,0,(Basis!$G$22-BK13)*0.4)) -> 0 | BN13: 47.6 | BP13: 24 | BQ13: 18.5 | BR13: 8 | BS13: 6.166666667
A14: 10 | B14: D | C14: 147 | D14: 852021WB | E14: Puck Buijnsters | F14: Wielbraek's Fredje | G14: PC. De Cavalieren | I14: 193 | J14: =IF(I14="","",IF(ISTEXT(I14),I14,IF(I14<=Basis!$M$22,"Uit",(100-(I14/Basis!$L$22*100))*Basis!$Y$19))) -> 35.66666667 | K14: 4 | L14: 11 | M14: 20 | N14: 7 | O14: 36 | P14: =IF(N14="","",IF(N14*60+O14>Basis!$U$22,"Uit",BL14+BM14)) -> 93.6 | R14: 164.2666667 | S14: 5.833333333 | T14: 7 | U14: 151.4333333 | X14: 147 | Y14: 0 | Z14: - | AA14: - | AB14: 20 | AC14: - | AD14: - | AE14: - | AF14: - | AG14: - | AH14: - | AI14: - | AJ14: - | AK14: - | AL14: - | AM14: - | AX14: 20 | BA14: 147 | BC14: 15:56:00 | BD14: 16:03:36 | BE14: 00:07:36 | BF14: 7 | BG14: 36 | BI14: =IF(K14="","",IF(ISTEXT(K14),K14,IF(K14>Basis!$N$22,"Uit",IF(ISBLANK(L14),K14,K14+L14)))) -> 15 | BJ14: 50.66666667 | BK14: 456 | BL14: =IF(N14="","",IF(BK14<=Basis!$F$22,0,(BK14-Basis!$F$22)*0.4)) -> 93.6 | BM14: =IF(N14="","",IF(BK14>Basis!$G$22,0,(Basis!$G$22-BK14)*0.4)) -> 0 | BN14: 113.6 | BP14: 17.5 | BQ14: 21 | BR14: 5.833333333 | BS14: 7
B15: D | C15: 146 | D15: 807408RV | E15: Floor van der Vorst | F15: Roetsenest's Bellucci | G15: PC. De Reigertjes | I15: 173 | J15: =IF(I15="","",IF(ISTEXT(I15),I15,IF(I15<=Basis!$M$22,"Uit",(100-(I15/Basis!$L$22*100))*Basis!$Y$19))) -> 42.33333333 | K15: 12 | L15: 0 | M15: Uit | N15: 7 | O15: 18 | P15: =IF(N15="","",IF(N15*60+O15>Basis!$U$22,"Uit",BL15+BM15)) -> 86.4 | R15: Uit | S15: 7.333333333 | T15: 6.666666667 | U15: Uit | V15: 3W h.1 d* | X15: 146 | Y15: 3W | Z15: 20 | AA15: - | AB15: - | AC15: - | AD15: - | AE15: - | AF15: - | AG15: - | AH15: - | AI15: - | AJ15: 20 | AK15: - | AL15: - | AM15: - | AX15: Uit | AY15: 3W h.1 d* | BA15: 146 | BC15: 15:54:00 | BD15: 16:01:18 | BE15: 00:07:18 | BF15: 7 | BG15: 18 | BI15: =IF(K15="","",IF(ISTEXT(K15),K15,IF(K15>Basis!$N$22,"Uit",IF(ISBLANK(L15),K15,K15+L15)))) -> 12 | BJ15: 54.33333333 | BK15: 438 | BL15: =IF(N15="","",IF(BK15<=Basis!$F$22,0,(BK15-Basis!$F$22)*0.4)) -> 86.4 | BM15: =IF(N15="","",IF(BK15>Basis!$G$22,0,(Basis!$G$22-BK15)*0.4)) -> 0 | BN15: Uit | BP15: 22 | BQ15: 20 | BR15: 7.333333333 | BS15: 6.666666667
B16: D | C16: 142 | I16: NG | J16: =IF(I16="","",IF(ISTEXT(I16),I16,IF(I16<=Basis!$M$22,"Uit",(100-(I16/Basis!$L$22*100))*Basis!$Y$19))) -> NG | K16: NG | M16: NG | P16: =IF(N16="","",IF(N16*60+O16>Basis!$U$22,"Uit",BL16+BM16)) ->  | R16: NG | U16: NG | X16: 142 | Y16: NG | Z16: - | AA16: - | AB16: - | AC16: - | AD16: - | AE16: - | AF16: - | AG16: - | AH16: - | AI16: - | AJ16: - | AK16: - | AL16: - | AM16: - | AX16: =IF(Y16="","",IF(ISTEXT(Y16),Y16,SUM(Y16:AW16))) -> NG | BA16: 142 | BC16: 15:46:00 | BI16: =IF(K16="","",IF(ISTEXT(K16),K16,IF(K16>Basis!$N$22,"Uit",IF(ISBLANK(L16),K16,K16+L16)))) -> NG | BJ16: NG | BL16: =IF(N16="","",IF(BK16<=Basis!$F$22,0,(BK16-Basis!$F$22)*0.4)) ->  | BM16: =IF(N16="","",IF(BK16>Basis!$G$22,0,(Basis!$G$22-BK16)*0.4)) ->  | BN16: NG
B17: D | C17: 145 | D17: 841814CB | E17: Bloeme Burgers | F17: Cassandra Z | G17: PC. Breda | I17: NG | J17: =IF(I17="","",IF(ISTEXT(I17),I17,IF(I17<=Basis!$M$22,"Uit",(100-(I17/Basis!$L$22*100))*Basis!$Y$19))) -> NG | K17: NG | M17: NG | P17: =IF(N17="","",IF(N17*60+O17>Basis!$U$22,"Uit",BL17+BM17)) ->  | R17: NG | U17: NG | X17: 145 | Y17: NG | Z17: - | AA17: - | AB17: - | AC17: - | AD17: - | AE17: - | AF17: - | AG17: - | AH17: - | AI17: - | AJ17: - | AK17: - | AL17: - | AM17: - | AX17: =IF(Y17="","",IF(ISTEXT(Y17),Y17,SUM(Y17:AW17))) -> NG | BA17: 145 | BC17: 15:52:00 | BI17: =IF(K17="","",IF(ISTEXT(K17),K17,IF(K17>Basis!$N$22,"Uit",IF(ISBLANK(L17),K17,K17+L17)))) -> NG | BJ17: NG | BL17: =IF(N17="","",IF(BK17<=Basis!$F$22,0,(BK17-Basis!$F$22)*0.4)) ->  | BM17: =IF(N17="","",IF(BK17>Basis!$G$22,0,(Basis!$G$22-BK17)*0.4)) ->  | BN17: NG
J18: =IF(I18="","",IF(ISTEXT(I18),I18,IF(I18<=Basis!$M$22,"Uit",(100-(I18/Basis!$L$22*100))*Basis!$Y$19))) ->  | M18: =IF(AX18="","",AX18) ->  | N18: =IF(ISBLANK(BD18),"",BF18) ->  | O18: =IF(ISBLANK(BD18),"",BG18) ->  | P18: =IF(N18="","",IF(N18*60+O18>Basis!$U$22,"Uit",BL18+BM18)) ->  | R18: =IF(ISTEXT(BJ18),BJ18,IF(OR(ISBLANK(M18),M18="",ISBLANK(Y18)),BJ18,IF(ISTEXT(BN18),BN18,BJ18+BN18))) ->  | S18: =IF(BP18="","",BR18) ->  | T18: =IF(BQ18="","",BS18) ->  | U18: =IF(R18="","",IF(ISTEXT(R18),R18,IF(BP18="","",R18-S18-T18))) ->  | V18: =IF(AY18="","",AY18) ->  | X18: =IF($C18="","",$C18) ->  | AX18: =IF(Y18="","",IF(ISTEXT(Y18),Y18,SUM(Y18:AW18))) ->  | BA18: =IF($C18="","",$C18) ->  | BE18: =IF(ISBLANK(BD18),"",BD18-BC18) ->  | BF18: =IF(ISBLANK(BD18),"",MINUTE(BE18)) ->  | BG18: =IF(ISBLANK(BD18),"",SECOND(BE18)) ->  | BI18: =IF(K18="","",IF(ISTEXT(K18),K18,IF(K18>Basis!$N$22,"Uit",IF(ISBLANK(L18),K18,K18+L18)))) ->  | BJ18: =IF(OR(ISTEXT(J18),BI18=""),J18,IF(ISTEXT(BI18),BI18,J18+BI18)) ->  | BK18: =IF(N18="","",N18*60+O18) ->  | BL18: =IF(N18="","",IF(BK18<=Basis!$F$22,0,(BK18-Basis!$F$22)*0.4)) ->  | BM18: =IF(N18="","",IF(BK18>Basis!$G$22,0,(Basis!$G$22-BK18)*0.4)) ->  | BN18: =IF(M18="","",IF(ISTEXT(M18),M18,IF(ISTEXT(P18),P18,M18+P18))) ->  | BR18: =IF(BP18="","",BP18/3) ->  | BS18: =IF(BQ18="","",BQ18/3) -> 
J19: =IF(I19="","",IF(ISTEXT(I19),I19,IF(I19<=Basis!$M$22,"Uit",(100-(I19/Basis!$L$22*100))*Basis!$Y$19))) ->  | P19: =IF(N19="","",IF(N19*60+O19>Basis!$U$22,"Uit",BL19+BM19)) ->  | BI19: =IF(K19="","",IF(ISTEXT(K19),K19,IF(K19>Basis!$N$22,"Uit",IF(ISBLANK(L19),K19,K19+L19)))) ->  | BL19: =IF(N19="","",IF(BK19<=Basis!$F$22,0,(BK19-Basis!$F$22)*0.4)) ->  | BM19: =IF(N19="","",IF(BK19>Basis!$G$22,0,(Basis!$G$22-BK19)*0.4)) -> 
J20: =IF(I20="","",IF(ISTEXT(I20),I20,IF(I20<=Basis!$M$22,"Uit",(100-(I20/Basis!$L$22*100))*Basis!$Y$19))) ->  | P20: =IF(N20="","",IF(N20*60+O20>Basis!$U$22,"Uit",BL20+BM20)) ->  | BI20: =IF(K20="","",IF(ISTEXT(K20),K20,IF(K20>Basis!$N$22,"Uit",IF(ISBLANK(L20),K20,K20+L20)))) ->  | BL20: =IF(N20="","",IF(BK20<=Basis!$F$22,0,(BK20-Basis!$F$22)*0.4)) ->  | BM20: =IF(N20="","",IF(BK20>Basis!$G$22,0,(Basis!$G$22-BK20)*0.4)) -> 
J21: =IF(I21="","",IF(ISTEXT(I21),I21,IF(I21<=Basis!$M$22,"Uit",(100-(I21/Basis!$L$22*100))*Basis!$Y$19))) ->  | P21: =IF(N21="","",IF(N21*60+O21>Basis!$U$22,"Uit",BL21+BM21)) ->  | BI21: =IF(K21="","",IF(ISTEXT(K21),K21,IF(K21>Basis!$N$22,"Uit",IF(ISBLANK(L21),K21,K21+L21)))) ->  | BL21: =IF(N21="","",IF(BK21<=Basis!$F$22,0,(BK21-Basis!$F$22)*0.4)) ->  | BM21: =IF(N21="","",IF(BK21>Basis!$G$22,0,(Basis!$G$22-BK21)*0.4)) -> 
J22: =IF(I22="","",IF(ISTEXT(I22),I22,IF(I22<=Basis!$M$22,"Uit",(100-(I22/Basis!$L$22*100))*Basis!$Y$19))) ->  | P22: =IF(N22="","",IF(N22*60+O22>Basis!$U$22,"Uit",BL22+BM22)) ->  | BI22: =IF(K22="","",IF(ISTEXT(K22),K22,IF(K22>Basis!$N$22,"Uit",IF(ISBLANK(L22),K22,K22+L22)))) ->  | BL22: =IF(N22="","",IF(BK22<=Basis!$F$22,0,(BK22-Basis!$F$22)*0.4)) ->  | BM22: =IF(N22="","",IF(BK22>Basis!$G$22,0,(Basis!$G$22-BK22)*0.4)) -> 
A23: Bij uitsluiting reden vermelden : | P23: =NOW() -> 2018-06-30T22:02:24.880 | X23: =A23 -> Bij uitsluiting reden vermelden : | AU23: =NOW() -> 2018-06-30T22:02:24.880
A24: VP=val paard, VR=val ruiter, 3W=3 weigeringen op zelfde hindernis, 4W=4 weigeringen totaal, FP=foutief parcours, Vr.v= vrijwillig verlaten | X24: =A24 -> VP=val paard, VR=val ruiter, 3W=3 weigeringen op zelfde hindernis, 4W=4 weigeringen totaal, FP=foutief parcours, Vr.v= vrijwillig verlaten

Sheet BB Pony's
A1: =" Samengestelde wedstrijd "&Basis!D18 -> Samengestelde wedstrijd Eventing Leende 30 juni 2018 | G1: Klasse BB - Cat ABCDE | L1: Dressuurjury : | X1: Verzamelstaat hindernisfouten in de cross | AK1: =A1 -> Samengestelde wedstrijd Eventing Leende 30 juni 2018 | BA1: =G1&" " -> Klasse BB - Cat ABCDE | BC1: Indien aankomstUUR cross wordt meegedeeld : | BI1: Hulpkolommen | BP1: Stijlcijfers :
A2: rank | B2: pony | C2: rugnr | D2: combinatie nr | E2: naam ruiter | F2: naam pony | G2: vereniging / plaats | I2: dressuur | J2: dressuur | K2: hind.ft. | L2: tijd.ft. | M2: hind.ft. | N2: min | O2: sec | P2: tijd.ft. | R2: totaal | S2: (1) stijl | T2: (2) stijl | U2: eind- | V2: reden | Y2: hindernisnummer | BI2: Uitslag | BJ2: NA | BK2: tijd (sec) | BL2: tijd.ft. | BM2: reg.ft. | BN2: totaal | BP2: Totaal | BQ2: Totaal | BR2: Gemiddelde | BS2: Gemiddelde
A3: HC | B3: cat. | I3: totaal | J3: strafpntn. | K3: springen | L3: springen | M3: cross | N3: cross | P3: =Basis!$H$22&":"&TEXT(Basis!$I$22,"00") -> 3:42 | S3: cijfer | T3: cijfer | U3: totaal | V3: uitsluiting | X3: nr | Y3: 1 | Z3: 2 | AA3: 3 | AB3: 4 | AC3: 5 | AD3: 6 | AE3: VD | AF3: 7 | AG3: VD | AH3: 8ab | AI3: 9 | AJ3: 10ab | AK3: 11 | AL3: 12 | AM3: F | AX3: totaal | AY3: reden uitsluiting | AZ3: hind. | BA3: nr | BC3: Vertrekuur | BD3: Aankomst | BE3: Tijd | BF3: Minuten | BG3: Seconden | BI3: Springen | BJ3: Springen | BK3: cross | BL3: opt.tijd = | BM3: =Basis!$H$22&":"&TEXT(Basis!$I$22,"00") -> 3:42 | BN3: cross | BP3: Jury 1 | BQ3: Jury 2 | BR3: Jury 1 | BS3: Jury 2
R4: =IF(ISBLANK(I4),"",IF(AND(ISBLANK(K4),ISBLANK(Y4)),J4,IF(ISTEXT(K4),K4,IF(OR(ISBLANK(M4),M4=""),J4+K4+L4,IF(ISTEXT(M4),M4,IF(ISBLANK(Y4),J4+K4+L4,J4+K4+L4+M4+P4+Q4)))))) -> 
A5: 1 | B5: D | C5: 151 | E5: Noa van der Leeuw | F5: Topline's Tamiro | G5: PC. Eendracht Pey | I5: 150 | J5: =IF(I5="","",IF(ISTEXT(I5),I5,IF(I5<=Basis!$M$22,"Uit",(100-(I5/Basis!$L$22*100))*Basis!$Y$19))) -> 50 | K5: 0 | L5: 0 | M5: =IF(AX5="","",AX5) -> 0 | N5: =IF(ISBLANK(BD5),"",BF5) -> 4 | O5: =IF(ISBLANK(BD5),"",BG5) -> 27 | P5: =IF(N5="","",IF(N5*60+O5>Basis!$U$22,"Uit",BL5+BM5)) -> 18 | R5: =IF(ISTEXT(BJ5),BJ5,IF(OR(ISBLANK(M5),M5="",ISBLANK(Y5)),BJ5,IF(ISTEXT(BN5),BN5,BJ5+BN5))) -> 68 | S5: =IF(BP5="","",BR5) -> 7 | T5: =IF(BQ5="","",BS5) -> 7.666666667 | U5: =IF(R5="","",IF(ISTEXT(R5),R5,IF(BP5="","",R5-S5-T5))) -> 53.33333333 | V5: =IF(AY5="","",AY5) ->  | X5: =IF($C5="","",$C5) -> 151 | Y5: 0 | Z5: - | AA5: - | AB5: - | AC5: - | AD5: - | AE5: - | AF5: - | AG5: - | AH5: - | AI5: - | AJ5: - | AK5: - | AL5: - | AM5: - | AX5: =IF(Y5="","",IF(ISTEXT(Y5),Y5,SUM(Y5:AW5))) -> 0 | BA5: =IF($C5="","",$C5) -> 151 | BC5: 16:06:00 | BD5: 16:10:27 | BE5: =IF(ISBLANK(BD5),"",BD5-BC5) -> 00:04:27 | BF5: =IF(ISBLANK(BD5),"",MINUTE(BE5)) -> 4 | BG5: =IF(ISBLANK(BD5),"",SECOND(BE5)) -> 27 | BI5: =IF(K5="","",IF(ISTEXT(K5),K5,IF(K5>Basis!$N$22,"Uit",IF(ISBLANK(L5),K5,K5+L5)))) -> 0 | BJ5: =IF(OR(ISTEXT(J5),BI5=""),J5,IF(ISTEXT(BI5),BI5,J5+BI5)) -> 50 | BK5: =IF(N5="","",N5*60+O5) -> 267 | BL5: =IF(N5="","",IF(BK5<=Basis!$F$22,0,(BK5-Basis!$F$22)*0.4)) -> 18 | BM5: =IF(N5="","",IF(BK5>Basis!$G$22,0,(Basis!$G$22-BK5)*0.4)) -> 0 | BN5: =IF(M5="","",IF(ISTEXT(M5),M5,IF(ISTEXT(P5),P5,M5+P5))) -> 18 | BP5: 21 | BQ5: 23 | BR5: =IF(BP5="","",BP5/3) -> 7 | BS5: =IF(BQ5="","",BQ5/3) -> 7.666666667
A6: 2 | B6: D | C6: 152 | E6: Josien Thijssens | F6: De Biestermannen's Pepper | I6: 150 | J6: =IF(I6="","",IF(ISTEXT(I6),I6,IF(I6<=Basis!$M$22,"Uit",(100-(I6/Basis!$L$22*100))*Basis!$Y$19))) -> 50 | K6: 0 | L6: 0 | M6: 0 | N6: 4 | O6: 31 | P6: =IF(N6="","",IF(N6*60+O6>Basis!$U$22,"Uit",BL6+BM6)) -> 19.6 | R6: 69.6 | S6: 6.833333333 | T6: 7 | U6: 55.76666667 | X6: 152 | Y6: 0 | Z6: - | AA6: - | AB6: - | AC6: - | AD6: - | AE6: - | AF6: - | AG6: - | AH6: - | AI6: - | AJ6: - | AK6: - | AL6: - | AM6: - | AX6: 0 | BA6: 152 | BC6: 16:08:00 | BD6: 16:12:31 | BE6: 00:04:31 | BF6: 4 | BG6: 31 | BI6: =IF(K6="","",IF(ISTEXT(K6),K6,IF(K6>Basis!$N$22,"Uit",IF(ISBLANK(L6),K6,K6+L6)))) -> 0 | BJ6: 50 | BK6: 271 | BL6: =IF(N6="","",IF(BK6<=Basis!$F$22,0,(BK6-Basis!$F$22)*0.4)) -> 19.6 | BM6: =IF(N6="","",IF(BK6>Basis!$G$22,0,(Basis!$G$22-BK6)*0.4)) -> 0 | BN6: 19.6 | BP6: 20.5 | BQ6: 21 | BR6: 6.833333333 | BS6: 7
A7: 3 | B7: D | C7: 154 | E7: Fleur Naus | F7: Boelabeha golden villa | I7: 150 | J7: =IF(I7="","",IF(ISTEXT(I7),I7,IF(I7<=Basis!$M$22,"Uit",(100-(I7/Basis!$L$22*100))*Basis!$Y$19))) -> 50 | K7: 4 | L7: 10 | M7: 0 | N7: 4 | O7: 21 | P7: =IF(N7="","",IF(N7*60+O7>Basis!$U$22,"Uit",BL7+BM7)) -> 15.6 | R7: 79.6 | S7: 7.333333333 | T7: 7 | U7: 65.26666667 | X7: 154 | Y7: 0 | Z7: - | AA7: - | AB7: - | AC7: - | AD7: - | AE7: - | AF7: - | AG7: - | AH7: - | AI7: - | AJ7: - | AK7: - | AL7: - | AM7: - | AX7: 0 | BA7: 154 | BC7: 16:12:00 | BD7: 16:16:21 | BE7: 00:04:21 | BF7: 4 | BG7: 21 | BI7: =IF(K7="","",IF(ISTEXT(K7),K7,IF(K7>Basis!$N$22,"Uit",IF(ISBLANK(L7),K7,K7+L7)))) -> 14 | BJ7: 64 | BK7: 261 | BL7: =IF(N7="","",IF(BK7<=Basis!$F$22,0,(BK7-Basis!$F$22)*0.4)) -> 15.6 | BM7: =IF(N7="","",IF(BK7>Basis!$G$22,0,(Basis!$G$22-BK7)*0.4)) -> 0 | BN7: 15.6 | BP7: 22 | BQ7: 21 | BR7: 7.333333333 | BS7: 7
A8: 4 | B8: D | C8: 156 | E8: Tycho van der Heijden | F8: Gloria | G8: PC. Sint Martinus | I8: 150 | J8: =IF(I8="","",IF(ISTEXT(I8),I8,IF(I8<=Basis!$M$22,"Uit",(100-(I8/Basis!$L$22*100))*Basis!$Y$19))) -> 50 | K8: 0 | L8: 0 | M8: 20 | N8: 5 | O8: 16 | P8: =IF(N8="","",IF(N8*60+O8>Basis!$U$22,"Uit",BL8+BM8)) -> 37.6 | R8: 107.6 | S8: 7.166666667 | T8: 7.333333333 | U8: 93.1 | X8: 156 | Y8: 20 | Z8: - | AA8: - | AB8: - | AC8: - | AD8: - | AE8: - | AF8: - | AG8: - | AH8: - | AI8: - | AJ8: - | AK8: - | AL8: - | AM8: - | AX8: 20 | BA8: 156 | BC8: 16:14:00 | BD8: 16:19:16 | BE8: 00:05:16 | BF8: 5 | BG8: 16 | BI8: =IF(K8="","",IF(ISTEXT(K8),K8,IF(K8>Basis!$N$22,"Uit",IF(ISBLANK(L8),K8,K8+L8)))) -> 0 | BJ8: 50 | BK8: 316 | BL8: =IF(N8="","",IF(BK8<=Basis!$F$22,0,(BK8-Basis!$F$22)*0.4)) -> 37.6 | BM8: =IF(N8="","",IF(BK8>Basis!$G$22,0,(Basis!$G$22-BK8)*0.4)) -> 0 | BN8: 57.6 | BP8: 21.5 | BQ8: 22 | BR8: 7.166666667 | BS8: 7.333333333
A9: 5 | B9: D | C9: 153 | E9: Fleur Leenen | F9: Isabella | I9: 150 | J9: =IF(I9="","",IF(ISTEXT(I9),I9,IF(I9<=Basis!$M$22,"Uit",(100-(I9/Basis!$L$22*100))*Basis!$Y$19))) -> 50 | K9: 0 | L9: 1 | M9: 0 | N9: 6 | O9: 36 | P9: =IF(N9="","",IF(N9*60+O9>Basis!$U$22,"Uit",BL9+BM9)) -> 69.6 | R9: 120.6 | S9: 6.333333333 | T9: 6.333333333 | U9: 107.9333333 | X9: 153 | Y9: 0 | Z9: - | AA9: - | AB9: - | AC9: - | AD9: - | AE9: - | AF9: - | AG9: - | AH9: - | AI9: - | AJ9: - | AK9: - | AL9: - | AM9: - | AX9: 0 | BA9: 153 | BC9: 16:10:00 | BD9: 16:16:36 | BE9: 00:06:36 | BF9: 6 | BG9: 36 | BI9: =IF(K9="","",IF(ISTEXT(K9),K9,IF(K9>Basis!$N$22,"Uit",IF(ISBLANK(L9),K9,K9+L9)))) -> 1 | BJ9: 51 | BK9: 396 | BL9: =IF(N9="","",IF(BK9<=Basis!$F$22,0,(BK9-Basis!$F$22)*0.4)) -> 69.6 | BM9: =IF(N9="","",IF(BK9>Basis!$G$22,0,(Basis!$G$22-BK9)*0.4)) -> 0 | BN9: 69.6 | BP9: 19 | BQ9: 19 | BR9: 6.333333333 | BS9: 6.333333333
